Workbook

Sheet dis
B33: =version -> Version 1.02 | J33: =Authors_Copyright -> This e-tool was done by Elena Stefana, Filippo Marciano, Thomas W. Armstrong and Daniel Drolet.

Sheet intro
B32: =version -> Version 1.02 | K32: =Authors_Copyright -> This e-tool was done by Elena Stefana, Filippo Marciano, Thomas W. Armstrong and Daniel Drolet.

Sheet Model
G6: =T!B53 -> NF | H6: =T!B54 -> FF | I6: =T!B55 -> Outdoor
F7: N2 | G7: 78.1 % | H7: 78.1 % | I7: 78.1 %
C8: 101.325 kPa | F8: O2 | G8: 20.9 % | H8: 20.9 % | I8: 20.9 % | L8: δt | M8: 1.00 s
F9: Ar | G9: 1.0 % | H9: 1.0 % | I9: 1.0 %
G10: =data!S10 -> J | H10: =data!S11 -> J | I10: =data!S12 -> J
N12: % O2 | O12: ppO2
C13: =T!B80 -> Total volume | E13: 100.00 m³ | F13: =GeoNameParam1(Geo_Choice) -> Radius | G13: 2.00 m | I13: =data!S18 -> J | M13: =T!B66 -> Target O₂ levels | N13: 18.0 % | O13: 137.0 mmHg
F14: =GeoNameParam2(Geo_Choice) -> 
F15: =GeoNameParam3(Geo_Choice) -> 
G17: =T!B62 -> Random air speed
G18: 0.06 m/s
F23: =T!B72 -> Flow rate | G23: =T!B73 -> Type | H23: =T!B74 -> ɑ value | I23: N2 | J23: O2 | K23: Ar | L23: =T!B75 -> Temp. | M23: =T!B76 -> Pressure | N23: =T!B77 -> Initial time | O23: =T!B78 -> Duration
E24: =T!B67 -> Inert gas release 1 | F24: 0.05 m³/s | G24: Constant | I24: 100.0 % | J24: 0.0 % | K24: 0.0 % | L24: 18 | M24: 101.325 kPa | N24: 0 | O24: 1000 | P24: =data!S13 -> J
E25: =T!B68 -> Inert gas release 2 | F25: 0.05 m³/s | G25: Constant | I25: 0.0 % | J25: 0.0 % | K25: 100.0 % | L25: 18 | M25: 101.325 kPa | N25: 0 | O25: 1000 | P25: =data!S14 -> J
E26: =T!B69 -> Forced supply ventilation 1 | F26: 1.00 m³/s | I26: 78.1 % | J26: 20.9 % | K26: 1.0 % | L26: 26 | M26: 101.325 kPa | N26: 0 | O26: 1000 | P26: =data!S15 -> J
E27: =T!B70 -> Forced supply ventilation 2 | F27: 0.50 m³/s | I27: 78.1 % | J27: 20.9 % | K27: 1.0 % | L27: 26 | M27: 101.325 kPa | N27: 0 | O27: 1000 | P27: =data!S16 -> J
E28: =T!B71 -> Forced return ventilation | F28: 1.50 m³/s | N28: 0 | O28: 1000 | P28: =data!S17 -> J
B31: =version -> Version 1.02 | Q31: =Authors_Copyright -> This e-tool was done by Elena Stefana, Filippo Marciano, Thomas W. Armstrong and Daniel Drolet.
N34: Œ

Sheet Ex (hidden)
D4: 0 | E4: 1 | F4: 2 | G4: 3 | H4: 4 | I4: 5 | J4: 6 | K4: 7 | L4: 8 | M4: 9 | N4: 10 | O4: 11 | P4: 12 | Q4: 13 | R4: 14 | S4: 15 | T4: 16 | U4: 17 | V4: 18 | W4: 19 | X4: 20 | Y4: 21 | Z4: 22 | AA4: 23 | AB4: 24 | AC4: 25 | AD4: 26 | AE4: 27 | AF4: 28 | AG4: 29 | AH4: 30 | AI4: 31 | AJ4: 32 | AK4: 33 | AL4: 34 | AM4: 35 | AN4: 36 | AO4: 37 | AP4: 38 | AQ4: 39 | AR4: 40 | AS4: 41 | AT4: 42 | AU4: 43 | AV4: 44 | AW4: 45 | AX4: 46 | AY4: 47 | AZ4: 48 | BA4: 49 | BB4: 50 | BC4: 51 | BD4: 52 | BE4: 53 | BF4: 54 | BG4: 55 | BH4: 56 | BI4: 57 | BJ4: 58 | BK4: 59 | BL4: 60 | BM4: 61 | BN4: 62 | BO4: 63 | BP4: 64 | BQ4: 65 | BR4: 66
G6: Initial Conditions | N6: NF | Q6: FF | T6: OE | W6: Volume | AD6: OEL | AF6: Inert gas 1 | AP6: Inert gas 2 | AZ6: Forced vent. airflow (supply air) 1 | BH6: Forced vent.n airflow (supply air) 2 | BP6: Forced vent. airflow (return air)
D8: Num Ex | E8: Short title | F8: Description | G8: δt | H8: CB O2 | I8: CB ppO2 | J8: Pressure | K8: Spinner T NF | L8: Spinner T FF | M8: Sipper T OE | N8: N2 | O8: O2 | P8: Ar | Q8: N2 | R8: O2 | S8: Ar | T8: N2 | U8: O2 | V8: Ar | W8: WV | X8: Air speed | Y8: Parameter 1 | Z8: Parameter 2 | AA8: Parameter 3 | AB8: Geometry | AC8: Sub-Geometry | AD8: Target OEL | AE8: Target mm Hg | AF8: Flow rate | AG8: Release type IG1 | AH8: Alpha IG1 | AI8: Initial time | AJ8: Duration | AK8: N2 | AL8: O2 | AM8: Ar | AN8: Temp. | AO8: Pressure | AP8: Flow rate | AQ8: Release type IG2 | AR8: Alpha IG2 | AS8: Initial time | AT8: Duration | AU8: N2 | AV8: O2 | AW8: Ar | AX8: Temp. | AY8: Pressure | AZ8: Flow rate | BA8: Initial time | BB8: Duration | BC8: N2 | BD8: O2 | BE8: Ar | BF8: Temp. | BG8: Pressure | BH8: Flow rate | BI8: Initial time | BJ8: Duration | BK8: N2 | BL8: O2 | BM8: Ar | BN8: Temp. | BO8: Pressure | BP8: Forced vent.airflow (return air) | BQ8: Initial time | BR8: Duration
D9: 1 | E9: =T!B140 -> Simultaneous flows | F9: =T!B153 -> % O₂ and ppO₂ for a working environment (whole volume is equal to 100 m³), where there are two simultaneous releases (one of pure nitrogen, other of pure argon) with constant flow rates, and two supply and one return ventilation airflows. All the flows begin at t = 0 s and last for 1000 s. NF modelled as a ½ sphere. Initial air compositions of NF and FF are the same as the outdoor air composition. NF and FF temperatures are different from the outdoor temperature. | G9: 1 | H9: TRUE | I9: TRUE | J9: 101.325 | K9: 46 | L9: 46 | M9: 52 | N9: 78.1 % | O9: 20.9 % | P9: 1.0 % | Q9: 78.1 % | R9: 20.9 % | S9: 1.0 % | T9: 78.1 % | U9: 20.9 % | V9: 1.0 % | W9: 100 | X9: 0.06 | Y9: 2 | AB9: 1 | AC9: 2 | AD9: 18 | AE9: 137 | AF9: 0.05 | AG9: Constant | AI9: 0 | AJ9: 1000 | AK9: 100.0 % | AL9: 0.0 % | AM9: 0.0 % | AN9: 18 | AO9: 101.325 | AP9: 0.05 | AQ9: Constant | AS9: 0 | AT9: 1000 | AU9: 0.0 % | AV9: 0.0 % | AW9: 100.0 % | AX9: 18 | AY9: 101.325 | AZ9: 1 | BA9: 0 | BB9: 1000 | BC9: 78.1 % | BD9: 20.9 % | BE9: 1.0 % | BF9: 26 | BG9: 101.325 | BH9: 0.5 | BI9: 0 | BJ9: 1000 | BK9: 78.1 % | BL9: 20.9 % | BM9: 1.0 % | BN9: 26 | BO9: 101.325 | BP9: 1.5 | BQ9: 0 | BR9: 1000
D10: 2 | E10: =T!B141 -> Pure release and ventilation airflows | F10: =T!B154 -> % O₂ for a working environment (whole volume is equal to 100 m³), where there are one pure nitrogen release with a constant flow rate, supply and return ventilation airflows. The release begins at t = 0 s and lasts for 420 s, while ventilation airflows begin at t = 0 s and last for 1000 s. NF modelled as a bottom occluded box. Initial air compositions of NF and FF are the same as the outdoor air composition. Different NF, FF, and outdoor temperatures. δt = 10 s. | G10: 10 | H10: TRUE | J10: 101.325 | K10: 45 | L10: 40 | M10: 30 | N10: 78.1 % | O10: 20.9 % | P10: 1.0 % | Q10: 78.1 % | R10: 20.9 % | S10: 1.0 % | T10: 78.1 % | U10: 20.9 % | V10: 1.0 % | W10: 100 | X10: 0.06 | Y10: 2 | Z10: 2 | AA10: 2.5 | AB10: 2 | AC10: 2 | AD10: 18 | AF10: 0.02 | AG10: Constant | AI10: 0 | AJ10: 420 | AK10: 100.0 % | AL10: 0.0 % | AM10: 0.0 % | AN10: 18 | AO10: 101.325 | AZ10: 0.5 | BA10: 0 | BB10: 1000 | BC10: 78.1 % | BD10: 20.9 % | BE10: 1.0 % | BF10: 22 | BG10: 101.325 | BP10: 0.5 | BQ10: 0 | BR10: 1000
D11: 3 | E11: =T!B142 -> Two releases and no ventilation | F11: =T!B155 -> ppO₂ for a working environment (whole volume is equal to 100 m³), where there are two simultaneous releases (one of pure nitrogen, other of pure argon) with constant flow rates and different pressures. The nitrogen release begins at t = 100 s and lasts 300 s, while the argon release begins at t = 250 s and lasts 600 s. NF modelled as a ½ cylinder, top and bottom occluded. Initial air compositions of NF and FF are the same as the outdoor air composition. NF and FF temperatures are different from the outdoor temperature. | G11: 1 | I11: TRUE | J11: 101.325 | K11: 40 | L11: 40 | M11: 35 | N11: 78.1 % | O11: 20.9 % | P11: 1.0 % | Q11: 78.1 % | R11: 20.9 % | S11: 1.0 % | T11: 78.1 % | U11: 20.9 % | V11: 1.0 % | W11: 100 | X11: 0.06 | Y11: 1.5 | Z11: 2 | AB11: 3 | AC11: 4 | AE11: 132 | AF11: 0.1 | AG11: Constant | AI11: 100 | AJ11: 300 | AK11: 100.0 % | AL11: 0.0 % | AM11: 0.0 % | AN11: 15 | AO11: 101.325 | AP11: 0.05 | AQ11: Constant | AS11: 250 | AT11: 600 | AU11: 0.0 % | AV11: 0.0 % | AW11: 100.0 % | AX11: 18 | AY11: 107
D12: 4 | E12: =T!B143 -> Not pure inert gas release | F12: =T!B156 -> % O₂ and ppO₂ for a working environment (whole volume is equal to 50 m³), where there are one release of a not pure inert gas with a constant flow rate, and a supply ventilation airflow. The release begins at t = 0 s and lasts for 500 s, while the ventilation airflow begins at t = 0 s and lasts for 1000 s. NF modelled as a ½ sphere. Initial air compositions of NF and FF are the same as the outdoor air composition. Different NF, FF, and outdoor temperatures. δt = 5 s. | G12: 5 | H12: TRUE | I12: TRUE | J12: 101.325 | K12: 45 | L12: 40 | M12: 30 | N12: 78.1 % | O12: 20.9 % | P12: 1.0 % | Q12: 78.1 % | R12: 20.9 % | S12: 1.0 % | T12: 78.1 % | U12: 20.9 % | V12: 1.0 % | W12: 50 | X12: 0.06 | Y12: 1.3 | AB12: 1 | AC12: 2 | AD12: 19.5 | AE12: 148 | AF12: 0.2 | AG12: Constant | AI12: 0 | AJ12: 500 | AK12: 99.0 % | AL12: 1.0 % | AM12: 0.0 % | AN12: 20 | AO12: 101.325 | AZ12: 2 | BA12: 0 | BB12: 1000 | BC12: 78.1 % | BD12: 20.9 % | BE12: 1.0 % | BF12: 25 | BG12: 101.325
D13: 5 | E13: =T!B144 -> Cold pure inert gas release | F13: =T!B157 -> % O₂ and ppO₂ for a working environment (whole volume is equal to 100 m³), where there is one cold pure nitrogen release with a constant flow rate. The release begins at t = 0 s and lasts for 480 s. NF modelled as a full cylinder, open top and bottom. Initial air compositions of NF and FF are the same as the outdoor air composition. NF and FF temperatures are equal to the outdoor temperature. | G13: 1 | H13: TRUE | I13: TRUE | J13: 101.325 | K13: 45 | L13: 45 | M13: 45 | N13: 78.1 % | O13: 20.9 % | P13: 1.0 % | Q13: 78.1 % | R13: 20.9 % | S13: 1.0 % | T13: 78.1 % | U13: 20.9 % | V13: 1.0 % | W13: 100 | X13: 0.06 | Y13: 1 | Z13: 2 | AB13: 3 | AC13: 1 | AD13: 15 | AE13: 137 | AF13: 0.2 | AG13: Constant | AI13: 0 | AJ13: 480 | AK13: 100.0 % | AL13: 0.0 % | AM13: 0.0 % | AN13: 10 | AO13: 101.325
D14: 6 | E14: =T!B145 -> Release and simultaneous ventilation airflows | F14: =T!B158 -> % O₂ and ppO₂ for a working environment (whole volume is equal to 100 m³), where there are one pure nitrogen release with a constant flow rate, and two supply and one return ventilation airflows. The release and one ventilation airflow begin at t = 0 s and last for 1000 s, while the other supply ventilation airflow and return ventilation airflow begin at t = 300 s and last for 600 s. NF modelled as a bottom occluded box. Initial air compositions of NF and FF are the same as the outdoor air composition. NF and FF temperatures are different from the outdoor temperature. | G14: 1 | H14: TRUE | I14: TRUE | J14: 101.325 | K14: 40 | L14: 40 | M14: 45 | N14: 78.1 % | O14: 20.9 % | P14: 1.0 % | Q14: 78.1 % | R14: 20.9 % | S14: 1.0 % | T14: 78.1 % | U14: 20.9 % | V14: 1.0 % | W14: 100 | X14: 0.06 | Y14: 2 | Z14: 2 | AA14: 3 | AB14: 2 | AC14: 2 | AD14: 19.5 | AE14: 148 | AF14: 0.02 | AG14: Constant | AI14: 0 | AJ14: 1000 | AK14: 100.0 % | AL14: 0.0 % | AM14: 0.0 % | AN14: 18 | AO14: 101.325 | AZ14: 0.3 | BA14: 0 | BB14: 1000 | BC14: 78.1 % | BD14: 20.9 % | BE14: 1.0 % | BF14: 20 | BG14: 101.325 | BH14: 0.3 | BI14: 300 | BJ14: 600 | BK14: 78.1 % | BL14: 20.9 % | BM14: 1.0 % | BN14: 20 | BO14: 101.325 | BP14: 0.6 | BQ14: 300 | BR14: 600
D15: 7 | E15: =T!B146 -> Cold flows in a large working environment | F15: =T!B159 -> % O₂ and ppO₂ for a large working environment (whole volume is equal to 250 m³), where there are one cold pure nitrogen release with a constant flow rate and a cold supply ventilation airflow. The release begins at t = 0 s and lasts for 120 s, while the ventilation airflow begins at t = 0 s and lasts for 1000 s. NF modelled as a ½ sphere. Initial air compositions of NF and FF are the same as the outdoor air composition. NF and FF temperatures are different from the outdoor temperature. | G15: 1 | H15: TRUE | I15: TRUE | J15: 101.325 | K15: 40 | L15: 40 | M15: 35 | N15: 78.1 % | O15: 20.9 % | P15: 1.0 % | Q15: 78.1 % | R15: 20.9 % | S15: 1.0 % | T15: 78.1 % | U15: 20.9 % | V15: 1.0 % | W15: 250 | X15: 0.06 | Y15: 2 | AB15: 1 | AC15: 2 | AD15: 18 | AE15: 118 | AF15: 0.1 | AG15: Constant | AI15: 0 | AJ15: 120 | AK15: 100.0 % | AL15: 0.0 % | AM15: 0.0 % | AN15: 5 | AO15: 101.325 | AZ15: 1 | BA15: 0 | BB15: 1000 | BC15: 78.1 % | BD15: 20.9 % | BE15: 1.0 % | BF15: 5 | BG15: 87.42
D16: 8 | E16: =T!B147 -> Hot flows in a large working environment | F16: =T!B160 -> ppO₂ for a large working environment (whole volume is equal to 300 m³), where there are one hot pure nitrogen release with a constant flow rate and a hot supply ventilation airflow. The release begins at t = 0 s and lasts for 500 s, while the ventilation airflow begins at t = 0 s and lasts for 1000 s. NF modelled as a ¼ sphere. Initial air compositions of NF and FF are different from the outdoor air composition. NF and FF temperatures are different from the outdoor temperature. | G16: 1 | I16: TRUE | J16: 101.325 | K16: 40 | L16: 40 | M16: 38 | N16: 80.5 % | O16: 19.5 % | P16: 0.0 % | Q16: 80.5 % | R16: 19.5 % | S16: 0.0 % | T16: 78.1 % | U16: 20.9 % | V16: 1.0 % | W16: 300 | X16: 0.06 | Y16: 2 | AB16: 1 | AC16: 3 | AE16: 100 | AF16: 0.15 | AG16: Constant | AI16: 0 | AJ16: 500 | AK16: 100.0 % | AL16: 0.0 % | AM16: 0.0 % | AN16: 35 | AO16: 101.325 | AZ16: 0.3 | BA16: 0 | BB16: 1000 | BC16: 78.1 % | BD16: 20.9 % | BE16: 1.0 % | BF16: 35 | BG16: 101.325
D17: 9 | E17: =T!B148 -> Pure release and no ventilation | F17: =T!B161 -> % O₂ for a working environment (whole volume is equal to 100 m³), where there is one pure nitrogen release with a constant flow rate. The release begins at t = 200 s until 500 s. NF modelled as a ½ sphere. Initial air compositions of NF and FF are different from the outdoor air composition. NF and FF temperatures are different from the outdoor temperature. | G17: 1 | H17: TRUE | J17: 101.325 | K17: 40 | L17: 40 | M17: 38 | N17: 85.0 % | O17: 15.0 % | P17: 0.0 % | Q17: 85.0 % | R17: 15.0 % | S17: 0.0 % | T17: 78.1 % | U17: 20.9 % | V17: 1.0 % | W17: 100 | X17: 0.06 | Y17: 1.5 | AB17: 1 | AC17: 2 | AD17: 12 | AF17: 0.04 | AG17: Constant | AI17: 200 | AJ17: 500 | AK17: 100.0 % | AL17: 0.0 % | AM17: 0.0 % | AN17: 18 | AO17: 101.325
D18: 10 | E18: =T!B149 -> Pure release in a confined space | F18: =T!B162 -> % O₂ and ppO₂ for a small working environment (whole volume is equal to 10 m³), where there is one pure nitrogen release with a constant flow rate and a different pressure than the working environment. The release begins at t = 0 s and lasts for 120 s. NF modelled as a ½ sphere. Initial air compositions of NF and FF are the same as the outdoor air composition. NF and FF temperatures are equal to the outdoor temperature. δt = 0.01 s. | G18: 0.01 | H18: TRUE | I18: TRUE | J18: 101.325 | K18: 45 | L18: 45 | M18: 45 | N18: 78.1 % | O18: 20.9 % | P18: 1.0 % | Q18: 78.1 % | R18: 20.9 % | S18: 1.0 % | T18: 78.1 % | U18: 20.9 % | V18: 1.0 % | W18: 10 | X18: 0.06 | Y18: 1 | AB18: 1 | AC18: 2 | AD18: 12 | AE18: 92 | AF18: 0.1 | AG18: Constant | AI18: 0 | AJ18: 120 | AK18: 100.0 % | AL18: 0.0 % | AM18: 0.0 % | AN18: 25 | AO18: 102
D19: 11 | E19: =T!B150 -> Simultaneous flows (different timing) | F19: =T!B163 -> % O₂ and ppO₂ for a working environment (whole volume is equal to 100 m³), where there are two simultaneous releases (one of pure nitrogen, other of pure argon) with constant flow rates, and two supply and one return ventilation airflows. All the flows begin at t = 0 s and last for 1000 s. Time span δt is equal to 0.1 s. NF modelled as a ½ sphere. Initial air compositions of NF and FF are the same as the outdoor air composition. NF and FF temperatures are different from the outdoor temperature. | G19: 0.1 | H19: TRUE | I19: TRUE | J19: 101.325 | K19: 46 | L19: 46 | M19: 52 | N19: 78.1 % | O19: 20.9 % | P19: 1.0 % | Q19: 78.1 % | R19: 20.9 % | S19: 1.0 % | T19: 78.1 % | U19: 20.9 % | V19: 1.0 % | W19: 100 | X19: 0.06 | Y19: 2 | AB19: 1 | AC19: 2 | AD19: 18 | AE19: 137 | AF19: 0.05 | AG19: Constant | AI19: 0 | AJ19: 1000 | AK19: 100.0 % | AL19: 0.0 % | AM19: 0.0 % | AN19: 18 | AO19: 101.325 | AP19: 0.05 | AQ19: Constant | AS19: 0 | AT19: 1000 | AU19: 0.0 % | AV19: 0.0 % | AW19: 100.0 % | AX19: 18 | AY19: 101.325 | AZ19: 1 | BA19: 0 | BB19: 1000 | BC19: 78.1 % | BD19: 20.9 % | BE19: 1.0 % | BF19: 26 | BG19: 101.325 | BH19: 0.5 | BI19: 0 | BJ19: 1000 | BK19: 78.1 % | BL19: 20.9 % | BM19: 1.0 % | BN19: 26 | BO19: 101.325 | BP19: 1.5 | BQ19: 0 | BR19: 1000
D20: 12 | E20: =T!B151 -> Exponentially decreasing simultaneous flows | F20: =T!B164 -> % O₂ and ppO₂ for a working environment (whole volume is equal to 100 m³), where there are two simultaneous releases (one of pure nitrogen, other of pure argon) with exponentially decreasing flow rates, and two supply and one return ventilation airflows. All the flows begin at t = 0 s and last for 1000 s. NF modelled as a ½ sphere. Initial air compositions of NF and FF are the same as the outdoor air composition. NF and FF temperatures are different from the outdoor temperature. | G20: 1 | H20: TRUE | I20: TRUE | J20: 101.325 | K20: 46 | L20: 46 | M20: 52 | N20: 78.1 % | O20: 20.9 % | P20: 1.0 % | Q20: 78.1 % | R20: 20.9 % | S20: 1.0 % | T20: 78.1 % | U20: 20.9 % | V20: 1.0 % | W20: 100 | X20: 0.06 | Y20: 2 | AB20: 1 | AC20: 2 | AD20: 18 | AE20: 137 | AF20: 0.05 | AG20: Exponential | AH20: 0.02 | AI20: 0 | AJ20: 1000 | AK20: 100.0 % | AL20: 0.0 % | AM20: 0.0 % | AN20: 18 | AO20: 101.325 | AP20: 0.05 | AQ20: Exponential | AR20: 0.02 | AS20: 0 | AT20: 1000 | AU20: 0.0 % | AV20: 0.0 % | AW20: 100.0 % | AX20: 18 | AY20: 101.325 | AZ20: 1 | BA20: 0 | BB20: 1000 | BC20: 78.1 % | BD20: 20.9 % | BE20: 1.0 % | BF20: 26 | BG20: 101.325 | BH20: 0.5 | BI20: 0 | BJ20: 1000 | BK20: 78.1 % | BL20: 20.9 % | BM20: 1.0 % | BN20: 26 | BO20: 101.325 | BP20: 1.5 | BQ20: 0 | BR20: 1000
D21: 13 | E21: =T!B152 -> Exponentially decreasing release in a confined space | F21: =T!B165 -> % O₂ and ppO₂ for a working environment (whole volume is equal to 10 m³), where there is one pure nitrogen release with an exponentially decreasing flow rate. The release begins at t = 0 s and lasts for 120 s. NF modelled as a ½ sphere. Initial air compositions of NF and FF are the same as the outdoor air composition. NF and FF temperatures are equal to the outdoor temperature. | G21: 1 | H21: TRUE | I21: TRUE | J21: 101.325 | K21: 45 | L21: 45 | M21: 45 | N21: 78.1 % | O21: 20.9 % | P21: 1.0 % | Q21: 78.1 % | R21: 20.9 % | S21: 1.0 % | T21: 78.1 % | U21: 20.9 % | V21: 1.0 % | W21: 10 | X21: 0.06 | Y21: 1 | AB21: 1 | AC21: 2 | AD21: 12 | AE21: 92 | AF21: 0.1 | AG21: Exponential | AH21: 0.02 | AI21: 0 | AJ21: 120 | AK21: 100.0 % | AL21: 0.0 % | AM21: 0.0 % | AN21: 25 | AO21: 101.325
B26: =version -> Version 1.02 | BS26: =Authors_Copyright -> This e-tool was done by Elena Stefana, Filippo Marciano, Thomas W. Armstrong and Daniel Drolet.

Sheet RefVal
E11: =T!B120 -> O₂ concentration by volume | H11: =T!B122 -> O₂ partial pressure | K11: =T!B124 -> Symptoms and physiological effects
E12: =T!B121 -> at atmospheric pressure and at sea level | H12: =T!B123 -> Atmospheric pressure equal to | K12: =T!B125 -> (for individuals at rest or however seated ones)
H13: =Model!C8 -> 101.325 kPa
E15: =T!B126 -> From | F15: =T!B127 -> to | H15: =T!B126 -> From | I15: =T!B127 -> to
E16: 21 | F16: 18 | H16: =Sign_Digit(E16*p_t_KPa*Conv_Fact,3) -> 160 | I16: =Sign_Digit(F16*p_t_KPa*Conv_Fact,3) -> 137 | K16: =T!B128 -> No symptoms in healthy adults.
H17: =Sign_Digit(E16*p_t_KPa/100,3) -> 21.3 | I17: =Sign_Digit(F16*p_t_KPa/100,3) -> 18.2
E18: 18 | F18: 15 | H18: =Sign_Digit(E18*p_t_KPa*Conv_Fact,3) -> 137 | I18: =Sign_Digit(F18*p_t_KPa*Conv_Fact,3) -> 114 | K18: =T!B129 -> Decreased ability to perform tasks; early symptoms in person with heart, lung or circulatory problems. Night vision reduced. Increased breathing volume. Accelerated heartbeat. Dizziness. Time required for novel tasks doubled. Loss of muscle control.
H19: =Sign_Digit(E18*p_t_KPa/100,3) -> 18.2 | I19: =Sign_Digit(F18*p_t_KPa/100,3) -> 15.2
E20: 15 | F20: 12 | H20: =Sign_Digit(E20*p_t_KPa*Conv_Fact,3) -> 114 | I20: =Sign_Digit(F20*p_t_KPa*Conv_Fact,3) -> 91.2 | K20: =T!B130 -> Respiration deeper, pulse faster. Impaired and poor coordination. Impaired attention and thinking. Intermittent breathing. Rapid fatigue. Sudden changes in mood. Emotional upsets. Impaired judgment. Tunnel vision.
H21: =Sign_Digit(E20*p_t_KPa/100,3) -> 15.2 | I21: =Sign_Digit(F20*p_t_KPa/100,3) -> 12.2
E22: 12 | F22: 10 | H22: =Sign_Digit(E22*p_t_KPa*Conv_Fact,3) -> 91.2 | I22: =Sign_Digit(F22*p_t_KPa*Conv_Fact,3) -> 76 | K22: =T!B131 -> Giddiness. Possibility of fainting. Very faulty judgment. Lips slightly blue. Loss of consciousness. Permanent brain damage. Possible damage to the heart. Very poor muscular coordination.
H23: =Sign_Digit(E22*p_t_KPa/100,3) -> 12.2 | I23: =Sign_Digit(F22*p_t_KPa/100,3) -> 10.1
E24: 10 | F24: 8 | H24: =Sign_Digit(E24*p_t_KPa*Conv_Fact,3) -> 76 | I24: =Sign_Digit(F24*p_t_KPa*Conv_Fact,3) -> 60.8 | K24: =T!B132 -> Nausea, vomiting, unconsciousness, ashen face, fainting, mental failure. Inability to move.
H25: =Sign_Digit(E24*p_t_KPa/100,3) -> 10.1 | I25: =Sign_Digit(F24*p_t_KPa/100,3) -> 8.11
E26: 8 | F26: 6 | H26: =Sign_Digit(E26*p_t_KPa*Conv_Fact,3) -> 60.8 | I26: =Sign_Digit(F26*p_t_KPa*Conv_Fact,3) -> 45.6 | K26: =T!B133 -> Spasmodic breathing. Convulsive movements. Death in 5 - 8 min. After 6 min 50 % of the persons exposed to ODH die and 50 % recover with treatment, 100 % of the persons exposed to ODH recover with treatment in 4 - 5 min.
H27: =Sign_Digit(E26*p_t_KPa/100,3) -> 8.11 | I27: =Sign_Digit(F26*p_t_KPa/100,3) -> 6.08
E28: 6 | F28: 0 | H28: =Sign_Digit(E28*p_t_KPa*Conv_Fact,3) -> 45.6 | I28: 0 | K28: =T!B134 -> Coma in 40 s, convulsion, respiration ceases, and death.
H29: =Sign_Digit(E28*p_t_KPa/100,3) -> 6.08 | I29: 0
B32: =version -> Version 1.02 | Q32: =Authors_Copyright -> This e-tool was done by Elena Stefana, Filippo Marciano, Thomas W. Armstrong and Daniel Drolet.

Sheet H
B4: =T!B168 -> Click on a red number to display the help information for the related section
C17: =T!B169 -> If during or after the setting of any input value a symbol appears next to a cell or a sentence becomes visible on the graph, this means that:
B21: =version -> Version 1.02 | J21: =Authors_Copyright -> This e-tool was done by Elena Stefana, Filippo Marciano, Thomas W. Armstrong and Daniel Drolet.

Sheet cr
C5: =T!B173 -> Elena Stefana has dealt with mathematical models of predicting oxygen deficiency for 10 years. Besides predictive models for evaluating oxygen deficiency hazard, her research topics regard occupational health and safety, methods and approaches for performing risk assessments, meta-learning for safety issues, and the intergration between occupational safety and process safety. She has published international articles on ODH and has been speaker at national and international conferences. She is currently a research fellow at University of Brescia. | F5: =T!B174 -> Filippo Marciano has been working at University of Brescia for 18 years, focusing on ergonomics and safety at work. His research studies concern ergonomic and multi-criteria assessments of industrial and medical devices, manual material handling, indoor environmental quality, and oxygen deficiency hazard. He also works on topics related to the software selection, decision support techniques, and mathematical modeling in those fields. He has published articles and has been speaker at national and international conferences on both ergonomics, health and safety, and industrial management.
C8: =T!B175 -> Tom Armstrong has published articles on exposure assessment for epidemiology, and many related topics, including determining exposure limits for unusual work shifts, and mathematical modeling of exposures. The latter has relevance to consumer and general population exposures and health risks. The tools he uses and solutions he has delivered have broad relevance to exposure assessment including the EU Registration, Evaluation, Authorisation and Restriction of Chemicals (REACH) programs. Tom also served on two national Academy of Science Committees examining the scientific rigor of Risk Assessments for major pathogen research laboratories. He remains an active member of the AIHA Expsoure Assessment Strategies Committee. | F8: =T!B176 -> Daniel Drolet has worked 33 years at the Québec Research Institute in Occupational Health and Safety (IRSST) in Montréal, Canada. He has developed with many collaborators numerous applications for both laboratory and industrial hygiene uses, for the benefit of the industrial hygiene community (MIXIE, Saturisk, Heat Stress tools, ProtecPo ...). Daniel is an active member of the AIHA Exposure Assessment Strategies Committee and has been involved in their “cool new tools” development (Multilanguage IHSTAT, IHMOD 2.0, IHEST, The CheckList and IH SkinPerm).
B12: =version -> Version 1.02 | G12: =Authors_Copyright -> This e-tool was done by Elena Stefana, Filippo Marciano, Thomas W. Armstrong and Daniel Drolet.

Sheet S
C5: 1 | E5: ACGIH (American Conference of Governmental Industrial Hygienists), 2020. 2020 TLVs® and BEIs® based on the documentation of the threshold limit values for chemical substances and physical agents & biological exposure indices. Cincinnati, Ohio (USA). | G5: 10 | I5: Luke, J., 2004. Liquid Nitrogen - Storage, Use and Transportation within College Premises. Guidance Note 015. Safety Department, Imperial College London, London.
C6: 2 | E6: Alicino, M., Ferroni, L., Lazzaro, O., 2008. Valutazione dei rischi connessi con gli usi industriali dell’azoto. In: Proceedings of Valutazione e Gestione del Rischio negli Insediamenti Civili ed Industriali (VGR), Pisa, Italy (in Italian). | G6: 11 | I6: McManus, N., 1998. Safety and Health in Confined Spaces. CRC Press, ISBN 1-56670-326-3.
C7: 3 | E7: EIGA, 2018. Hazards of Oxygen-Deficient Atmospheres. EIGA, Brussels. IGC Document 44/18. | G7: 12 | I7: McManus, N., 2009. Oxygen: Health Effects and Regulatory Limits. Part I: Physiological and Toxicological Effects of Oxygen Deficiency and Enrichment. NorthWest Occupational Health and Safety, British Columbia, Canada.
C8: 4 | E8: Blyukher, B., 1995. Oxygen Deficiency Hazard (ODH) Analysis for Pressure and Cryogenic Systems Facilities. Proceedings of the Pressure Vessels and Piping Conference 1995: Structural Integrity of Pressure Vessels, Piping, and Components (PVP), 318, 169-176. | G8: 13 | I8: Miller, T.M., Mazur, P.O., 1984. Oxygen Deficiency Hazards Associated with Liquefied Gas Systems: Derivation of a Program of Controls. American Industrial Hygiene Association Journal, 45(5), 293-298.
C9: 5 | E9: Chorowski, M., Konopka-Cupiał, G., Riddone, G., 2006. Safety oriented analysis of cold helium-air mixture formation and stratification. Cryogenics, 46 (4), 262-272. | G9: 14 | I9: NIOSH (National Institute for Occupational Safety and Health), 1987. A Guide to Safety in Confined Spaces. DHHS (NIOSH) Publication No. 87-113. U.S. Department of Health and Human Services. Public Health Service. Centers for Disease Control. National Institute for Occupational Safety and Health.
C10: 6 | E10: Delayen, J.R., Schlenker, R.A., Shepard, K.W., Specht, J.R., Young, L., 2001. Physics Division Cryogenic Safety Manual. Physics Division Cryogenic Safety Committee. Argonne National Laboratory, Argonne, Illinois. | G10: 15 | I10: Pitt, M., Gales, R., 2012. Managing the hazard of asphyxiant gases. Loss Prevention Bulletin, 228, 25–28.
C11: 7 | E11: Fermilab (Fermi National Accelerator Laboratory), 2018. Oxygen Deficiency Hazards (ODH). FESHM 4240. Fermilab ES&H Manual. | G11: 16 | I11: SLAC (Stanford Linear Accelerator Center), 2015. Cryogenic and Oxygen Deficiency Hazard Safety. Chapter 36, ESH Manual.
C12: 8 | E12: Jefferson Lab, 2017. 6540 Oxygen Deficiency Hazard (ODH) Control Program. | G12: 17 | I12: Stefana E., Marciano, F., Alberti M., 2016. A predictive model for estimating the indoor oxygen level and assessing Oxygen Deficiency Hazard (ODH). Journal of Loss Prevention in the Process Industries, 39, 152-172.
C13: 9 | E13: Leikauf, G.D., Prows, D.R., 2012. Inorganic compounds of carbon, nitrogen, and oxygen. Patty’s Toxicology, 949-1032. | G13: 18 | I13: Stefana, E., Marciano, F., Cocca, P., Rossi, D., Tomasoni, G., 2019. Oxygen deficiency hazard in confined spaces in the steel industry: assessment through predictive models. International Journal of Occupational Safety and Ergonomics.
B16: =version -> Version 1.02 | J16: =Authors_Copyright -> This e-tool was done by Elena Stefana, Filippo Marciano, Thomas W. Armstrong and Daniel Drolet.

Sheet data (hidden)
AS6: 1 | AT6: =AS6*Factor_Conversion -> 60
D7: Ideal gas constant R | E7: 8.314472 | K7: NF Geo.choice | L7: 1 | R7: TOTAL VALIDATION | S7: =IF(COUNTIF(S8:S21,"J")=14,"J","L") -> J | AG7: TITLE | AH7: DESCRIPTIONS | AP7: =T!B177 -> From | AQ7: =T!B178 -> to
K8: Sub Geo.choice | L8: 2 | R8: Valid pressure | S8: =IF(ISBLANK(p_t_KPa),"L","J") -> J | W8: The input values are complete and valid. The simulation is run! | AB8: Percentage | AC8: TRUE | AG8: =T!B110 -> Initial conditions | AH8: =T!B102 -> Enter the values of outdoor pressure [1a] and NF, FF, and outdoor air composition [1b] in the green cells. Use the spin buttons to set the NF, FF, and outdoor temperatures [1c]. Click on the symbol to set the pressure value equal to 101.325 kPa (atmospheric pressure at sea level) [1d]. | AI8: =LEN(AH8) -> 288 | AN8: 7 | AP8: =VLOOKUP(Choice_Conversion,Tb_Conversion,3,FALSE) -> min | AQ8: =VLOOKUP(Choice_Conversion,Tb_Conversion,4,FALSE) -> s | AR8: =VLOOKUP(Choice_Conversion,Tb_Conversion,5,FALSE) -> Time: From min to s | AS8: =VLOOKUP(Choice_Conversion,Tb_Conversion,6,FALSE) -> Enter value in min | AT8: =VLOOKUP(Choice_Conversion,Tb_Conversion,7,FALSE) -> 60
D9: Pressure at time t | E9: =p_t_KPa*1000 -> 101325 | H9: Temp. | R9: Valid delta t | S9: =IF(ISBLANK(delta_t),"L","J") -> J | AB9: pO2 | AC9: TRUE | AG9: =T!B111 -> Volumes | AH9: =T!B103 -> Enter the value of the total indoor volume [2a]. Choose the NF geometry by using the option button and the list box [2b], and enter the value of the geometrical parameter(s) [2c]. Enter the value of the random airspeed at the boundary of the NF [2d]. The values of the NF and FF volumes, and Free Surface Area of the NF are calculated [2e]. | AI9: 343
C10: NF temp. | D10: 46 | E10: =Sp_NF_T+(-20) -> 26 | F10: =TNF_0+273.15 -> 299.15 | H10: =T_ig1+273.15 -> 291.15 | L10: Sphere | M10: Box | N10: Cylinder | R10: Sum of NF air components | S10: =IF(SUM(Model!G7:G9)=100,"J","L") -> J | W10: =T!B97 -> Complete and/or check the input values! The simulation cannot be run. | AG10: =T!B112 -> Flows | AH10: =T!B104 -> For one or two inert gas release(s), enter the values of the flow rate, composition, temperature, pressure, initial time, and duration in the green cells, and choose the type by the list box, entering the first-order loss rate in case of exponentially decreasing release [3a]. For one or two supply ventilation airflow(s), enter the values of flow rate, composition, temperature, pressure, initial time, and duration in the green cells [3b]. For the return ventilation airflow, enter the values of flow rate, initial time, and duration in the green cells [3c]. | AI10: 562 | AN10: # | AO10: Parameter | AP10: Input unit | AQ10: Output unit | AR10: Title Msg Box | AS10: Question | AT10: Conversion factor
C11: FF temp. | D11: 46 | E11: =Sp_FF_T+(-20) -> 26 | F11: =TFF_0+273.15 -> 299.15 | H11: =T_ig2+273.15 -> 291.15 | J11: 1 | K11: =Label_TZ(Geo_Choice,L11,M11,N11) -> Full | L11: =T!B86 -> Full | M11: =T!B89 -> All open | N11: =T!B93 -> Full cylinder, open top and bottom | R11: Sum of FF air components | S11: =IF(SUM(Model!H7:H9)=100,"J","L") -> J | AB11: 0.0750062 | AC11: % | AD11: mmHg | AG11: =T!B113 -> Timing | AH11: =T!B105 -> Enter the value of the time instant (0.01 - 10), i.e the time span between two calculation steps [4a]. The value of the simulation time duration is calculated (= δt × 5000) [4b]. | AI11: 179 | AN11: 1 | AO11: =T!B179 -> Volume | AP11: =T!B182 -> ft³ | AQ11: m³ | AR11: =AO11&": "&AP$7& " "&AP11 &" "&AQ$7&" "&AQ11 -> Volume: From ft³ to m³ | AS11: ="Enter value in "&AP11 -> Enter value in ft³ | AT11: 0.02831685
C12: Outdoor env. Temp. | D12: 52 | E12: =Sp_Out_T+(-20) -> 32 | F12: =Toe_t+273.15 -> 305.15 | H12: =T_in1+273.15 -> 299.15 | J12: 2 | K12: =Label_TZ(Geo_Choice,L12,M12,N12) -> ½ sphere | L12: =T!B87 -> ½ sphere | M12: =T!B90 -> Bottom occluded | N12: =T!B94 -> Full cylinder, open top, bottom occluded | R12: Sum of outdoor air components | S12: =IF(SUM(Model!I7:I9)=100,"J","L") -> J | W12: =IF(Tot_Valid="J","",W10) ->  | AB12: Y MAX | AC12: 22.00% | AD12: =AC12*AB11*p_t_KPa*100 -> 167.200 mm Hg | AG12: =T!B114 -> Display | AH12: =T!B106 -> Choose by the check box the output(s) to calculate and visualise: the indoor oxygen concentration by volume and/or partial pressure. | AI12: 132 | AN12: 2 | AO12: =T!B12 -> Length | AP12: =T!B183 -> ft | AQ12: m | AR12: Length: From ft to m | AS12: ="Enter value in "&AP12 -> Enter value in ft | AT12: 0.3048
H13: =T_in2+273.15 -> 299.15 | J13: 3 | K13: =Label_TZ(Geo_Choice,L13,M13,N13) -> ¼ sphere | L13: =T!B88 -> ¼ sphere | M13: =T!B91 -> Bottom, back occluded | N13: =T!B95 -> Full cylinder, top and bottom occluded | R13: Total validation for ig1 inputs | S13: =IF(AND(T13="J",U13="J"),"J","L") -> J | T13: =IF(Q_ig1="","J",IF(SUM(Model!I24:K24)=100,"J","L")) -> J | U13: =IF(Q_ig1="","J",IF(AND(Q_ig1<>"",RT_ig1="Exponential",Alpha_ig1<>"",CN2_ig1<>"",CO2_ig1<>"",CAr_ig1<>"",T_ig1<>"",p_ig1<>"",Time_ig1<>"",Dur_ig1<>""),"J",IF(AND(Q_ig1<>"",RT_ig1="Constant",CN2_ig1<>"",CO2_ig1<>"",CAr_ig1<>"",T_ig1<>"",p_ig1<>"",Time_ig1<>"",Dur_ig1<>""),"J","L"))) -> J | AG13: =T!B115 -> Results | AH13: =T!B107 -> Enter the target value for the chosen output(s), i.e. a value of the indoor oxygen concentration by volume and/or a value of indoor oxygen partial pressure [6a]. The time required for reaching each target level is calculated [6b]. | AI13: 231 | AN13: 3 | AO13: =T!B12 -> Length | AP13: =T!B184 -> inches | AQ13: m | AR13: Length: From inches to m | AS13: Enter value in inches | AT13: 0.0254
D14: cv N2 | E14: =(5/2)*R_ideal_gas -> 20.78618 | J14: 4 | K14: =Label_TZ(Geo_Choice,L14,M14,N14) ->  | M14: =T!B92 -> Bottom, back, one end occluded | N14: =T!B96 -> ½ cylinder, top and bottom occluded | R14: Total validation for ig2 inputs | S14: =IF(AND(T14="J",U14="J"),"J","L") -> J | T14: =IF(Q_ig2="","J",IF(SUM(Model!I25:K25)=100,"J","L")) -> J | U14: =IF(Q_ig2="","J",IF(AND(Q_ig2<>"",RT_ig2="Exponential",Alpha_ig2<>"",CN2_ig2<>"",CO2_ig2<>"",CAr_ig2<>"",T_ig2<>"",p_ig2<>"",Time_ig2<>"",Dur_ig2<>""),"J",IF(AND(Q_ig2<>"",RT_ig2="Constant",CN2_ig2<>"",CO2_ig2<>"",CAr_ig2<>"",T_ig2<>"",p_ig2<>"",Time_ig2<>"",Dur_ig2<>""),"J","L"))) -> J | AB14: 1 | AD14: Y Min | AG14: =T!B116 -> Graph | AH14: =T!B108 -> The chosen output(s) is/are calculated and the related trend(s) shown in the graph [7a]. A marker on a graph point identifies the time instant at which each target value is reached [7b]. Click on "Y0" or "Ymin" to change the scale of the y-axes [7c]. Click on the symbol to align the gridlines to the first y-axis or the second one [7d]. Click on "X0 <-> Xmin" to change the scale of the x-axis [7e]. Compare the result(s) with the values reported in 'Reference Values' page to assess the criticality-severity of the investigated scenario. | AI14: 544 | AN14: 4 | AO14: =T!B76 -> Pressure | AP14: mmHg (≈ Torr) | AQ14: kPa | AR14: Pressure: From mmHg (≈ Torr) to kPa | AS14: Enter value in mmHg (≈ Torr) | AT14: 0.1333224
D15: cv O2 | E15: =(5/2)*R_ideal_gas -> 20.78618 | G15: Time Duration | R15: Total validation for in1 inputs | S15: =IF(AND(T15="J",U15="J"),"J","L") -> J | T15: =IF(Q_in1="","J",IF(SUM(Model!I26:K26)=100,"J","L")) -> J | U15: =IF(Q_in1="","J",IF(AND(Q_in1<>"",CN2_in1<>"",CO2_in1<>"",CAr_in1<>"",T_in1<>"",p_in1<>"",Time_in1<>"",Dur_in1<>""),"J","L")) -> J | AB15: Y % Min | AC15: =DMIN(DB_ODH,"O2 NF_val",C39:C40) -> 17.22% | AD15: =ROUNDDOWN(AC15,2) -> 17.0% | AG15: =T!B117 -> Examples | AH15: =T!B109 -> Choose one of the 13 examples by using the list box to display the input values and the related outputs of a possible industrial scenario [8a]. Click on the symbol to go back to the first example [8b]. Click on the symbol to display the description of the selected example [8c]. | AI15: 280 | AN15: 5 | AO15: =T!B76 -> Pressure | AP15: psi (=lbf in²) | AQ15: kPa | AR15: Pressure: From psi (=lbf in²) to kPa | AS15: Enter value in psi (=lbf in²) | AT15: 6.894757
D16: cv Ar | E16: =(3/2)*R_ideal_gas -> 12.471708 | G16: =delta_t*MAX(calc!C:C) -> 5000 | J16: NF Volume | K16: =NF_Volume(Geo_Choice,Sub_Geo_Choice,NF_param1,NF_param2,NF_param3) -> 16.76 | M16: Interzonal vol. airflow rate between NF / FF | N16: =IF(FSA="","",0.5*FSA*s) -> 0.754 m³/s | R16: Total validation for in2 inputs | S16: =IF(AND(T16="J",U16="J"),"J","L") -> J | T16: =IF(Q_in2="","J",IF(SUM(Model!I27:K27)=100,"J","L")) -> J | U16: =IF(Q_in2="","J",IF(AND(Q_in2<>"",CN2_in2<>"",CO2_in2<>"",CAr_in2<>"",T_in2<>"",p_in2<>"",Time_in2<>"",Dur_in2<>""),"J","L")) -> J | AD16: =Y_Perc_Min*AB11*p_t_KPa*100 -> 129.200 mm Hg | AG16: =T!B188 -> Unit converter | AH16: =T!B189 -> Click on the list box to convert a unit of measurement and choose the conversion of interest (e.g. pressure from mmHg to kPa). | AI16: =LEN(AH16) -> 126 | AN16: 6 | AO16: =T!B76 -> Pressure | AP16: atm | AQ16: kPa | AR16: Pressure: From atm to kPa | AS16: Enter value in atm | AT16: 101.325
J17: FF Volume | K17: =IF(VNF="","",Vwe-VNF) -> 83.24 | M17: Interzonal volume between NF / FF | N17: =IF(Beta_flow="","",MIN(Beta_flow*delta_t,_xlfn.SINGLE(VNF),_xlfn.SINGLE(VFF))) -> 0.7539 m³ | R17: Total validation for out inputs | S17: =IF(Q_out="","J",IF(AND(Q_out<>"",Time_out<>"",Dur_out<>""),"J","L")) -> J | AN17: 7 | AO17: =T!B180 -> Time | AP17: min | AQ17: s | AR17: Time: From min to s | AS17: Enter value in min | AT17: 60
J18: FSA | K18: =NF_FSA(Geo_Choice,Sub_Geo_Choice,NF_param1,NF_param2,NF_param3) -> 25.13 | R18: Validation of the volume | S18: =IF(Ratio_NF_Vwe<=1,"J","L") -> J | AN18: 8 | AO18: =T!B72 -> Flow rate | AP18: =T!B185 -> ft³ min¯¹ | AQ18: m³ s¯¹ | AR18: Flow rate: From ft³ min¯¹ to m³ s¯¹ | AS18: Enter value in ft³ min¯¹ | AT18: 0.00047195
M19: Ratio of NF to Total Volume | N19: =VNF/Vwe -> 16.8% | R19: Validation of the flow rates | S19: =IF(OR(Q_ig1*delta_t>Vwe,Q_ig2*delta_t>Vwe,Q_in1*delta_t>Vwe,Q_in2*delta_t>Vwe,Q_out*delta_t>=Vwe),"L","J") -> J | AD19: Minimum values | AN19: 9 | AO19: =T!B72 -> Flow rate | AP19: m³ min¯¹ | AQ19: m³ s¯¹ | AR19: Flow rate: From m³ min¯¹ to m³ s¯¹ | AS19: Enter value in m³ min¯¹ | AT19: 0.01666667
M20: Condition | N20: =IF(Ratio_NF_Vwe<=1,"J","L") -> J | R20: Validation of the flow rates NF | S20: =IF(OR(Q_ig1*delta_t>VNF,Q_ig2*delta_t>VNF),"L","J") -> J | AC20: % O2 | AD20: Pa O2 | AN20: 10 | AO20: =T!B181 -> Velocity | AP20: =T!B186 -> ft min¯¹ | AQ20: m s¯¹ | AR20: Velocity: From ft min¯¹ to m s¯¹ | AS20: ="Enter value in "&AP20 -> Enter value in ft min¯¹ | AT20: 0.00508
R21: Validation of the flow rates FF | S21: =IF(OR(Q_in1*delta_t>VFF,Q_in2*delta_t>VFF,Q_out*delta_t>=VFF),"L","J") -> J | AB21: NF | AC21: =DMIN(DB_ODH,"O2 NF_val",C39:C40) -> 17.22% | AD21: =DMIN(DB_ODH,"NF pO2",C39:C40) -> 130.8 mm Hg | AN21: 11 | AO21: =T!B181 -> Velocity | AP21: m min¯¹ | AQ21: m s¯¹ | AR21: Velocity: From m min¯¹ to m s¯¹ | AS21: ="Enter value in "&AP21 -> Enter value in m min¯¹ | AT21: 0.01666667
AB22: FF | AC22: =DMIN(DB_ODH,"O2 FF_val",C39:C40) -> 19.56% | AD22: =DMIN(DB_ODH,"FF pO2",C39:C40) -> 148.7 mm Hg | AN22: 12 | AO22: =T!B47 -> Temperature | AP22: °F | AQ22: °C | AR22: Temperature: From °F to °C | AS22: Enter value in °F | AT22: 1 °C = (1 °F - 32) / 1.8
W23: 1 | X23: Simultaneous flows | AD23: Target OEL % | AN23: 13 | AO23: =T!B47 -> Temperature | AP23: K | AQ23: °C | AR23: Temperature: From K to °C | AS23: Enter value in K | AT23: 1 °C = 1 K - 273.15
AB24: NF | AC24: =data!F30 -> 69 | AD24: =IF(AC24="",-1,IF(CB_O2_perc=TRUE,IF((OEL/100)>AC21,OEL/100,-1),-1)) -> 18.0%
F25: O2 NF | G25: O2 FF | Q25: 1 | R25: language | W25: % O₂ and ppO₂ for a working environment (whole volume is equal to 100 m³), where there are two simultaneous releases (one of pure nitrogen, other of pure argon) with constant flow rates, and two supply and one return ventilation airflows. All the flows begin at t = 0 s and last for 1000 s. NF modelled as a ½ sphere. Initial air compositions of NF and FF are the same as the outdoor air composition. NF and FF temperatures are different from the outdoor temperature. | AB25: FF | AC25: =data!G30 ->  | AD25: =IF(AC25="",-1,IF(CB_O2_perc=TRUE,IF((OEL/100)>AC22,OEL/100,-1),-1)) -> -100.0%
F26: ="<="&(OEL/100) -> <=0,18 | G26: ="<="&(OEL/100) -> <=0,18 | J26: Excel Version | K26: 16 | R26: English | AD26: Target OEL mm Hg
F27: NF pO2 | G27: FF pO2 | J27: OS Version | K27: Windows (64-bit) NT 10.00 | R27: Italiano | AB27: NF | AC27: =data!F31 -> 67 | AD27: =IF(AC27="",-1,IF(CB_pO2=TRUE,IF(OEL_pO2>AD21,OEL_pO2,-1),-1)) -> 137 mm Hg
F28: ="<="&OEL_pO2 -> <=137 | G28: ="<="&OEL_pO2 -> <=137 | J28: Resolution Value | K28: 2 | R28: Français | AB28: FF | AC28: =data!G31 ->  | AD28: =IF(AC28="",-1,IF(CB_pO2=TRUE,IF(OEL_pO2>AD22,OEL_pO2,-1),-1)) -> -1 mm Hg
F29: NF | G29: FF | J29: Author | K29: This file has been created by Elena Stefana, Filippo Marciano, Tom Armstrong and Daniel Drolet | R29: Español
E30: =IF(CB_O2_perc=TRUE,T!B98&""&OEL&" %","") -> Time to reach 18 % | F30: =IF(CB_O2_perc=TRUE,Sign_Digit(DMIN(DB_ODH,"t",Crit_NF),3),"") -> 69 | G30: =IF(CB_O2_perc=TRUE,Sign_Digit(DMIN(DB_ODH,"t",Crit_FF),3),"") ->  | J30: Version | K30: =T!B100 -> Version 1.02 | R30: فارسی
E31: =IF(CB_pO2=TRUE,T!B98&""&OEL_pO2&" mmHg","") -> Time to reach 137 mmHg | F31: =IF(CB_pO2=TRUE,Sign_Digit(DMIN(DB_ODH,"t",Crit_NF_pO2),3),"") -> 67 | G31: =IF(CB_pO2=TRUE,Sign_Digit(DMIN(DB_ODH,"t",Crit_FF_pO2),3),"") ->  | J31: Disclaimer | K31: FALSE | R31: trad, 繁體中文 | AB31: 1
J32: Author with Copyright | K32: =T!B101 -> This e-tool was done by Elena Stefana, Filippo Marciano, Thomas W. Armstrong and Daniel Drolet. | R32: To come
B36: =version -> Version 1.02 | Z36: =Authors_Copyright -> This e-tool was done by Elena Stefana, Filippo Marciano, Thomas W. Armstrong and Daniel Drolet.

Sheet calc (hidden)
I2: Calculations | BV2: =COUNTIF(BV9:BV5009,"<0") -> 0
D3: 1 | E3: 2 | F3: 3 | G3: 4 | H3: 5 | I3: 6 | J3: 7 | K3: 8 | L3: 9 | M3: 10 | N3: 11 | O3: 12 | P3: 13 | Q3: 14 | R3: 15 | S3: 16 | T3: 17 | U3: 18 | V3: 19 | W3: 20 | X3: 21 | Y3: 22 | Z3: 23 | AA3: 24 | AB3: 25 | AC3: 26 | AD3: 27 | AE3: 28 | AF3: 29 | AG3: 30 | AH3: 31 | AI3: 32 | AJ3: 33 | AK3: 34 | AL3: 35 | AM3: 36 | AN3: 37 | AO3: 38 | AP3: 39 | AQ3: 40 | AR3: 41 | AS3: 42 | AT3: 43 | AU3: 44 | AV3: 45 | AW3: 46 | AX3: 47 | AY3: 48 | AZ3: 49 | BA3: 50 | BB3: 51 | BC3: 52 | BD3: 53 | BE3: 54 | BF3: 55 | BG3: 56 | BH3: 57 | BI3: 58 | BJ3: 59 | BK3: 60 | BL3: 61 | BM3: 62 | BN3: 63 | BO3: 64 | BP3: 65 | BQ3: 66 | BR3: 67 | BS3: 68 | BT3: 69 | BU3: 70 | BV3: 71 | BW3: 72 | BX3: 73 | BY3: 74 | BZ3: 75 | CA3: 76 | CB3: 77 | CC3: 78 | CD3: 79 | CE3: 80 | CF3: 81 | CG3: 82 | CH3: 83 | CI3: 84 | CJ3: 85 | CK3: 86 | CL3: 87 | CM3: 88
BV4: % O₂ NF | BY4: ppO₂ NF | CG4: % O₂ FF | CJ4: ppO₂ FF
F5: Release of inert gas 1 | K5: Release of inert gas 2 | P5: Supply air 1 | U5: Supply air 2 | Z5: Return air | AD5: Interzonal flow | AN5: Temporary parameters for NF (NF tilde) | AW5: Temporary parameters for FF (FF tilde) | BF5: Air flow | BL5: Nat flow | BQ5: NF | CB5: FF | CM5: Working Environment
F6: Moles (mol) | K6: Moles (mol) | P6: Moles (mol) | U6: Moles (mol) | Z6: Moles (mol) | AD6: Moles inNF (mol) | AI6: Moles outNF (mol) | AN6: Moles (mol) | AR6: Composition (%) | AW6: Moles (mol) | BA6: Composition (%) | BI6: Moles (mol) | BN6: Moles (mol) | BQ6: Moles (mol) | BT6: Composition (%) | CB6: Moles (mol) | CE6: Composition (%) | CJ6: pO2 FF
C8: Num | D8: t | E8: Flow rate for each time instant | F8: N2 | G8: O2 | H8: Ar | I8: Energy (J) | J8: Flow rate for each time instant | K8: N2 | L8: O2 | M8: Ar | N8: Energy (J) | O8: Flow rate for each time instant | P8: N2 | Q8: O2 | R8: Ar | S8: Energy (J) | T8: Flow rate for each time instant | U8: N2 | V8: O2 | W8: Ar | X8: Energy (J) | Y8: Flow rate for each time instant | Z8: N2 | AA8: O2 | AB8: Ar | AC8: Energy (J) | AD8: Total | AE8: N2 | AF8: O2 | AG8: Ar | AH8: Energy inNF (J) | AI8: Total | AJ8: N2 | AK8: O2 | AL8: Ar | AM8: Energy outNF (J) | AN8: Total | AO8: N2 | AP8: O2 | AQ8: Ar | AR8: N2 | AS8: O2 | AT8: Ar | AU8: Temp.(K) | AV8: Pressure (Pa) | AW8: Total | AX8: N2 | AY8: O2 | AZ8: Ar | BA8: N2 | BB8: O2 | BC8: Ar | BD8: Temp.(K) | BE8: Pressure (Pa) | BF8: ppairNF (Pa) | BG8: nair (mol) | BH8: ppairFF (Pa) | BI8: N2 | BJ8: O2 | BK8: Ar | BL8: ppnatFF (Pa) | BM8: nnat (mol) | BN8: N2 | BO8: O2 | BP8: Ar | BQ8: N2 | BR8: O2 | BS8: Ar | BT8: N2 | BU8: O2 NF_val | BV8: O2 NF | BW8: Ar | BX8: O2 partial pressure (kPa) | BY8: NF pO2 | BZ8: Temp. (K) | CA8: Energy (J) | CB8: N2 | CC8: O2 | CD8: Ar | CE8: N2 | CF8: O2 FF_val | CG8: O2 FF | CH8: Ar | CI8: O2 partial pressure (kPa) | CJ8: FF pO2 | CK8: Temp. (K) | CL8: Energy (J) | CM8: Pressure (Pa) | CN8: Tff* | CO8: Tair | CP8: Eair | CQ8: nN2* | CR8: nO2* | CS8: nAr* | CT8: ntot* | CU8: CN2* | CV8: CO2* | CW8: Car* | CX8: teff ig1 | CY8: teff ig2 | CZ8: teff in1 | DA8: teff in2 | DB8: teff out
C9: 0 | D9: 0 | E9: 0 | F9: 0 | G9: 0 | H9: 0 | I9: 0 | J9: 0 | K9: 0 | L9: 0 | M9: 0 | N9: 0 | O9: 0 | P9: 0 | Q9: 0 | R9: 0 | S9: 0 | T9: 0 | U9: 0 | V9: 0 | W9: 0 | X9: 0 | Y9: 0 | Z9: 0 | AA9: 0 | AB9: 0 | AC9: 0 | AD9: 0 | AE9: 0 | AF9: 0 | AG9: 0 | AH9: 0 | AI9: 0 | AJ9: 0 | AK9: 0 | AL9: 0 | AM9: 0 | AN9: 0 | AO9: 0 | AP9: 0 | AQ9: 0 | AR9: 0 | AS9: 0 | AT9: 0 | AU9: 0 | AV9: 0 | AW9: 0 | AX9: 0 | AY9: 0 | AZ9: 0 | BA9: 0 | BB9: 0 | BC9: 0 | BD9: 0 | BE9: 0 | BF9: 0 | BG9: 0 | BH9: 0 | BI9: 0 | BJ9: 0 | BK9: 0 | BL9: 0 | BM9: 0 | BN9: 0 | BO9: 0 | BP9: 0 | BQ9: =(p_t*VNF*(CN2_0_NF/100))/(R_ideal_gas*$BZ$9) -> 533.2341783 | BR9: =(p_t*VNF*(CO2_0_NF/100))/(R_ideal_gas*$BZ$9) -> 142.6964703 | BS9: =(p_t*VNF*(CAr_0_NF/100))/(R_ideal_gas*$BZ$9) -> 6.827582309 | BT9: =nN2_NF/(nN2_NF+nO2_NF+nAr_NF) -> 78.10% | BU9: =nO2_NF/(nN2_NF+nO2_NF+nAr_NF) -> 20.90% | BV9: =IF(Tot_Valid="L",-10,IF(CB_O2_perc=TRUE,BU9,-1)) -> 20.90% | BW9: =nAr_NF/(nN2_NF+nO2_NF+nAr_NF) -> 1.00% | BX9: =ROUND((CO2_NF*p_t)/1000,6) -> 21.176925 | BY9: =IF(Tot_Valid="L",-10,IF(CB_pO2=TRUE,Sign_Digit((CO2_NF*p_t)*(Conv_Fact/10)),-1)) -> 158.8 | BZ9: =data!F10 -> 299.1500 | CA9: =(nN2_NF*cv_N2+nO2_NF*cv_O2+nAr_NF*cv_Ar)*TNF_t_K -> 4228535.43 | CB9: =(p_t*VFF*(CN2_0_FF/100))/(R_ideal_gas*$CK$9) -> 2648.353998 | CC9: =(p_t*VFF*(CO2_0_FF/100))/(R_ideal_gas*$CK$9) -> 708.7144501 | CD9: =(p_t*VFF*(CAr_0_FF/100))/(R_ideal_gas*$CK$9) -> 33.9097823 | CE9: =nN2_FF/(nN2_FF+nO2_FF+nAr_FF) -> 78.10% | CF9: =nO2_FF/(nN2_FF+nO2_FF+nAr_FF) -> 20.90% | CG9: =IF(Tot_Valid="L",-10,IF(CB_O2_perc=TRUE,CF9,-1)) -> 20.90% | CH9: =nAr_FF/(nN2_FF+nO2_FF+nAr_FF) -> 1.00% | CI9: =ROUND((CO2_FF*p_t)/1000,6) -> 21.176925 | CJ9: =IF(Tot_Valid="L",-10,IF(CB_pO2=TRUE,Sign_Digit((CO2_FF*p_t)*(Conv_Fact/10)),-1)) -> 158.8 | CK9: =data!F11 -> 299.1500 | CL9: =(nN2_FF*cv_N2+nO2_FF*cv_O2+nAr_FF*cv_Ar)*TFF_t_K -> 21001389.57 | CM9: =p_t -> 101325 | CX9: 0 | CY9: 0 | CZ9: 0 | DA9: 0 | DB9: 0
C10: 1 | D10: =C10*delta_t -> 1 | E10: =IF(RT_ig1="Constant",Q_ig1*teff_ig1,Q_ig1*EXP(-(Alpha_ig1*t))*teff_ig1) -> 0.05 | F10: =(Q_ig1_Time*(CN2_ig1/100)*p_ig1*1000)/(R_ideal_gas*T_ig1_K) -> 2.092835759 | G10: =(Q_ig1_Time*(CO2_ig1/100)*p_ig1*1000)/(R_ideal_gas*T_ig1_K) -> 0 | H10: =(Q_ig1_Time*(CAr_ig1/100)*p_ig1*1000)/(R_ideal_gas*T_ig1_K) -> 0 | I10: =(nN2_ig1*cv_N2+nO2_ig1*cv_O2+nAr_ig1*cv_Ar)*T_ig1_K -> 12665.625 | J10: =IF(RT_ig2="Constant",Q_ig2*teff_ig2,Q_ig2*EXP(-(Alpha_ig2*t))*teff_ig2) -> 0.05 | K10: =(Q_ig2_Time*(CN2_ig2/100)*p_ig2*1000)/(R_ideal_gas*T_ig2_K) -> 0 | L10: =(Q_ig2_Time*(CO2_ig2/100)*p_ig2*1000)/(R_ideal_gas*T_ig2_K) -> 0 | M10: =(Q_ig2_Time*(CAr_ig2/100)*p_ig2*1000)/(R_ideal_gas*T_ig2_K) -> 2.092835759 | N10: =(nN2_ig2*cv_N2+nO2_ig2*cv_O2+nAr_ig2*cv_Ar)*T_ig2_K -> 7599.375 | O10: =Q_in1*teff_in1 -> 1 | P10: =(Q_in1_Time*(CN2_in1/100)*p_in1*1000)/(R_ideal_gas*T_in1_K) -> 31.81588176 | Q10: =(Q_in1_Time*(CO2_in1/100)*p_in1*1000)/(R_ideal_gas*T_in1_K) -> 8.514109204 | R10: =(Q_in1_Time*(CAr_in1/100)*p_in1*1000)/(R_ideal_gas*T_in1_K) -> 0.4073736461 | S10: =(nN2_in1*cv_N2+nO2_in1*cv_O2+nAr_in1*cv_Ar)*T_in1_K -> 252299.25 | T10: =Q_in2*teff_in2 -> 0.5 | U10: =(Q_in2_Time*(CN2_in2/100)*p_in2*1000)/(R_ideal_gas*T_in2_K) -> 15.90794088 | V10: =(Q_in2_Time*(CO2_in2/100)*p_in2*1000)/(R_ideal_gas*T_in2_K) -> 4.257054602 | W10: =(Q_in2_Time*(CAr_in2/100)*p_in2*1000)/(R_ideal_gas*T_in2_K) -> 0.2036868231 | X10: =(nN2_in2*cv_N2+nO2_in2*cv_O2+nAr_in2*cv_Ar)*T_in2_K -> 126149.625 | Y10: =Q_out*teff_out -> 1.5 | Z10: =(Q_out_Time*$CE9*CM9)/(R_ideal_gas*$CK9) -> 47.72382264 | AA10: =(Q_out_Time*$CF9*CM9)/(R_ideal_gas*$CK9) -> 12.77116381 | AB10: =(Q_out_Time*$CH9*CM9)/(R_ideal_gas*$CK9) -> 0.6110604692 | AC10: =(nN2_out*cv_N2+nO2_out*cv_O2+nAr_out*cv_Ar)*CK9 -> 378448.875 | AD10: =(CM9*Beta_volume)/(R_ideal_gas*CK9) -> 30.71189918 | AE10: =IF(nbeta_inNF*$CE9>0,nbeta_inNF*$CE9,0) -> 23.98599326 | AF10: =IF(nbeta_inNF*$CF9>0,nbeta_inNF*$CF9,0) -> 6.418786929 | AG10: =IF(nbeta_inNF*$CH9>0,nbeta_inNF*$CH9,0) -> 0.3071189918 | AH10: =(nN2beta_inNF*cv_N2+nO2beta_inNF*cv_O2+nArbeta_inNF*cv_Ar)*CK9 -> 190208.4046 | AI10: =(CM9*Beta_volume)/(R_ideal_gas*BZ9) -> 30.71189918 | AJ10: =IF(nbeta_outNF*$BT9>0,nbeta_outNF*$BT9,0) -> 23.98599326 | AK10: =IF(nbeta_outNF*$BU9>0,nbeta_outNF*$BU9,0) -> 6.418786929 | AL10: =IF(nbeta_outNF*$BW9>0,nbeta_outNF*$BW9,0) -> 0.3071189918 | AM10: =(nN2beta_outNF*cv_N2+nO2beta_outNF*cv_O2+nArbeta_outNF*cv_Ar)*BZ9 -> 190208.4046 | AN10: =nN2_NF_temp+nO2_NF_temp+nAr_NF_temp -> 686.9439024 | AO10: =IF(BQ9+nN2_ig1+nN2_ig2+nN2beta_inNF-nN2beta_outNF>0,BQ9+nN2_ig1+nN2_ig2+nN2beta_inNF-nN2beta_outNF,0) -> 535.3270141 | AP10: =IF(BR9+nO2_ig1+nO2_ig2+nO2beta_inNF-nO2beta_outNF>0,BR9+nO2_ig1+nO2_ig2+nO2beta_inNF-nO2beta_outNF,0) -> 142.6964703 | AQ10: =IF(BS9+nAr_ig1+nAr_ig2+nArbeta_inNF-nArbeta_outNF>0,BS9+nAr_ig1+nAr_ig2+nArbeta_inNF-nArbeta_outNF,0) -> 8.920418068 | AR10: =IF(nN2_NF_temp/(nN2_NF_temp+nO2_NF_temp+nAr_NF_temp)>0,IF(nN2_NF_temp/(nN2_NF_temp+nO2_NF_temp+nAr_NF_temp)>=100%,100%,nN2_NF_temp/(nN2_NF_temp+nO2_NF_temp+nAr_NF_temp)),0) -> 77.93% | AS10: =IF(nO2_NF_temp/(nN2_NF_temp+nO2_NF_temp+nAr_NF_temp)>0,IF(nO2_NF_temp/(nN2_NF_temp+nO2_NF_temp+nAr_NF_temp)>=100%,100%,nO2_NF_temp/(nN2_NF_temp+nO2_NF_temp+nAr_NF_temp)),0) -> 20.77% | AT10: =IF(nAr_NF_temp/(nN2_NF_temp+nO2_NF_temp+nAr_NF_temp)>0,IF(nAr_NF_temp/(nN2_NF_temp+nO2_NF_temp+nAr_NF_temp)>=100%,100%,nAr_NF_temp/(nN2_NF_temp+nO2_NF_temp+nAr_NF_temp)),0) -> 1.30% | AU10: =(CA9+E_ig1+E_ig2+E_betainNF-E_betaoutNF)/(nN2_NF_temp*cv_N2+nO2_NF_temp*cv_O2+nAr_NF_temp*cv_Ar) -> 299.1108 | AV10: =nNF_temp*R_ideal_gas*TNF_temp/VNF -> 101932.8174 | AW10: =nN2_FF_temp+nO2_FF_temp+nAr_FF_temp -> 3390.97823 | AX10: =IF(CB9+nN2_in1+nN2_in2-nN2_out-nN2beta_inNF+nN2beta_outNF>0,CB9+nN2_in1+nN2_in2-nN2_out-nN2beta_inNF+nN2beta_outNF,0) -> 2648.353998 | AY10: =IF(CC9+nO2_in1+nO2_in2-nO2_out-nO2beta_inNF+nO2beta_outNF>0,CC9+nO2_in1+nO2_in2-nO2_out-nO2beta_inNF+nO2beta_outNF,0) -> 708.7144501 | AZ10: =IF(CD9+nAr_in1+nAr_in2-nAr_out-nArbeta_inNF+nArbeta_outNF>0,CD9+nAr_in1+nAr_in2-nAr_out-nArbeta_inNF+nArbeta_outNF,0) -> 33.9097823 | BA10: =IF(nN2_FF_temp/(nN2_FF_temp+nO2_FF_temp+nAr_FF_temp)>0,IF(nN2_FF_temp/(nN2_FF_temp+nO2_FF_temp+nAr_FF_temp)>=100%,100%,nN2_FF_temp/(nN2_FF_temp+nO2_FF_temp+nAr_FF_temp)),0) -> 78.10% | BB10: =IF(nO2_FF_temp/(nN2_FF_temp+nO2_FF_temp+nAr_FF_temp)>0,IF(nO2_FF_temp/(nN2_FF_temp+nO2_FF_temp+nAr_FF_temp)>=100%,100%,nO2_FF_temp/(nN2_FF_temp+nO2_FF_temp+nAr_FF_temp)),0) -> 20.90% | BC10: =IF(nAr_FF_temp/(nN2_FF_temp+nO2_FF_temp+nAr_FF_temp)>0,IF(nAr_FF_temp/(nN2_FF_temp+nO2_FF_temp+nAr_FF_temp)>=100%,100%,nAr_FF_temp/(nN2_FF_temp+nO2_FF_temp+nAr_FF_temp)),0) -> 1.00% | BD10: =(CL9+E_in1+E_in2-E_out-E_betainNF+E_betaoutNF)/(nN2_FF_temp*cv_N2+nO2_FF_temp*cv_O2+nAr_FF_temp*cv_Ar) -> 299.15 | BE10: =nFF_temp*R_ideal_gas*TFF_temp/VFF -> 101325 | BF10: =p_t-pNF_temp -> -607.8174031 | BG10: =IF(ppair_NF<0,(ppair_NF*VNF)/(R_ideal_gas*TNF_temp),(ppair_NF*VNF)/(R_ideal_gas*TFF_temp)) -> -4.10 | BH10: =IF(ppair_NF<0,(nair*R_ideal_gas*TNF_temp)/VFF,(nair*R_ideal_gas*TFF_temp)/VFF) -> -122.3813032 | BI10: =IF(nair>0,nair*CN2_FF_temp,nair*CN2_NF_temp) -> -3.192113039 | BJ10: =IF(nair>0,nair*CO2_FF_temp,nair*CO2_NF_temp) -> -0.850887871 | BK10: =IF(nair>0,nair*CAr_FF_temp,nair*CAr_NF_temp) -> -0.05319175397 | BL10: =p_t-pFF_temp+ppair_FF -> -122.3813032 | BM10: =IF(ppnat<0,(ppnat*VFF)/(R_ideal_gas*CN10),(ppnat*VFF)/(R_ideal_gas*Toe_t_K)) -> -4.095656554 | BN10: =IF(nnat>0,nnat*CN2_t_oe,nnat*CU10) -> -3.198699308 | BO10: =IF(nnat>0,nnat*CO2_t_oe,nnat*CV10) -> -0.8559859271 | BP10: =IF(nnat>0,nnat*CAr_t_oe,nnat*CW10) -> -0.04097131903 | BQ10: =IF(BQ9+nN2_ig1+nN2_ig2+nN2beta_inNF-nN2beta_outNF+nN2_air>0,BQ9+nN2_ig1+nN2_ig2+nN2beta_inNF-nN2beta_outNF+nN2_air,0) -> 532.134901 | BR10: =IF(BR9+nO2_ig1+nO2_ig2+nO2beta_inNF-nO2beta_outNF+nO2_air>0,BR9+nO2_ig1+nO2_ig2+nO2beta_inNF-nO2beta_outNF+nO2_air,0) -> 141.8455824 | BS10: =IF(BS9+nAr_ig1+nAr_ig2+nArbeta_inNF-nArbeta_outNF+nAr_air>0,BS9+nAr_ig1+nAr_ig2+nArbeta_inNF-nArbeta_outNF+nAr_air,0) -> 8.867226314 | BT10: 77.93% | BU10: 20.77% | BV10: 20.77% | BW10: 1.30% | BX10: =(CO2_NF*p_t)/1000 -> 21.04789023 | BY10: 157.9 | BZ10: =(pwe_t*VNF)/((nN2_NF+nO2_NF+nAr_NF)*R_ideal_gas) -> 299.1108 | CA10: 4223465.166 | CB10: =IF(CB9+nN2_in1+nN2_in2-nN2_out-nN2beta_inNF+nN2beta_outNF+nN2_nat-nN2_air>0,CB9+nN2_in1+nN2_in2-nN2_out-nN2beta_inNF+nN2beta_outNF+nN2_nat-nN2_air,0) -> 2648.347412 | CC10: =IF(CC9+nO2_in1+nO2_in2-nO2_out-nO2beta_inNF+nO2beta_outNF+nO2_nat-nO2_air>0,CC9+nO2_in1+nO2_in2-nO2_out-nO2beta_inNF+nO2beta_outNF+nO2_nat-nO2_air,0) -> 708.7093521 | CD10: =IF(CD9+nAr_in1+nAr_in2-nAr_out-nArbeta_inNF+nArbeta_outNF+nAr_nat-nAr_air>0,CD9+nAr_in1+nAr_in2-nAr_out-nArbeta_inNF+nArbeta_outNF+nAr_nat-nAr_air,0) -> 33.92200274 | CE10: 78.10% | CF10: 20.90% | CG10: 20.90% | CH10: 1.00% | CI10: =(CO2_FF*p_t)/1000 -> 21.17676932 | CJ10: 158.8 | CK10: =(pwe_t*VFF)/((nN2_FF+nO2_FF+nAr_FF)*R_ideal_gas) -> 299.1500 | CL10: 21001359.19 | CM10: 101325 | CN10: =(CL9+E_in1+E_in2-E_out-E_betainNF+E_betaoutNF-CP10)/(CQ10*cv_N2+CR10*cv_O2+CS10*cv_Ar) -> 299.1499528 | CO10: =IF(_xlfn.SINGLE(ppair_NF)<0,_xlfn.SINGLE(TNF_temp),_xlfn.SINGLE(TFF_temp)) -> 299.1108 | CP10: =CO10*(nN2_air*cv_N2+nO2_air*cv_O2+nAr_air*cv_Ar) -> -25335.26404 | CQ10: =IF(nN2_FF_temp-nN2_air>0,nN2_FF_temp-nN2_air,0) -> 2651.546111 | CR10: =IF(nO2_FF_temp-nO2_air>0,nO2_FF_temp-nO2_air,0) -> 709.565338 | CS10: =IF(nAr_FF_temp-nAr_air>0,nAr_FF_temp-nAr_air,0) -> 33.96297406 | CT10: =nN2_FF_ast+nO2_FF_ast+nAr_FF_ast -> 3395.074423 | CU10: =IF(nN2_FF_ast/nFF_ast>0,IF(nN2_FF_ast/nFF_ast>=100%,100%,nN2_FF_ast/nFF_ast),0) -> 78.10% | CV10: =IF(nO2_FF_ast/nFF_ast>0,IF(nO2_FF_ast/nFF_ast>=100%,100%,nO2_FF_ast/nFF_ast),0) -> 20.90% | CW10: =IF(nAr_FF_ast/nFF_ast>0,IF(nAr_FF_ast/nFF_ast>=100%,100%,nAr_FF_ast/nFF_ast),0) -> 1.00% | CX10: =IF(AND(t>Time_ig1,t<(Time_ig1+Dur_ig1+delta_t)),IF(t<(Time_ig1+delta_t),t-Time_ig1,IF(t>(Time_ig1+Dur_ig1),Time_ig1+Dur_ig1+delta_t-t,delta_t)),0) -> 1 | CY10: =IF(AND(t>Time_ig2,t<(Time_ig2+Dur_ig2+delta_t)),IF(t<(Time_ig2+delta_t),t-Time_ig2,IF(t>(Time_ig2+Dur_ig2),Time_ig2+Dur_ig2+delta_t-t,delta_t)),0) -> 1 | CZ10: =IF(AND(t>Time_in1,t<(Time_in1+Dur_in1+delta_t)),IF(t<(Time_in1+delta_t),t-Time_in1,IF(t>(Time_in1+Dur_in1),Time_in1+Dur_in1+delta_t-t,delta_t)),0) -> 1 | DA10: =IF(AND(t>Time_in2,t<(Time_in2+Dur_in2+delta_t)),IF(t<(Time_in2+delta_t),t-Time_in2,IF(t>(Time_in2+Dur_in2),Time_in2+Dur_in2+delta_t-t,delta_t)),0) -> 1 | DB10: =IF(AND(t>Time_out,t<(Time_out+Dur_out+delta_t)),IF(t<(Time_out+delta_t),t-Time_out,IF(t>(Time_out+Dur_out),Time_out+Dur_out+delta_t-t,delta_t)),0) -> 1
C11: 2 | D11: 2 | E11: 0.05 | F11: 2.092835759 | G11: 0 | H11: 0 | I11: 12665.625 | J11: 0.05 | K11: 0 | L11: 0 | M11: 2.092835759 | N11: 7599.375 | O11: 1 | P11: 31.81588176 | Q11: 8.514109204 | R11: 0.4073736461 | S11: 252299.25 | T11: 0.5 | U11: 15.90794088 | V11: 4.257054602 | W11: 0.2036868231 | X11: 126149.625 | Y11: 1.5 | Z11: 47.72370396 | AA11: 12.77107194 | AB11: 0.6112806836 | AC11: 378448.3275 | AD11: 30.71190404 | AE11: 23.98593361 | AF11: 6.418740756 | AG11: 0.3072296716 | AH11: 190208.1294 | AI11: 30.71592413 | AJ11: 23.93654546 | AK11: 6.380512205 | AL11: 0.3988664629 | AM11: 189980.3334 | AN11: 687.0293612 | AO11: 534.277125 | AP11: 141.8838109 | AQ11: 10.86842528 | AR11: 77.77% | AS11: 20.65% | AT11: 1.58% | AU11: 299.0735068 | AV11: 101932.7877 | AW11: 3390.982777 | AX11: 2648.298142 | AY11: 708.6712154 | AZ11: 34.01341931 | BA11: 78.10% | BB11: 20.90% | BC11: 1.00% | BD11: 299.1495993 | BE11: 101325.0001 | BF11: -607.787696 | BG11: -4.10 | BH11: -122.3753218 | BI11: -3.185697852 | BJ11: -0.8460009433 | BK11: -0.06480441976 | BL11: -122.3754643 | BM11: -4.095467243 | BN11: -3.198471763 | BO11: -0.8558870878 | BP11: -0.04110839173 | BQ11: 531.0914271 | BR11: 141.03781 | BS11: 10.80362086 | BT11: 77.77% | BU11: 20.65% | BV11: 20.65% | BW11: 1.58% | BX11: 20.92541885 | BY11: 157 | BZ11: 299.0735 | CA11: 4218652.803 | CB11: 2648.285368 | CC11: 708.6613292 | CD11: 34.03711534 | CE11: 78.10% | CF11: 20.90% | CG11: 20.90% | CH11: 1.00% | CI11: 21.17530285 | CJ11: 158.8 | CK11: 299.1495 | CL11: 21001073 | CM11: 101325 | CN11: 299.1495077 | CO11: 299.0735068 | CP11: -25305.15931 | CQ11: 2651.48384 | CR11: 709.5172163 | CS11: 34.07822373 | CT11: 3395.07928 | CU11: 78.10% | CV11: 20.90% | CW11: 1.00% | CX11: 1 | CY11: 1 | CZ11: 1 | DA11: 1 | DB11: 1
C12: 3 | D12: 3 | E12: 0.05 | F12: 2.092835759 | G12: 0 | H12: 0 | I12: 12665.625 | J12: 0.05 | K12: 0 | L12: 0 | M12: 2.092835759 | N12: 7599.375 | O12: 1 | P12: 31.81588176 | Q12: 8.514109204 | R12: 0.4073736461 | S12: 252299.25 | T12: 0.5 | U12: 15.90794088 | V12: 4.257054602 | W12: 0.2036868231 | X12: 126149.625 | Y12: 1.5 | Z12: 47.72258592 | AA12: 12.77020656 | AB12: 0.6133550338 | AC12: 378443.1703 | AD12: 30.71194974 | AE12: 23.98537169 | AF12: 6.418305816 | AG12: 0.30827224 | AH12: 190205.5374 | AI12: 30.71975427 | AJ12: 23.88960781 | AK12: 6.344176907 | AL12: 0.4859695565 | AM12: 189763.8632 | AN12: 687.1107249 | AO12: 533.2800267 | AP12: 141.1119389 | AQ12: 12.7187593 | AR12: 77.61% | AS12: 20.54% | AT12: 1.85% | AU12: 299.0380133 | AV12: 101932.7608 | AW12: 3390.991517 | AX12: 2648.190841 | AY12: 708.5881576 | AZ12: 34.21251809 | BA12: 78.09% | BB12: 20.90% | BC12: 1.01% | BD12: 299.1488295 | BE12: 101325.0005 | BF12: -607.7607952 | BG12: -4.10 | BH12: -122.3699054 | BI12: -3.179612625 | BJ12: -0.8413615362 | BK12: -0.07583394395 | BL12: -122.3704422 | BM12: -4.095310281 | BN12: -3.198203887 | BO12: -0.8557462207 | BP12: -0.04136017304 | BQ12: 530.1004141 | BR12: 140.2705774 | BS12: 12.64292536 | BT12: 77.61% | BU12: 20.54% | BV12: 20.54% | BW12: 1.85% | BX12: 20.80911662 | BY12: 156.1 | BZ12: 299.0380 | CA12: 4214082.849 | CB12: 2648.17225 | CC12: 708.5737729 | CD12: 34.24699187 | CE12: 78.09% | CF12: 20.90% | CG12: 20.90% | CH12: 1.01% | CI12: 21.17262915 | CJ12: 158.8 | CK12: 299.1487 | CL12: 21000551.21 | CM12: 101325 | CN12: 299.1486962 | CO12: 299.0380133 | CP12: -25276.62811 | CQ12: 2651.370454 | CR12: 709.4295191 | CS12: 34.28835204 | CT12: 3395.088325 | CU12: 78.09% | CV12: 20.90% | CW12: 1.01% | CX12: 1 | CY12: 1 | CZ12: 1 | DA12: 1 | DB12: 1
C13: 4 | D13: 4 | E13: 0.05 | F13: 2.092835759 | G13: 0 | H13: 0 | I13: 12665.625 | J13: 0.05 | K13: 0 | L13: 0 | M13: 2.092835759 | N13: 7599.375 | O13: 1 | P13: 31.81588176 | Q13: 8.514109204 | R13: 0.4073736461 | S13: 252299.25 | T13: 0.5 | U13: 15.90794088 | V13: 4.257054602 | W13: 0.2036868231 | X13: 126149.625 | Y13: 1.5 | Z13: 47.72054751 | AA13: 12.76862878 | AB13: 0.6171370471 | AC13: 378433.7676 | AD13: 30.71203308 | AE13: 23.98434718 | AF13: 6.417512823 | AG13: 0.3101730799 | AH13: 190200.8116 | AI13: 30.72340047 | AJ13: 23.84502996 | AK13: 6.309665172 | AL13: 0.5687053359 | AM13: 189558.2971 | AN13: 687.188221 | AO13: 532.3325671 | AP13: 140.378425 | AQ13: 14.47722886 | AR13: 77.47% | AS13: 20.43% | AT13: 2.11% | AU13: 299.0042184 | AV13: 101932.7364 | AW13: 3391.004116 | AX13: 2648.036208 | AY13: 708.4684603 | AZ13: 34.49944754 | BA13: 78.09% | BB13: 20.89% | BC13: 1.02% | BD13: 299.1477198 | BE13: 101325.0011 | BF13: -607.7363862 | BG13: -4.10 | BH13: -122.3649908 | BI13: -3.173836807 | BJ13: -0.8369546404 | BK13: -0.08631514333 | BL13: -122.3661286 | BM13: -4.095181646 | BN13: -3.197897796 | BO13: -0.8555663961 | BP13: -0.04171745445 | BQ13: 529.1587303 | BR13: 139.5414704 | BS13: 14.39091372 | BT13: 77.47% | BU13: 20.43% | BV13: 20.43% | BW13: 2.11% | BX13: 20.69861427 | BY13: 155.3 | BZ13: 299.0042 | CA13: 4209740.793 | CB13: 2648.012147 | CC13: 708.4498485 | CD13: 34.54404523 | CE13: 78.09% | CF13: 20.89% | CG13: 20.89% | CH13: 1.02% | CI13: 21.16884489 | CJ13: 158.8 | CK13: 299.1475 | CL13: 20999812.69 | CM13: 101325 | CN13: 299.1475474 | CO13: 299.0042184 | CP13: -25249.56977 | CQ13: 2651.210045 | CR13: 709.3054149 | CS13: 34.58576269 | CT13: 3395.101222 | CU13: 78.09% | CV13: 20.89% | CW13: 1.02% | CX13: 1 | CY13: 1 | CZ13: 1 | DA13: 1 | DB13: 1
C14: 5 | D14: 5 | E14: 0.05 | F14: 2.092835759 | G14: 0 | H14: 0 | I14: 12665.625 | J14: 0.05 | K14: 0 | L14: 0 | M14: 2.092835759 | N14: 7599.375 | O14: 1 | P14: 31.81588176 | Q14: 8.514109204 | R14: 0.4073736461 | S14: 252299.25 | T14: 0.5 | U14: 15.90794088 | V14: 4.257054602 | W14: 0.2036868231 | X14: 126149.625 | Y14: 1.5 | Z14: 47.71766242 | AA14: 12.76639564 | AB14: 0.622490003 | AC14: 378420.4593 | AD14: 30.71215106 | AE14: 23.98289713 | AF14: 6.416390447 | AG14: 0.3128634755 | AH14: 190194.1229 | AI14: 30.72687298 | AJ14: 23.80267105 | AK14: 6.276868408 | AL14: 0.6473335235 | AM14: 189362.9823 | AN14: 687.262064 | AO14: 531.4317921 | AP14: 139.6809924 | AQ14: 16.14927943 | AR14: 77.33% | AS14: 20.32% | AT14: 2.35% | AU14: 298.9720268 | AV14: 101932.7142 | AW14: 3391.020261 | AX14: 2647.838081 | AY14: 708.3150947 | AZ14: 34.86708575 | BA14: 78.08% | BB14: 20.89% | BC14: 1.03% | BD14: 299.1462977 | BE14: 101325.0019 | BF14: -607.7141903 | BG14: -4.10 | BH14: -122.3605217 | BI14: -3.168351238 | BJ14: -0.8327662211 | BK14: -0.09628063327 | BL14: -122.362429 | BM14: -4.095077803 | BN14: -3.197555633 | BO14: -0.8553505226 | BP14: -0.04217164763 | BQ14: 528.2634409 | BR14: 138.8482262 | BS14: 16.0529988 | BT14: 77.33% | BU14: 20.32% | BV14: 20.32% | BW14: 2.35% | BX14: 20.59356583 | BY14: 154.5 | BZ14: 298.9720 | CA14: 4205613.043 | CB14: 2647.808876 | CC14: 708.2925104 | CD14: 34.92119473 | CE14: 78.08% | CF14: 20.89% | CG14: 20.89% | CH14: 1.03% | CI14: 21.16404031 | CJ14: 158.7 | CK14: 299.1461 | CL14: 20998875.05 | CM14: 101325 | CN14: 299.1460885 | CO14: 298.9720268 | CP14: -25223.8907 | CQ14: 2651.006432 | CR14: 709.1478609 | CS14: 34.96336638 | CT14: 3395.117659 | CU14: 78.08% | CV14: 20.89% | CW14: 1.03% | CX14: 1 | CY14: 1 | CZ14: 1 | DA14: 1 | DB14: 1
C15: 6 | D15: 6 | E15: 0.05 | F15: 2.092835759 | G15: 0 | H15: 0 | I15: 12665.625 | J15: 0.05 | K15: 0 | L15: 0 | M15: 2.092835759 | N15: 7599.375 | O15: 1 | P15: 31.81588176 | Q15: 8.514109204 | R15: 0.4073736461 | S15: 252299.25 | T15: 0.5 | U15: 15.90794088 | V15: 4.257054602 | W15: 0.2036868231 | X15: 126149.625 | Y15: 1.5 | Z15: 47.71399946 | AA15: 12.76356037 | AB15: 0.6292863058 | AC15: 378403.5628 | AD15: 30.71230087 | AE15: 23.98105613 | AF15: 6.414965444 | AG15: 0.3162792973 | AH15: 190185.6307 | AI15: 30.73018148 | AJ15: 23.76239905 | AK15: 6.245684829 | AL15: 0.722097601 | AM15: 189177.3075 | AN15: 687.3324568 | AO15: 530.5749337 | AP15: 139.0175068 | AQ15: 17.74001625 | AR15: 77.19% | AS15: 20.23% | AT15: 2.58% | AU15: 298.9413484 | AV15: 101932.694 | AW15: 3391.039663 | AX15: 2647.600043 | AY15: 708.1308332 | AZ15: 35.3087872 | BA15: 78.08% | BB15: 20.88% | BC15: 1.04% | BD15: 299.1445889 | BE15: 101325.0028 | BF15: -607.6939608 | BG15: -4.10 | BH15: -122.3564486 | BI15: -3.163138052 | BJ15: -0.8287831514 | BK15: -0.1057609715 | BL15: -122.3592608 | BM15: -4.09499564 | BN15: -3.197179543 | BO15: -0.855101353 | BP15: -0.04271474335 | BQ15: 527.4117957 | BR15: 138.1887237 | BS15: 17.63425528 | BT15: 77.19% | BU15: 20.23% | BV15: 20.23% | BW15: 2.58% | BX15: 20.4936472 | BY15: 153.7 | BZ15: 298.9413 | CA15: 4201686.862 | CB15: 2647.566001 | CC15: 708.104515 | CD15: 35.37183343 | CE15: 78.08% | CF15: 20.88% | CG15: 20.88% | CH15: 1.04% | CI15: 21.1582996 | CJ15: 158.7 | CK15: 299.1443 | CL15: 20997754.71 | CM15: 101325 | CN15: 299.1443451 | CO15: 298.9413484 | CP15: -25199.50389 | CQ15: 2650.763181 | CR15: 708.9596163 | CS15: 35.41454817 | CT15: 3395.137345 | CU15: 78.08% | CV15: 20.88% | CW15: 1.04% | CX15: 1 | CY15: 1 | CZ15: 1 | DA15: 1 | DB15: 1
C16: 7 | D16: 7 | E16: 0.05 | F16: 2.092835759 | G16: 0 | H16: 0 | I16: 12665.625 | J16: 0.05 | K16: 0 | L16: 0 | M16: 2.092835759 | N16: 7599.375 | O16: 1 | P16: 31.81588176 | Q16: 8.514109204 | R16: 0.4073736461 | S16: 252299.25 | T16: 0.5 | U16: 15.90794088 | V16: 4.257054602 | W16: 0.2036868231 | X16: 126149.625 | Y16: 1.5 | Z16: 47.7096228 | AA16: 12.76017266 | AB16: 0.6374068974 | AC16: 378383.3742 | AD16: 30.7124799 | AE16: 23.97885642 | AF16: 6.41326278 | AG16: 0.3203607066 | AH16: 190175.4839 | AI16: 30.73333512 | AJ16: 23.72409026 | AK16: 6.21601902 | AL16: 0.7932258387 | AM16: 189000.6996 | AN16: 687.3995909 | AO16: 529.7593976 | AP16: 138.3859674 | AQ16: 19.25422591 | AR16: 77.07% | AS16: 20.13% | AT16: 2.80% | AU16: 298.9120984 | AV16: 101932.6755 | AW16: 3391.062049 | AX16: 2647.325435 | AY16: 707.9182624 | AZ16: 35.81835213 | BA16: 78.07% | BB16: 20.88% | BC16: 1.06% | BD16: 299.142617 | BE16: 101325.0038 | BF16: -607.6754794 | BG16: -4.10 | BH16: -122.3527275 | BI16: -3.158180578 | BJ16: -0.8249931507 | BK16: -0.1147847921 | BL16: -122.356552 | BM16: -4.094932421 | BN16: -3.196771658 | BO16: -0.8548214896 | BP16: -0.04333927327 | BQ16: 526.601217 | BR16: 137.5609743 | BS16: 19.13944112 | BT16: 77.07% | BU16: 20.13% | BV16: 20.13% | BW16: 2.80% | BX16: 20.39855469 | BY16: 153 | BZ16: 298.9121 | CA16: 4197950.318 | CB16: 2647.286844 | CC16: 707.888434 | CD16: 35.88979765 | CE16: 78.07% | CF16: 20.88% | CG16: 20.88% | CH16: 1.06% | CI16: 21.1517013 | CJ16: 158.7 | CK16: 299.1423 | CL16: 20996467.01 | CM16: 101325 | CN16: 299.1423407 | CO16: 298.9120984 | CP16: -25176.32837 | CQ16: 2650.483615 | CR16: 708.7432555 | CS16: 35.93313692 | CT16: 3395.160008 | CU16: 78.07% | CV16: 20.88% | CW16: 1.06% | CX16: 1 | CY16: 1 | CZ16: 1 | DA16: 1 | DB16: 1
C17: 8 | D17: 8 | E17: 0.05 | F17: 2.092835759 | G17: 0 | H17: 0 | I17: 12665.625 | J17: 0.05 | K17: 0 | L17: 0 | M17: 2.092835759 | N17: 7599.375 | O17: 1 | P17: 31.81588176 | Q17: 8.514109204 | R17: 0.4073736461 | S17: 252299.25 | T17: 0.5 | U17: 15.90794088 | V17: 4.257054602 | W17: 0.2036868231 | X17: 126149.625 | Y17: 1.5 | Z17: 47.70459233 | AA17: 12.75627884 | AB17: 0.6467407073 | AC17: 378360.1697 | AD17: 30.71268573 | AE17: 23.9763281 | AF17: 6.411305747 | AG17: 0.3250518795 | AH17: 190163.8213 | AI17: 30.73634252 | AJ17: 23.68762873 | AK17: 6.187781534 | AL17: 0.8609322588 | AM17: 188832.622 | AN17: 687.4636471 | AO17: 528.9827521 | AP17: 137.7844985 | AQ17: 20.69639649 | AR17: 76.95% | AS17: 20.04% | AT17: 3.01% | AU17: 298.8841968 | AV17: 101932.6586 | AW17: 3391.087167 | AX17: 2647.017375 | AY17: 707.6797948 | AZ17: 36.38999779 | BA17: 78.06% | BB17: 20.87% | BC17: 1.07% | BD17: 299.1404045 | BE17: 101325.0049 | BF17: -607.6585529 | BG17: -4.10 | BH17: -122.3493194 | BI17: -3.15346326 | BJ17: -0.8213847275 | BK17: -0.12337893 | BL17: -122.3542398 | BM17: -4.094885743 | BN17: -3.19633408 | BO17: -0.8545133895 | BP17: -0.04403827433 | BQ17: 525.8292889 | BR17: 136.9631138 | BS17: 20.57301756 | BT17: 76.95% | BU17: 20.04% | BV17: 20.04% | BW17: 3.01% | BX17: 20.30800373 | BY17: 152.3 | BZ17: 298.8842 | CA17: 4194392.229 | CB17: 2646.974504 | CC17: 707.6466661 | CD17: 36.46933845 | CE17: 78.06% | CF17: 20.87% | CG17: 20.87% | CH17: 1.08% | CI17: 21.1443187 | CJ17: 158.6 | CK17: 299.1401 | CL17: 20995026.26 | CM17: 101325 | CN17: 299.1400976 | CO17: 298.8841968 | CP17: -25154.2888 | CQ17: 2650.170838 | CR17: 708.5011795 | CS17: 36.51337672 | CT17: 3395.185394 | CU17: 78.06% | CV17: 20.87% | CW17: 1.08% | CX17: 1 | CY17: 1 | CZ17: 1 | DA17: 1 | DB17: 1
C18: 9 | D18: 9 | E18: 0.05 | F18: 2.092835759 | G18: 0 | H18: 0 | I18: 12665.625 | J18: 0.05 | K18: 0 | L18: 0 | M18: 2.092835759 | N18: 7599.375 | O18: 1 | P18: 31.81588176 | Q18: 8.514109204 | R18: 0.4073736461 | S18: 252299.25 | T18: 0.5 | U18: 15.90794088 | V18: 4.257054602 | W18: 0.2036868231 | X18: 126149.625 | Y18: 1.5 | Z18: 47.69896391 | AA18: 12.75192214 | AB18: 0.6571841383 | AC18: 378334.2069 | AD18: 30.71291608 | AE18: 23.97349926 | AF18: 6.409116069 | AG18: 0.3303007479 | AH18: 190150.7724 | AI18: 30.73921183 | AJ18: 23.65290578 | AK18: 6.160888512 | AL18: 0.9254175383 | AM18: 188672.5717 | AN18: 687.524796 | AO18: 528.2427181 | AP18: 137.2113413 | AQ18: 22.07073653 | AR18: 76.83% | AS18: 19.96% | AT18: 3.21% | AU18: 298.8575683 | AV18: 101932.643 | AW18: 3391.114781 | AX18: 2646.678769 | AY18: 707.4176802 | AZ18: 37.01833157 | BA18: 78.05% | BB18: 20.86% | BC18: 1.09% | BD18: 299.137972 | BE18: 101325.0061 | BF18: -607.6430103 | BG18: -4.10 | BH18: -122.34619 | BI18: -3.148971575 | BJ18: -0.8179471268 | BK18: -0.1315685377 | BL18: -122.3522695 | BM18: -4.094853493 | BN18: -3.195868867 | BO18: -0.8541793707 | BP18: -0.04480525558 | BQ18: 525.0937465 | BR18: 136.3933942 | BS18: 21.939168 | BT18: 76.83% | BU18: 19.96% | BV18: 19.96% | BW18: 3.21% | BX18: 20.22172762 | BY18: 151.7 | BZ18: 298.8576 | CA18: 4191002.115 | CB18: 2646.631872 | CC18: 707.381448 | CD18: 37.10509485 | CE18: 78.05% | CF18: 20.86% | CG18: 20.86% | CH18: 1.09% | CI18: 21.13622011 | CJ18: 158.5 | CK18: 299.1376 | CL18: 20993445.77 | CM18: 101325 | CN18: 299.1376364 | CO18: 298.8575683 | CP18: -25133.31498 | CQ18: 2649.827741 | CR18: 708.2356273 | CS18: 37.14990011 | CT18: 3395.213268 | CU18: 78.05% | CV18: 20.86% | CW18: 1.09% | CX18: 1 | CY18: 1 | CZ18: 1 | DA18: 1 | DB18: 1
C19: 10 | D19: 10 | E19: 0.05 | F19: 2.092835759 | G19: 0 | H19: 0 | I19: 12665.625 | J19: 0.05 | K19: 0 | L19: 0 | M19: 2.092835759 | N19: 7599.375 | O19: 1 | P19: 31.81588176 | Q19: 8.514109204 | R19: 0.4073736461 | S19: 252299.25 | T19: 0.5 | U19: 15.90794088 | V19: 4.257054602 | W19: 0.2036868231 | X19: 126149.625 | Y19: 1.5 | Z19: 47.69278962 | AA19: 12.74714286 | AB19: 0.6686405848 | AC19: 378305.7262 | AD19: 30.71316882 | AE19: 23.97039606 | AF19: 6.406714003 | AG19: 0.3360587579 | AH19: 190136.458 | AI19: 30.74195072 | AJ19: 23.61981954 | AK19: 6.135261329 | AL19: 0.9868698539 | AM19: 188520.0772 | AN19: 687.5831983 | AO19: 527.5371588 | AP19: 136.6648469 | AQ19: 23.38119266 | AR19: 76.72% | AS19: 19.88% | AT19: 3.40% | AU19: 298.8321418 | AV19: 101932.6287 | AW19: 3391.14467 | AX19: 2646.312328 | AY19: 707.1340162 | AZ19: 37.69832583 | BA19: 78.04% | BB19: 20.85% | BC19: 1.11% | BD19: 299.135339 | BE19: 101325.0073 | BF19: -607.6286999 | BG19: -4.10 | BH19: -122.3433086 | BI19: -3.144691961 | BJ19: -0.8146702806 | BK19: -0.1393771933 | BL19: -122.3505935 | BM19: -4.094833815 | BN19: -3.19537803 | BO19: -0.8538216177 | BP19: -0.04563416731 | BQ19: 524.3924669 | BR19: 135.8501766 | BS19: 23.24181547 | BT19: 76.72% | BU19: 19.88% | BV19: 19.88% | BW19: 3.40% | BX19: 20.13947642 | BY19: 151.1 | BZ19: 298.8321 | CA19: 4187770.154 | CB19: 2646.261642 | CC19: 707.0948649 | CD19: 37.79206886 | CE19: 78.03% | CF19: 20.85% | CG19: 20.85% | CH19: 1.11% | CI19: 21.12746923 | CJ19: 158.5 | CK19: 299.1350 | CL19: 20991737.98 | CM19: 101325 | CN19: 299.1349763 | CO19: 298.8321418 | CP19: -25113.34157 | CQ19: 2649.45702 | CR19: 707.9486865 | CS19: 37.83770302 | CT19: 3395.24341 | CU19: 78.03% | CV19: 20.85% | CW19: 1.11% | CX19: 1 | CY19: 1 | CZ19: 1 | DA19: 1 | DB19: 1
C20: 11 | D20: 11 | E20: 0.05 | F20: 2.092835759 | G20: 0 | H20: 0 | I20: 12665.625 | J20: 0.05 | K20: 0 | L20: 0 | M20: 2.092835759 | N20: 7599.375 | O20: 1 | P20: 31.81588176 | Q20: 8.514109204 | R20: 0.4073736461 | S20: 252299.25 | T20: 0.5 | U20: 15.90794088 | V20: 4.257054602 | W20: 0.2036868231 | X20: 126149.625 | Y20: 1.5 | Z20: 47.68611801 | AA20: 12.74197858 | AB20: 0.6810199818 | AC20: 378274.9516 | AD20: 30.71344199 | AE20: 23.96704291 | AF20: 6.404118436 | AG20: 0.3422806429 | AH20: 190120.9907 | AI20: 30.74456644 | AJ20: 23.58827451 | AK20: 6.11082626 | AL20: 1.045465673 | AM20: 188374.6968 | AN20: 687.639006 | AO20: 526.864071 | AP20: 136.1434688 | AQ20: 24.63146619 | AR20: 76.62% | AS20: 19.80% | AT20: 3.58% | AU20: 298.8078504 | AV20: 101932.6155 | AW20: 3391.176631 | AX20: 2645.920578 | AY20: 706.8307579 | AZ20: 38.42529437 | BA20: 78.02% | BB20: 20.84% | BC20: 1.13% | BD20: 299.1325234 | BE20: 101325.0085 | BF20: -607.615488 | BG20: -4.10 | BH20: -122.3406485 | BI20: -3.140611747 | BJ20: -0.8115447623 | BK20: -0.1468270021 | BL20: -122.3491704 | BM20: -4.094825077 | BN20: -3.194863517 | BO20: -0.8534421873 | BP20: -0.04651937216 | BQ20: 523.7234593 | BR20: 135.331924 | BS20: 24.48463919 | BT20: 76.62% | BU20: 19.80% | BV20: 19.80% | BW20: 3.58% | BX20: 20.06101581 | BY20: 150.5 | BZ20: 298.8079 | CA20: 4184687.14 | CB20: 2645.866327 | CC20: 706.7888605 | CD20: 38.525602 | CE20: 78.02% | CF20: 20.84% | CG20: 20.84% | CH20: 1.14% | CI20: 21.11812544 | CJ20: 158.4 | CK20: 299.1321 | CL20: 20989914.48 | CM20: 101325 | CN20: 299.1321353 | CO20: 298.8078504 | CP20: -25094.30761 | CQ20: 2649.06119 | CR20: 707.6423027 | CS20: 38.57212138 | CT20: 3395.275614 | CU20: 78.02% | CV20: 20.84% | CW20: 1.14% | CX20: 1 | CY20: 1 | CZ20: 1 | DA20: 1 | DB20: 1
C21: 12 | D21: 12 | E21: 0.05 | F21: 2.092835759 | G21: 0 | H21: 0 | I21: 12665.625 | J21: 0.05 | K21: 0 | L21: 0 | M21: 2.092835759 | N21: 7599.375 | O21: 1 | P21: 31.81588176 | Q21: 8.514109204 | R21: 0.4073736461 | S21: 252299.25 | T21: 0.5 | U21: 15.90794088 | V21: 4.257054602 | W21: 0.2036868231 | X21: 126149.625 | Y21: 1.5 | Z21: 47.67899435 | AA21: 12.73646433 | AB21: 0.6942383831 | AC21: 378242.0919 | AD21: 30.71373375 | AE21: 23.96346256 | AF21: 6.401346972 | AG21: 0.3489242113 | AH21: 190104.4754 | AI21: 30.74706581 | AJ21: 23.55818114 | AK21: 6.087514171 | AL21: 1.101370494 | AM21: 188236.0164 | AN21: 687.6923619 | AO21: 526.2215765 | AP21: 135.6457568 | AQ21: 25.82502867 | AR21: 76.52% | AS21: 19.72% | AT21: 3.76% | AU21: 298.784631 | AV21: 101932.6033 | AW21: 3391.210471 | AX21: 2645.505874 | AY21: 706.5097272 | AZ21: 39.19487037 | BA21: 78.01% | BB21: 20.83% | BC21: 1.16% | BD21: 299.1295421 | BE21: 101325.0098 | BF21: -607.6032558 | BG21: -4.10 | BH21: -122.3381856 | BI21: -3.136719096 | BJ21: -0.8085617441 | BK21: -0.1539386908 | BL21: -122.3479642 | BM21: -4.094825847 | BN21: -3.194327215 | BO21: -0.853043014 | BP21: -0.04745561822 | BQ21: 523.0848574 | BR21: 134.8371951 | BS21: 25.67108998 | BT21: 76.52% | BU21: 19.72% | BV21: 19.72% | BW21: 3.76% | BX21: 19.98612616 | BY21: 149.9 | BZ21: 298.7846 | CA21: 4181744.443 | CB21: 2645.448265 | CC21: 706.4652459 | CD21: 39.30135345 | CE21: 78.01% | CF21: 20.83% | CG21: 20.83% | CH21: 1.16% | CI21: 21.10824406 | CJ21: 158.3 | CK21: 299.1291 | CL21: 20987986.07 | CM21: 101325 | CN21: 299.1291301 | CO21: 298.784631 | CP21: -25076.15631 | CQ21: 2648.642593 | CR21: 707.3182889 | CS21: 39.34880906 | CT21: 3395.309691 | CU21: 78.01% | CV21: 20.83% | CW21: 1.16% | CX21: 1 | CY21: 1 | CZ21: 1 | DA21: 1 | DB21: 1
C22: 13 | D22: 13 | E22: 0.05 | F22: 2.092835759 | G22: 0 | H22: 0 | I22: 12665.625 | J22: 0.05 | K22: 0 | L22: 0 | M22: 2.092835759 | N22: 7599.375 | O22: 1 | P22: 31.81588176 | Q22: 8.514109204 | R22: 0.4073736461 | S22: 252299.25 | T22: 0.5 | U22: 15.90794088 | V22: 4.257054602 | W22: 0.2036868231 | X22: 126149.625 | Y22: 1.5 | Z22: 47.67146081 | AA22: 12.73063274 | AB22: 0.7082175657 | AC22: 378207.3416 | AD22: 30.71404237 | AE22: 23.9596762 | AF22: 6.398416013 | AG22: 0.3559501485 | AH22: 190087.0099 | AI22: 30.74945525 | AJ22: 23.52945549 | AK22: 6.065260224 | AL22: 1.154739543 | AM22: 188103.6477 | AN22: 687.743401 | AO22: 525.6079138 | AP22: 135.1703508 | AQ22: 26.96513634 | AR22: 76.43% | AS22: 19.65% | AT22: 3.92% | AU22: 298.7624241 | AV22: 101932.5919 | AW22: 3391.246013 | AX22: 2645.070407 | AY22: 706.1726212 | AZ22: 40.00298574 | BA22: 78.00% | BB22: 20.82% | BC22: 1.18% | BD22: 299.1264108 | BE22: 101325.011 | BF22: -607.5918983 | BG22: -4.10 | BH22: -122.3358988 | BI22: -3.13300294 | BJ22: -0.8057129573 | BK22: -0.160731696 | BL22: -122.3469438 | BM22: -4.094834869 | BN22: -3.193770939 | BO22: -0.8526259162 | BP22: -0.0484380139 | BQ22: 522.4749109 | BR22: 134.3646379 | BS22: 26.80440465 | BT22: 76.43% | BU22: 19.65% | BV22: 19.65% | BW22: 3.92% | BX22: 19.91460155 | BY22: 149.4 | BZ22: 298.7624 | CA22: 4178933.97 | CB22: 2645.009639 | CC22: 706.1257082 | CD22: 40.11527943 | CE22: 78.00% | CF22: 20.82% | CG22: 20.82% | CH22: 1.18% | CI22: 21.09787665 | CJ22: 158.2 | CK22: 299.1260 | CL22: 20985962.81 | CM22: 101325 | CN22: 299.1259762 | CO22: 298.7624241 | CP22: -25058.83468 | CQ22: 2648.203409 | CR22: 706.9783342 | CS22: 40.16371744 | CT22: 3395.345461 | CU22: 78.00% | CV22: 20.82% | CW22: 1.18% | CX22: 1 | CY22: 1 | CZ22: 1 | DA22: 1 | DB22: 1
C23: 14 | D23: 14 | E23: 0.05 | F23: 2.092835759 | G23: 0 | H23: 0 | I23: 12665.625 | J23: 0.05 | K23: 0 | L23: 0 | M23: 2.092835759 | N23: 7599.375 | O23: 1 | P23: 31.81588176 | Q23: 8.514109204 | R23: 0.4073736461 | S23: 252299.25 | T23: 0.5 | U23: 15.90794088 | V23: 4.257054602 | W23: 0.2036868231 | X23: 126149.625 | Y23: 1.5 | Z23: 47.66355668 | AA23: 12.7245142 | AB23: 0.7228846605 | AC23: 378170.882 | AD23: 30.71436626 | AE23: 23.95570359 | AF23: 6.395340839 | AG23: 0.3633218304 | AH23: 190068.6853 | AI23: 30.75174084 | AJ23: 23.50201881 | AK23: 6.04400361 | AL23: 1.205718417 | AM23: 187977.2267 | AN23: 687.7922504 | AO23: 525.0214314 | AP23: 134.7159751 | AQ23: 28.05484382 | AR23: 76.33% | AS23: 19.59% | AT23: 4.08% | AU23: 298.741174 | AV23: 101932.5813 | AW23: 3391.283092 | AX23: 2644.61622 | AY23: 705.8210206 | AZ23: 40.84585182 | BA23: 77.98% | BB23: 20.81% | BC23: 1.20% | BD23: 299.123144 | BE23: 101325.0123 | BF23: -607.5813225 | BG23: -4.10 | BH23: -122.3337694 | BI23: -3.129452934 | BJ23: -0.8029906558 | BK23: -0.1672242465 | BL23: -122.3460821 | BM23: -4.094851038 | BN23: -3.193196433 | BO23: -0.8521926012 | BP23: -0.04946200443 | BQ23: 521.8919785 | BR23: 133.9129845 | BS23: 27.88761957 | BT23: 76.33% | BU23: 19.59% | BV23: 19.59% | BW23: 4.08% | BX23: 19.84624888 | BY23: 148.9 | BZ23: 298.7412 | CA23: 4176248.135 | CB23: 2644.552476 | CC23: 705.7718187 | CD23: 40.96361406 | CE23: 77.98% | CF23: 20.81% | CG23: 20.81% | CH23: 1.21% | CI23: 21.08707118 | CJ23: 158.2 | CK23: 299.1227 | CL23: 20983854.06 | CM23: 101325 | CN23: 299.1226882 | CO23: 298.741174 | CP23: -25042.29327 | CQ23: 2647.745673 | CR23: 706.6240113 | CS23: 41.01307607 | CT23: 3395.38276 | CU23: 77.98% | CV23: 20.81% | CW23: 1.21% | CX23: 1 | CY23: 1 | CZ23: 1 | DA23: 1 | DB23: 1
C24: 15 | D24: 15 | E24: 0.05 | F24: 2.092835759 | G24: 0 | H24: 0 | I24: 12665.625 | J24: 0.05 | K24: 0 | L24: 0 | M24: 2.092835759 | N24: 7599.375 | O24: 1 | P24: 31.81588176 | Q24: 8.514109204 | R24: 0.4073736461 | S24: 252299.25 | T24: 0.5 | U24: 15.90794088 | V24: 4.257054602 | W24: 0.2036868231 | X24: 126149.625 | Y24: 1.5 | Z24: 47.65531853 | AA24: 12.71813705 | AB24: 0.7381718056 | AC24: 378132.8819 | AD24: 30.71470392 | AE24: 23.95156309 | AF24: 6.392135681 | AG24: 0.3710051495 | AH24: 190049.5864 | AI24: 30.75392828 | AJ24: 23.47579729 | AK24: 6.02368729 | AL24: 1.254443699 | AM24: 187856.4122 | AN24: 687.8390297 | AO24: 524.4605801 | AP24: 134.2814328 | AQ24: 29.09701678 | AR24: 76.25% | AS24: 19.52% | AT24: 4.23% | AU24: 298.720828 | AV24: 101932.5714 | AW24: 3391.321553 | AX24: 2644.145215 | AY24: 705.456397 | AZ24: 41.71994128 | BA24: 77.97% | BB24: 20.80% | BC24: 1.23% | BD24: 299.1197554 | BE24: 101325.0136 | BF24: -607.5714461 | BG24: -4.10 | BH24: -122.3317808 | BI24: -3.126059399 | BJ24: -0.8003875815 | BK24: -0.1734334405 | BL24: -122.3453556 | BM24: -4.094873386 | BN24: -3.192605365 | BO24: -0.8517446709 | BP24: -0.05052334992 | BQ24: 521.3345207 | BR24: 133.4810453 | BS24: 28.92358334 | BT24: 76.25% | BU24: 19.52% | BV24: 19.52% | BW24: 4.23% | BX24: 19.78088709 | BY24: 148.4 | BZ24: 298.7208 | CA24: 4173679.824 | CB24: 2644.078669 | CC24: 705.4050399 | CD24: 41.84285137 | CE24: 77.97% | CF24: 20.80% | CG24: 20.80% | CH24: 1.23% | CI24: 21.07587235 | CJ24: 158.1 | CK24: 299.1193 | CL24: 20981668.54 | CM24: 101325 | CN24: 299.1192795 | CO24: 298.720828 | CP24: -25026.48592 | CQ24: 2647.271274 | CR24: 706.2567846 | CS24: 41.89337472 | CT24: 3395.421433 | CU24: 77.97% | CV24: 20.80% | CW24: 1.23% | CX24: 1 | CY24: 1 | CZ24: 1 | DA24: 1 | DB24: 1
C25: 16 | D25: 16 | E25: 0.05 | F25: 2.092835759 | G25: 0 | H25: 0 | I25: 12665.625 | J25: 0.05 | K25: 0 | L25: 0 | M25: 2.092835759 | N25: 7599.375 | O25: 1 | P25: 31.81588176 | Q25: 8.514109204 | R25: 0.4073736461 | S25: 252299.25 | T25: 0.5 | U25: 15.90794088 | V25: 4.257054602 | W25: 0.2036868231 | X25: 126149.625 | Y25: 1.5 | Z25: 47.64678043 | AA25: 12.71152763 | AB25: 0.7540158223 | AC25: 378093.4985 | AD25: 30.71505398 | AE25: 23.94727184 | AF25: 6.388813787 | AG25: 0.3789683523 | AH25: 190029.7923 | AI25: 30.75602295 | AJ25: 23.45072167 | AK25: 6.004257758 | AL25: 1.301043525 | AM25: 187740.8842 | AN25: 687.8838518 | AO25: 523.9239066 | AP25: 133.8656013 | AQ25: 30.09434393 | AR25: 76.16% | AS25: 19.46% | AT25: 4.37% | AU25: 298.7013364 | AV25: 101932.5622 | AW25: 3391.361252 | AX25: 2643.659161 | AY25: 705.0801201 | AZ25: 42.62197119 | BA25: 77.95% | BB25: 20.79% | BC25: 1.26% | BD25: 299.1162577 | BE25: 101325.0148 | BF25: -607.5621961 | BG25: -4.10 | BH25: -122.3299184 | BI25: -3.122813284 | BJ25: -0.7978969326 | BK25: -0.1793753173 | BL25: -122.3447441 | BM25: -4.094901063 | BN25: -3.191999331 | BO25: -0.8512836269 | BP25: -0.05161810484 | BQ25: 520.8010933 | BR25: 133.0677044 | BS25: 29.91496861 | BT25: 76.16% | BU25: 19.46% | BV25: 19.46% | BW25: 4.37% | BX25: 19.71834637 | BY25: 147.9 | BZ25: 298.7013 | CA25: 4171222.362 | CB25: 2643.589975 | CC25: 705.0267334 | CD25: 42.7497284 | CE25: 77.95% | CF25: 20.79% | CG25: 20.79% | CH25: 1.26% | CI25: 21.06432174 | CJ25: 158 | CK25: 299.1158 | CL25: 20979414.37 | CM25: 101325 | CN25: 299.1157629 | CO25: 298.7013364 | CP25: -25011.36954 | CQ25: 2646.781974 | CR25: 705.878017 | CS25: 42.8013465 | CT25: 3395.461337 | CU25: 77.95% | CV25: 20.79% | CW25: 1.26% | CX25: 1 | CY25: 1 | CZ25: 1 | DA25: 1 | DB25: 1
C26: 17 | D26: 17 | E26: 0.05 | F26: 2.092835759 | G26: 0 | H26: 0 | I26: 12665.625 | J26: 0.05 | K26: 0 | L26: 0 | M26: 2.092835759 | N26: 7599.375 | O26: 1 | P26: 31.81588176 | Q26: 8.514109204 | R26: 0.4073736461 | S26: 252299.25 | T26: 0.5 | U26: 15.90794088 | V26: 4.257054602 | W26: 0.2036868231 | X26: 126149.625 | Y26: 1.5 | Z26: 47.63797407 | AA26: 12.70471048 | AB26: 0.770357912 | AC26: 378052.8779 | AD26: 30.71541514 | AE26: 23.94284577 | AF26: 6.385387486 | AG26: 0.3871818866 | AH26: 190009.3764 | AI26: 30.75802992 | AJ26: 23.42672698 | AK26: 5.985664816 | AL26: 1.345638117 | AM26: 187630.3424 | AN26: 687.926823 | AO26: 523.4100479 | AP26: 133.467427 | AQ26: 31.04934814 | AR26: 76.09% | AS26: 19.40% | AT26: 4.51% | AU26: 298.6826526 | AV26: 101932.5535 | AW26: 3391.402056 | AX26: 2643.159704 | AY26: 704.6934641 | AZ26: 43.54888719 | BA26: 77.94% | BB26: 20.78% | BC26: 1.28% | BD26: 299.1126625 | BE26: 101325.0161 | BF26: -607.553508 | BG26: -4.10 | BH26: -122.3281691 | BI26: -3.119706117 | BJ26: -0.7955123335 | BK26: -0.1850649251 | BL26: -122.3442302 | BM26: -4.094933324 | BN26: -3.191379849 | BO26: -0.8508108759 | BP26: -0.05274259889 | BQ26: 520.2903417 | BR26: 132.6719147 | BS26: 30.86428321 | BT26: 76.09% | BU26: 19.40% | BV26: 19.40% | BW26: 4.51% | BX26: 19.65846743 | BY26: 147.5 | BZ26: 298.6827 | CA26: 4168869.492 | CB26: 2643.088031 | CC26: 704.6381655 | CD26: 43.68120951 | CE26: 77.93% | CF26: 20.78% | CG26: 20.78% | CH26: 1.29% | CI26: 21.05245804 | CJ26: 157.9 | CK26: 299.1121 | CL26: 20977099.1 | CM26: 101325 | CN26: 299.11215 | CO26: 298.6826526 | CP26: -24996.90387 | CQ26: 2646.27941 | CR26: 705.4889764 | CS26: 43.73395211 | CT26: 3395.502339 | CU26: 77.93% | CV26: 20.78% | CW26: 1.29% | CX26: 1 | CY26: 1 | CZ26: 1 | DA26: 1 | DB26: 1
C27: 18 | D27: 18 | E27: 0.05 | F27: 2.092835759 | G27: 0 | H27: 0 | I27: 12665.625 | J27: 0.05 | K27: 0 | L27: 0 | M27: 2.092835759 | N27: 7599.375 | O27: 1 | P27: 31.81588176 | Q27: 8.514109204 | R27: 0.4073736461 | S27: 252299.25 | T27: 0.5 | U27: 15.90794088 | V27: 4.257054602 | W27: 0.2036868231 | X27: 126149.625 | Y27: 1.5 | Z27: 47.62892895 | AA27: 12.69770841 | AB27: 0.7871433718 | AC27: 378011.1563 | AD27: 30.7157862 | AE27: 23.93829969 | AF27: 6.381868248 | AG27: 0.3956182587 | AH27: 189988.4071 | AI27: 30.75995395 | AJ27: 23.40375231 | AK27: 5.967861366 | AL27: 1.388340281 | AM27: 187524.5054 | AN27: 687.9680434 | AO27: 522.9177249 | AP27: 133.0859216 | AQ27: 31.96439695 | AR27: 76.01% | AS27: 19.34% | AT27: 4.65% | AU27: 298.6647327 | AV27: 101932.5453 | AW27: 3391.44384 | AX27: 2642.648377 | AY27: 704.297614 | AZ27: 44.49784863 | BA27: 77.92% | BB27: 20.77% | BC27: 1.31% | BD27: 299.1089809 | BE27: 101325.0173 | BF27: -607.5453246 | BG27: -4.10 | BH27: -122.3265214 | BI27: -3.11672997 | BJ27: -0.7932278073 | BK27: -0.1905163837 | BL27: -122.3437988 | BM27: -4.094969515 | BN27: -3.190748362 | BO27: -0.8503277342 | BP27: -0.053893419 | BQ27: 519.8009949 | BR27: 132.2926938 | BS27: 31.77388057 | BT27: 76.01% | BU27: 19.34% | BV27: 19.34% | BW27: 4.65% | BX27: 19.60110086 | BY27: 147 | BZ27: 298.6647 | CA27: 4166615.343 | CB27: 2642.574359 | CC27: 704.2405141 | CD27: 44.6344716 | CE27: 77.92% | CF27: 20.77% | CG27: 20.77% | CH27: 1.32% | CI27: 21.04031724 | CJ27: 157.8 | CK27: 299.1084 | CL27: 20974729.75 | CM27: 101325 | CN27: 299.1084516 | CO27: 298.6647327 | CP27: -24983.05128 | CQ27: 2645.765107 | CR27: 705.0908418 | CS27: 44.68836502 | CT27: 3395.544314 | CU27: 77.92% | CV27: 20.77% | CW27: 1.32% | CX27: 1 | CY27: 1 | CZ27: 1 | DA27: 1 | DB27: 1
C28: 19 | D28: 19 | E28: 0.05 | F28: 2.092835759 | G28: 0 | H28: 0 | I28: 12665.625 | J28: 0.05 | K28: 0 | L28: 0 | M28: 2.092835759 | N28: 7599.375 | O28: 1 | P28: 31.81588176 | Q28: 8.514109204 | R28: 0.4073736461 | S28: 252299.25 | T28: 0.5 | U28: 15.90794088 | V28: 4.257054602 | W28: 0.2036868231 | X28: 126149.625 | Y28: 1.5 | Z28: 47.61967249 | AA28: 12.69054266 | AB28: 0.8043213286 | AC28: 377968.4601 | AD28: 30.71616603 | AE28: 23.93364739 | AF28: 6.378266742 | AG28: 0.4042518998 | AH28: 189966.9481 | AI28: 30.76179955 | AJ28: 23.38174046 | AK28: 5.950803212 | AL28: 1.429255881 | AM28: 187423.109 | AN28: 688.0076073 | AO28: 522.4457376 | AP28: 132.7201573 | AQ28: 32.84171234 | AR28: 75.94% | AS28: 19.29% | AT28: 4.77% | AU28: 298.6475354 | AV28: 101932.5376 | AW28: 3391.486488 | AX28: 2642.126602 | AY28: 703.8936717 | AZ28: 45.46621472 | BA28: 77.90% | BB28: 20.75% | BC28: 1.34% | BD28: 299.1052231 | BE28: 101325.0185 | BF28: -607.5375951 | BG28: -4.10 | BH28: -122.3249651 | BI28: -3.113877418 | BJ28: -0.7910377499 | BK28: -0.1957429434 | BL28: -122.3434368 | BM28: -4.095009064 | BN28: -3.190106238 | BO28: -0.8498354328 | BP28: -0.0550673926 | BQ28: 519.3318602 | BR28: 131.9291196 | BS28: 32.6459694 | BT28: 75.94% | BU28: 19.29% | BV28: 19.29% | BW28: 4.77% | BX28: 19.54610646 | BY28: 146.6 | BZ28: 298.6475 | CA28: 4164454.405 | CB28: 2642.050373 | CC28: 703.834874 | CD28: 45.60689027 | CE28: 77.90% | CF28: 20.75% | CG28: 20.75% | CH28: 1.34% | CI28: 21.02793276 | CJ28: 157.7 | CK28: 299.1047 | CL28: 20972312.84 | CM28: 101325 | CN28: 299.1046779 | CO28: 298.6475354 | CP28: -24969.7766 | CQ28: 2645.240479 | CR28: 704.6847095 | CS28: 45.66195766 | CT28: 3395.587146 | CU28: 77.90% | CV28: 20.75% | CW28: 1.34% | CX28: 1 | CY28: 1 | CZ28: 1 | DA28: 1 | DB28: 1
C29: 20 | D29: 20 | E29: 0.05 | F29: 2.092835759 | G29: 0 | H29: 0 | I29: 12665.625 | J29: 0.05 | K29: 0 | L29: 0 | M29: 2.092835759 | N29: 7599.375 | O29: 1 | P29: 31.81588176 | Q29: 8.514109204 | R29: 0.4073736461 | S29: 252299.25 | T29: 0.5 | U29: 15.90794088 | V29: 4.257054602 | W29: 0.2036868231 | X29: 126149.625 | Y29: 1.5 | Z29: 47.61023017 | AA29: 12.68323295 | AB29: 0.8218444907 | AC29: 377924.9071 | AD29: 30.71655361 | AE29: 23.92890168 | AF29: 6.374592882 | AG29: 0.413059041 | AH29: 189945.0583 | AI29: 30.76357094 | AJ29: 23.36063779 | AK29: 5.93444888 | AL29: 1.468484268 | AM29: 187325.9055 | AN29: 688.0456033 | AO29: 521.9929598 | AP29: 132.3692636 | AQ29: 33.68337993 | AR29: 75.87% | AS29: 19.24% | AT29: 4.90% | AU29: 298.6310216 | AV29: 101932.5303 | AW29: 3391.529894 | AX29: 2641.595702 | AY29: 703.4826609 | AZ29: 46.45153147 | BA29: 77.89% | BB29: 20.74% | BC29: 1.37% | BD29: 299.1013985 | BE29: 101325.0196 | BF29: -607.5302745 | BG29: -4.10 | BH29: -122.3234911 | BI29: -3.11114151 | BJ29: -0.7889369057 | BK29: -0.20075704 | BL29: -122.3431332 | BM29: -4.095051468 | BN29: -3.189454774 | BO29: -0.8493351221 | BP29: -0.05626157194 | BQ29: 518.8818183 | BR29: 131.5803266 | BS29: 33.48262289 | BT29: 75.87% | BU29: 19.24% | BV29: 19.24% | BW29: 4.90% | BX29: 19.49335272 | BY29: 146.2 | BZ29: 298.6310 | CA29: 4162381.511 | CB29: 2641.517388 | CC29: 703.4222627 | CD29: 46.59602694 | CE29: 77.89% | CF29: 20.74% | CG29: 20.74% | CH29: 1.37% | CI29: 21.01533569 | CJ29: 157.6 | CK29: 299.1008 | CL29: 20969854.45 | CM29: 101325 | CN29: 299.1008385 | CO29: 298.6310216 | CP29: -24957.04695 | CQ29: 2644.706843 | CR29: 704.2715978 | CS29: 46.65228851 | CT29: 3395.630729 | CU29: 77.89% | CV29: 20.74% | CW29: 1.37% | CX29: 1 | CY29: 1 | CZ29: 1 | DA29: 1 | DB29: 1
C30: 21 | D30: 21 | E30: 0.05 | F30: 2.092835759 | G30: 0 | H30: 0 | I30: 12665.625 | J30: 0.05 | K30: 0 | L30: 0 | M30: 2.092835759 | N30: 7599.375 | O30: 1 | P30: 31.81588176 | Q30: 8.514109204 | R30: 0.4073736461 | S30: 252299.25 | T30: 0.5 | U30: 15.90794088 | V30: 4.257054602 | W30: 0.2036868231 | X30: 126149.625 | Y30: 1.5 | Z30: 47.60062569 | AA30: 12.67579762 | AB30: 0.8396689141 | AC30: 377880.6064 | AD30: 30.71694795 | AE30: 23.92407447 | AF30: 6.370855884 | AG30: 0.4220175962 | AH30: 189922.7928 | AI30: 30.76527211 | AJ30: 23.34039396 | AK30: 5.918759443 | AL30: 1.506118699 | AM30: 187232.6624 | AN30: 688.0821152 | AO30: 521.5583346 | AP30: 132.0324231 | AQ30: 34.49135755 | AR30: 75.80% | AS30: 19.19% | AT30: 5.01% | AU30: 298.6151549 | AV30: 101932.5233 | AW30: 3391.573957 | AX30: 2641.056905 | AY30: 703.0655324 | AZ30: 47.4515196 | BA30: 77.87% | BB30: 20.73% | BC30: 1.40% | BD30: 299.097516 | BE30: 101325.0208 | BF30: -607.5233231 | BG30: -4.10 | BH30: -122.3220915 | BI30: -3.108515735 | BJ30: -0.7869203451 | BK30: -0.2055703467 | BL30: -122.3428784 | BM30: -4.095096288 | BN30: -3.188795193 | BO30: -0.848827876 | BP30: -0.05747321939 | BQ30: 518.4498189 | BR30: 131.2455027 | BS30: 34.2857872 | BT30: 75.80% | BU30: 19.19% | BV30: 19.19% | BW30: 5.01% | BX30: 19.44271617 | BY30: 145.8 | BZ30: 298.6152 | CA30: 4160391.81 | CB30: 2640.976625 | CC30: 703.0036249 | CD30: 47.59961673 | CE30: 77.87% | CF30: 20.73% | CG30: 20.73% | CH30: 1.40% | CI30: 21.00255488 | CJ30: 157.5 | CK30: 299.0969 | CL30: 20967360.2 | CM30: 101325 | CN30: 299.0969419 | CO30: 298.6151549 | CP30: -24944.83156 | CQ30: 2644.16542 | CR30: 703.8524528 | CS30: 47.65708995 | CT30: 3395.674963 | CU30: 77.87% | CV30: 20.73% | CW30: 1.40% | CX30: 1 | CY30: 1 | CZ30: 1 | DA30: 1 | DB30: 1
C31: 22 | D31: 22 | E31: 0.05 | F31: 2.092835759 | G31: 0 | H31: 0 | I31: 12665.625 | J31: 0.05 | K31: 0 | L31: 0 | M31: 2.092835759 | N31: 7599.375 | O31: 1 | P31: 31.81588176 | Q31: 8.514109204 | R31: 0.4073736461 | S31: 252299.25 | T31: 0.5 | U31: 15.90794088 | V31: 4.257054602 | W31: 0.2036868231 | X31: 126149.625 | Y31: 1.5 | Z31: 47.59088104 | AA31: 12.66825369 | AB31: 0.8577537853 | AC31: 377835.6595 | AD31: 30.71734817 | AE31: 23.91917681 | AF31: 6.367064306 | AG31: 0.4311070525 | AH31: 189900.2025 | AI31: 30.7669068 | AJ31: 23.32096172 | AK31: 5.90369836 | AL31: 1.542246717 | AM31: 187143.1614 | AN31: 688.1172217 | AO31: 521.1408697 | AP31: 131.7088687 | AQ31: 35.2674833 | AR31: 75.73% | AS31: 19.14% | AT31: 5.13% | AU31: 298.5999007 | AV31: 101932.5167 | AW31: 3391.618584 | AX31: 2640.511352 | AY31: 702.643169 | AZ31: 48.46406308 | BA31: 77.85% | BB31: 20.72% | BC31: 1.43% | BD31: 299.0935837 | BE31: 101325.0219 | BF31: -607.5167055 | BG31: -4.10 | BH31: -122.3207591 | BI31: -3.10599399 | BJ31: -0.7849834437 | BK31: -0.2101938219 | BL31: -122.3426642 | BM31: -4.095143139 | BN31: -3.188128649 | BO31: -0.8483146962 | BP31: -0.05869979373 | BQ31: 518.0348757 | BR31: 130.9238852 | BS31: 35.05728947 | BT31: 75.73% | BU31: 19.14% | BV31: 19.14% | BW31: 5.13% | BX31: 19.39408098 | BY31: 145.5 | BZ31: 298.5999 | CA31: 4158480.749 | CB31: 2640.429217 | CC31: 702.5798378 | CD31: 48.6155571 | CE31: 77.85% | CF31: 20.72% | CG31: 20.72% | CH31: 1.43% | CI31: 20.98961713 | CJ31: 157.4 | CK31: 299.0930 | CL31: 20964835.32 | CM31: 101325 | CN31: 299.0929963 | CO31: 298.5999007 | CP31: -24933.10165 | CQ31: 2643.617346 | CR31: 703.4281525 | CS31: 48.6742569 | CT31: 3395.719755 | CU31: 77.85% | CV31: 20.72% | CW31: 1.43% | CX31: 1 | CY31: 1 | CZ31: 1 | DA31: 1 | DB31: 1
C32: 23 | D32: 23 | E32: 0.05 | F32: 2.092835759 | G32: 0 | H32: 0 | I32: 12665.625 | J32: 0.05 | K32: 0 | L32: 0 | M32: 2.092835759 | N32: 7599.375 | O32: 1 | P32: 31.81588176 | Q32: 8.514109204 | R32: 0.4073736461 | S32: 252299.25 | T32: 0.5 | U32: 15.90794088 | V32: 4.257054602 | W32: 0.2036868231 | X32: 126149.625 | Y32: 1.5 | Z32: 47.58101665 | AA32: 12.66061697 | AB32: 0.8760612164 | AC32: 377790.1607 | AD32: 30.71775342 | AE32: 23.91421897 | AF32: 6.36322609 | AG32: 0.4403083674 | AH32: 189877.3348 | AI32: 30.76847855 | AJ32: 23.30229671 | AK32: 5.88923133 | AL32: 1.576950509 | AM32: 187057.1979 | AN32: 688.1509968 | AO32: 520.7396337 | AP32: 131.39788 | AQ32: 36.01348309 | AR32: 75.67% | AS32: 19.09% | AT32: 5.23% | AU32: 298.5852267 | AV32: 101932.5104 | AW32: 3391.663689 | AX32: 2639.960101 | AY32: 702.2163899 | AZ32: 49.4871985 | BA32: 77.84% | BB32: 20.70% | BC32: 1.46% | BD32: 299.0896093 | BE32: 101325.023 | BF32: -607.5103903 | BG32: -4.10 | BH32: -122.3194875 | BI32: -3.103570558 | BJ32: -0.7831218623 | BK32: -0.2146377548 | BL32: -122.3424836 | BM32: -4.095191684 | BN32: -3.187456231 | BO32: -0.8477965166 | BP32: -0.05993893728 | BQ32: 517.6360632 | BR32: 130.6147581 | BS32: 35.79884534 | BT32: 75.67% | BU32: 19.09% | BV32: 19.09% | BW32: 5.23% | BX32: 19.34733838 | BY32: 145.1 | BZ32: 298.5852 | CA32: 4156644.056 | CB32: 2639.876215 | CC32: 702.1517152 | CD32: 49.64189732 | CE32: 77.83% | CF32: 20.70% | CG32: 20.70% | CH32: 1.46% | CI32: 20.97654729 | CJ32: 157.3 | CK32: 299.0890 | CL32: 20962284.66 | CM32: 101325 | CN32: 299.0890094 | CO32: 298.5852267 | CP32: -24921.83028 | CQ32: 2643.063671 | CR32: 702.9995117 | CS32: 49.70183625 | CT32: 3395.765019 | CU32: 77.83% | CV32: 20.70% | CW32: 1.46% | CX32: 1 | CY32: 1 | CZ32: 1 | DA32: 1 | DB32: 1
C33: 24 | D33: 24 | E33: 0.05 | F33: 2.092835759 | G33: 0 | H33: 0 | I33: 12665.625 | J33: 0.05 | K33: 0 | L33: 0 | M33: 2.092835759 | N33: 7599.375 | O33: 1 | P33: 31.81588176 | Q33: 8.514109204 | R33: 0.4073736461 | S33: 252299.25 | T33: 0.5 | U33: 15.90794088 | V33: 4.257054602 | W33: 0.2036868231 | X33: 126149.625 | Y33: 1.5 | Z33: 47.57105145 | AA33: 12.65290212 | AB33: 0.8945560545 | AC33: 377744.1974 | AD33: 30.71816294 | AE33: 23.90921046 | AF33: 6.359348608 | AG33: 0.449603873 | AH33: 189854.2336 | AI33: 30.76999067 | AJ33: 23.28435728 | AK33: 5.875326143 | AL33: 1.610307249 | AM33: 186974.5796 | AN33: 688.1835104 | AO33: 520.3537521 | AP33: 131.0987806 | AQ33: 36.73097772 | AR33: 75.61% | AS33: 19.05% | AT33: 5.34% | AU33: 298.5711022 | AV33: 101932.5043 | AW33: 3391.709193 | AX33: 2639.404133 | AY33: 701.7859544 | AZ33: 50.51910511 | BA33: 77.82% | BB33: 20.69% | BC33: 1.49% | BD33: 299.0855999 | BE33: 101325.0241 | BF33: -607.5043496 | BG33: -4.10 | BH33: -122.3182713 | BI33: -3.101240078 | BJ33: -0.7813315287 | BK33: -0.2189118071 | BL33: -122.3423307 | BM33: -4.095241629 | BN33: -3.186778959 | BO33: -0.8472742067 | BP33: -0.06118846393 | BQ33: 517.252512 | BR33: 130.3174491 | BS33: 36.51206591 | BT33: 75.61% | BU33: 19.05% | BV33: 19.05% | BW33: 5.34% | BX33: 19.30238627 | BY33: 144.8 | BZ33: 298.5711 | CA33: 4154877.718 | CB33: 2639.318594 | CC33: 701.7200118 | CD33: 50.67682845 | CE33: 77.82% | CF33: 20.69% | CG33: 20.69% | CH33: 1.49% | CI33: 20.96336841 | CJ33: 157.2 | CK33: 299.0850 | CL33: 20959712.72 | CM33: 101325 | CN33: 299.0849881 | CO33: 298.5711022 | CP33: -24910.99221 | CQ33: 2642.505373 | CR33: 702.567286 | CS33: 50.73801691 | CT33: 3395.810676 | CU33: 77.82% | CV33: 20.69% | CW33: 1.49% | CX33: 1 | CY33: 1 | CZ33: 1 | DA33: 1 | DB33: 1
C34: 25 | D34: 25 | E34: 0.05 | F34: 2.092835759 | G34: 0 | H34: 0 | I34: 12665.625 | J34: 0.05 | K34: 0 | L34: 0 | M34: 2.092835759 | N34: 7599.375 | O34: 1 | P34: 31.81588176 | Q34: 8.514109204 | R34: 0.4073736461 | S34: 252299.25 | T34: 0.5 | U34: 15.90794088 | V34: 4.257054602 | W34: 0.2036868231 | X34: 126149.625 | Y34: 1.5 | Z34: 47.56100302 | AA34: 12.64512275 | AB34: 0.9132057025 | AC34: 377697.8506 | AD34: 30.718576 | AE34: 23.90416012 | AF34: 6.355438694 | AG34: 0.4589771861 | AH34: 189830.9397 | AI34: 30.77144631 | AJ34: 23.26710435 | AK34: 5.861952557 | AL34: 1.642389409 | AM34: 186895.126 | AN34: 688.2148282 | AO34: 519.9824036 | AP34: 130.8109352 | AQ34: 37.42148945 | AR34: 75.56% | AS34: 19.01% | AT34: 5.44% | AU34: 298.5574985 | AV34: 101932.4986 | AW34: 3391.75502 | AX34: 2638.844358 | AY34: 701.3525667 | AZ34: 51.55809544 | BA34: 77.80% | BB34: 20.68% | BC34: 1.52% | BD34: 299.0815618 | BE34: 101325.0251 | BF34: -607.4985588 | BG34: -4.10 | BH34: -122.3171053 | BI34: -3.098997525 | BJ34: -0.7796086208 | BK34: -0.2230250531 | BL34: -122.3422005 | BM34: -4.095292716 | BN34: -3.186097792 | BO34: -0.8467485758 | BP34: -0.06244634781 | BQ34: 516.883406 | BR34: 130.0313266 | BS34: 37.19846439 | BT34: 75.56% | BU34: 19.01% | BV34: 19.01% | BW34: 5.44% | BX34: 19.25912879 | BY34: 144.5 | BZ34: 298.5575 | CA34: 4153177.968 | CB34: 2638.757258 | CC34: 701.2854267 | CD34: 51.71867414 | CE34: 77.80% | CF34: 20.68% | CG34: 20.68% | CH34: 1.52% | CI34: 20.95010183 | CJ34: 157.1 | CK34: 299.0809 | CL34: 20957123.67 | CM34: 101325 | CN34: 299.0809388 | CO34: 298.5574985 | CP34: -24900.56383 | CQ34: 2641.943356 | CR34: 702.1321753 | CS34: 51.78112049 | CT34: 3395.856651 | CU34: 77.80% | CV34: 20.68% | CW34: 1.52% | CX34: 1 | CY34: 1 | CZ34: 1 | DA34: 1 | DB34: 1
C35: 26 | D35: 26 | E35: 0.05 | F35: 2.092835759 | G35: 0 | H35: 0 | I35: 12665.625 | J35: 0.05 | K35: 0 | L35: 0 | M35: 2.092835759 | N35: 7599.375 | O35: 1 | P35: 31.81588176 | Q35: 8.514109204 | R35: 0.4073736461 | S35: 252299.25 | T35: 0.5 | U35: 15.90794088 | V35: 4.257054602 | W35: 0.2036868231 | X35: 126149.625 | Y35: 1.5 | Z35: 47.55088764 | AA35: 12.63729145 | AB35: 0.9319799522 | AC35: 377651.1954 | AD35: 30.71899193 | AE35: 23.89907613 | AF35: 6.351502681 | AG35: 0.468413124 | AH35: 189807.4908 | AI35: 30.7728484 | AJ35: 23.25050118 | AK35: 5.849082167 | AL35: 1.673265054 | AM35: 186818.6677 | AN35: 688.2450121 | AO35: 519.6248167 | AP35: 130.5337471 | AQ35: 38.08644822 | AR35: 75.50% | AS35: 18.97% | AT35: 5.53% | AU35: 298.5443886 | AV35: 101932.493 | AW35: 3391.801103 | AX35: 2638.281618 | AY35: 700.9168786 | AZ35: 52.60260659 | BA35: 77.78% | BB35: 20.67% | BC35: 1.55% | BD35: 299.0775013 | BE35: 101325.0261 | BF35: -607.4929959 | BG35: -4.10 | BH35: -122.3159852 | BI35: -3.096838185 | BJ35: -0.7779495504 | BK35: -0.2269860165 | BL35: -122.3420887 | BM35: -4.095344719 | BN35: -3.185413631 | BO35: -0.8462203759 | BP35: -0.06371071287 | BQ35: 516.5279786 | BR35: 129.7557976 | BS35: 37.85946221 | BT35: 75.50% | BU35: 18.97% | BV35: 18.97% | BW35: 5.53% | BX35: 19.21747589 | BY35: 144.1 | BZ35: 298.5444 | CA35: 4151541.268 | CB35: 2638.193042 | CC35: 700.8486077 | CD35: 52.7658819 | CE35: 77.78% | CF35: 20.66% | CG35: 20.66% | CH35: 1.56% | CI35: 20.93676734 | CJ35: 157 | CK35: 299.0769 | CL35: 20954521.37 | CM35: 101325 | CN35: 299.0768677 | CO35: 298.5443886 | CP35: -24890.52299 | CQ35: 2641.378456 | CR35: 701.6948281 | CS35: 52.82959261 | CT35: 3395.902877 | CU35: 77.78% | CV35: 20.66% | CW35: 1.56% | CX35: 1 | CY35: 1 | CZ35: 1 | DA35: 1 | DB35: 1
C36: 27 | D36: 27 | E36: 0.05 | F36: 2.092835759 | G36: 0 | H36: 0 | I36: 12665.625 | J36: 0.05 | K36: 0 | L36: 0 | M36: 2.092835759 | N36: 7599.375 | O36: 1 | P36: 31.81588176 | Q36: 8.514109204 | R36: 0.4073736461 | S36: 252299.25 | T36: 0.5 | U36: 15.90794088 | V36: 4.257054602 | W36: 0.2036868231 | X36: 126149.625 | Y36: 1.5 | Z36: 47.54072037 | AA36: 12.62941989 | AB36: 0.950850827 | AC36: 377604.3014 | AD36: 30.71941012 | AE36: 23.89396606 | AF36: 6.347546436 | AG36: 0.4778976257 | AH36: 189783.9219 | AI36: 30.77419972 | AJ36: 23.23451331 | AK36: 5.836688292 | AL36: 1.702998124 | AM36: 186745.0455 | AN36: 688.2741202 | AO36: 519.2802671 | AP36: 130.2666557 | AQ36: 38.72719747 | AR36: 75.45% | AS36: 18.93% | AT36: 5.63% | AU36: 298.531747 | AV36: 101932.4876 | AW36: 3391.847378 | AX36: 2637.716692 | AY36: 700.4794935 | AZ36: 53.65119204 | BA36: 77.77% | BB36: 20.65% | BC36: 1.58% | BD36: 299.073424 | BE36: 101325.0271 | BF36: -607.4876413 | BG36: -4.10 | BH36: -122.3149071 | BI36: -3.094757637 | BJ36: -0.776350948 | BK36: -0.2308027047 | BL36: -122.3419917 | BM36: -4.095397443 | BN36: -3.184727314 | BO36: -0.8456903056 | BP36: -0.06497982293 | BQ36: 516.1855094 | BR36: 129.4903048 | BS36: 38.49639476 | BT36: 75.45% | BU36: 18.93% | BV36: 18.93% | BW36: 5.63% | BX36: 19.17734301 | BY36: 143.8 | BZ36: 298.5317 | CA36: 4149964.295 | CB36: 2637.626722 | CC36: 700.4101541 | CD36: 53.81701492 | CE36: 77.76% | CF36: 20.65% | CG36: 20.65% | CH36: 1.59% | CI36: 20.92338324 | CJ36: 156.9 | CK36: 299.0728 | CL36: 20951909.38 | CM36: 101325 | CN36: 299.0727803 | CO36: 298.531747 | CP36: -24880.84896 | CQ36: 2640.81145 | CR36: 701.2558445 | CS36: 53.88199474 | CT36: 3395.949289 | CU36: 77.76% | CV36: 20.65% | CW36: 1.59% | CX36: 1 | CY36: 1 | CZ36: 1 | DA36: 1 | DB36: 1
C37: 28 | D37: 28 | E37: 0.05 | F37: 2.092835759 | G37: 0 | H37: 0 | I37: 12665.625 | J37: 0.05 | K37: 0 | L37: 0 | M37: 2.092835759 | N37: 7599.375 | O37: 1 | P37: 31.81588176 | Q37: 8.514109204 | R37: 0.4073736461 | S37: 252299.25 | T37: 0.5 | U37: 15.90794088 | V37: 4.257054602 | W37: 0.2036868231 | X37: 126149.625 | Y37: 1.5 | Z37: 47.53051518 | AA37: 12.62151888 | AB37: 0.969792436 | AC37: 377557.2329 | AD37: 30.71982999 | AE37: 23.88883693 | AF37: 6.343575387 | AG37: 0.4874176784 | AH37: 189760.2653 | AI37: 30.77550288 | AJ37: 23.21910833 | AK37: 5.824745868 | AL37: 1.731648688 | AM37: 186674.1099 | AN37: 688.3022076 | AO37: 518.9480738 | AP37: 130.0091343 | AQ37: 39.34499951 | AR37: 75.40% | AS37: 18.89% | AT37: 5.72% | AU37: 298.5195498 | AV37: 101932.4825 | AW37: 3391.893785 | AX37: 2637.150301 | AY37: 700.0409696 | AZ37: 54.70251396 | BA37: 77.75% | BB37: 20.64% | BC37: 1.61% | BD37: 299.0693349 | BE37: 101325.028 | BF37: -607.4824776 | BG37: -4.10 | BH37: -122.3138674 | BI37: -3.092751731 | BJ37: -0.7748096493 | BK37: -0.2344826419 | BL37: -122.3419065 | BM37: -4.095450714 | BN37: -3.184039628 | BO37: -0.8451590132 | BP37: -0.06625207253 | BQ37: 515.8553221 | BR37: 129.2343246 | BS37: 39.11051687 | BT37: 75.40% | BU37: 18.89% | BV37: 18.89% | BW37: 5.72% | BX37: 19.1386507 | BY37: 143.6 | BZ37: 298.5195 | CA37: 4148443.928 | CB37: 2637.059013 | CC37: 699.9706202 | CD37: 54.87074453 | CE37: 77.75% | CF37: 20.64% | CG37: 20.64% | CH37: 1.62% | CI37: 20.90996645 | CJ37: 156.8 | CK37: 299.0687 | CL37: 20949291.01 | CM37: 101325 | CN37: 299.0686818 | CO37: 298.5195498 | CP37: -24871.52229 | CQ37: 2640.243053 | CR37: 700.8157792 | CS37: 54.9369966 | CT37: 3395.995829 | CU37: 77.75% | CV37: 20.64% | CW37: 1.62% | CX37: 1 | CY37: 1 | CZ37: 1 | DA37: 1 | DB37: 1
C38: 29 | D38: 29 | E38: 0.05 | F38: 2.092835759 | G38: 0 | H38: 0 | I38: 12665.625 | J38: 0.05 | K38: 0 | L38: 0 | M38: 2.092835759 | N38: 7599.375 | O38: 1 | P38: 31.81588176 | Q38: 8.514109204 | R38: 0.4073736461 | S38: 252299.25 | T38: 0.5 | U38: 15.90794088 | V38: 4.257054602 | W38: 0.2036868231 | X38: 126149.625 | Y38: 1.5 | Z38: 47.52028496 | AA38: 12.61359839 | AB38: 0.9887808361 | AC38: 377510.0495 | AD38: 30.72025102 | AE38: 23.88369522 | AF38: 6.339594553 | AG38: 0.4969612482 | AH38: 189736.5509 | AI38: 30.77676034 | AJ38: 23.20425581 | AK38: 5.813231345 | AL38: 1.75927319 | AM38: 186605.7206 | AN38: 688.3293258 | AO38: 518.6275972 | AP38: 129.7606878 | AQ38: 39.94104069 | AR38: 75.35% | AS38: 18.85% | AT38: 5.80% | AU38: 298.5077744 | AV38: 101932.4775 | AW38: 3391.94027 | AX38: 2636.583112 | AY38: 699.6018224 | AZ38: 55.7553361 | BA38: 77.73% | BB38: 20.63% | BC38: 1.64% | BD38: 299.065239 | BE38: 101325.029 | BF38: -607.4774895 | BG38: -4.10 | BH38: -122.3128631 | BI38: -3.090816573 | BJ38: -0.773322682 | BK38: -0.238032899 | BL38: -122.3418305 | BM38: -4.095504385 | BN38: -3.183351307 | BO38: -0.8446270994 | BP38: -0.0675259783 | BQ38: 515.5367807 | BR38: 128.9873652 | BS38: 39.70300779 | BT38: 75.35% | BU38: 18.85% | BV38: 18.85% | BW38: 5.80% | BX38: 19.10132433 | BY38: 143.3 | BZ38: 298.5078 | CA38: 4146977.234 | CB38: 2636.490577 | CC38: 699.530518 | CD38: 55.92584303 | CE38: 77.73% | CF38: 20.62% | CG38: 20.62% | CH38: 1.65% | CI38: 20.89653259 | CJ38: 156.7 | CK38: 299.0646 | CL38: 20946669.31 | CM38: 101325 | CN38: 299.0645769 | CO38: 298.5077744 | CP38: -24862.52474 | CQ38: 2639.673928 | CR38: 700.3751451 | CS38: 55.993369 | CT38: 3396.042442 | CU38: 77.73% | CV38: 20.62% | CW38: 1.65% | CX38: 1 | CY38: 1 | CZ38: 1 | DA38: 1 | DB38: 1
C39: 30 | D39: 30 | E39: 0.05 | F39: 2.092835759 | G39: 0 | H39: 0 | I39: 12665.625 | J39: 0.05 | K39: 0 | L39: 0 | M39: 2.092835759 | N39: 7599.375 | O39: 1 | P39: 31.81588176 | Q39: 8.514109204 | R39: 0.4073736461 | S39: 252299.25 | T39: 0.5 | U39: 15.90794088 | V39: 4.257054602 | W39: 0.2036868231 | X39: 126149.625 | Y39: 1.5 | Z39: 47.51004163 | AA39: 12.60566767 | AB39: 1.007793904 | AC39: 377462.806 | AD39: 30.72067271 | AE39: 23.87854692 | AF39: 6.335608572 | AG39: 0.506517216 | AH39: 189712.8063 | AI39: 30.77797441 | AJ39: 23.18992714 | AK39: 5.802122589 | AL39: 1.785924676 | AM39: 186539.7456 | AN39: 688.3555234 | AO39: 518.3182362 | AP39: 129.5208511 | AQ39: 40.51643609 | AR39: 75.30% | AS39: 18.82% | AT39: 5.89% | AU39: 298.4963995 | AV39: 101932.4727 | AW39: 3391.986783 | AX39: 2636.015738 | AY39: 699.1625281 | AZ39: 56.80851705 | BA39: 77.71% | BB39: 20.61% | BC39: 1.67% | BD39: 299.0611407 | BE39: 101325.0299 | BF39: -607.472663 | BG39: -4.10 | BH39: -122.3118913 | BI39: -3.088948507 | BJ39: -0.7718872534 | BK39: -0.2414601224 | BL39: -122.3417617 | BM39: -4.095558323 | BN39: -3.182663032 | BO39: -0.8440951206 | BP39: -0.06880017085 | BQ39: 515.2292877 | BR39: 128.7489639 | BS39: 40.27497596 | BT39: 75.30% | BU39: 18.82% | BV39: 18.82% | BW39: 5.89% | BX39: 19.06529372 | BY39: 143 | BZ39: 298.4964 | CA39: 4145561.455 | CB39: 2635.922024 | CC39: 699.0903203 | CD39: 56.981177 | CE39: 77.71% | CF39: 20.61% | CG39: 20.61% | CH39: 1.68% | CI39: 20.88309611 | CJ39: 156.6 | CK39: 299.0605 | CL39: 20944047.1 | CM39: 101325 | CN39: 299.0604701 | CO39: 298.4963995 | CP39: -24853.8392 | CQ39: 2639.104687 | CR39: 699.9344154 | CS39: 57.04997717 | CT39: 3396.089079 | CU39: 77.71% | CV39: 20.61% | CW39: 1.68% | CX39: 1 | CY39: 1 | CZ39: 1 | DA39: 1 | DB39: 1
C40: 31 | D40: 31 | E40: 0.05 | F40: 2.092835759 | G40: 0 | H40: 0 | I40: 12665.625 | J40: 0.05 | K40: 0 | L40: 0 | M40: 2.092835759 | N40: 7599.375 | O40: 1 | P40: 31.81588176 | Q40: 8.514109204 | R40: 0.4073736461 | S40: 252299.25 | T40: 0.5 | U40: 15.90794088 | V40: 4.257054602 | W40: 0.2036868231 | X40: 126149.625 | Y40: 1.5 | Z40: 47.4997962 | AA40: 12.59773523 | AB40: 1.026811215 | AC40: 377415.5533 | AD40: 30.72109461 | AE40: 23.87339757 | AF40: 6.331621726 | AG40: 0.5160753165 | AH40: 189689.0571 | AI40: 30.77914727 | AJ40: 23.17609546 | AK40: 5.791398799 | AL40: 1.811653006 | AM40: 186476.0609 | AN40: 688.3808464 | AO40: 518.0194256 | AP40: 129.2891868 | AQ40: 41.07223403 | AR40: 75.25% | AS40: 18.78% | AT40: 5.97% | AU40: 298.4854052 | AV40: 101932.468 | AW40: 3392.033278 | AX40: 2635.448748 | AY40: 698.7235259 | AZ40: 57.86100395 | BA40: 77.70% | BB40: 20.60% | BC40: 1.71% | BD40: 299.0570441 | BE40: 101325.0307 | BF40: -607.467986 | BG40: -4.10 | BH40: -122.3109496 | BI40: -3.0871441 | BJ40: -0.7705007391 | BK40: -0.2447705602 | BL40: -122.3416984 | BM40: -4.095612417 | BN40: -3.181975438 | BO40: -0.8435635911 | BP40: -0.07007338724 | BQ40: 514.9322815 | BR40: 128.5186861 | BS40: 40.82746347 | BT40: 75.25% | BU40: 18.78% | BV40: 18.78% | BW40: 5.97% | BX40: 19.03049296 | BY40: 142.7 | BZ40: 298.4854 | CA40: 4144194.002 | CB40: 2635.353917 | CC40: 698.6504631 | CD40: 58.03570112 | CE40: 77.69% | CF40: 20.60% | CG40: 20.60% | CH40: 1.71% | CI40: 20.86967031 | CJ40: 156.5 | CK40: 299.0564 | CL40: 20941426.98 | CM40: 101325 | CN40: 299.0563654 | CO40: 298.4854052 | CP40: -24845.44963 | CQ40: 2638.535892 | CR40: 699.4940267 | CS40: 58.10577451 | CT40: 3396.135693 | CU40: 77.69% | CV40: 20.60% | CW40: 1.71% | CX40: 1 | CY40: 1 | CZ40: 1 | DA40: 1 | DB40: 1
C41: 32 | D41: 32 | E41: 0.05 | F41: 2.092835759 | G41: 0 | H41: 0 | I41: 12665.625 | J41: 0.05 | K41: 0 | L41: 0 | M41: 2.092835759 | N41: 7599.375 | O41: 1 | P41: 31.81588176 | Q41: 8.514109204 | R41: 0.4073736461 | S41: 252299.25 | T41: 0.5 | U41: 15.90794088 | V41: 4.257054602 | W41: 0.2036868231 | X41: 126149.625 | Y41: 1.5 | Z41: 47.4895588 | AA41: 12.58980892 | AB41: 1.045813932 | AC41: 377368.3382 | AD41: 30.7215163 | AE41: 23.86825225 | AF41: 6.327637964 | AG41: 0.5256260821 | AH41: 189665.3268 | AI41: 30.78028097 | AJ41: 23.1627355 | AK41: 5.781040419 | AL41: 1.836505054 | AM41: 186414.55 | AN41: 688.4053378 | AO41: 517.730634 | AP41: 129.0652836 | AQ41: 41.60942026 | AR41: 75.21% | AS41: 18.75% | AT41: 6.04% | AU41: 298.4747727 | AV41: 101932.4634 | AW41: 3392.079711 | AX41: 2634.882664 | AY41: 698.2852204 | AZ41: 58.91182663 | BA41: 77.68% | BB41: 20.59% | BC41: 1.74% | BD41: 299.0529529 | BE41: 101325.0316 | BF41: -607.4634475 | BG41: -4.10 | BH41: -122.3100358 | BI41: -3.085400128 | BJ41: -0.7691606724 | BK41: -0.2479700875 | BL41: -122.3416391 | BM41: -4.095666566 | BN41: -3.181289116 | BO41: -0.8430329861 | BP41: -0.07134446394 | BQ41: 514.6452338 | BR41: 128.2961229 | BS41: 41.36145017 | BT41: 75.21% | BU41: 18.75% | BV41: 18.75% | BW41: 6.04% | BX41: 18.99686005 | BY41: 142.5 | BZ41: 298.4748 | CA41: 4142872.438 | CB41: 2634.786775 | CC41: 698.2113481 | CD41: 59.08845225 | CE41: 77.67% | CF41: 20.58% | CG41: 20.58% | CH41: 1.74% | CI41: 20.85626746 | CJ41: 156.4 | CK41: 299.0523 | CL41: 20938811.33 | CM41: 101325 | CN41: 299.0522666 | CO41: 298.4747727 | CP41: -24837.34097 | CQ41: 2637.968064 | CR41: 699.0543811 | CS41: 59.15979672 | CT41: 3396.182242 | CU41: 77.67% | CV41: 20.58% | CW41: 1.74% | CX41: 1 | CY41: 1 | CZ41: 1 | DA41: 1 | DB41: 1
C42: 33 | D42: 33 | E42: 0.05 | F42: 2.092835759 | G42: 0 | H42: 0 | I42: 12665.625 | J42: 0.05 | K42: 0 | L42: 0 | M42: 2.092835759 | N42: 7599.375 | O42: 1 | P42: 31.81588176 | Q42: 8.514109204 | R42: 0.4073736461 | S42: 252299.25 | T42: 0.5 | U42: 15.90794088 | V42: 4.257054602 | W42: 0.2036868231 | X42: 126149.625 | Y42: 1.5 | Z42: 47.4793388 | AA42: 12.58189599 | AB42: 1.064784699 | AC42: 377321.2037 | AD42: 30.7219374 | AE42: 23.86311568 | AF42: 6.323660924 | AG42: 0.5351607899 | AH42: 189641.637 | AI42: 30.78137746 | AJ42: 23.1498235 | AK42: 5.771029062 | AL42: 1.860524898 | AM42: 186355.1033 | AN42: 688.4290384 | AO42: 517.4513618 | AP42: 128.8487548 | AQ42: 42.12892182 | AR42: 75.16% | AS42: 18.72% | AT42: 6.12% | AU42: 298.4644842 | AV42: 101932.459 | AW42: 3392.126042 | AX42: 2634.317966 | AY42: 697.847984 | AZ42: 59.96009213 | BA42: 77.66% | BB42: 20.57% | BC42: 1.77% | BD42: 299.0488707 | BE42: 101325.0324 | BF42: -607.4590376 | BG42: -4.10 | BH42: -122.3091479 | BI42: -3.083713561 | BJ42: -0.7678647344 | BK42: -0.2510642297 | BL42: -122.3415827 | BM42: -4.095720686 | BN42: -3.180604612 | BO42: -0.8425037443 | BP42: -0.07261233018 | BQ42: 514.3676482 | BR42: 128.0808901 | BS42: 41.87785759 | BT42: 75.16% | BU42: 18.72% | BV42: 18.72% | BW42: 6.12% | BX42: 18.9643367 | BY42: 142.2 | BZ42: 298.4645 | CA42: 4141594.472 | CB42: 2634.221075 | CC42: 697.773345 | CD42: 60.13854403 | CE42: 77.66% | CF42: 20.57% | CG42: 20.57% | CH42: 1.77% | CI42: 20.84289883 | CJ42: 156.3 | CK42: 299.0482 | CL42: 20936202.36 | CM42: 101325 | CN42: 299.0481771 | CO42: 298.4644842 | CP42: -24829.49906 | CQ42: 2637.40168 | CR42: 698.6158488 | CS42: 60.21115636 | CT42: 3396.228685 | CU42: 77.66% | CV42: 20.57% | CW42: 1.77% | CX42: 1 | CY42: 1 | CZ42: 1 | DA42: 1 | DB42: 1
C43: 34 | D43: 34 | E43: 0.05 | F43: 2.092835759 | G43: 0 | H43: 0 | I43: 12665.625 | J43: 0.05 | K43: 0 | L43: 0 | M43: 2.092835759 | N43: 7599.375 | O43: 1 | P43: 31.81588176 | Q43: 8.514109204 | R43: 0.4073736461 | S43: 252299.25 | T43: 0.5 | U43: 15.90794088 | V43: 4.257054602 | W43: 0.2036868231 | X43: 126149.625 | Y43: 1.5 | Z43: 47.4691448 | AA43: 12.57400309 | AB43: 1.083707545 | AC43: 377274.1897 | AD43: 30.72235754 | AE43: 23.85799217 | AF43: 6.319693955 | AG43: 0.5446714121 | AH43: 189618.0077 | AI43: 30.78243854 | AJ43: 23.13733711 | AK43: 5.761347436 | AL43: 1.883753988 | AM43: 186297.6177 | AN43: 688.4519864 | AO43: 517.181139 | AP43: 128.6392366 | AQ43: 42.63161078 | AR43: 75.12% | AS43: 18.69% | AT43: 6.19% | AU43: 298.454523 | AV43: 101932.4547 | AW43: 3392.172237 | AX43: 2633.755098 | AY43: 697.4121592 | AZ43: 61.00497953 | BA43: 77.64% | BB43: 20.56% | BC43: 1.80% | BD43: 299.0448007 | BE43: 101325.0332 | BF43: -607.4547476 | BG43: -4.10 | BH43: -122.3082841 | BI43: -3.082081552 | BJ43: -0.7666107442 | BK43: -0.2540581842 | BL43: -122.3415283 | BM43: -4.095774702 | BN43: -3.179922431 | BO43: -0.8419762694 | BP43: -0.07387600176 | BQ43: 514.0990575 | BR43: 127.8726258 | BS43: 42.37755259 | BT43: 75.12% | BU43: 18.69% | BV43: 18.69% | BW43: 6.19% | BX43: 18.93286809 | BY43: 142 | BZ43: 298.4545 | CA43: 4140357.952 | CB43: 2633.657257 | CC43: 697.3367937 | CD43: 61.18516171 | CE43: 77.64% | CF43: 20.56% | CG43: 20.56% | CH43: 1.80% | CI43: 20.82957479 | CJ43: 156.2 | CK43: 299.0441 | CL43: 20933602.1 | CM43: 101325 | CN43: 299.0441002 | CO43: 298.454523 | CP43: -24821.91063 | CQ43: 2636.83718 | CR43: 698.17877 | CS43: 61.25903771 | CT43: 3396.274987 | CU43: 77.64% | CV43: 20.56% | CW43: 1.80% | CX43: 1 | CY43: 1 | CZ43: 1 | DA43: 1 | DB43: 1
C44: 35 | D44: 35 | E44: 0.05 | F44: 2.092835759 | G44: 0 | H44: 0 | I44: 12665.625 | J44: 0.05 | K44: 0 | L44: 0 | M44: 2.092835759 | N44: 7599.375 | O44: 1 | P44: 31.81588176 | Q44: 8.514109204 | R44: 0.4073736461 | S44: 252299.25 | T44: 0.5 | U44: 15.90794088 | V44: 4.257054602 | W44: 0.2036868231 | X44: 126149.625 | Y44: 1.5 | Z44: 47.45898469 | AA44: 12.56613636 | AB44: 1.102567787 | AC44: 377227.3324 | AD44: 30.72277641 | AE44: 23.85288571 | AF44: 6.315740134 | AG44: 0.5541505696 | AH44: 189594.4573 | AI44: 30.78346593 | AJ44: 23.12525534 | AK44: 5.751979273 | AL44: 1.906231319 | AM44: 186241.9964 | AN44: 688.4742179 | AO44: 516.9195236 | AP44: 128.4363867 | AQ44: 43.1183076 | AR44: 75.08% | AS44: 18.66% | AT44: 6.26% | AU44: 298.4448734 | AV44: 101932.4506 | AW44: 3392.21826 | AX44: 2633.194465 | AY44: 696.9780603 | AZ44: 62.04573514 | BA44: 77.62% | BB44: 20.55% | BC44: 1.83% | BD44: 299.0407458 | BE44: 101325.034 | BF44: -607.4505697 | BG44: -4.10 | BH44: -122.3074429 | BI44: -3.080501424 | BJ44: -0.7653966508 | BK44: -0.2569568412 | BL44: -122.3414752 | BM44: -4.095828549 | BN44: -3.179243041 | BO44: -0.841450933 | BP44: -0.07513457529 | BQ44: 513.8390222 | BR44: 127.6709901 | BS44: 42.86135076 | BT44: 75.08% | BU44: 18.66% | BV44: 18.66% | BW44: 6.26% | BX44: 18.90240265 | BY44: 141.8 | BZ44: 298.4449 | CA44: 4139160.849 | CB44: 2633.095723 | CC44: 696.902006 | CD44: 62.22755741 | CE44: 77.62% | CF44: 20.54% | CG44: 20.54% | CH44: 1.83% | CI44: 20.81630487 | CJ44: 156.1 | CK44: 299.0400 | CL44: 20931012.4 | CM44: 101325 | CN44: 299.0400388 | CO44: 298.4448734 | CP44: -24814.5632 | CQ44: 2636.274966 | CR44: 697.7434569 | CS44: 62.30269199 | CT44: 3396.321115 | CU44: 77.62% | CV44: 20.54% | CW44: 1.83% | CX44: 1 | CY44: 1 | CZ44: 1 | DA44: 1 | DB44: 1
C45: 36 | D45: 36 | E45: 0.05 | F45: 2.092835759 | G45: 0 | H45: 0 | I45: 12665.625 | J45: 0.05 | K45: 0 | L45: 0 | M45: 2.092835759 | N45: 7599.375 | O45: 1 | P45: 31.81588176 | Q45: 8.514109204 | R45: 0.4073736461 | S45: 252299.25 | T45: 0.5 | U45: 15.90794088 | V45: 4.257054602 | W45: 0.2036868231 | X45: 126149.625 | Y45: 1.5 | Z45: 47.44886575 | AA45: 12.55830141 | AB45: 1.121351948 | AC45: 377180.6655 | AD45: 30.7231937 | AE45: 23.84779992 | AF45: 6.311802287 | AG45: 0.5635914888 | AH45: 189571.0025 | AI45: 30.78446125 | AJ45: 23.1135584 | AK45: 5.742909272 | AL45: 1.927993576 | AM45: 186188.1482 | AN45: 688.495767 | AO45: 516.6660995 | AP45: 128.2398831 | AQ45: 43.58978443 | AR45: 75.04% | AS45: 18.63% | AT45: 6.33% | AU45: 298.4355205 | AV45: 101932.4465 | AW45: 3392.264082 | AX45: 2632.636438 | AY45: 696.5459754 | AZ45: 63.08166802 | BA45: 77.61% | BB45: 20.53% | BC45: 1.86% | BD45: 299.0367087 | BE45: 101325.0348 | BF45: -607.4464969 | BG45: -4.10 | BH45: -122.3066229 | BI45: -3.078970661 | BJ45: -0.7642205246 | BK45: -0.2597648027 | BL45: -122.3414227 | BM45: -4.095882173 | BN45: -3.178566873 | BO45: -0.8409280765 | BP45: -0.07638722276 | BQ45: 513.5871288 | BR45: 127.4756625 | BS45: 43.33001963 | BT45: 75.04% | BU45: 18.63% | BV45: 18.63% | BW45: 6.33% | BX45: 18.87289185 | BY45: 141.6 | BZ45: 298.4355 | CA45: 4138001.259 | CB45: 2632.536842 | CC45: 696.4692678 | CD45: 63.2650456 | CE45: 77.60% | CF45: 20.53% | CG45: 20.53% | CH45: 1.86% | CI45: 20.80309778 | CJ45: 156 | CK45: 299.0360 | CL45: 20928434.95 | CM45: 101325 | CN45: 299.0359955 | CO45: 298.4355205 | CP45: -24807.44504 | CQ45: 2635.715409 | CR45: 697.3101959 | CS45: 63.34143282 | CT45: 3396.367038 | CU45: 77.60% | CV45: 20.53% | CW45: 1.86% | CX45: 1 | CY45: 1 | CZ45: 1 | DA45: 1 | DB45: 1
C46: 37 | D46: 37 | E46: 0.05 | F46: 2.092835759 | G46: 0 | H46: 0 | I46: 12665.625 | J46: 0.05 | K46: 0 | L46: 0 | M46: 2.092835759 | N46: 7599.375 | O46: 1 | P46: 31.81588176 | Q46: 8.514109204 | R46: 0.4073736461 | S46: 252299.25 | T46: 0.5 | U46: 15.90794088 | V46: 4.257054602 | W46: 0.2036868231 | X46: 126149.625 | Y46: 1.5 | Z46: 47.43879461 | AA46: 12.55050338 | AB46: 1.140047674 | AC46: 377134.2195 | AD46: 30.72360913 | AE46: 23.84273817 | AF46: 6.307883001 | AG46: 0.572987961 | AH46: 189547.6587 | AI46: 30.78542603 | AJ46: 23.10222771 | AK46: 5.73412303 | AL46: 1.949075286 | AM46: 186135.9874 | AN46: 688.5166656 | AO46: 516.420475 | AP46: 128.0494225 | AQ46: 44.04676806 | AR46: 75.00% | AS46: 18.60% | AT46: 6.40% | AU46: 298.4264504 | AV46: 101932.4425 | AW46: 3392.309674 | AX46: 2632.08136 | AY46: 696.1161683 | AZ46: 64.11214572 | BA46: 77.59% | BB46: 20.52% | BC46: 1.89% | BD46: 299.0326919 | BE46: 101325.0355 | BF46: -607.4425229 | BG46: -4.10 | BH46: -122.3058227 | BI46: -3.077486897 | BJ46: -0.7630805496 | BK46: -0.2624864003 | BL46: -122.3413705 | BM46: -4.095935524 | BN46: -3.177894325 | BO46: -0.8404080128 | BP46: -0.07763318645 | BQ46: 513.3429881 | BR46: 127.286342 | BS46: 43.78428166 | BT46: 75.00% | BU46: 18.60% | BV46: 18.60% | BW46: 6.40% | BX46: 18.84429003 | BY46: 141.3 | BZ46: 298.4265 | CA46: 4136877.385 | CB46: 2631.980952 | CC46: 696.0388408 | CD46: 64.29699893 | CE46: 77.59% | CF46: 20.52% | CG46: 20.52% | CH46: 1.90% | CI46: 20.78996151 | CJ46: 155.9 | CK46: 299.0320 | CL46: 20925871.33 | CM46: 101325 | CN46: 299.0319728 | CO46: 298.4264504 | CP46: -24800.54513 | CQ46: 2635.158847 | CR46: 696.8792488 | CS46: 64.37463212 | CT46: 3396.412728 | CU46: 77.59% | CV46: 20.52% | CW46: 1.90% | CX46: 1 | CY46: 1 | CZ46: 1 | DA46: 1 | DB46: 1
C47: 38 | D47: 38 | E47: 0.05 | F47: 2.092835759 | G47: 0 | H47: 0 | I47: 12665.625 | J47: 0.05 | K47: 0 | L47: 0 | M47: 2.092835759 | N47: 7599.375 | O47: 1 | P47: 31.81588176 | Q47: 8.514109204 | R47: 0.4073736461 | S47: 252299.25 | T47: 0.5 | U47: 15.90794088 | V47: 4.257054602 | W47: 0.2036868231 | X47: 126149.625 | Y47: 1.5 | Z47: 47.42877737 | AA47: 12.54274701 | AB47: 1.158643662 | AC47: 377088.0225 | AD47: 30.72402246 | AE47: 23.83770351 | AF47: 6.303984648 | AG47: 0.5823343044 | AH47: 189524.4401 | AI47: 30.78636169 | AJ47: 23.09124575 | AK47: 5.725606993 | AL47: 1.969508947 | AM47: 186085.4332 | AN47: 688.5369441 | AO47: 516.1822817 | AP47: 127.8647196 | AQ47: 44.48994278 | AR47: 74.97% | AS47: 18.57% | AT47: 6.46% | AU47: 298.4176499 | AV47: 101932.4386 | AW47: 3392.35501 | AX47: 2631.52954 | AY47: 695.68888 | AZ47: 65.13659038 | BA47: 77.57% | BB47: 20.51% | BC47: 1.92% | BD47: 299.0286977 | BE47: 101325.0363 | BF47: -607.4386419 | BG47: -4.10 | BH47: -122.3050413 | BI47: -3.076047903 | BJ47: -0.7619750167 | BK47: -0.2651257125 | BL47: -122.3413182 | BM47: -4.095988562 | BN47: -3.177225759 | BO47: -0.8398910283 | BP47: -0.07887177422 | BQ47: 513.1062338 | BR47: 127.1027446 | BS47: 44.22481707 | BT47: 74.97% | BU47: 18.57% | BV47: 18.57% | BW47: 6.46% | BX47: 18.81655418 | BY47: 141.1 | BZ47: 298.4176 | CA47: 4135787.539 | CB47: 2631.428362 | CC47: 695.610964 | CD47: 65.32284432 | CE47: 77.57% | CF47: 20.51% | CG47: 20.51% | CH47: 1.93% | CI47: 20.77690334 | CJ47: 155.8 | CK47: 299.0280 | CL47: 20923322.95 | CM47: 101325 | CN47: 299.027973 | CO47: 298.4176499 | CP47: -24793.8531 | CQ47: 2634.605588 | CR47: 696.450855 | CS47: 65.4017161 | CT47: 3396.458159 | CU47: 77.57% | CV47: 20.51% | CW47: 1.93% | CX47: 1 | CY47: 1 | CZ47: 1 | DA47: 1 | DB47: 1
C48: 39 | D48: 39 | E48: 0.05 | F48: 2.092835759 | G48: 0 | H48: 0 | I48: 12665.625 | J48: 0.05 | K48: 0 | L48: 0 | M48: 2.092835759 | N48: 7599.375 | O48: 1 | P48: 31.81588176 | Q48: 8.514109204 | R48: 0.4073736461 | S48: 252299.25 | T48: 0.5 | U48: 15.90794088 | V48: 4.257054602 | W48: 0.2036868231 | X48: 126149.625 | Y48: 1.5 | Z48: 47.4188196 | AA48: 12.53503659 | AB48: 1.177129583 | AC48: 377042.1003 | AD48: 30.72443345 | AE48: 23.83269873 | AF48: 6.300109391 | AG48: 0.5916253284 | AH48: 189501.3596 | AI48: 30.78726959 | AJ48: 23.08059604 | AK48: 5.717348398 | AL48: 1.989325154 | AM48: 186036.4096 | AN48: 688.5566308 | AO48: 515.9511722 | AP48: 127.6855056 | AQ48: 44.919953 | AR48: 74.93% | AS48: 18.54% | AT48: 6.52% | AU48: 298.4091067 | AV48: 101932.4348 | AW48: 3392.400068 | AX48: 2630.981262 | AY48: 695.2643302 | AZ48: 66.15447503 | BA48: 77.56% | BB48: 20.49% | BC48: 1.95% | BD48: 299.0247281 | BE48: 101325.037 | BF48: -607.4348489 | BG48: -4.10 | BH48: -122.3042776 | BI48: -3.074651585 | BJ48: -0.7609023165 | BK48: -0.2676865799 | BL48: -122.3412657 | BM48: -4.09604125 | BN48: -3.176561511 | BO48: -0.8393773846 | BP48: -0.08010235505 | BQ48: 512.8765206 | BR48: 126.9246033 | BS48: 44.65226642 | BT48: 74.93% | BU48: 18.54% | BV48: 18.54% | BW48: 6.52% | BX48: 18.78964384 | BY48: 140.9 | BZ48: 298.4091 | CA48: 4134730.129 | CB48: 2630.879353 | CC48: 695.1858551 | CD48: 66.34205926 | CE48: 77.55% | CF48: 20.49% | CG48: 20.49% | CH48: 1.96% | CI48: 20.76392993 | CJ48: 155.7 | CK48: 299.0240 | CL48: 20920791.11 | CM48: 101325 | CN48: 299.0239981 | CO48: 298.4091067 | CP48: -24787.35921 | CQ48: 2634.055914 | CR48: 696.0252325 | CS48: 66.42216161 | CT48: 3396.503308 | CU48: 77.55% | CV48: 20.49% | CW48: 1.96% | CX48: 1 | CY48: 1 | CZ48: 1 | DA48: 1 | DB48: 1
C49: 40 | D49: 40 | E49: 0.05 | F49: 2.092835759 | G49: 0 | H49: 0 | I49: 12665.625 | J49: 0.05 | K49: 0 | L49: 0 | M49: 2.092835759 | N49: 7599.375 | O49: 1 | P49: 31.81588176 | Q49: 8.514109204 | R49: 0.4073736461 | S49: 252299.25 | T49: 0.5 | U49: 15.90794088 | V49: 4.257054602 | W49: 0.2036868231 | X49: 126149.625 | Y49: 1.5 | Z49: 47.40892634 | AA49: 12.52737605 | AB49: 1.195496022 | AC49: 376996.4761 | AD49: 30.72484188 | AE49: 23.82772638 | AF49: 6.296259204 | AG49: 0.6008563008 | AH49: 189478.4289 | AI49: 30.78815101 | AJ49: 23.07026306 | AK49: 5.709335227 | AL49: 2.008552724 | AM49: 185988.8451 | AN49: 688.5757527 | AO49: 515.7268197 | AP49: 127.5115273 | AQ49: 45.33740576 | AR49: 74.90% | AS49: 18.52% | AT49: 6.58% | AU49: 298.4008089 | AV49: 101932.4311 | AW49: 3392.444825 | AX49: 2630.436785 | AY49: 694.8427189 | AZ49: 67.16532013 | BA49: 77.54% | BB49: 20.48% | BC49: 1.98% | BD49: 299.0207851 | BE49: 101325.0377 | BF49: -607.4311394 | BG49: -4.10 | BH49: -122.3035307 | BI49: -3.073295969 | BJ49: -0.7598609336 | BK49: -0.2701726205 | BL49: -122.3412127 | BM49: -4.09609356 | BN49: -3.175901885 | BO49: -0.8388673201 | BP49: -0.08132435491 | BQ49: 512.6535237 | BR49: 126.7516663 | BS49: 45.06723313 | BT49: 74.90% | BU49: 18.52% | BV49: 18.52% | BW49: 6.58% | BX49: 18.76352086 | BY49: 140.7 | BZ49: 298.4008 | CA49: 4133703.659 | CB49: 2630.33418 | CC49: 694.7637125 | CD49: 67.35416839 | CE49: 77.53% | CF49: 20.48% | CG49: 20.48% | CH49: 1.99% | CI49: 20.7510473 | CJ49: 155.6 | CK49: 299.0200 | CL49: 20918276.99 | CM49: 101325 | CN49: 299.02005 | CO49: 298.4008089 | CP49: -24781.05427 | CQ49: 2633.510081 | CR49: 695.6025798 | CS49: 67.43549275 | CT49: 3396.548154 | CU49: 77.53% | CV49: 20.48% | CW49: 1.99% | CX49: 1 | CY49: 1 | CZ49: 1 | DA49: 1 | DB49: 1
C50: 41 | D50: 41 | E50: 0.05 | F50: 2.092835759 | G50: 0 | H50: 0 | I50: 12665.625 | J50: 0.05 | K50: 0 | L50: 0 | M50: 2.092835759 | N50: 7599.375 | O50: 1 | P50: 31.81588176 | Q50: 8.514109204 | R50: 0.4073736461 | S50: 252299.25 | T50: 0.5 | U50: 15.90794088 | V50: 4.257054602 | W50: 0.2036868231 | X50: 126149.625 | Y50: 1.5 | Z50: 47.39910223 | AA50: 12.51976897 | AB50: 1.213734414 | AC50: 376951.1711 | AD50: 30.72524758 | AE50: 23.82278878 | AF50: 6.292435882 | AG50: 0.6100229163 | AH50: 189455.6586 | AI50: 30.78900715 | AJ50: 23.06023219 | AK50: 5.70155616 | AL50: 2.027218798 | AM50: 185942.6723 | AN50: 688.5943351 | AO50: 515.5089161 | AP50: 127.342546 | AQ50: 45.74287301 | AR50: 74.86% | AS50: 18.49% | AT50: 6.64% | AU50: 298.3927457 | AV50: 101932.4275 | AW50: 3392.489261 | AX50: 2629.896343 | AY50: 694.4242276 | AZ50: 68.16869033 | BA50: 77.52% | BB50: 20.47% | BC50: 2.01% | BD50: 299.0168704 | BE50: 101325.0384 | BF50: -607.4275091 | BG50: -4.10 | BH50: -122.3027998 | BI50: -3.071979197 | BJ50: -0.7588494401 | BK50: -0.2725872433 | BL50: -122.3411593 | BM50: -4.096145464 | BN50: -3.17524716 | BO50: -0.8383610514 | BP50: -0.08253725287 | BQ50: 512.4369369 | BR50: 126.5836966 | BS50: 45.47028577 | BT50: 74.86% | BU50: 18.49% | BV50: 18.49% | BW50: 6.64% | BX50: 18.73814933 | BY50: 140.5 | BZ50: 298.3927 | CA50: 4132706.715 | CB50: 2629.793075 | CC50: 694.344716 | CD50: 68.35874032 | CE50: 77.52% | CF50: 20.47% | CG50: 20.47% | CH50: 2.01% | CI50: 20.73826095 | CJ50: 155.5 | CK50: 299.0161 | CL50: 20915781.66 | CM50: 101325 | CN50: 299.0161304 | CO50: 298.3927457 | CP50: -24774.92964 | CQ50: 2632.968323 | CR50: 695.1830771 | CS50: 68.44127757 | CT50: 3396.592677 | CU50: 77.52% | CV50: 20.47% | CW50: 2.01% | CX50: 1 | CY50: 1 | CZ50: 1 | DA50: 1 | DB50: 1
C51: 42 | D51: 42 | E51: 0.05 | F51: 2.092835759 | G51: 0 | H51: 0 | I51: 12665.625 | J51: 0.05 | K51: 0 | L51: 0 | M51: 2.092835759 | N51: 7599.375 | O51: 1 | P51: 31.81588176 | Q51: 8.514109204 | R51: 0.4073736461 | S51: 252299.25 | T51: 0.5 | U51: 15.90794088 | V51: 4.257054602 | W51: 0.2036868231 | X51: 126149.625 | Y51: 1.5 | Z51: 47.38935143 | AA51: 12.51221857 | AB51: 1.231836983 | AC51: 376906.2048 | AD51: 30.72565035 | AE51: 23.81788803 | AF51: 6.288641055 | AG51: 0.6191212678 | AH51: 189433.0585 | AI51: 30.78983914 | AJ51: 23.05048966 | AK51: 5.694000529 | AL51: 2.045348952 | AM51: 185897.8277 | AN51: 688.612402 | AO51: 515.297171 | AP51: 127.1783371 | AQ51: 46.13689384 | AR51: 74.83% | AS51: 18.47% | AT51: 6.70% | AU51: 298.3849064 | AV51: 101932.424 | AW51: 3392.53336 | AX51: 2629.360148 | AY51: 694.0090207 | AZ51: 69.16419149 | BA51: 77.50% | BB51: 20.46% | BC51: 2.04% | BD51: 299.0129854 | BE51: 101325.039 | BF51: -607.4239543 | BG51: -4.10 | BH51: -122.302084 | BI51: -3.07069952 | BJ51: -0.7578664908 | BK51: -0.2749336611 | BL51: -122.3411054 | BM51: -4.096196942 | BN51: -3.174597589 | BO51: -0.8378587749 | BP51: -0.08374057746 | BQ51: 512.2264715 | BR51: 126.4204706 | BS51: 45.86196018 | BT51: 74.83% | BU51: 18.47% | BV51: 18.47% | BW51: 6.70% | BX51: 18.71349539 | BY51: 140.4 | BZ51: 298.3849 | CA51: 4131737.969 | CB51: 2629.25625 | CC51: 693.9290284 | CD51: 69.35538458 | CE51: 77.50% | CF51: 20.45% | CG51: 20.45% | CH51: 2.04% | CI51: 20.72557584 | CJ51: 155.5 | CK51: 299.0122 | CL51: 20913306.08 | CM51: 101325 | CN51: 299.0122409 | CO51: 298.3849064 | CP51: -24768.97721 | CQ51: 2632.430848 | CR51: 694.7668872 | CS51: 69.43912515 | CT51: 3396.63686 | CU51: 77.50% | CV51: 20.45% | CW51: 2.04% | CX51: 1 | CY51: 1 | CZ51: 1 | DA51: 1 | DB51: 1
C52: 43 | D52: 43 | E52: 0.05 | F52: 2.092835759 | G52: 0 | H52: 0 | I52: 12665.625 | J52: 0.05 | K52: 0 | L52: 0 | M52: 2.092835759 | N52: 7599.375 | O52: 1 | P52: 31.81588176 | Q52: 8.514109204 | R52: 0.4073736461 | S52: 252299.25 | T52: 0.5 | U52: 15.90794088 | V52: 4.257054602 | W52: 0.2036868231 | X52: 126149.625 | Y52: 1.5 | Z52: 47.37967774 | AA52: 12.50472781 | AB52: 1.249796695 | AC52: 376861.5945 | AD52: 30.72605005 | AE52: 23.81302603 | AF52: 6.284876196 | AG52: 0.6281478187 | AH52: 189410.6374 | AI52: 30.79064806 | AJ52: 23.04102249 | AK52: 5.686658282 | AL52: 2.06296729 | AM52: 185854.2515 | AN52: 688.6299758 | AO52: 515.0913108 | AP52: 127.0186886 | AQ52: 46.51997647 | AR52: 74.80% | AS52: 18.45% | AT52: 6.76% | AU52: 298.3772815 | AV52: 101932.42047 | AW52: 3392.577106 | AX52: 2628.828392 | AY52: 693.5972465 | AZ52: 70.15146782 | BA52: 77.49% | BB52: 20.44% | BC52: 2.07% | BD52: 299.0091317 | BE52: 101325.0397 | BF52: -607.4204717 | BG52: -4.10 | BH52: -122.3013828 | BI52: -3.069455287 | BJ52: -0.7569108175 | BK52: -0.2772149029 | BL52: -122.341051 | BM52: -4.096247973 | BN52: -3.173953402 | BO52: -0.8373606682 | BP52: -0.08493390326 | BQ52: 512.0218555 | BR52: 126.2617777 | BS52: 46.24276157 | BT52: 74.80% | BU52: 18.45% | BV52: 18.45% | BW52: 6.76% | BX52: 18.68952713 | BY52: 140.2 | BZ52: 298.3773 | CA52: 4130796.166 | CB52: 2628.723893 | CC52: 693.5167967 | CD52: 70.34374882 | CE52: 77.48% | CF52: 20.44% | CG52: 20.44% | CH52: 2.07% | CI52: 20.71299644 | CJ52: 155.4 | CK52: 299.0084 | CL52: 20910851.14 | CM52: 101325 | CN52: 299.0083828 | CO52: 298.3772815 | CP52: -24763.18929 | CQ52: 2631.897847 | CR52: 694.3541573 | CS52: 70.42868272 | CT52: 3396.680687 | CU52: 77.48% | CV52: 20.44% | CW52: 2.07% | CX52: 1 | CY52: 1 | CZ52: 1 | DA52: 1 | DB52: 1
C53: 44 | D53: 44 | E53: 0.05 | F53: 2.092835759 | G53: 0 | H53: 0 | I53: 12665.625 | J53: 0.05 | K53: 0 | L53: 0 | M53: 2.092835759 | N53: 7599.375 | O53: 1 | P53: 31.81588176 | Q53: 8.514109204 | R53: 0.4073736461 | S53: 252299.25 | T53: 0.5 | U53: 15.90794088 | V53: 4.257054602 | W53: 0.2036868231 | X53: 126149.625 | Y53: 1.5 | Z53: 47.37008458 | AA53: 12.49729932 | AB53: 1.267607199 | AC53: 376817.3559 | AD53: 30.72644652 | AE53: 23.80820451 | AF53: 6.281142636 | AG53: 0.6370993781 | AH53: 189388.4031 | AI53: 30.79143491 | AJ53: 23.03181843 | AK53: 5.679519942 | AL53: 2.080096536 | AM53: 185811.8872 | AN53: 688.6470779 | AO53: 514.8910773 | AP53: 126.8634004 | AQ53: 46.89260017 | AR53: 74.77% | AS53: 18.42% | AT53: 6.81% | AU53: 298.3698615 | AV53: 101932.41706 | AW53: 3392.620483 | AX53: 2628.301245 | AY53: 693.1890385 | AZ53: 71.13019925 | BA53: 77.47% | BB53: 20.43% | BC53: 2.10% | BD53: 299.0053105 | BE53: 101325.0403 | BF53: -607.417058 | BG53: -4.10 | BH53: -122.3006955 | BI53: -3.068244945 | BJ53: -0.7559812244 | BK53: -0.2794338254 | BL53: -122.3409962 | BM53: -4.096298544 | BN53: -3.173314805 | BO53: -0.8368668911 | BP53: -0.08611684778 | BQ53: 511.8228324 | BR53: 126.1074192 | BS53: 46.61316634 | BT53: 74.77% | BU53: 18.42% | BV53: 18.42% | BW53: 6.81% | BX53: 18.66621447 | BY53: 140 | BZ53: 298.3699 | CA53: 4129880.123 | CB53: 2628.196176 | CC53: 693.1081528 | CD53: 71.32351623 | CE53: 77.47% | CF53: 20.43% | CG53: 20.43% | CH53: 2.10% | CI53: 20.70052679 | CJ53: 155.3 | CK53: 299.0045 | CL53: 20908417.61 | CM53: 101325 | CN53: 299.0045574 | CO53: 298.3698615 | CP53: -24757.55869 | CQ53: 2631.36949 | CR53: 693.9450197 | CS53: 71.40963308 | CT53: 3396.724143 | CU53: 77.47% | CV53: 20.43% | CW53: 2.10% | CX53: 1 | CY53: 1 | CZ53: 1 | DA53: 1 | DB53: 1
C54: 45 | D54: 45 | E54: 0.05 | F54: 2.092835759 | G54: 0 | H54: 0 | I54: 12665.625 | J54: 0.05 | K54: 0 | L54: 0 | M54: 2.092835759 | N54: 7599.375 | O54: 1 | P54: 31.81588176 | Q54: 8.514109204 | R54: 0.4073736461 | S54: 252299.25 | T54: 0.5 | U54: 15.90794088 | V54: 4.257054602 | W54: 0.2036868231 | X54: 126149.625 | Y54: 1.5 | Z54: 47.360575 | AA54: 12.48993548 | AB54: 1.285262786 | AC54: 376773.5033 | AD54: 30.72683964 | AE54: 23.803425 | AF54: 6.277441571 | AG54: 0.6459730765 | AH54: 189366.3628 | AI54: 30.79220064 | AJ54: 23.02286595 | AK54: 5.672576571 | AL54: 2.096758121 | AM54: 185770.6817 | AN54: 688.6637285 | AO54: 514.6962272 | AP54: 126.7122842 | AQ54: 47.25521706 | AR54: 74.74% | AS54: 18.40% | AT54: 6.86% | AU54: =(CA53+E_ig1+E_ig2+E_betainNF-E_betaoutNF)/(nN2_NF_temp*cv_N2+nO2_NF_temp*cv_O2+nAr_NF_temp*cv_Ar) -> 298.3626377 | AV54: 101932.41371 | AW54: 3392.663479 | AX54: 2627.778864 | AY54: 692.7845161 | AZ54: 72.10009895 | BA54: 77.45% | BB54: 20.42% | BC54: 2.13% | BD54: 299.001523 | BE54: 101325.0409 | BF54: -607.4137105 | BG54: -4.10 | BH54: -122.3000215 | BI54: -3.067067028 | BJ54: -0.7550765838 | BK54: -0.2815931232 | BL54: -122.340941 | BM54: -4.09634864 | BN54: -3.172681985 | BO54: -0.8363775869 | BP54: -0.08728906842 | BQ54: 511.6291602 | BR54: 125.9572076 | BS54: 46.97362393 | BT54: 74.74% | BU54: 18.40% | BV54: 18.40% | BW54: 6.86% | BX54: 18.64352901 | BY54: 139.8 | BZ54: 298.3626 | CA54: 4128988.725 | CB54: 2627.673249 | CC54: 692.7032151 | CD54: 72.29440301 | CE54: 77.45% | CF54: 20.42% | CG54: 20.42% | CH54: 2.13% | CI54: 20.68817048 | CJ54: 155.2 | CK54: 299.0008 | CL54: 20906006.2 | CM54: 101325 | CN54: 299.0007659 | CO54: 298.3626377 | CP54: -24752.07858 | CQ54: 2630.845931 | CR54: 693.5395927 | CS54: 72.38169208 | CT54: 3396.767216 | CU54: 77.45% | CV54: 20.42% | CW54: 2.13% | CX54: 1 | CY54: 1 | CZ54: 1 | DA54: 1 | DB54: 1
C55: 46 | D55: 46 | E55: 0.05 | F55: 2.092835759 | G55: 0 | H55: 0 | I55: 12665.625 | J55: 0.05 | K55: 0 | L55: 0 | M55: 2.092835759 | N55: 7599.375 | O55: 1 | P55: 31.81588176 | Q55: 8.514109204 | R55: 0.4073736461 | S55: 252299.25 | T55: 0.5 | U55: 15.90794088 | V55: 4.257054602 | W55: 0.2036868231 | X55: 126149.625 | Y55: 1.5 | Z55: 47.35115178 | AA55: 12.48263843 | AB55: 1.302758344 | AC55: 376730.0493 | AD55: 30.7272293 | AE55: 23.79868888 | AF55: 6.273774073 | AG55: 0.6547663435 | AH55: 189344.5228 | AI55: 30.79294617 | AJ55: 23.01415417 | AK55: 5.665819739 | AL55: 2.11297226 | AM55: 185730.5847 | AN55: 688.6799464 | AO55: 514.5065306 | AP55: 126.565162 | AQ55: 47.60825377 | AR55: 74.71% | AS55: 18.38% | AT55: 6.91% | AU55: 298.3556018 | AV55: 101932.41043 | AW55: 3392.706083 | AX55: 2627.261385 | AY55: 692.3837862 | AZ55: 73.06091105 | BA55: 77.44% | BB55: 20.41% | BC55: 2.15% | BD55: 298.9977701 | BE55: 101325.0415 | BF55: -607.4104267 | BG55: -4.10 | BH55: -122.2993603 | BI55: -3.065920153 | BJ55: -0.7541958314 | BK55: -0.2836953391 | BL55: -122.3408856 | BM55: -4.096398252 | BN55: -3.172055109 | BO55: -0.8358928838 | BP55: -0.08845025974 | BQ55: 511.4406105 | BR55: 125.8109661 | BS55: 47.32455844 | BT55: 74.71% | BU55: 18.38% | BV55: 18.38% | BW55: 6.91% | BX55: 18.62144397 | BY55: 139.7 | BZ55: 298.3556 | CA55: 4128120.921 | CB55: 2627.15525 | CC55: 692.3020891 | CD55: 73.25615613 | CE55: 77.44% | CF55: 20.41% | CG55: 20.41% | CH55: 2.16% | CI55: 20.67593072 | CJ55: 155.1 | CK55: 298.9970 | CL55: 20903617.54 | CM55: 101325 | CN55: 298.9970092 | CO55: 298.3556018 | CP55: -24746.74256 | CQ55: 2630.327306 | CR55: 693.137982 | CS55: 73.34460639 | CT55: 3396.809894 | CU55: 77.44% | CV55: 20.41% | CW55: 2.16% | CX55: 1 | CY55: 1 | CZ55: 1 | DA55: 1 | DB55: 1
C56: 47 | D56: 47 | E56: 0.05 | F56: 2.092835759 | G56: 0 | H56: 0 | I56: 12665.625 | J56: 0.05 | K56: 0 | L56: 0 | M56: 2.092835759 | N56: 7599.375 | O56: 1 | P56: 31.81588176 | Q56: 8.514109204 | R56: 0.4073736461 | S56: 252299.25 | T56: 0.5 | U56: 15.90794088 | V56: 4.257054602 | W56: 0.2036868231 | X56: 126149.625 | Y56: 1.5 | Z56: 47.34181734 | AA56: 12.47541006 | AB56: 1.32008931 | AC56: 376687.0052 | AD56: 30.72761538 | AE56: 23.7939974 | AF56: 6.270141098 | AG56: 0.6634768874 | AH56: 189322.8888 | AI56: 30.79367233 | AJ56: 23.00567281 | AK56: 5.659241489 | AL56: 2.128758031 | AM56: 185691.5491 | AN56: 688.6957496 | AO56: 514.3217708 | AP56: 126.4218657 | AQ56: 47.95211305 | AR56: 74.68% | AS56: 18.36% | AT56: 6.96% | AU56: 298.3487461 | AV56: 101932.40720 | AW56: 3392.748283 | AX56: 2626.748931 | AY56: 691.9869432 | AZ56: 74.01240843 | BA56: 77.42% | BB56: 20.40% | BC56: 2.18% | BD56: 298.9940528 | BE56: 101325.0421 | BF56: -607.4072042 | BG56: -4.10 | BH56: -122.2987115 | BI56: -3.064803015 | BJ56: -0.7533379631 | BK56: -0.2857428734 | BL56: -122.34083 | BM56: -4.096447371 | BN56: -3.171434324 | BO56: -0.8354128953 | BP56: -0.08960015085 | BQ56: 511.2569678 | BR56: 125.6685278 | BS56: 47.66637018 | BT56: 74.68% | BU56: 18.36% | BV56: 18.36% | BW56: 6.96% | BX56: 18.59993408 | BY56: 139.5 | BZ56: 298.3487 | CA56: 4127275.716 | CB56: 2626.6423 | CC56: 691.9048683 | CD56: 74.20855116 | CE56: 77.42% | CF56: 20.39% | CG56: 20.39% | CH56: 2.19% | CI56: 20.66381036 | CJ56: 155 | CK56: 298.9933 | CL56: 20901252.18 | CM56: 101325 | CN56: 298.9932882 | CO56: 298.3487461 | CP56: -24741.54457 | CQ56: 2629.813734 | CR56: 692.7402812 | CS56: 74.29815131 | CT56: 3396.852167 | CU56: 77.42% | CV56: 20.39% | CW56: 2.19% | CX56: 1 | CY56: 1 | CZ56: 1 | DA56: 1 | DB56: 1
C57: 48 | D57: 48 | E57: 0.05 | F57: 2.092835759 | G57: 0 | H57: 0 | I57: 12665.625 | J57: 0.05 | K57: 0 | L57: 0 | M57: 2.092835759 | N57: 7599.375 | O57: 1 | P57: 31.81588176 | Q57: 8.514109204 | R57: 0.4073736461 | S57: 252299.25 | T57: 0.5 | U57: 15.90794088 | V57: 4.257054602 | W57: 0.2036868231 | X57: 126149.625 | Y57: 1.5 | Z57: 47.33257388 | AA57: 12.46825207 | AB57: 1.337251643 | AC57: 376644.3809 | AD57: 30.7279978 | AE57: 23.78935163 | AF57: 6.266543491 | AG57: 0.6721026756 | AH57: 189301.4659 | AI57: 30.79437993 | AJ57: 22.99741217 | AK57: 5.652834313 | AL57: 2.144133441 | AM57: 185653.53 | AN57: 688.7111552 | AO57: 514.141743 | AP57: 126.2822369 | AQ57: 48.28717517 | AR57: 74.65% | AS57: 18.34% | AT57: 7.01% | AU57: 298.3420632 | AV57: 101932.40404 | AW57: 3392.790071 | AX57: 2626.241609 | AY57: 691.5940709 | AZ57: 74.95439075 | BA57: 77.41% | BB57: 20.38% | BC57: 2.21% | BD57: 298.9903719 | BE57: 101325.0427 | BF57: -607.4040408 | BG57: -4.10 | BH57: -122.2980745 | BI57: -3.063714382 | BJ57: -0.7525020304 | BK57: -0.2877379926 | BL57: -122.3407744 | BM57: -4.096495989 | BN57: -3.170819764 | BO57: -0.8349377219 | BP57: -0.09073850297 | BQ57: 511.0780287 | BR57: 125.5297349 | BS57: 47.99943718 | BT57: 74.65% | BU57: 18.34% | BV57: 18.34% | BW57: 7.01% | BX57: 18.57897547 | BY57: 139.4 | BZ57: 298.3421 | CA57: 4126452.173 | CB57: 2626.134504 | CC57: 691.5116352 | CD57: 75.15139024 | CE57: 77.40% | CF57: 20.38% | CG57: 20.38% | CH57: 2.22% | CI57: 20.65181191 | CJ57: 154.9 | CK57: 298.9896 | CL57: 20898910.61 | CM57: 101325 | CN57: 298.9896038 | CO57: 298.3420632 | CP57: -24736.4789 | CQ57: 2629.305323 | CR57: 692.3465729 | CS57: 75.24212874 | CT57: 3396.894025 | CU57: 77.40% | CV57: 20.38% | CW57: 2.22% | CX57: 1 | CY57: 1 | CZ57: 1 | DA57: 1 | DB57: 1
C58: 49 | D58: 49 | E58: 0.05 | F58: 2.092835759 | G58: 0 | H58: 0 | I58: 12665.625 | J58: 0.05 | K58: 0 | L58: 0 | M58: 2.092835759 | N58: 7599.375 | O58: 1 | P58: 31.81588176 | Q58: 8.514109204 | R58: 0.4073736461 | S58: 252299.25 | T58: 0.5 | U58: 15.90794088 | V58: 4.257054602 | W58: 0.2036868231 | X58: 126149.625 | Y58: 1.5 | Z58: 47.3234233 | AA58: 12.46116594 | AB58: 1.354241775 | AC58: 376602.1854 | AD58: 30.72837647 | AE58: 23.78475255 | AF58: 6.262982001 | AG58: 0.6806419162 | AH58: 189280.2584 | AI58: 30.79506973 | AJ58: 22.98936312 | AK58: 5.646591119 | AL58: 2.159115495 | AM58: 185616.4853 | AN58: 688.726179 | AO58: 513.9662539 | AP58: 126.1461258 | AQ58: 48.61379936 | AR58: 74.63% | AS58: 18.32% | AT58: 7.06% | AU58: 298.3355461 | AV58: 101932.40093 | AW58: 3392.831438 | AX58: 2625.739514 | AY58: 691.2052422 | AZ58: 75.88668251 | BA58: 77.39% | BB58: 20.37% | BC58: 2.24% | BD58: 298.9867281 | BE58: 101325.0433 | BF58: -607.4009346 | BG58: -4.10 | BH58: -122.2974491 | BI58: -3.062653093 | BJ58: -0.7516871378 | BK58: -0.2896828378 | BL58: -122.3407189 | BM58: -4.096544102 | BN58: -3.170211543 | BO58: -0.8344674515 | BP58: -0.09186510716 | BQ58: 510.9036008 | BR58: 125.3944387 | BS58: 48.32411652 | BT58: 74.63% | BU58: 18.32% | BV58: 18.32% | BW58: 7.06% | BX58: 18.5585456 | BY58: 139.2 | BZ58: 298.3355 | CA58: 4125649.406 | CB58: 2625.631955 | CC58: 691.1224618 | CD58: 76.08450024 | CE58: 77.39% | CF58: 20.37% | CG58: 20.37% | CH58: 2.24% | CI58: 20.63993757 | CJ58: 154.8 | CK58: 298.9859 | CL58: 20896593.26 | CM58: 101325 | CN58: 298.9859567 | CO58: 298.3355461 | CP58: -24731.54014 | CQ58: 2628.802167 | CR58: 691.9569293 | CS58: 76.17636535 | CT58: 3396.935461 | CU58: 77.39% | CV58: 20.37% | CW58: 2.24% | CX58: 1 | CY58: 1 | CZ58: 1 | DA58: 1 | DB58: 1
C59: 50 | D59: 50 | E59: 0.05 | F59: 2.092835759 | G59: 0 | H59: 0 | I59: 12665.625 | J59: 0.05 | K59: 0 | L59: 0 | M59: 2.092835759 | N59: 7599.375 | O59: 1 | P59: 31.81588176 | Q59: 8.514109204 | R59: 0.4073736461 | S59: 252299.25 | T59: 0.5 | U59: 15.90794088 | V59: 4.257054602 | W59: 0.2036868231 | X59: 126149.625 | Y59: 1.5 | Z59: 47.31436728 | AA59: 12.45415296 | AB59: 1.371056588 | AC59: 376560.4264 | AD59: 30.72875132 | AE59: 23.780201 | AF59: 6.25945728 | AG59: 0.689093041 | AH59: 189259.2703 | AI59: 30.79574244 | AJ59: 22.98151698 | AK59: 5.640505209 | AL59: 2.173720253 | AM59: 185580.3751 | AN59: 688.7408363 | AO59: 513.7951205 | AP59: 126.0133907 | AQ59: 48.93232507 | AR59: 74.60% | AS59: 18.30% | AT59: 7.10% | AU59: 298.3291882 | AV59: 101932.39788 | AW59: 3392.872378 | AX59: 2625.242727 | AY59: 690.8205206 | AZ59: 76.80913134 | BA59: 77.38% | BB59: 20.36% | BC59: 2.26% | BD59: 298.983122 | BE59: 101325.0438 | BF59: -607.3978838 | BG59: -4.10 | BH59: -122.2968348 | BI59: -3.061618047 | BJ59: -0.750892439 | BK59: -0.2915794322 | BL59: -122.3406637 | BM59: -4.096591705 | BN59: -3.169609762 | BO59: -0.8340021606 | BP59: -0.0929797822 | BQ59: 510.7335025 | BR59: 125.2624983 | BS59: 48.64074563 | BT59: 74.60% | BU59: 18.30% | BV59: 18.30% | BW59: 7.10% | BX59: 18.53862315 | BY59: 139.1 | BZ59: 298.3292 | CA59: 4124866.578 | CB59: 2625.134735 | CC59: 690.7374109 | CD59: 77.00773099 | CE59: 77.37% | CF59: 20.36% | CG59: 20.36% | CH59: 2.27% | CI59: 20.62818924 | CJ59: 154.7 | CK59: 298.9823 | CL59: 20894300.5 | CM59: 101325 | CN59: 298.9823474 | CO59: 298.3291882 | CP59: -24726.72322 | CQ59: 2628.304345 | CR59: 691.5714131 | CS59: 77.10071077 | CT59: 3396.976468 | CU59: 77.37% | CV59: 20.36% | CW59: 2.27% | CX59: 1 | CY59: 1 | CZ59: 1 | DA59: 1 | DB59: 1
C60: 51 | D60: 51 | E60: 0.05 | F60: 2.092835759 | G60: 0 | H60: 0 | I60: 12665.625 | J60: 0.05 | K60: 0 | L60: 0 | M60: 2.092835759 | N60: 7599.375 | O60: 1 | P60: 31.81588176 | Q60: 8.514109204 | R60: 0.4073736461 | S60: 252299.25 | T60: 0.5 | U60: 15.90794088 | V60: 4.257054602 | W60: 0.2036868231 | X60: 126149.625 | Y60: 1.5 | Z60: 47.30540728 | AA60: 12.44721428 | AB60: 1.387693374 | AC60: 376519.1105 | AD60: 30.72912229 | AE60: 23.7756977 | AF60: 6.255969895 | AG60: 0.6974546899 | AH60: 189238.5049 | AI60: 30.79639875 | AJ60: 22.9738656 | AK60: 5.634570254 | AL60: 2.187962896 | AM60: 185545.1619 | AN60: 688.7551415 | AO60: 513.6281703 | AP60: 125.8838979 | AQ60: 49.24307319 | AR60: 74.57% | AS60: 18.28% | AT60: 7.15% | AU60: 298.3229833 | AV60: 101932.39489 | AW60: 3392.912885 | AX60: 2624.751318 | AY60: 690.4399608 | AZ60: 77.72160629 | BA60: 77.36% | BB60: 20.35% | BC60: 2.29% | BD60: 298.9795542 | BE60: 101325.0444 | BF60: -607.3948865 | BG60: -4.10 | BH60: -122.2962314 | BI60: -3.060608206 | BJ60: -0.7501171339 | BK60: -0.2934296882 | BL60: -122.3406088 | BM60: -4.096638796 | BN60: -3.169014508 | BO60: -0.8335419149 | BP60: -0.09408237264 | BQ60: 510.5675621 | BR60: 125.1337808 | BS60: 48.9496435 | BT60: 74.57% | BU60: 18.28% | BV60: 18.28% | BW60: 7.15% | BX60: 18.51918801 | BY60: 138.9 | BZ60: 298.3230 | CA60: 4124102.898 | CB60: 2624.642912 | CC60: 690.356536 | CD60: 77.9209536 | CE60: 77.36% | CF60: 20.35% | CG60: 20.35% | CH60: 2.30% | CI60: 20.61656854 | CJ60: 154.6 | CK60: 298.9788 | CL60: 20892032.66 | CM60: 101325 | CN60: 298.9787765 | CO60: 298.3229833 | CP60: -24722.02331 | CQ60: 2627.811926 | CR60: 691.1900779 | CS60: 78.01503597 | CT60: 3397.01704 | CU60: 77.36% | CV60: 20.35% | CW60: 2.30% | CX60: 1 | CY60: 1 | CZ60: 1 | DA60: 1 | DB60: 1
C61: 52 | D61: 52 | E61: 0.05 | F61: 2.092835759 | G61: 0 | H61: 0 | I61: 12665.625 | J61: 0.05 | K61: 0 | L61: 0 | M61: 2.092835759 | N61: 7599.375 | O61: 1 | P61: 31.81588176 | Q61: 8.514109204 | R61: 0.4073736461 | S61: 252299.25 | T61: 0.5 | U61: 15.90794088 | V61: 4.257054602 | W61: 0.2036868231 | X61: 126149.625 | Y61: 1.5 | Z61: 47.29654454 | AA61: 12.44035084 | AB61: 1.404149813 | AC61: 376478.2434 | AD61: 30.72948932 | AE61: 23.77124329 | AF61: 6.252520333 | AG61: 0.7057256958 | AH61: 189217.9652 | AI61: 30.7970393 | AJ61: 22.96640126 | AK61: 5.628780271 | AL61: 2.201857771 | AM61: 185510.8099 | AN61: 688.769108 | AO61: 513.4652399 | AP61: 125.7575209 | AQ61: 49.54634718 | AR61: 74.55% | AS61: 18.26% | AT61: 7.19% | AU61: 298.3169254 | AV61: 101932.39194 | AW61: 3392.952953 | AX61: 2624.265348 | AY61: 690.0636089 | AZ61: 78.62399633 | BA61: 77.34% | BB61: 20.34% | BC61: 2.32% | BD61: 298.9760251 | BE61: 101325.0449 | BF61: -607.3919414 | BG61: -4.10 | BH61: -122.2956384 | BI61: -3.059622589 | BJ61: -0.7493604662 | BK61: -0.2952354147 | BL61: -122.3405545 | BM61: -4.096685372 | BN61: -3.168425855 | BO61: -0.83308677 | BP61: -0.09517274687 | BQ61: 510.4056173 | BR61: 125.0081604 | BS61: 49.25111177 | BT61: 74.55% | BU61: 18.26% | BV61: 18.26% | BW61: 7.19% | BX61: 18.50022112 | BY61: 138.8 | BZ61: 298.3169 | CA61: 4123357.617 | CB61: 2624.156545 | CC61: 689.9798826 | CD61: 78.824059 | CE61: 77.34% | CF61: 20.34% | CG61: 20.34% | CH61: 2.32% | CI61: 20.60507686 | CJ61: 154.6 | CK61: 298.9752 | CL61: 20889789.99 | CM61: 101325 | CN61: 298.9752445 | CO61: 298.3169254 | CP61: -24717.43586 | CQ61: 2627.32497 | CR61: 690.8129694 | CS61: 78.91923175 | CT61: 3397.057172 | CU61: 77.34% | CV61: 20.34% | CW61: 2.32% | CX61: 1 | CY61: 1 | CZ61: 1 | DA61: 1 | DB61: 1
C62: 53 | D62: 53 | E62: 0.05 | F62: 2.092835759 | G62: 0 | H62: 0 | I62: 12665.625 | J62: 0.05 | K62: 0 | L62: 0 | M62: 2.092835759 | N62: 7599.375 | O62: 1 | P62: 31.81588176 | Q62: 8.514109204 | R62: 0.4073736461 | S62: 252299.25 | T62: 0.5 | U62: 15.90794088 | V62: 4.257054602 | W62: 0.2036868231 | X62: 126149.625 | Y62: 1.5 | Z62: 47.28778012 | AA62: 12.43356348 | AB62: 1.420423937 | AC62: 376437.8301 | AD62: 30.72985236 | AE62: 23.76683829 | AF62: 6.249109004 | AG62: 0.7139050706 | AH62: 189197.6534 | AI62: 30.79766469 | AJ62: 22.95911664 | AK62: 5.623129602 | AL62: 2.215418446 | AM62: 185477.2856 | AN62: 688.7827487 | AO62: 513.3061747 | AP62: 125.6341398 | AQ62: 49.84243415 | AR62: 74.52% | AS62: 18.24% | AT62: 7.24% | AU62: 298.311009 | AV62: 101932.38905 | AW62: 3392.992578 | AX62: 2623.784865 | AY62: 689.6915035 | AZ62: 79.51620891 | BA62: 77.33% | BB62: 20.33% | BC62: 2.34% | BD62: 298.9725351 | BE62: 101325.0454 | BF62: -607.3890469 | BG62: -4.10 | BH62: -122.2950556 | BI62: -3.058660267 | BJ62: -0.7486217202 | BK62: -0.2969983227 | BL62: -122.3405007 | BM62: -4.096731433 | BN62: -3.167843865 | BO62: -0.8326367725 | BP62: -0.09625079546 | BQ62: 510.2475145 | BR62: 124.8855181 | BS62: 49.54543583 | BT62: 74.52% | BU62: 18.24% | BV62: 18.24% | BW62: 7.24% | BX62: 18.48170448 | BY62: 138.6 | BZ62: 298.3110 | CA62: 4122630.028 | CB62: 2623.675682 | CC62: 689.6074885 | CD62: 79.71695644 | CE62: 77.33% | CF62: 20.32% | CG62: 20.32% | CH62: 2.35% | CI62: 20.59371534 | CJ62: 154.5 | CK62: 298.9717 | CL62: 20887572.72 | CM62: 101325 | CN62: 298.9717516 | CO62: 298.311009 | CP62: -24712.95656 | CQ62: 2626.843526 | CR62: 690.4401252 | CS62: 79.81320723 | CT62: 3397.096858 | CU62: 77.33% | CV62: 20.32% | CW62: 2.35% | CX62: 1 | CY62: 1 | CZ62: 1 | DA62: 1 | DB62: 1
C63: 54 | D63: 54 | E63: 0.05 | F63: 2.092835759 | G63: 0 | H63: 0 | I63: 12665.625 | J63: 0.05 | K63: 0 | L63: 0 | M63: 2.092835759 | N63: 7599.375 | O63: 1 | P63: 31.81588176 | Q63: 8.514109204 | R63: 0.4073736461 | S63: 252299.25 | T63: 0.5 | U63: 15.90794088 | V63: 4.257054602 | W63: 0.2036868231 | X63: 126149.625 | Y63: 1.5 | Z63: 47.27911488 | AA63: 12.42685287 | AB63: 1.436514112 | AC63: 376397.8745 | AD63: 30.73021138 | AE63: 23.76248314 | AF63: 6.245736251 | AG63: 0.7219919925 | AH63: 189177.5717 | AI63: 30.7982755 | AJ63: 22.95200484 | AK63: 5.617612892 | AL63: 2.228657761 | AM63: 185444.5572 | AN63: 688.7960758 | AO63: 513.1508285 | AP63: 125.5136414 | AQ63: 50.13160582 | AR63: 74.50% | AS63: 18.22% | AT63: 7.28% | AU63: 298.3052289 | AV63: 101932.38620 | AW63: 3393.031756 | AX63: 2623.309911 | AY63: 689.3236761 | AZ63: 80.39816856 | BA63: 77.31% | BB63: 20.32% | BC63: 2.37% | BD63: 298.9690845 | BE63: 101325.046 | BF63: -607.3862018 | BG63: -4.10 | BH63: -122.2944827 | BI63: -3.05772036 | BJ63: -0.7479002188 | BK63: -0.2987200318 | BL63: -122.3404477 | BM63: -4.096776979 | BN63: -3.167268589 | BO63: -0.8321919602 | BP63: -0.0973164295 | BQ63: 510.0931082 | BR63: 124.7657412 | BS63: 49.83288579 | BT63: 74.50% | BU63: 18.22% | BV63: 18.22% | BW63: 7.28% | BX63: 18.46362104 | BY63: 138.5 | BZ63: 298.3052 | CA63: 4121919.461 | CB63: 2623.200363 | CC63: 689.2393843 | CD63: 80.59957216 | CE63: 77.31% | CF63: 20.31% | CG63: 20.31% | CH63: 2.38% | CI63: 20.58248492 | CJ63: 154.4 | CK63: 298.9683 | CL63: 20885381.03 | CM63: 101325 | CN63: 298.9682983 | CO63: 298.3052289 | CP63: -24708.58135 | CQ63: 2626.367632 | CR63: 690.0715763 | CS63: 80.69688859 | CT63: 3397.136097 | CU63: 77.31% | CV63: 20.31% | CW63: 2.38% | CX63: 1 | CY63: 1 | CZ63: 1 | DA63: 1 | DB63: 1
C64: 55 | D64: 55 | E64: 0.05 | F64: 2.092835759 | G64: 0 | H64: 0 | I64: 12665.625 | J64: 0.05 | K64: 0 | L64: 0 | M64: 2.092835759 | N64: 7599.375 | O64: 1 | P64: 31.81588176 | Q64: 8.514109204 | R64: 0.4073736461 | S64: 252299.25 | T64: 0.5 | U64: 15.90794088 | V64: 4.257054602 | W64: 0.2036868231 | X64: 126149.625 | Y64: 1.5 | Z64: 47.27054955 | AA64: 12.42021956 | AB64: 1.452419008 | AC64: 376358.38 | AD64: 30.73056635 | AE64: 23.7581782 | AF64: 6.242402353 | AG64: 0.7299857935 | AH64: 189157.7218 | AI64: 30.79887226 | AJ64: 22.94505932 | AK64: 5.612225078 | AL64: 2.241587864 | AM64: 185412.5944 | AN64: 688.8091008 | AO64: 512.9990628 | AP64: 125.3959185 | AQ64: 50.41411948 | AR64: 74.48% | AS64: 18.20% | AT64: 7.32% | AU64: 298.2995799 | AV64: 101932.38340 | AW64: 3393.070484 | AX64: 2622.840517 | AY64: 688.9601513 | AZ64: 81.2698157 | BA64: 77.30% | BB64: 20.30% | BC64: 2.40% | BD64: 298.9656736 | BE64: 101325.0465 | BF64: -607.3834046 | BG64: -4.10 | BH64: -122.2939195 | BI64: -3.056802038 | BJ64: -0.7471953206 | BK64: -0.3004020754 | BL64: -122.3403956 | BM64: -4.096822009 | BN64: -3.166700067 | BO64: -0.831752363 | BP64: -0.0983695791 | BQ64: 509.9422608 | BR64: 124.6487232 | BS64: 50.1137174 | BT64: 74.48% | BU64: 18.20% | BV64: 18.20% | BW64: 7.32% | BX64: 18.44595466 | BY64: 138.4 | BZ64: 298.2996 | CA64: 4121225.282 | CB64: 2622.730619 | CC64: 688.8755942 | CD64: 81.47184819 | CE64: 77.30% | CF64: 20.30% | CG64: 20.30% | CH64: 2.40% | CI64: 20.57138631 | CJ64: 154.3 | CK64: 298.9649 | CL64: 20883215.07 | CM64: 101325 | CN64: 298.9648848 | CO64: 298.2995799 | CP64: -24704.30637 | CQ64: 2625.897319 | CR64: 689.7073466 | CS64: 81.57021777 | CT64: 3397.174884 | CU64: 77.30% | CV64: 20.30% | CW64: 2.40% | CX64: 1 | CY64: 1 | CZ64: 1 | DA64: 1 | DB64: 1
C65: 56 | D65: 56 | E65: 0.05 | F65: 2.092835759 | G65: 0 | H65: 0 | I65: 12665.625 | J65: 0.05 | K65: 0 | L65: 0 | M65: 2.092835759 | N65: 7599.375 | O65: 1 | P65: 31.81588176 | Q65: 8.514109204 | R65: 0.4073736461 | S65: 252299.25 | T65: 0.5 | U65: 15.90794088 | V65: 4.257054602 | W65: 0.2036868231 | X65: 126149.625 | Y65: 1.5 | Z65: 47.26208468 | AA65: 12.413664 | AB65: 1.468137582 | AC65: 376319.349 | AD65: 30.73091724 | AE65: 23.75392376 | AF65: 6.239107526 | AG65: 0.7378859485 | AH65: 189138.1048 | AI65: 30.79945551 | AJ65: 22.93827389 | AK65: 5.60696136 | AL65: 2.254220259 | AM65: 185381.3688 | AN65: 688.8218346 | AO65: 512.8507464 | AP65: 125.2808693 | AQ65: 50.69021885 | AR65: 74.45% | AS65: 18.19% | AT65: 7.36% | AU65: 298.2940574 | AV65: 101932.38065 | AW65: 3393.108761 | AX65: 2622.376707 | AY65: 688.6009479 | AZ65: 82.13110539 | BA65: 77.29% | BB65: 20.29% | BC65: 2.42% | BD65: 298.9623026 | BE65: 101325.047 | BF65: -607.3806542 | BG65: -4.10 | BH65: -122.2933658 | BI65: -3.055904511 | BJ65: -0.7465064182 | BK65: -0.3020459062 | BL65: -122.3403444 | BM65: -4.096866525 | BN65: -3.166138329 | BO65: -0.8313180035 | BP65: -0.09941019196 | BQ65: 509.7948419 | BR65: 124.5343629 | BS65: 50.38817294 | BT65: 74.45% | BU65: 18.19% | BV65: 18.19% | BW65: 7.36% | BX65: 18.42869004 | BY65: 138.2 | BZ65: 298.2941 | CA65: 4120546.891 | CB65: 2622.266474 | CC65: 688.5161363 | CD65: 82.3337411 | CE65: 77.28% | CF65: 20.29% | CG65: 20.29% | CH65: 2.43% | CI65: 20.56042007 | CJ65: 154.2 | CK65: 298.9615 | CL65: 20881074.94 | CM65: 101325 | CN65: 298.9615113 | CO65: 298.2940574 | CP65: -24700.12797 | CQ65: 2625.432612 | CR65: 689.3474543 | CS65: 82.4331513 | CT65: 3397.213217 | CU65: 77.28% | CV65: 20.29% | CW65: 2.43% | CX65: 1 | CY65: 1 | CZ65: 1 | DA65: 1 | DB65: 1
C66: 57 | D66: 57 | E66: 0.05 | F66: 2.092835759 | G66: 0 | H66: 0 | I66: 12665.625 | J66: 0.05 | K66: 0 | L66: 0 | M66: 2.092835759 | N66: 7599.375 | O66: 1 | P66: 31.81588176 | Q66: 8.514109204 | R66: 0.4073736461 | S66: 252299.25 | T66: 0.5 | U66: 15.90794088 | V66: 4.257054602 | W66: 0.2036868231 | X66: 126149.625 | Y66: 1.5 | Z66: 47.25372069 | AA66: 12.4071865 | AB66: 1.483669049 | AC66: 376280.7835 | AD66: 30.73126402 | AE66: 23.74972002 | AF66: 6.235851936 | AG66: 0.7456920641 | AH66: 189118.7218 | AI66: 30.80002572 | AJ66: 22.93164268 | AK66: 5.601817196 | AL66: 2.266565846 | AM66: 185350.8533 | AN66: 688.8342876 | AO66: 512.705755 | AP66: 125.1683977 | AQ66: 50.96013492 | AR66: 74.43% | AS66: 18.17% | AT66: 7.40% | AU66: 298.2886568 | AV66: 101932.37795 | AW66: 3393.146583 | AX66: 2621.918498 | AY66: 688.2460789 | AZ66: 82.98200631 | BA66: 77.27% | BB66: 20.28% | BC66: 2.45% | BD66: 298.9589715 | BE66: 101325.0475 | BF66: -607.3779496 | BG66: -4.10 | BH66: -122.2928212 | BI66: -3.055027034 | BJ66: -0.7458329361 | BK66: -0.3036529009 | BL66: -122.3402943 | BM66: -4.096910528 | BN66: -3.165583398 | BO66: -0.8308888972 | BP66: -0.1004382321 | BQ66: 509.650728 | BR66: 124.4225647 | BS66: 50.65648202 | BT66: 74.43% | BU66: 18.17% | BV66: 18.17% | BW66: 7.40% | BX66: 18.41181271 | BY66: 138.1 | BZ66: 298.2887 | CA66: 4119883.716 | CB66: 2621.807942 | CC66: 688.1610229 | CD66: 83.18522098 | CE66: 77.27% | CF66: 20.28% | CG66: 20.28% | CH66: 2.45% | CI66: 20.54958656 | CJ66: 154.1 | CK66: 298.9582 | CL66: 20878960.72 | CM66: 101325 | CN66: 298.9581779 | CO66: 298.2886568 | CP66: -24696.04268 | CQ66: 2624.973525 | CR66: 688.9919118 | CS66: 83.28565921 | CT66: 3397.251096 | CU66: 77.27% | CV66: 20.28% | CW66: 2.45% | CX66: 1 | CY66: 1 | CZ66: 1 | DA66: 1 | DB66: 1
C67: 58 | D67: 58 | E67: 0.05 | F67: 2.092835759 | G67: 0 | H67: 0 | I67: 12665.625 | J67: 0.05 | K67: 0 | L67: 0 | M67: 2.092835759 | N67: 7599.375 | O67: 1 | P67: 31.81588176 | Q67: 8.514109204 | R67: 0.4073736461 | S67: 252299.25 | T67: 0.5 | U67: 15.90794088 | V67: 4.257054602 | W67: 0.2036868231 | X67: 126149.625 | Y67: 1.5 | Z67: 47.24545787 | AA67: 12.40078729 | AB67: 1.499012872 | AC67: 376242.6848 | AD67: 30.73160669 | AE67: 23.74556712 | AF67: 6.232635694 | AG67: 0.7534038695 | AH67: 189099.5734 | AI67: 30.80058336 | AJ67: 22.92516013 | AK67: 5.596788278 | AL67: 2.278634952 | AM67: 185321.0223 | AN67: 688.8464695 | AO67: 512.5639707 | AP67: 125.0584121 | AQ67: 51.2240867 | AR67: 74.41% | AS67: 18.15% | AT67: 7.44% | AU67: 298.2833739 | AV67: 101932.37529 | AW67: 3393.183951 | AX67: 2621.4659 | AY67: 687.895552 | AZ67: 83.82249965 | BA67: 77.26% | BB67: 20.27% | BC67: 2.47% | BD67: 298.9556807 | BE67: 101325.048 | BF67: -607.3752897 | BG67: -4.10 | BH67: -122.2922856 | BI67: -3.054168897 | BJ67: -0.7451743284 | BK67: -0.3052243647 | BL67: -122.3402454 | BM67: -4.09695402 | BN67: -3.165035288 | BO67: -0.8304650536 | BP67: -0.1014536785 | BQ67: 509.5098018 | BR67: 124.3132378 | BS67: 50.91886233 | BT67: 74.41% | BU67: 18.15% | BV67: 18.15% | BW67: 7.44% | BX67: 18.39530893 | BY67: 138 | BZ67: 298.2834 | CA67: 4119235.22 | CB67: 2621.355033 | CC67: 687.8102613 | CD67: 84.02627034 | CE67: 77.25% | CF67: 20.27% | CG67: 20.27% | CH67: 2.48% | CI67: 20.538886 | CJ67: 154.1 | CK67: 298.9549 | CL67: 20876872.44 | CM67: 101325 | CN67: 298.9548847 | CO67: 298.2833739 | CP67: -24692.04723 | CQ67: 2624.520068 | CR67: 688.6407263 | CS67: 84.12772402 | CT67: 3397.288519 | CU67: 77.25% | CV67: 20.27% | CW67: 2.48% | CX67: 1 | CY67: 1 | CZ67: 1 | DA67: 1 | DB67: 1
C68: 59 | D68: 59 | E68: 0.05 | F68: 2.092835759 | G68: 0 | H68: 0 | I68: 12665.625 | J68: 0.05 | K68: 0 | L68: 0 | M68: 2.092835759 | N68: 7599.375 | O68: 1 | P68: 31.81588176 | Q68: 8.514109204 | R68: 0.4073736461 | S68: 252299.25 | T68: 0.5 | U68: 15.90794088 | V68: 4.257054602 | W68: 0.2036868231 | X68: 126149.625 | Y68: 1.5 | Z68: 47.23729637 | AA68: 12.39446651 | AB68: 1.514168735 | AC68: 376205.0536 | AD68: 30.73194523 | AE68: 23.74146516 | AF68: 6.229458866 | AG68: 0.7610212063 | AH68: 189080.66 | AI68: 30.80112887 | AJ68: 22.91882098 | AK68: 5.591870524 | AL68: 2.290437369 | AM68: 185291.8516 | AN68: 688.8583898 | AO68: 512.4252817 | AP68: 124.9508262 | AQ68: 51.48228193 | AR68: 74.39% | AS68: 18.14% | AT68: 7.47% | AU68: 298.2782046 | AV68: 101932.37267 | AW68: 3393.220864 | AX68: 2621.018915 | AY68: 687.5493702 | AZ68: 84.65257824 | BA68: 77.24% | BB68: 20.26% | BC68: 2.49% | BD68: 298.9524299 | BE68: 101325.0484 | BF68: -607.3726734 | BG68: -4.10 | BH68: -122.2917588 | BI68: -3.053329429 | BJ68: -0.7445300775 | BK68: -0.306761536 | BL68: -122.3401977 | BM68: -4.096997003 | BN68: -3.164494003 | BO68: -0.8300464761 | BP68: -0.1024565241 | BQ68: 509.3719523 | BR68: 124.2062961 | BS68: 51.17552039 | BT68: 74.39% | BU68: 18.14% | BV68: 18.14% | BW68: 7.47% | BX68: 18.37916566 | BY68: 137.9 | BZ68: 298.2782 | CA68: 4118600.89 | CB68: 2620.907751 | CC68: 687.4638538 | CD68: 84.85688325 | CE68: 77.24% | CF68: 20.26% | CG68: 20.26% | CH68: 2.50% | CI68: 20.52831846 | CJ68: 154 | CK68: 298.9516 | CL68: 20874810.12 | CM68: 101325 | CN68: 298.9516317 | CO68: 298.2782046 | CP68: -24688.1385 | CQ68: 2624.072245 | CR68: 688.2939003 | CS68: 84.95933977 | CT68: 3397.325485 | CU68: 77.24% | CV68: 20.26% | CW68: 2.50% | CX68: 1 | CY68: 1 | CZ68: 1 | DA68: 1 | DB68: 1
C69: 60 | D69: 60 | E69: 0.05 | F69: 2.092835759 | G69: 0 | H69: 0 | I69: 12665.625 | J69: 0.05 | K69: 0 | L69: 0 | M69: 2.092835759 | N69: 7599.375 | O69: 1 | P69: 31.81588176 | Q69: 8.514109204 | R69: 0.4073736461 | S69: 252299.25 | T69: 0.5 | U69: 15.90794088 | V69: 4.257054602 | W69: 0.2036868231 | X69: 126149.625 | Y69: 1.5 | Z69: 47.22923626 | AA69: 12.38822418 | AB69: 1.529136531 | AC69: 376167.8903 | AD69: 30.73227964 | AE69: 23.73741414 | AF69: 6.226321473 | AG69: 0.7685440207 | AH69: 189061.9816 | AI69: 30.80166267 | AJ69: 22.91262022 | AK69: 5.58706006 | AL69: 2.301982388 | AM69: 185263.3181 | AN69: 688.8700573 | AO69: 512.289582 | AP69: 124.8455575 | AQ69: 51.73491778 | AR69: 74.37% | AS69: 18.12% | AT69: 7.51% | AU69: 298.2731451 | AV69: 101932.37010 | AW69: 3393.257321 | AX69: 2620.577543 | AY69: 687.207532 | AZ69: 85.47224556 | BA69: 77.23% | BB69: 20.25% | BC69: 2.52% | BD69: 298.9492194 | BE69: 101325.0489 | BF69: -607.3700999 | BG69: -4.10 | BH69: -122.2912407 | BI69: -3.052507994 | BJ69: -0.743899692 | BK69: -0.3082655897 | BL69: -122.3401514 | BM69: -4.097039481 | BN69: -3.163959543 | BO69: -0.8296331629 | BP69: -0.1034467747 | BQ69: 509.237074 | BR69: 124.1016578 | BS69: 51.42665219 | BT69: 74.37% | BU69: 18.12% | BV69: 18.12% | BW69: 7.51% | BX69: 18.36337054 | BY69: 137.7 | BZ69: 298.2731 | CA69: 4117980.24 | CB69: 2620.466092 | CC69: 687.1217986 | CD69: 85.67706437 | CE69: 77.23% | CF69: 20.25% | CG69: 20.25% | CH69: 2.52% | CI69: 20.51788386 | CJ69: 153.9 | CK69: 298.9484 | CL69: 20872773.75 | CM69: 101325 | CN69: 298.948419 | CO69: 298.2731451 | CP69: -24684.31354 | CQ69: 2623.630051 | CR69: 687.9514317 | CS69: 85.78051115 | CT69: 3397.361994 | CU69: 77.23% | CV69: 20.25% | CW69: 2.52% | CX69: 1 | CY69: 1 | CZ69: 1 | DA69: 1 | DB69: 1
C70: 61 | D70: 61 | E70: 0.05 | F70: 2.092835759 | G70: 0 | H70: 0 | I70: 12665.625 | J70: 0.05 | K70: 0 | L70: 0 | M70: 2.092835759 | N70: 7599.375 | O70: 1 | P70: 31.81588176 | Q70: 8.514109204 | R70: 0.4073736461 | S70: 252299.25 | T70: 0.5 | U70: 15.90794088 | V70: 4.257054602 | W70: 0.2036868231 | X70: 126149.625 | Y70: 1.5 | Z70: 47.22127748 | AA70: 12.38206028 | AB70: 1.543916345 | AC70: 376131.1944 | AD70: 30.73260991 | AE70: 23.73341406 | AF70: 6.223223498 | AG70: 0.775972355 | AH70: 189043.5383 | AI70: 30.80218514 | AJ70: 22.90655311 | AK70: 5.582353211 | AL70: 2.313278824 | AM70: 185235.3999 | AN70: 688.8814803 | AO70: 512.1567707 | AP70: 124.7425281 | AQ70: 51.98218148 | AR70: 74.35% | AS70: 18.11% | AT70: 7.55% | AU70: 298.2681918 | AV70: 101932.36757 | AW70: 3393.293323 | AX70: 2620.141776 | AY70: 686.8700318 | AZ70: 86.28151496 | BA70: 77.22% | BB70: 20.24% | BC70: 2.54% | BD70: 298.946049 | BE70: 101325.0494 | BF70: -607.3675681 | BG70: -4.10 | BH70: -122.2907309 | BI70: -3.051703985 | BJ70: -0.7432827053 | BK70: -0.3097376418 | BL70: -122.3401065 | BM70: -4.097081455 | BN70: -3.1634319 | BO70: -0.829225107 | BP70: -0.1044244479 | BQ70: 509.1050667 | BR70: 123.9992454 | BS70: 51.67244384 | BT70: 74.35% | BU70: 18.11% | BV70: 18.11% | BW70: 7.55% | BX70: 18.34791182 | BY70: 137.6 | BZ70: 298.2682 | CA70: 4117372.809 | CB70: 2620.030048 | CC70: 686.7840894 | CD70: 86.48682816 | CE70: 77.21% | CF70: 20.24% | CG70: 20.24% | CH70: 2.55% | CI70: 20.50758202 | CJ70: 153.8 | CK70: 298.9452 | CL70: 20870763.28 | CM70: 101325 | CN70: 298.9452466 | CO70: 298.2681918 | CP70: -24680.56955 | CQ70: 2623.19348 | CR70: 687.6133145 | CS70: 86.59125261 | CT70: 3397.398047 | CU70: 77.21% | CV70: 20.24% | CW70: 2.55% | CX70: 1 | CY70: 1 | CZ70: 1 | DA70: 1 | DB70: 1
C71: 62 | D71: 62 | E71: 0.05 | F71: 2.092835759 | G71: 0 | H71: 0 | I71: 12665.625 | J71: 0.05 | K71: 0 | L71: 0 | M71: 2.092835759 | N71: 7599.375 | O71: 1 | P71: 31.81588176 | Q71: 8.514109204 | R71: 0.4073736461 | S71: 252299.25 | T71: 0.5 | U71: 15.90794088 | V71: 4.257054602 | W71: 0.2036868231 | X71: 126149.625 | Y71: 1.5 | Z71: 47.21341989 | AA71: 12.3759747 | AB71: 1.558508436 | AC71: 376094.9655 | AD71: 30.73293606 | AE71: 23.72946484 | AF71: 6.220164885 | AG71: 0.7833063401 | AH71: 189025.3296 | AI71: 30.80269668 | AJ71: 22.90061514 | AK71: 5.577746485 | AL71: 2.324335048 | AM71: 185208.0764 | AN71: 688.8926669 | AO71: 512.0267522 | AP71: 124.6416638 | AQ71: 52.22425089 | AR71: 74.33% | AS71: 18.09% | AT71: 7.58% | AU71: 298.2633411 | AV71: 101932.36508 | AW71: 3393.32887 | AX71: 2619.711601 | AY71: 686.5368601 | AZ71: 87.0804089 | BA71: 77.20% | BB71: 20.23% | BC71: 2.57% | BD71: 298.9429187 | BE71: 101325.0498 | BF71: -607.3650774 | BG71: -4.10 | BH71: -122.2902294 | BI71: -3.050916828 | BJ71: -0.7426786743 | BK71: -0.3111787523 | BL71: -122.340063 | BM71: -4.097122929 | BN71: -3.16291106 | BO71: -0.828822297 | BP71: -0.105389572 | BQ71: 508.9758354 | BR71: 123.8989851 | BS71: 51.91307214 | BT71: 74.33% | BU71: 18.09% | BV71: 18.09% | BW71: 7.58% | BX71: 18.33277837 | BY71: 137.5 | BZ71: 298.2633 | CA71: 4116778.158 | CB71: 2619.599607 | CC71: 686.4507165 | CD71: 87.28619808 | CE71: 77.20% | CF71: 20.23% | CG71: 20.23% | CH71: 2.57% | CI71: 20.49741262 | CJ71: 153.7 | CK71: 298.9421 | CL71: 20868778.67 | CM71: 101325 | CN71: 298.9421143 | CO71: 298.2633411 | CP71: -24676.90387 | CQ71: 2622.762518 | CR71: 687.2795388 | CS71: 87.39158765 | CT71: 3397.433644 | CU71: 77.20% | CV71: 20.23% | CW71: 2.57% | CX71: 1 | CY71: 1 | CZ71: 1 | DA71: 1 | DB71: 1
C72: 63 | D72: 63 | E72: 0.05 | F72: 2.092835759 | G72: 0 | H72: 0 | I72: 12665.625 | J72: 0.05 | K72: 0 | L72: 0 | M72: 2.092835759 | N72: 7599.375 | O72: 1 | P72: 31.81588176 | Q72: 8.514109204 | R72: 0.4073736461 | S72: 252299.25 | T72: 0.5 | U72: 15.90794088 | V72: 4.257054602 | W72: 0.2036868231 | X72: 126149.625 | Y72: 1.5 | Z72: 47.20566326 | AA72: 12.36996726 | AB72: 1.572913228 | AC72: 376059.2023 | AD72: 30.73325809 | AE72: 23.72556636 | AF72: 6.217145545 | AG72: 0.7905461885 | AH72: 189007.3551 | AI72: 30.80319763 | AJ72: 22.89480205 | AK72: 5.573236567 | AL72: 2.335159015 | AM72: 185181.3278 | AN72: 688.9036246 | AO72: 511.8994354 | AP72: 124.5428941 | AQ72: 52.46129507 | AR72: 74.31% | AS72: 18.08% | AT72: 7.62% | AU72: 298.2585897 | AV72: 101932.36263 | AW72: 3393.363964 | AX72: 2619.287002 | AY72: 686.2080041 | AZ72: 87.86895815 | BA72: 77.19% | BB72: 20.22% | BC72: 2.59% | BD72: 298.9398284 | BE72: 101325.0503 | BF72: -607.3626268 | BG72: -4.10 | BH72: -122.289736 | BI72: -3.050145977 | BJ72: -0.7420871777 | BK72: -0.3125899288 | BL72: -122.3400211 | BM72: -4.097163906 | BN72: -3.162397003 | BO72: -0.8284247172 | BP72: -0.1063421855 | BQ72: 508.8492895 | BR72: 123.8008069 | BS72: 52.14870514 | BT72: 74.31% | BU72: 18.08% | BV72: 18.08% | BW72: 7.62% | BX72: 18.31795957 | BY72: 137.4 | BZ72: 298.2586 | CA72: 4116195.872 | CB72: 2619.174751 | CC72: 686.1216665 | CD72: 88.07520589 | CE72: 77.19% | CF72: 20.22% | CG72: 20.22% | CH72: 2.60% | CI72: 20.48737527 | CJ72: 153.7 | CK72: 298.9390 | CL72: 20866819.82 | CM72: 101325 | CN72: 298.939022 | CO72: 298.2585897 | CP72: -24673.31396 | CQ72: 2622.337148 | CR72: 686.9500912 | CS72: 88.18154807 | CT72: 3397.468787 | CU72: 77.19% | CV72: 20.22% | CW72: 2.60% | CX72: 1 | CY72: 1 | CZ72: 1 | DA72: 1 | DB72: 1
C73: 64 | D73: 64 | E73: 0.05 | F73: 2.092835759 | G73: 0 | H73: 0 | I73: 12665.625 | J73: 0.05 | K73: 0 | L73: 0 | M73: 2.092835759 | N73: 7599.375 | O73: 1 | P73: 31.81588176 | Q73: 8.514109204 | R73: 0.4073736461 | S73: 252299.25 | T73: 0.5 | U73: 15.90794088 | V73: 4.257054602 | W73: 0.2036868231 | X73: 126149.625 | Y73: 1.5 | Z73: 47.19800728 | AA73: 12.36403772 | AB73: 1.587131293 | AC73: 376023.9034 | AD73: 30.73357601 | AE73: 23.72171846 | AF73: 6.214165358 | AG73: 0.7976921879 | AH73: 188989.6139 | AI73: 30.80368833 | AJ73: 22.88910974 | AK73: 5.568820306 | AL73: 2.345758282 | AM73: 185155.1353 | AN73: 688.9143607 | AO73: 511.7747339 | AP73: 124.446152 | AQ73: 52.69347481 | AR73: 74.29% | AS73: 18.06% | AT73: 7.65% | AU73: 298.2539346 | AV73: 101932.36022 | AW73: 3393.398606 | AX73: 2618.867957 | AY73: 685.8834476 | AZ73: 88.64720116 | BA73: 77.18% | BB73: 20.21% | BC73: 2.61% | BD73: 298.9367779 | BE73: 101325.0507 | BF73: -607.3602156 | BG73: -4.10 | BH73: -122.2892505 | BI73: -3.049390911 | BJ73: -0.7415078148 | BK73: -0.3139721297 | BL73: -122.3399808 | BM73: -4.09720439 | BN73: -3.161889706 | BO73: -0.828032348 | BP73: -0.107282336 | BQ73: 508.725343 | BR73: 123.7046441 | BS73: 52.37950268 | BT73: =nN2_NF/(nN2_NF+nO2_NF+nAr_NF) -> 74.29% | BU73: =nO2_NF/(nN2_NF+nO2_NF+nAr_NF) -> 18.06% | BV73: =IF(Tot_Valid="L",-10,IF(CB_O2_perc=TRUE,BU73,-1)) -> 18.06% | BW73: =nAr_NF/(nN2_NF+nO2_NF+nAr_NF) -> 7.65% | BX73: 18.30344534 | BY73: =IF(Tot_Valid="L",-10,IF(CB_pO2=TRUE,Sign_Digit((CO2_NF*p_t)*(Conv_Fact/10)),-1)) -> 137.3 | BZ73: 298.2539 | CA73: =(nN2_NF*cv_N2+nO2_NF*cv_O2+nAr_NF*cv_Ar)*TNF_t_K -> 4115625.553 | CB73: 2618.755459 | CC73: 685.796923 | CD73: 88.85389095 | CE73: =nN2_FF/(nN2_FF+nO2_FF+nAr_FF) -> 77.17% | CF73: =nO2_FF/(nN2_FF+nO2_FF+nAr_FF) -> 20.21% | CG73: =IF(Tot_Valid="L",-10,IF(CB_O2_perc=TRUE,CF73,-1)) -> 20.21% | CH73: =nAr_FF/(nN2_FF+nO2_FF+nAr_FF) -> 2.62% | CI73: 20.47746943 | CJ73: =IF(Tot_Valid="L",-10,IF(CB_pO2=TRUE,Sign_Digit((CO2_FF*p_t)*(Conv_Fact/10)),-1)) -> 153.6 | CK73: 298.9360 | CL73: =(nN2_FF*cv_N2+nO2_FF*cv_O2+nAr_FF*cv_Ar)*TFF_t_K -> 20864886.63 | CM73: =p_t -> 101325 | CN73: 298.9359697 | CO73: 298.2539346 | CP73: -24669.79742 | CQ73: 2621.917348 | CR73: 686.6249554 | CS73: 88.96117329 | CT73: 3397.503477 | CU73: 77.17% | CV73: 20.21% | CW73: 2.62% | CX73: 1 | CY73: 1 | CZ73: 1 | DA73: 1 | DB73: 1
C74: 65 | D74: =C74*delta_t -> 65 | E74: =IF(RT_ig1="Constant",Q_ig1*teff_ig1,Q_ig1*EXP(-(Alpha_ig1*t))*teff_ig1) -> 0.05 | F74: =(Q_ig1_Time*(CN2_ig1/100)*p_ig1*1000)/(R_ideal_gas*T_ig1_K) -> 2.092835759 | G74: =(Q_ig1_Time*(CO2_ig1/100)*p_ig1*1000)/(R_ideal_gas*T_ig1_K) -> 0 | H74: =(Q_ig1_Time*(CAr_ig1/100)*p_ig1*1000)/(R_ideal_gas*T_ig1_K) -> 0 | I74: =(nN2_ig1*cv_N2+nO2_ig1*cv_O2+nAr_ig1*cv_Ar)*T_ig1_K -> 12665.625 | J74: =IF(RT_ig2="Constant",Q_ig2*teff_ig2,Q_ig2*EXP(-(Alpha_ig2*t))*teff_ig2) -> 0.05 | K74: =(Q_ig2_Time*(CN2_ig2/100)*p_ig2*1000)/(R_ideal_gas*T_ig2_K) -> 0 | L74: =(Q_ig2_Time*(CO2_ig2/100)*p_ig2*1000)/(R_ideal_gas*T_ig2_K) -> 0 | M74: =(Q_ig2_Time*(CAr_ig2/100)*p_ig2*1000)/(R_ideal_gas*T_ig2_K) -> 2.092835759 | N74: =(nN2_ig2*cv_N2+nO2_ig2*cv_O2+nAr_ig2*cv_Ar)*T_ig2_K -> 7599.375 | O74: =Q_in1*teff_in1 -> 1 | P74: =(Q_in1_Time*(CN2_in1/100)*p_in1*1000)/(R_ideal_gas*T_in1_K) -> 31.81588176 | Q74: =(Q_in1_Time*(CO2_in1/100)*p_in1*1000)/(R_ideal_gas*T_in1_K) -> 8.514109204 | R74: =(Q_in1_Time*(CAr_in1/100)*p_in1*1000)/(R_ideal_gas*T_in1_K) -> 0.4073736461 | S74: =(nN2_in1*cv_N2+nO2_in1*cv_O2+nAr_in1*cv_Ar)*T_in1_K -> 252299.25 | T74: =Q_in2*teff_in2 -> 0.5 | U74: =(Q_in2_Time*(CN2_in2/100)*p_in2*1000)/(R_ideal_gas*T_in2_K) -> 15.90794088 | V74: =(Q_in2_Time*(CO2_in2/100)*p_in2*1000)/(R_ideal_gas*T_in2_K) -> 4.257054602 | W74: =(Q_in2_Time*(CAr_in2/100)*p_in2*1000)/(R_ideal_gas*T_in2_K) -> 0.2036868231 | X74: =(nN2_in2*cv_N2+nO2_in2*cv_O2+nAr_in2*cv_Ar)*T_in2_K -> 126149.625 | Y74: =Q_out*teff_out -> 1.5 | Z74: =(Q_out_Time*$CE73*CM73)/(R_ideal_gas*$CK73) -> 47.19045156 | AA74: =(Q_out_Time*$CF73*CM73)/(R_ideal_gas*$CK73) -> 12.35818578 | AB74: =(Q_out_Time*$CH73*CM73)/(R_ideal_gas*$CK73) -> 1.60116334 | AC74: =(nN2_out*cv_N2+nO2_out*cv_O2+nAr_out*cv_Ar)*CK73 -> 375989.0671 | AD74: =(CM73*Beta_volume)/(R_ideal_gas*CK73) -> 30.73388982 | AE74: =IF(nbeta_inNF*$CE73>0,nbeta_inNF*$CE73,0) -> 23.71792095 | AF74: =IF(nbeta_inNF*$CF73>0,nbeta_inNF*$CF73,0) -> 6.211224174 | AG74: =IF(nbeta_inNF*$CH73>0,nbeta_inNF*$CH73,0) -> 0.8047446947 | AH74: =(nN2beta_inNF*cv_N2+nO2beta_inNF*cv_O2+nArbeta_inNF*cv_Ar)*CK73 -> 188972.1051 | AI74: =(CM73*Beta_volume)/(R_ideal_gas*BZ73) -> 30.80416912 | AJ74: =IF(nbeta_outNF*$BT73>0,nbeta_outNF*$BT73,0) -> 22.88353437 | AK74: =IF(nbeta_outNF*$BU73>0,nbeta_outNF*$BU73,0) -> 5.564494703 | AL74: =IF(nbeta_outNF*$BW73>0,nbeta_outNF*$BW73,0) -> 2.35614004 | AM74: =(nN2beta_outNF*cv_N2+nO2beta_outNF*cv_O2+nArbeta_outNF*cv_Ar)*BZ73 -> 185129.4812 | AN74: =nN2_NF_temp+nO2_NF_temp+nAr_NF_temp -> 688.9248821 | AO74: =IF(BQ73+nN2_ig1+nN2_ig2+nN2beta_inNF-nN2beta_outNF>0,BQ73+nN2_ig1+nN2_ig2+nN2beta_inNF-nN2beta_outNF,0) -> 511.6525654 | AP74: =IF(BR73+nO2_ig1+nO2_ig2+nO2beta_inNF-nO2beta_outNF>0,BR73+nO2_ig1+nO2_ig2+nO2beta_inNF-nO2beta_outNF,0) -> 124.3513736 | AQ74: =IF(BS73+nAr_ig1+nAr_ig2+nArbeta_inNF-nArbeta_outNF>0,BS73+nAr_ig1+nAr_ig2+nArbeta_inNF-nArbeta_outNF,0) -> 52.92094309 | AR74: =IF(nN2_NF_temp/(nN2_NF_temp+nO2_NF_temp+nAr_NF_temp)>0,IF(nN2_NF_temp/(nN2_NF_temp+nO2_NF_temp+nAr_NF_temp)>=100%,100%,nN2_NF_temp/(nN2_NF_temp+nO2_NF_temp+nAr_NF_temp)),0) -> 74.27% | AS74: =IF(nO2_NF_temp/(nN2_NF_temp+nO2_NF_temp+nAr_NF_temp)>0,IF(nO2_NF_temp/(nN2_NF_temp+nO2_NF_temp+nAr_NF_temp)>=100%,100%,nO2_NF_temp/(nN2_NF_temp+nO2_NF_temp+nAr_NF_temp)),0) -> 18.05% | AT74: =IF(nAr_NF_temp/(nN2_NF_temp+nO2_NF_temp+nAr_NF_temp)>0,IF(nAr_NF_temp/(nN2_NF_temp+nO2_NF_temp+nAr_NF_temp)>=100%,100%,nAr_NF_temp/(nN2_NF_temp+nO2_NF_temp+nAr_NF_temp)),0) -> 7.68% | AU74: =(CA73+E_ig1+E_ig2+E_betainNF-E_betaoutNF)/(nN2_NF_temp*cv_N2+nO2_NF_temp*cv_O2+nAr_NF_temp*cv_Ar) -> 298.2493726 | AV74: =nNF_temp*R_ideal_gas*TNF_temp/VNF -> 101932.35784 | AW74: =nN2_FF_temp+nO2_FF_temp+nAr_FF_temp -> 3393.432798 | AX74: =IF(CB73+nN2_in1+nN2_in2-nN2_out-nN2beta_inNF+nN2beta_outNF>0,CB73+nN2_in1+nN2_in2-nN2_out-nN2beta_inNF+nN2beta_outNF,0) -> 2618.454443 | AY74: =IF(CC73+nO2_in1+nO2_in2-nO2_out-nO2beta_inNF+nO2beta_outNF>0,CC73+nO2_in1+nO2_in2-nO2_out-nO2beta_inNF+nO2beta_outNF,0) -> 685.5631716 | AZ74: =IF(CD73+nAr_in1+nAr_in2-nAr_out-nArbeta_inNF+nArbeta_outNF>0,CD73+nAr_in1+nAr_in2-nAr_out-nArbeta_inNF+nArbeta_outNF,0) -> 89.41518343 | BA74: =IF(nN2_FF_temp/(nN2_FF_temp+nO2_FF_temp+nAr_FF_temp)>0,IF(nN2_FF_temp/(nN2_FF_temp+nO2_FF_temp+nAr_FF_temp)>=100%,100%,nN2_FF_temp/(nN2_FF_temp+nO2_FF_temp+nAr_FF_temp)),0) -> 77.16% | BB74: =IF(nO2_FF_temp/(nN2_FF_temp+nO2_FF_temp+nAr_FF_temp)>0,IF(nO2_FF_temp/(nN2_FF_temp+nO2_FF_temp+nAr_FF_temp)>=100%,100%,nO2_FF_temp/(nN2_FF_temp+nO2_FF_temp+nAr_FF_temp)),0) -> 20.20% | BC74: =IF(nAr_FF_temp/(nN2_FF_temp+nO2_FF_temp+nAr_FF_temp)>0,IF(nAr_FF_temp/(nN2_FF_temp+nO2_FF_temp+nAr_FF_temp)>=100%,100%,nAr_FF_temp/(nN2_FF_temp+nO2_FF_temp+nAr_FF_temp)),0) -> 2.63% | BD74: =(CL73+E_in1+E_in2-E_out-E_betainNF+E_betaoutNF)/(nN2_FF_temp*cv_N2+nO2_FF_temp*cv_O2+nAr_FF_temp*cv_Ar) -> 298.9337671 | BE74: =nFF_temp*R_ideal_gas*TFF_temp/VFF -> 101325.0512 | BF74: =p_t-pNF_temp -> -607.357843 | BG74: =IF(ppair_NF<0,(ppair_NF*VNF)/(R_ideal_gas*TNF_temp),(ppair_NF*VNF)/(R_ideal_gas*TFF_temp)) -> -4.10 | BH74: =IF(ppair_NF<0,(nair*R_ideal_gas*TNF_temp)/VFF,(nair*R_ideal_gas*TFF_temp)/VFF) -> -122.2887728 | BI74: =IF(nair>0,nair*CN2_FF_temp,nair*CN2_NF_temp) -> -3.048651136 | BJ74: =IF(nair>0,nair*CO2_FF_temp,nair*CO2_NF_temp) -> -0.7409402044 | BK74: =IF(nair>0,nair*CAr_FF_temp,nair*CAr_NF_temp) -> -0.3153262666 | BL74: =p_t-pFF_temp+ppair_FF -> -122.3399421 | BM74: =IF(ppnat<0,(ppnat*VFF)/(R_ideal_gas*CN74),(ppnat*VFF)/(R_ideal_gas*Toe_t_K)) -> -4.097244384 | BN74: =IF(nnat>0,nnat*CN2_t_oe,nnat*CU74) -> -3.161389138 | BO74: =IF(nnat>0,nnat*CO2_t_oe,nnat*CV74) -> -0.8276451662 | BP74: =IF(nnat>0,nnat*CAr_t_oe,nnat*CW74) -> -0.1082100797 | BQ74: =IF(BQ73+nN2_ig1+nN2_ig2+nN2beta_inNF-nN2beta_outNF+nN2_air>0,BQ73+nN2_ig1+nN2_ig2+nN2beta_inNF-nN2beta_outNF+nN2_air,0) -> 508.6039142 | BR74: =IF(BR73+nO2_ig1+nO2_ig2+nO2beta_inNF-nO2beta_outNF+nO2_air>0,BR73+nO2_ig1+nO2_ig2+nO2beta_inNF-nO2beta_outNF+nO2_air,0) -> 123.6104334 | BS74: =IF(BS73+nAr_ig1+nAr_ig2+nArbeta_inNF-nArbeta_outNF+nAr_air>0,BS73+nAr_ig1+nAr_ig2+nArbeta_inNF-nArbeta_outNF+nAr_air,0) -> 52.60561682 | BT74: 74.27% | BU74: 18.05% | BV74: 18.05% | BW74: 7.68% | BX74: =(CO2_NF*p_t)/1000 -> 18.2892261 | BY74: 137.2 | BZ74: =(pwe_t*VNF)/((nN2_NF+nO2_NF+nAr_NF)*R_ideal_gas) -> 298.2494 | CA74: 4115066.825 | CB74: =IF(CB73+nN2_in1+nN2_in2-nN2_out-nN2beta_inNF+nN2beta_outNF+nN2_nat-nN2_air>0,CB73+nN2_in1+nN2_in2-nN2_out-nN2beta_inNF+nN2beta_outNF+nN2_nat-nN2_air,0) -> 2618.341705 | CC74: =IF(CC73+nO2_in1+nO2_in2-nO2_out-nO2beta_inNF+nO2beta_outNF+nO2_nat-nO2_air>0,CC73+nO2_in1+nO2_in2-nO2_out-nO2beta_inNF+nO2beta_outNF+nO2_nat-nO2_air,0) -> 685.4764666 | CD74: =IF(CD73+nAr_in1+nAr_in2-nAr_out-nArbeta_inNF+nArbeta_outNF+nAr_nat-nAr_air>0,CD73+nAr_in1+nAr_in2-nAr_out-nArbeta_inNF+nArbeta_outNF+nAr_nat-nAr_air,0) -> 89.62229961 | CE74: 77.16% | CF74: 20.20% | CG74: 20.20% | CH74: 2.64% | CI74: =(CO2_FF*p_t)/1000 -> 20.46769453 | CJ74: 153.5 | CK74: =(pwe_t*VFF)/((nN2_FF+nO2_FF+nAr_FF)*R_ideal_gas) -> 298.9329 | CL74: 20862979 | CM74: 101325 | CN74: =(CL73+E_in1+E_in2-E_out-E_betainNF+E_betaoutNF-CP74)/(CQ74*cv_N2+CR74*cv_O2+CS74*cv_Ar) -> 298.9329571 | CO74: =IF(_xlfn.SINGLE(ppair_NF)<0,_xlfn.SINGLE(TNF_temp),_xlfn.SINGLE(TFF_temp)) -> 298.2493726 | CP74: =CO74*(nN2_air*cv_N2+nO2_air*cv_O2+nAr_air*cv_Ar) -> -24666.35194 | CQ74: =IF(nN2_FF_temp-nN2_air>0,nN2_FF_temp-nN2_air,0) -> 2621.503094 | CR74: =IF(nO2_FF_temp-nO2_air>0,nO2_FF_temp-nO2_air,0) -> 686.3041118 | CS74: =IF(nAr_FF_temp-nAr_air>0,nAr_FF_temp-nAr_air,0) -> 89.73050969 | CT74: =nN2_FF_ast+nO2_FF_ast+nAr_FF_ast -> 3397.537716 | CU74: =IF(nN2_FF_ast/nFF_ast>0,IF(nN2_FF_ast/nFF_ast>=100%,100%,nN2_FF_ast/nFF_ast),0) -> 77.16% | CV74: =IF(nO2_FF_ast/nFF_ast>0,IF(nO2_FF_ast/nFF_ast>=100%,100%,nO2_FF_ast/nFF_ast),0) -> 20.20% | CW74: =IF(nAr_FF_ast/nFF_ast>0,IF(nAr_FF_ast/nFF_ast>=100%,100%,nAr_FF_ast/nFF_ast),0) -> 2.64% | CX74: =IF(AND(t>Time_ig1,t<(Time_ig1+Dur_ig1+delta_t)),IF(t<(Time_ig1+delta_t),t-Time_ig1,IF(t>(Time_ig1+Dur_ig1),Time_ig1+Dur_ig1+delta_t-t,delta_t)),0) -> 1 | CY74: =IF(AND(t>Time_ig2,t<(Time_ig2+Dur_ig2+delta_t)),IF(t<(Time_ig2+delta_t),t-Time_ig2,IF(t>(Time_ig2+Dur_ig2),Time_ig2+Dur_ig2+delta_t-t,delta_t)),0) -> 1 | CZ74: =IF(AND(t>Time_in1,t<(Time_in1+Dur_in1+delta_t)),IF(t<(Time_in1+delta_t),t-Time_in1,IF(t>(Time_in1+Dur_in1),Time_in1+Dur_in1+delta_t-t,delta_t)),0) -> 1 | DA74: =IF(AND(t>Time_in2,t<(Time_in2+Dur_in2+delta_t)),IF(t<(Time_in2+delta_t),t-Time_in2,IF(t>(Time_in2+Dur_in2),Time_in2+Dur_in2+delta_t-t,delta_t)),0) -> 1 | DB74: =IF(AND(t>Time_out,t<(Time_out+Dur_out+delta_t)),IF(t<(Time_out+delta_t),t-Time_out,IF(t>(Time_out+Dur_out),Time_out+Dur_out+delta_t-t,delta_t)),0) -> 1
C75: 66 | D75: 66 | E75: 0.05 | F75: 2.092835759 | G75: 0 | H75: 0 | I75: 12665.625 | J75: 0.05 | K75: 0 | L75: 0 | M75: 2.092835759 | N75: 7599.375 | O75: 1 | P75: 31.81588176 | Q75: 8.514109204 | R75: 0.4073736461 | S75: 252299.25 | T75: 0.5 | U75: 15.90794088 | V75: 4.257054602 | W75: 0.2036868231 | X75: 126149.625 | Y75: 1.5 | Z75: 47.18299565 | AA75: 12.3524111 | AB75: 1.615010204 | AC75: 375954.6913 | AD75: 30.73419956 | AE75: 23.71417361 | AF75: 6.208321819 | AG75: 0.8117041288 | AH75: 188954.8278 | AI75: 30.80464029 | AJ75: 22.87807225 | AK75: 5.560256906 | AL75: 2.366311129 | AM75: 185104.3484 | AN75: 688.9351952 | AO75: 511.5328513 | AP75: 124.2584983 | AQ75: 53.14384558 | AR75: 74.25% | AS75: 18.04% | AT75: 7.71% | AU75: 298.2449011 | AV75: 101932.3555 | AW75: 3393.466542 | AX75: 2618.046431 | AY75: 685.2471544 | AZ75: 90.17295688 | BA75: 77.15% | BB75: 20.19% | BC75: 2.66% | BD75: 298.9307959 | BE75: 101325.0516 | BF75: -607.3555084 | BG75: -4.10 | BH75: -122.2883027 | BI75: -3.04792618 | BJ75: -0.7403839835 | BK75: -0.3166532078 | BL75: -122.339905 | BM75: -4.097283892 | BN75: -3.160895266 | BO75: -0.8272631456 | BP75: -0.1091254801 | BQ75: 508.4849252 | BR75: 123.5181143 | BS75: 52.82719237 | BT75: 74.25% | BU75: 18.04% | BV75: 18.04% | BW75: 7.71% | BX75: 18.2752927 | BY75: 137.1 | BZ75: 298.2449 | CA75: 4114519.329 | CB75: 2617.933462 | CC75: 685.1602752 | CD75: 90.38048461 | CE75: 77.15% | CF75: 20.19% | CG75: 20.19% | CH75: 2.66% | CI75: 20.45804988 | CJ75: 153.4 | CK75: 298.9300 | CL75: 20861096.79 | CM75: 101325 | CN75: 298.9299841 | CO75: 298.2449011 | CP75: -24662.97536 | CQ75: 2621.094357 | CR75: 685.9875384 | CS75: 90.48961009 | CT75: 3397.571505 | CU75: 77.15% | CV75: 20.19% | CW75: 2.66% | CX75: 1 | CY75: 1 | CZ75: 1 | DA75: 1 | DB75: 1
C76: 67 | D76: 67 | E76: 0.05 | F76: 2.092835759 | G76: 0 | H76: 0 | I76: 12665.625 | J76: 0.05 | K76: 0 | L76: 0 | M76: 2.092835759 | N76: 7599.375 | O76: 1 | P76: 31.81588176 | Q76: 8.514109204 | R76: 0.4073736461 | S76: 252299.25 | T76: 0.5 | U76: 15.90794088 | V76: 4.257054602 | W76: 0.2036868231 | X76: 126149.625 | Y76: 1.5 | Z76: 47.17563903 | AA76: 12.34671327 | AB76: 1.628672837 | AC76: 375920.7735 | AD76: 30.73450523 | AE76: 23.71047617 | AF76: 6.205458091 | AG76: 0.8185709676 | AH76: 188937.7808 | AI76: 30.80510214 | AJ76: 22.87271987 | AK76: 5.5561042 | AL76: 2.376278063 | AM76: 185079.7209 | AN76: 688.9453065 | AO76: 511.4155172 | AP76: 124.1674682 | AQ76: 53.36232104 | AR76: 74.23% | AS76: 18.02% | AT76: 7.75% | AU76: 298.2405172 | AV76: 101932.3532 | AW76: 3393.49984 | AX76: 2617.643889 | AY76: 684.9353719 | AZ76: 90.92057933 | BA76: 77.14% | BB76: 20.18% | BC76: 2.68% | BD76: 298.9278639 | BE76: 101325.052 | BF76: -607.3532109 | BG76: -4.11 | BH76: -122.2878402 | BI76: -3.047215597 | BJ76: -0.7398388063 | BK76: -0.3179537802 | BL76: -122.3398696 | BM76: -4.097322918 | BN76: -3.160408053 | BO76: -0.8268862567 | BP76: -0.1100286082 | BQ76: 508.3683016 | BR76: 123.4276294 | BS76: 53.04436726 | BT76: 74.23% | BU76: 18.02% | BV76: 18.02% | BW76: 7.75% | BX76: 18.26163645 | BY76: 137 | BZ76: 298.2405 | CA76: 4113982.723 | CB76: 2617.530697 | CC76: 684.8483244 | CD76: 91.12850451 | CE76: 77.13% | CF76: 20.18% | CG76: 20.18% | CH76: 2.69% | CI76: 20.44853472 | CJ76: 153.4 | CK76: 298.9270 | CL76: 20859239.85 | CM76: 101325 | CN76: 298.9270505 | CO76: 298.2405172 | CP76: -24659.6656 | CQ76: 2620.691105 | CR76: 685.6752107 | CS76: 91.23853312 | CT76: 3397.604848 | CU76: 77.13% | CV76: 20.18% | CW76: 2.69% | CX76: 1 | CY76: 1 | CZ76: 1 | DA76: 1 | DB76: 1
C77: 68 | D77: 68 | E77: 0.05 | F77: 2.092835759 | G77: 0 | H77: 0 | I77: 12665.625 | J77: 0.05 | K77: 0 | L77: 0 | M77: 2.092835759 | N77: 7599.375 | O77: 1 | P77: 31.81588176 | Q77: 8.514109204 | R77: 0.4073736461 | S77: 252299.25 | T77: 0.5 | U77: 15.90794088 | V77: 4.257054602 | W77: 0.2036868231 | X77: 126149.625 | Y77: 1.5 | Z77: 47.16838112 | AA77: 12.34109186 | AB77: 1.642152292 | AC77: 375887.3111 | AD77: 30.73480687 | AE77: 23.70682835 | AF77: 6.20263277 | AG77: 0.8253457418 | AH77: 188920.9626 | AI77: 30.80555495 | AJ77: 22.8674739 | AK77: 5.552033999 | AL77: 2.386047045 | AM77: 185055.5832 | AN77: 688.9552217 | AO77: 511.3004918 | AP77: 124.0782282 | AQ77: 53.57650171 | AR77: 74.21% | AS77: 18.01% | AT77: 7.78% | AU77: 298.2362184 | AV77: 101932.3509 | AW77: 3393.532695 | AX77: 2617.246784 | AY77: 684.6277976 | AZ77: 91.65811399 | BA77: 77.12% | BB77: 20.17% | BC77: 2.70% | BD77: 298.9249711 | BE77: 101325.0525 | BF77: -607.35095 | BG77: -4.11 | BH77: -122.2873849 | BI77: -3.046518956 | BJ77: -0.7393043432 | BK77: -0.3192287719 | BL77: -122.339836 | BM77: -4.097361465 | BN77: -3.159927457 | BO77: -0.8265144674 | BP77: -0.1109195411 | BQ77: 508.2539729 | BR77: 123.3389238 | BS77: 53.25727294 | BT77: 74.21% | BU77: 18.01% | BV77: 18.01% | BW77: 7.78% | BX77: 18.24824905 | BY77: 136.9 | BZ77: 298.2362 | CA77: 4113456.682 | CB77: 2617.133375 | CC77: 684.5405875 | CD77: 91.86642322 | CE77: 77.12% | CF77: 20.17% | CG77: 20.17% | CH77: 2.71% | CI77: 20.43914825 | CJ77: 153.3 | CK77: 298.9241 | CL77: 20857408.02 | CM77: 101325 | CN77: 298.924156 | CO77: 298.2362184 | CP77: -24656.42066 | CQ77: 2620.293303 | CR77: 685.3671019 | CS77: 91.97734276 | CT77: 3397.637747 | CU77: 77.12% | CV77: 20.17% | CW77: 2.71% | CX77: 1 | CY77: 1 | CZ77: 1 | DA77: 1 | DB77: 1
C78: 69 | D78: 69 | E78: 0.05 | F78: 2.092835759 | G78: 0 | H78: 0 | I78: 12665.625 | J78: 0.05 | K78: 0 | L78: 0 | M78: 2.092835759 | N78: 7599.375 | O78: 1 | P78: 31.81588176 | Q78: 8.514109204 | R78: 0.4073736461 | S78: 252299.25 | T78: 0.5 | U78: 15.90794088 | V78: 4.257054602 | W78: 0.2036868231 | X78: 126149.625 | Y78: 1.5 | Z78: 47.16122132 | AA78: 12.33554639 | AB78: 1.655449722 | AC78: 375854.3012 | AD78: 30.73510448 | AE78: 23.70322984 | AF78: 6.199845614 | AG78: 0.8320290301 | AH78: 188904.3718 | AI78: 30.80599898 | AJ78: 22.86233115 | AK78: 5.548043836 | AL78: 2.39562399 | AM78: 185031.9208 | AN78: 688.9649467 | AO78: 511.1877073 | AP78: 123.9907256 | AQ78: 53.78651374 | AR78: 74.20% | AS78: 18.00% | AT78: 7.81% | AU78: 298.2320022 | AV78: 101932.3487 | AW78: 3393.56511 | AX78: 2616.855078 | AY78: 684.3244031 | AZ78: 92.38562893 | BA78: 77.11% | BB78: 20.17% | BC78: 2.72% | BD78: 298.922117 | BE78: 101325.0529 | BF78: -607.348725 | BG78: -4.11 | BH78: -122.2869369 | BI78: -3.045835852 | BJ78: -0.7387802798 | BK78: -0.3204789348 | BL78: -122.3398041 | BM78: -4.097399539 | BN78: -3.159453434 | BO78: -0.8261477432 | BP78: -0.111798362 | BQ78: 508.1418715 | BR78: 123.2519453 | BS78: 53.46603481 | BT78: 74.20% | BU78: 18.00% | BV78: 18.00% | BW78: 7.81% | BX78: 18.23512261 | BY78: 136.8 | BZ78: 298.2320 | CA78: 4112940.894 | CB78: 2616.74146 | CC78: 684.2370357 | CD78: 92.5943095 | CE78: 77.11% | CF78: 20.16% | CG78: 20.16% | CH78: 2.73% | CI78: 20.42988956 | CJ78: 153.2 | CK78: 298.9213 | CL78: 20855601.14 | CM78: 101325 | CN78: 298.9213003 | CO78: 298.2320022 | CP78: -24653.23867 | CQ78: 2619.900914 | CR78: 685.0631834 | CS78: 92.70610786 | CT78: 3397.670205 | CU78: 77.11% | CV78: 20.16% | CW78: 2.73% | CX78: 1 | CY78: 1 | CZ78: 1 | DA78: 1 | DB78: 1
C79: 70 | D79: 70 | E79: 0.05 | F79: 2.092835759 | G79: 0 | H79: 0 | I79: 12665.625 | J79: 0.05 | K79: 0 | L79: 0 | M79: 2.092835759 | N79: 7599.375 | O79: 1 | P79: 31.81588176 | Q79: 8.514109204 | R79: 0.4073736461 | S79: 252299.25 | T79: 0.5 | U79: 15.90794088 | V79: 4.257054602 | W79: 0.2036868231 | X79: 126149.625 | Y79: 1.5 | Z79: 47.15415894 | AA79: 12.33007633 | AB79: 1.668566365 | AC79: 375821.7408 | AD79: 30.7353981 | AE79: 23.69968028 | AF79: 6.197096362 | AG79: 0.8386214552 | AH79: 188888.0069 | AI79: 30.80643449 | AJ79: 22.8572886 | AK79: 5.54413136 | AL79: 2.405014537 | AM79: 185008.7196 | AN79: 688.9744867 | AO79: 511.0770989 | AP79: 123.9049103 | AQ79: 53.99247748 | AR79: 74.18% | AS79: 17.98% | AT79: 7.84% | AU79: 298.2278662 | AV79: 101932.3465 | AW79: 3393.597087 | AX79: 2616.468732 | AY79: 684.0251581 | AZ79: 93.10319668 | BA79: 77.10% | BB79: 20.16% | BC79: 2.74% | BD79: 298.9193015 | BE79: 101325.0533 | BF79: -607.3465352 | BG79: -4.11 | BH79: -122.286496 | BI79: -3.045165895 | BJ79: -0.7382663163 | BK79: -0.3217049861 | BL79: -122.3397739 | BM79: -4.097437142 | BN79: -3.158985936 | BO79: -0.8257860471 | BP79: -0.1126651592 | BQ79: 508.031933 | BR79: 123.166644 | BS79: 53.6707725 | BT79: 74.18% | BU79: 17.98% | BV79: 17.98% | BW79: 7.84% | BX79: 18.22224956 | BY79: 136.7 | BZ79: 298.2279 | CA79: 4112435.064 | CB79: 2616.354912 | CC79: 683.9376384 | CD79: 93.31223651 | CE79: 77.10% | CF79: 20.15% | CG79: 20.15% | CH79: 2.75% | CI79: 20.42075774 | CJ79: 153.2 | CK79: 298.9185 | CL79: 20853819.01 | CM79: 101325 | CN79: 298.9184833 | CO79: 298.2278662 | CP79: -24650.11781 | CQ79: 2619.513898 | CR79: 684.7634244 | CS79: 93.42490167 | CT79: 3397.702224 | CU79: 77.10% | CV79: 20.15% | CW79: 2.75% | CX79: 1 | CY79: 1 | CZ79: 1 | DA79: 1 | DB79: 1
C80: 71 | D80: 71 | E80: 0.05 | F80: 2.092835759 | G80: 0 | H80: 0 | I80: 12665.625 | J80: 0.05 | K80: 0 | L80: 0 | M80: 2.092835759 | N80: 7599.375 | O80: 1 | P80: 31.81588176 | Q80: 8.514109204 | R80: 0.4073736461 | S80: 252299.25 | T80: 0.5 | U80: 15.90794088 | V80: 4.257054602 | W80: 0.2036868231 | X80: 126149.625 | Y80: 1.5 | Z80: 47.14719328 | AA80: 12.32468113 | AB80: 1.681503541 | AC80: 375789.6265 | AD80: 30.73568776 | AE80: 23.69617934 | AF80: 6.194384738 | AG80: 0.8451236798 | AH80: 188871.8663 | AI80: 30.80686173 | AJ80: 22.85234334 | AK80: 5.540294328 | AL80: 2.414224068 | AM80: 184985.9663 | AN80: 688.9838471 | AO80: 510.9686048 | AP80: 123.8207344 | AQ80: 54.19450787 | AR80: 74.16% | AS80: 17.97% | AT80: 7.87% | AU80: 298.2238083 | AV80: 101932.3444 | AW80: 3393.62863 | AX80: 2616.087706 | AY80: 683.7300307 | AZ80: 93.81089383 | BA80: 77.09% | BB80: 20.15% | BC80: 2.76% | BD80: 298.9165244 | BE80: 101325.0537 | BF80: -607.34438 | BG80: -4.11 | BH80: -122.2860621 | BI80: -3.044508712 | BJ80: -0.7377621662 | BK80: -0.3229076107 | BL80: -122.3397455 | BM80: -4.09747428 | BN80: -3.158524913 | BO80: -0.8254293404 | BP80: -0.113520026 | BQ80: 507.9240961 | BR80: 123.0829723 | BS80: 53.87160026 | BT80: 74.16% | BU80: 17.97% | BV80: 17.97% | BW80: 7.87% | BX80: 18.20962272 | BY80: 136.6 | BZ80: 298.2238 | CA80: 4111938.907 | CB80: 2615.973689 | CC80: 683.6423635 | CD80: 94.02028141 | CE80: 77.08% | CF80: 20.14% | CG80: 20.14% | CH80: 2.77% | CI80: 20.41175178 | CJ80: 153.1 | CK80: 298.9157 | CL80: 20852061.44 | CM80: 101325 | CN80: 298.9157047 | CO80: 298.2238083 | CP80: -24647.05637 | CQ80: 2619.132214 | CR80: 684.4677928 | CS80: 94.13380144 | CT80: 3397.733808 | CU80: 77.08% | CV80: 20.14% | CW80: 2.77% | CX80: 1 | CY80: 1 | CZ80: 1 | DA80: 1 | DB80: 1
C81: 72 | D81: 72 | E81: 0.05 | F81: 2.092835759 | G81: 0 | H81: 0 | I81: 12665.625 | J81: 0.05 | K81: 0 | L81: 0 | M81: 2.092835759 | N81: 7599.375 | O81: 1 | P81: 31.81588176 | Q81: 8.514109204 | R81: 0.4073736461 | S81: 252299.25 | T81: 0.5 | U81: 15.90794088 | V81: 4.257054602 | W81: 0.2036868231 | X81: 126149.625 | Y81: 1.5 | Z81: 47.14032357 | AA81: 12.31936023 | AB81: 1.69426264 | AC81: 375757.9548 | AD81: 30.73597348 | AE81: 23.69272663 | AF81: 6.19171045 | AG81: 0.8515364027 | AH81: 188855.9481 | AI81: 30.80728092 | AJ81: 22.8474926 | AK81: 5.536530597 | AL81: 2.423257723 | AM81: 184963.6481 | AN81: 688.9930327 | AO81: 510.8621658 | AP81: 123.7381521 | AQ81: 54.3927147 | AR81: 74.15% | AS81: 17.96% | AT81: 7.89% | AU81: 298.2198262 | AV81: 101932.3423 | AW81: 3393.659742 | AX81: 2615.711954 | AY81: 683.4389872 | AZ81: 94.50880056 | BA81: 77.08% | BB81: 20.14% | BC81: 2.78% | BD81: 298.9137852 | BE81: 101325.0541 | BF81: -607.3422589 | BG81: -4.11 | BH81: -122.285635 | BI81: -3.043863949 | BJ81: -0.7372675558 | BK81: -0.3240874631 | BL81: -122.3397188 | BM81: -4.097510955 | BN81: -3.158070313 | BO81: -0.8250775823 | BP81: -0.1143630599 | BQ81: 507.8183019 | BR81: 123.0008846 | BS81: 54.06862723 | BT81: 74.15% | BU81: 17.96% | BV81: 17.96% | BW81: 7.89% | BX81: 18.1972352 | BY81: 136.5 | BZ81: 298.2198 | CA81: 4111452.155 | CB81: 2615.597748 | CC81: 683.3511772 | CD81: 94.71852497 | CE81: 77.07% | CF81: 20.14% | CG81: 20.14% | CH81: 2.79% | CI81: 20.40287065 | CJ81: 153 | CK81: 298.9129 | CL81: 20850328.23 | CM81: 101325 | CN81: 298.912964 | CO81: 298.2198262 | CP81: -24644.05269 | CQ81: 2618.755818 | CR81: 684.1762548 | CS81: 94.83288803 | CT81: 3397.764961 | CU81: 77.07% | CV81: 20.14% | CW81: 2.79% | CX81: 1 | CY81: 1 | CZ81: 1 | DA81: 1 | DB81: 1
C82: 73 | D82: 73 | E82: 0.05 | F82: 2.092835759 | G82: 0 | H82: 0 | I82: 12665.625 | J82: 0.05 | K82: 0 | L82: 0 | M82: 2.092835759 | N82: 7599.375 | O82: 1 | P82: 31.81588176 | Q82: 8.514109204 | R82: 0.4073736461 | S82: 252299.25 | T82: 0.5 | U82: 15.90794088 | V82: 4.257054602 | W82: 0.2036868231 | X82: 126149.625 | Y82: 1.5 | Z82: 47.13354904 | AA82: 12.314113 | AB82: 1.706845116 | AC82: 375726.7222 | AD82: 30.73625529 | AE82: 23.68932175 | AF82: 6.189073192 | AG82: 0.8578603553 | AH82: 188840.2506 | AI82: 30.80769229 | AJ82: 22.84273376 | AK82: 5.532838119 | AL82: 2.43212041 | AM82: 184941.7529 | AN82: 689.0020482 | AO82: 510.7577256 | AP82: 123.6571196 | AQ82: 54.58720294 | AR82: 74.13% | AS82: 17.95% | AT82: 7.92% | AU82: 298.2159179 | AV82: 101932.3402 | AW82: 3393.690427 | AX82: 2615.341434 | AY82: 683.1519929 | AZ82: 95.19700037 | BA82: 77.06% | BB82: 20.13% | BC82: 2.81% | BD82: 298.9110836 | BE82: 101325.0545 | BF82: -607.3401713 | BG82: -4.11 | BH82: -122.2852147 | BI82: -3.043231266 | BJ82: -0.7367822234 | BK82: -0.3252451688 | BL82: -122.3396939 | BM82: -4.097547173 | BN82: -3.157622081 | BO82: -0.8247307304 | BP82: -0.1151943623 | BQ82: 507.7144944 | BR82: 122.9203374 | BS82: 54.26195777 | BT82: 74.13% | BU82: 17.95% | BV82: 17.95% | BW82: 7.92% | BX82: 18.18508041 | BY82: 136.4 | BZ82: 298.2159 | CA82: 4110974.547 | CB82: 2615.227043 | CC82: 683.0640444 | CD82: 95.40705118 | CE82: 77.06% | CF82: 20.13% | CG82: 20.13% | CH82: 2.81% | CI82: 20.39411329 | CJ82: 153 | CK82: 298.9102 | CL82: 20848619.18 | CM82: 101325 | CN82: 298.9102611 | CO82: 298.2159179 | CP82: -24641.10521 | CQ82: 2618.384665 | CR82: 683.8887751 | CS82: 95.52224554 | CT82: 3397.795686 | CU82: 77.06% | CV82: 20.13% | CW82: 2.81% | CX82: 1 | CY82: 1 | CZ82: 1 | DA82: 1 | DB82: 1
C83: 74 | D83: 74 | E83: 0.05 | F83: 2.092835759 | G83: 0 | H83: 0 | I83: 12665.625 | J83: 0.05 | K83: 0 | L83: 0 | M83: 2.092835759 | N83: 7599.375 | O83: 1 | P83: 31.81588176 | Q83: 8.514109204 | R83: 0.4073736461 | S83: 252299.25 | T83: 0.5 | U83: 15.90794088 | V83: 4.257054602 | W83: 0.2036868231 | X83: 126149.625 | Y83: 1.5 | Z83: 47.12686886 | AA83: 12.30893881 | AB83: 1.719252484 | AC83: 375695.9247 | AD83: 30.73653324 | AE83: 23.68596429 | AF83: 6.186472646 | AG83: 0.8640962985 | AH83: 188824.7718 | AI83: 30.80809604 | AJ83: 22.83806428 | AK83: 5.529214939 | AL83: 2.440816823 | AM83: 184920.2692 | AN83: 689.0108983 | AO83: 510.6552302 | AP83: 123.5775951 | AQ83: 54.778073 | AR83: 74.11% | AS83: 17.94% | AT83: 7.95% | AU83: 298.2120814 | AV83: 101932.3381 | AW83: 3393.720688 | AX83: 2614.976097 | AY83: 682.8690117 | AZ83: 95.87557969 | BA83: 77.05% | BB83: 20.12% | BC83: 2.83% | BD83: 298.9084195 | BE83: 101325.0549 | BF83: -607.3381166 | BG83: -4.11 | BH83: -122.284801 | BI83: -3.042610338 | BJ83: -0.7363059189 | BK83: -0.3263813261 | BL83: -122.3396708 | BM83: -4.097582938 | BN83: -3.157180159 | BO83: -0.8243887409 | BP83: -0.1160140383 | BQ83: 507.6126198 | BR83: 122.8412892 | BS83: 54.45169168 | BT83: 74.11% | BU83: 17.94% | BV83: 17.94% | BW83: 7.95% | BX83: 18.17315206 | BY83: 136.3 | BZ83: 298.2121 | CA83: 4110505.837 | CB83: 2614.861527 | CC83: 682.7809289 | CD83: 96.08594698 | CE83: 77.05% | CF83: 20.12% | CG83: 20.12% | CH83: 2.83% | CI83: 20.38547857 | CJ83: 152.9 | CK83: 298.9076 | CL83: 20846934.07 | CM83: 101325 | CN83: 298.9075956 | CO83: 298.2120814 | CP83: -24638.21242 | CQ83: 2618.018707 | CR83: 683.6053176 | CS83: 96.20196102 | CT83: 3397.825986 | CU83: 77.05% | CV83: 20.12% | CW83: 2.83% | CX83: 1 | CY83: 1 | CZ83: 1 | DA83: 1 | DB83: 1
C84: 75 | D84: 75 | E84: 0.05 | F84: 2.092835759 | G84: 0 | H84: 0 | I84: 12665.625 | J84: 0.05 | K84: 0 | L84: 0 | M84: 2.092835759 | N84: 7599.375 | O84: 1 | P84: 31.81588176 | Q84: 8.514109204 | R84: 0.4073736461 | S84: 252299.25 | T84: 0.5 | U84: 15.90794088 | V84: 4.257054602 | W84: 0.2036868231 | X84: 126149.625 | Y84: 1.5 | Z84: 47.1202822 | AA84: 12.30383702 | AB84: 1.73148631 | AC84: 375665.5586 | AD84: 30.73680734 | AE84: 23.68265383 | AF84: 6.183908485 | AG84: 0.8702450195 | AH84: 188809.5098 | AI84: 30.80849238 | AJ84: 22.83348175 | AK84: 5.525659185 | AL84: 2.449351453 | AM84: 184899.1856 | AN84: 689.0195872 | AO84: 510.5546277 | AP84: 123.4995385 | AQ84: 54.965421 | AR84: 74.10% | AS84: 17.92% | AT84: 7.98% | AU84: 298.2083149 | AV84: 101932.3361 | AW84: 3393.750529 | AX84: 2614.615895 | AY84: 682.5900064 | AZ84: 96.54462757 | BA84: 77.04% | BB84: 20.11% | BC84: 2.84% | BD84: 298.9057923 | BE84: 101325.0553 | BF84: -607.3360943 | BG84: -4.11 | BH84: -122.2843938 | BI84: -3.042000854 | BJ84: -0.7358384026 | BK84: -0.3274965079 | BL84: -122.3396493 | BM84: -4.097618254 | BN84: -3.156744489 | BO84: -0.8240515684 | BP84: -0.116822196 | BQ84: 507.5126268 | BR84: 122.7637001 | BS84: 54.63792449 | BT84: 74.10% | BU84: 17.92% | BV84: 17.92% | BW84: 7.98% | BX84: 18.16144413 | BY84: 136.2 | BZ84: 298.2083 | CA84: 4110045.789 | CB84: 2614.501151 | CC84: 682.5017932 | CD84: 96.75530188 | CE84: 77.04% | CF84: 20.11% | CG84: 20.11% | CH84: 2.85% | CI84: 20.37696535 | CJ84: 152.8 | CK84: 298.9049 | CL84: 20845272.66 | CM84: 101325 | CN84: 298.9049671 | CO84: 298.2083149 | CP84: -24635.37288 | CQ84: 2617.657896 | CR84: 683.3258448 | CS84: 96.87212408 | CT84: 3397.855865 | CU84: 77.04% | CV84: 20.11% | CW84: 2.85% | CX84: 1 | CY84: 1 | CZ84: 1 | DA84: 1 | DB84: 1
C85: 76 | D85: 76 | E85: 0.05 | F85: 2.092835759 | G85: 0 | H85: 0 | I85: 12665.625 | J85: 0.05 | K85: 0 | L85: 0 | M85: 2.092835759 | N85: 7599.375 | O85: 1 | P85: 31.81588176 | Q85: 8.514109204 | R85: 0.4073736461 | S85: 252299.25 | T85: 0.5 | U85: 15.90794088 | V85: 4.257054602 | W85: 0.2036868231 | X85: 126149.625 | Y85: 1.5 | Z85: 47.11378817 | AA85: 12.29880694 | AB85: 1.743548208 | AC85: 375635.6198 | AD85: 30.73707763 | AE85: 23.67938993 | AF85: 6.181380369 | AG85: 0.8763073293 | AH85: 188794.4625 | AI85: 30.80888151 | AJ85: 22.82898385 | AK85: 5.522169064 | AL85: 2.457728596 | AM85: 184878.4916 | AN85: 689.028119 | AO85: 510.4558686 | AP85: 123.4229114 | AQ85: 55.14933898 | AR85: 74.08% | AS85: 17.91% | AT85: 8.00% | AU85: 298.2046165 | AV85: 101932.3341 | AW85: 3393.779954 | AX85: 2614.26078 | AY85: 682.3149388 | AZ85: 97.20423541 | BA85: 77.03% | BB85: 20.10% | BC85: 2.86% | BD85: 298.9032018 | BE85: 101325.0556 | BF85: -607.3341038 | BG85: -4.11 | BH85: -122.283993 | BI85: -3.041402517 | BJ85: -0.7353794451 | BK85: -0.3285912626 | BL85: -122.3396297 | BM85: -4.097653124 | BN85: -3.156315011 | BO85: -0.8237191668 | BP85: -0.1176189463 | BQ85: 507.4144661 | BR85: 122.687532 | BS85: 54.82074772 | BT85: 74.08% | BU85: 17.91% | BV85: 17.91% | BW85: 8.00% | BX85: 18.14995086 | BY85: 136.1 | BZ85: 298.2046 | CA85: 4109594.174 | CB85: 2614.145867 | CC85: 682.226599 | CD85: 97.41520773 | CE85: 77.03% | CF85: 20.10% | CG85: 20.10% | CH85: 2.87% | CI85: 20.36857246 | CJ85: 152.8 | CK85: 298.9024 | CL85: 20843634.74 | CM85: 101325 | CN85: 298.9023753 | CO85: 298.2046165 | CP85: -24632.58519 | CQ85: 2617.302182 | CR85: 683.0503182 | CS85: 97.53282667 | CT85: 3397.885327 | CU85: 77.03% | CV85: 20.10% | CW85: 2.87% | CX85: 1 | CY85: 1 | CZ85: 1 | DA85: 1 | DB85: 1
C86: 77 | D86: 77 | E86: 0.05 | F86: 2.092835759 | G86: 0 | H86: 0 | I86: 12665.625 | J86: 0.05 | K86: 0 | L86: 0 | M86: 2.092835759 | N86: 7599.375 | O86: 1 | P86: 31.81588176 | Q86: 8.514109204 | R86: 0.4073736461 | S86: 252299.25 | T86: 0.5 | U86: 15.90794088 | V86: 4.257054602 | W86: 0.2036868231 | X86: 126149.625 | Y86: 1.5 | Z86: 47.10738588 | AA86: 12.29384789 | AB86: 1.755439832 | AC86: 375606.1041 | AD86: 30.73734416 | AE86: 23.67617215 | AF86: 6.178887951 | AG86: 0.8822840594 | AH86: 188779.6279 | AI86: 30.80926361 | AJ86: 22.82456838 | AK86: 5.518742861 | AL86: 2.465952369 | AM86: 184858.1771 | AN86: 689.0364979 | AO86: 510.3589057 | AP86: 123.3476771 | AQ86: 55.32991517 | AR86: 74.07% | AS86: 17.90% | AT86: 8.03% | AU86: 298.2009846 | AV86: 101932.3321 | AW86: 3393.808967 | AX86: 2613.9107 | AY86: 682.0437699 | AZ86: 97.85449667 | BA86: 77.02% | BB86: 20.10% | BC86: 2.88% | BD86: 298.9006477 | BE86: 101325.056 | BF86: -607.3321446 | BG86: -4.11 | BH86: -122.2835985 | BI86: -3.04081504 | BJ86: -0.7349288264 | BK86: -0.3296661161 | BL86: -122.3396117 | BM86: -4.097687555 | BN86: -3.155891664 | BO86: -0.8233914884 | BP86: -0.1184044026 | BQ86: 507.3180906 | BR86: 122.6127482 | BS86: 55.00024905 | BT86: 74.07% | BU86: 17.90% | BV86: 17.90% | BW86: 8.03% | BX86: 18.1386667 | BY86: 136.1 | BZ86: 298.2010 | CA86: 4109150.777 | CB86: 2613.795624 | CC86: 681.9553072 | CD86: 98.06575839 | CE86: 77.02% | CF86: 20.09% | CG86: 20.09% | CH86: 2.89% | CI86: 20.36029869 | CJ86: 152.7 | CK86: 298.8998 | CL86: 20842020.06 | CM86: 101325 | CN86: 298.8998199 | CO86: 298.2009846 | CP86: -24629.84805 | CQ86: 2616.951515 | CR86: 682.7786987 | CS86: 98.18416279 | CT86: 3397.914377 | CU86: 77.02% | CV86: 20.09% | CW86: 2.89% | CX86: 1 | CY86: 1 | CZ86: 1 | DA86: 1 | DB86: 1
C87: 78 | D87: 78 | E87: 0.05 | F87: 2.092835759 | G87: 0 | H87: 0 | I87: 12665.625 | J87: 0.05 | K87: 0 | L87: 0 | M87: 2.092835759 | N87: 7599.375 | O87: 1 | P87: 31.81588176 | Q87: 8.514109204 | R87: 0.4073736461 | S87: 252299.25 | T87: 0.5 | U87: 15.90794088 | V87: 4.257054602 | W87: 0.2036868231 | X87: 126149.625 | Y87: 1.5 | Z87: 47.10107443 | AA87: 12.28895916 | AB87: 1.767162873 | AC87: 375577.0074 | AD87: 30.73760694 | AE87: 23.67300001 | AF87: 6.176430876 | AG87: 0.8881760602 | AH87: 188765.0039 | AI87: 30.80963885 | AJ87: 22.8202332 | AK87: 5.515378931 | AL87: 2.474026716 | AM87: 184838.2321 | AN87: 689.0447275 | AO87: 510.2636932 | AP87: 123.2738002 | AQ87: 55.50723416 | AR87: 74.05% | AS87: 17.89% | AT87: 8.06% | AU87: 298.1974174 | AV87: 101932.3302 | AW87: 3393.837572 | AX87: 2613.565605 | AY87: 681.7764599 | AZ87: 98.49550664 | BA87: 77.01% | BB87: 20.09% | BC87: 2.90% | BD87: 298.8981295 | BE87: 101325.0564 | BF87: -607.3302162 | BG87: -4.11 | BH87: -122.2832103 | BI87: -3.04023815 | BJ87: -0.7344863357 | BK87: -0.3307215723 | BL87: -122.3395954 | BM87: -4.097721548 | BN87: -3.155474383 | BO87: -0.8230684849 | BP87: -0.1191786804 | BQ87: 507.223455 | BR87: 122.5393138 | BS87: 55.17651259 | BT87: 74.05% | BU87: 17.89% | BV87: 17.89% | BW87: 8.06% | BX87: 18.12758636 | BY87: 136 | BZ87: 298.1974 | CA87: 4108715.389 | CB87: 2613.450369 | CC87: 681.6878778 | CD87: 98.70704953 | CE87: 77.01% | CF87: 20.09% | CG87: 20.09% | CH87: 2.91% | CI87: 20.35214283 | CJ87: 152.7 | CK87: 298.8973 | CL87: 20840428.4 | CM87: 101325 | CN87: 298.8973006 | CO87: 298.1974174 | CP87: -24627.16018 | CQ87: 2616.605843 | CR87: 682.5109462 | CS87: 98.82622821 | CT87: 3397.943018 | CU87: 77.01% | CV87: 20.09% | CW87: 2.91% | CX87: 1 | CY87: 1 | CZ87: 1 | DA87: 1 | DB87: 1
C88: 79 | D88: 79 | E88: 0.05 | F88: 2.092835759 | G88: 0 | H88: 0 | I88: 12665.625 | J88: 0.05 | K88: 0 | L88: 0 | M88: 2.092835759 | N88: 7599.375 | O88: 1 | P88: 31.81588176 | Q88: 8.514109204 | R88: 0.4073736461 | S88: 252299.25 | T88: 0.5 | U88: 15.90794088 | V88: 4.257054602 | W88: 0.2036868231 | X88: 126149.625 | Y88: 1.5 | Z88: 47.09485288 | AA88: 12.28414004 | AB88: 1.778719057 | AC88: 375548.3253 | AD88: 30.73786604 | AE88: 23.66987306 | AF88: 6.174008782 | AG88: 0.893984198 | AH88: 188750.5883 | AI88: 30.81000742 | AJ88: 22.8159763 | AK88: 5.512075698 | AL88: 2.48195542 | AM88: 184818.6475 | AN88: 689.0528116 | AO88: 510.1701875 | AP88: 123.2012469 | AQ88: 55.68137712 | AR88: 74.04% | AS88: 17.88% | AT88: 8.08% | AU88: 298.1939133 | AV88: 101932.3283 | AW88: 3393.865773 | AX88: 2613.225442 | AY88: 681.5129684 | AZ88: 99.12736217 | BA88: 77.00% | BB88: 20.08% | BC88: 2.92% | BD88: 298.895647 | BE88: 101325.0568 | BF88: -607.328318 | BG88: -4.11 | BH88: -122.2828281 | BI88: -3.039671584 | BJ88: -0.7340517705 | BK88: -0.3317581151 | BL88: -122.3395808 | BM88: -4.09775511 | BN88: -3.155063106 | BO88: -0.8227501072 | BP88: -0.1199418971 | BQ88: 507.130516 | BR88: 122.4671952 | BS88: 55.34961901 | BT88: 74.04% | BU88: 17.88% | BV88: 17.88% | BW88: 8.08% | BX88: 18.11670475 | BY88: 135.9 | BZ88: 298.1939 | CA88: 4108287.809 | CB88: 2613.11005 | CC88: 681.4242701 | CD88: 99.33917838 | CE88: 76.99% | CF88: 20.08% | CG88: 20.08% | CH88: 2.93% | CI88: 20.34410363 | CJ88: 152.6 | CK88: 298.8948 | CL88: 20838859.5 | CM88: 101325 | CN88: 298.8948168 | CO88: 298.1939133 | CP88: -24624.52036 | CQ88: 2616.265113 | CR88: 682.2470202 | CS88: 99.45912028 | CT88: 3397.971254 | CU88: 76.99% | CV88: 20.08% | CW88: 2.93% | CX88: 1 | CY88: 1 | CZ88: 1 | DA88: 1 | DB88: 1
C89: 80 | D89: 80 | E89: 0.05 | F89: 2.092835759 | G89: 0 | H89: 0 | I89: 12665.625 | J89: 0.05 | K89: 0 | L89: 0 | M89: 2.092835759 | N89: 7599.375 | O89: 1 | P89: 31.81588176 | Q89: 8.514109204 | R89: 0.4073736461 | S89: 252299.25 | T89: 0.5 | U89: 15.90794088 | V89: 4.257054602 | W89: 0.2036868231 | X89: 126149.625 | Y89: 1.5 | Z89: 47.08872027 | AA89: 12.27938978 | AB89: 1.790110134 | AC89: 375520.0534 | AD89: 30.73812147 | AE89: 23.66679081 | AF89: 6.171621303 | AG89: 0.8997093535 | AH89: 188736.3789 | AI89: 30.81036946 | AJ89: 22.8117957 | AK89: 5.508831648 | AL89: 2.48974211 | AM89: 184799.414 | AN89: 689.0607536 | AO89: 510.0783468 | AP89: 123.1299848 | AQ89: 55.85242201 | AR89: 74.03% | AS89: 17.87% | AT89: 8.11% | AU89: 298.1904709 | AV89: 101932.3264 | AW89: 3393.893574 | AX89: 2612.890158 | AY89: 681.2532545 | AZ89: 99.75016148 | BA89: 76.99% | BB89: 20.07% | BC89: 2.94% | BD89: 298.8931996 | BE89: 101325.0571 | BF89: -607.3264497 | BG89: -4.11 | BH89: -122.2824519 | BI89: -3.03911509 | BJ89: -0.7336249366 | BK89: -0.332776209 | BL89: -122.3395678 | BM89: -4.097788245 | BN89: -3.154657767 | BO89: -0.8224363055 | BP89: -0.1206941717 | BQ89: 507.0392317 | BR89: 122.3963599 | BS89: 55.5196458 | BT89: 74.03% | BU89: 17.87% | BV89: 17.87% | BW89: 8.11% | BX89: 18.10601699 | BY89: 135.8 | BZ89: 298.1905 | CA89: 4107867.846 | CB89: 2612.774615 | CC89: 681.1644431 | CD89: 99.96224351 | CE89: 76.98% | CF89: 20.07% | CG89: 20.07% | CH89: 2.95% | CI89: 20.33617983 | CJ89: 152.5 | CK89: 298.8924 | CL89: 20837313.12 | CM89: 101325 | CN89: 298.8923683 | CO89: 298.1904709 | CP89: -24621.92741 | CQ89: 2615.929273 | CR89: 681.9868794 | CS89: 100.0829377 | CT89: 3397.99909 | CU89: 76.98% | CV89: 20.07% | CW89: 2.95% | CX89: 1 | CY89: 1 | CZ89: 1 | DA89: 1 | DB89: 1
C90: 81 | D90: 81 | E90: 0.05 | F90: 2.092835759 | G90: 0 | H90: 0 | I90: 12665.625 | J90: 0.05 | K90: 0 | L90: 0 | M90: 2.092835759 | N90: 7599.375 | O90: 1 | P90: 31.81588176 | Q90: 8.514109204 | R90: 0.4073736461 | S90: 252299.25 | T90: 0.5 | U90: 15.90794088 | V90: 4.257054602 | W90: 0.2036868231 | X90: 126149.625 | Y90: 1.5 | Z90: 47.08267567 | AA90: 12.27470765 | AB90: 1.801337882 | AC90: 375492.1874 | AD90: 30.73837327 | AE90: 23.66375279 | AF90: 6.169268064 | AG90: 0.9053524193 | AH90: 188722.3734 | AI90: 30.81072515 | AJ90: 22.80768955 | AK90: 5.505645329 | AL90: 2.497390273 | AM90: 184780.5232 | AN90: 689.068557 | AO90: 509.9881307 | AP90: 123.0599826 | AQ90: 56.02044371 | AR90: 74.01% | AS90: 17.86% | AT90: 8.13% | AU90: 298.1870886 | AV90: 101932.3246 | AW90: 3393.920979 | AX90: 2612.559699 | AY90: 680.9972765 | AZ90: 100.364004 | BA90: 76.98% | BB90: 20.07% | BC90: 2.96% | BD90: 298.8907872 | BE90: 101325.0575 | BF90: -607.3246107 | BG90: -4.11 | BH90: -122.2820816 | BI90: -3.038568424 | BJ90: -0.7332056471 | BK90: -0.3337763001 | BL90: -122.3395565 | BM90: -4.097820955 | BN90: -3.154258302 | BO90: -0.8221270292 | BP90: -0.1214356246 | BQ90: 506.9495623 | BR90: 122.326777 | BS90: 55.68666741 | BT90: 74.01% | BU90: 17.86% | BV90: 17.86% | BW90: 8.13% | BX90: 18.09551838 | BY90: 135.7 | BZ90: 298.1871 | CA90: 4107455.316 | CB90: 2612.444009 | CC90: 680.9083551 | CD90: 100.5763446 | CE90: 76.97% | CF90: 20.06% | CG90: 20.06% | CH90: 2.96% | CI90: 20.32837016 | CJ90: 152.5 | CK90: 298.8899 | CL90: 20835789.02 | CM90: 101325 | CN90: 298.8899547 | CO90: 298.1870886 | CP90: -24619.38022 | CQ90: 2615.598267 | CR90: 681.7304822 | CS90: 100.6977803 | CT90: 3398.02653 | CU90: 76.97% | CV90: 20.06% | CW90: 2.96% | CX90: 1 | CY90: 1 | CZ90: 1 | DA90: 1 | DB90: 1
C91: 82 | D91: 82 | E91: 0.05 | F91: 2.092835759 | G91: 0 | H91: 0 | I91: 12665.625 | J91: 0.05 | K91: 0 | L91: 0 | M91: 2.092835759 | N91: 7599.375 | O91: 1 | P91: 31.81588176 | Q91: 8.514109204 | R91: 0.4073736461 | S91: 252299.25 | T91: 0.5 | U91: 15.90794088 | V91: 4.257054602 | W91: 0.2036868231 | X91: 126149.625 | Y91: 1.5 | Z91: 47.07671808 | AA91: 12.2700929 | AB91: 1.812404096 | AC91: 375464.7228 | AD91: 30.7386215 | AE91: 23.66075851 | AF91: 6.16694869 | AG91: 0.9109142986 | AH91: 188708.5697 | AI91: 30.81107463 | AJ91: 22.80365603 | AK91: 5.502515343 | AL91: 2.504903255 | AM91: 184761.9668 | AN91: 689.0762251 | AO91: 509.8995006 | AP91: 122.9912103 | AQ91: 56.18551421 | AR91: 74.00% | AS91: 17.85% | AT91: 8.15% | AU91: 298.1837651 | AV91: 101932.3228 | AW91: 3393.947994 | AX91: 2612.234011 | AY91: 680.7449927 | AZ91: 100.96899 | BA91: 76.97% | BB91: 20.06% | BC91: 2.97% | BD91: 298.8884092 | BE91: 101325.0578 | BF91: -607.3228005 | BG91: -4.11 | BH91: -122.2817172 | BI91: -3.038031354 | BJ91: -0.7327937227 | BK91: -0.3347588174 | BL91: -122.3395468 | BM91: -4.097853247 | BN91: -3.153864642 | BO91: -0.8218222274 | BP91: -0.1221663774 | BQ91: 506.8614692 | BR91: 122.2584166 | BS91: 55.85075539 | BT91: 74.00% | BU91: 17.85% | BV91: 17.85% | BW91: 8.15% | BX91: 18.08520441 | BY91: 135.7 | BZ91: 298.1838 | CA91: 4107050.042 | CB91: 2612.118178 | CC91: 680.6559642 | CD91: 101.1815824 | CE91: 76.96% | CF91: 20.05% | CG91: 20.05% | CH91: 2.98% | CI91: 20.32067333 | CJ91: 152.4 | CK91: 298.8876 | CL91: 20834286.94 | CM91: 101325 | CN91: 298.8875756 | CO91: 298.1837651 | CP91: -24616.8777 | CQ91: 2615.272042 | CR91: 681.4777864 | CS91: 101.3037488 | CT91: 3398.053577 | CU91: 76.96% | CV91: 20.05% | CW91: 2.98% | CX91: 1 | CY91: 1 | CZ91: 1 | DA91: 1 | DB91: 1
C92: 83 | D92: 83 | E92: 0.05 | F92: 2.092835759 | G92: 0 | H92: 0 | I92: 12665.625 | J92: 0.05 | K92: 0 | L92: 0 | M92: 2.092835759 | N92: 7599.375 | O92: 1 | P92: 31.81588176 | Q92: 8.514109204 | R92: 0.4073736461 | S92: 252299.25 | T92: 0.5 | U92: 15.90794088 | V92: 4.257054602 | W92: 0.2036868231 | X92: 126149.625 | Y92: 1.5 | Z92: 47.07084655 | AA92: 12.26554477 | AB92: 1.823310591 | AC92: 375437.655 | AD92: 30.73886618 | AE92: 23.65780747 | AF92: 6.164662799 | AG92: 0.9163959031 | AH92: 188694.9654 | AI92: 30.81141804 | AJ92: 22.79969341 | AK92: 5.49944035 | AL92: 2.512284277 | AM92: 184743.7367 | AN92: 689.0837608 | AO92: 509.812419 | AP92: 122.923639 | AQ92: 56.34770277 | AR92: 73.98% | AS92: 17.84% | AT92: 8.18% | AU92: 298.180499 | AV92: 101932.321 | AW92: 3393.974621 | AX92: 2611.91304 | AY92: 680.4963608 | AZ92: 101.5652207 | BA92: 76.96% | BB92: 20.05% | BC92: 2.99% | BD92: 298.8860652 | BE92: 101325.0582 | BF92: -607.3210188 | BG92: -4.11 | BH92: -122.2813584 | BI92: -3.037503655 | BJ92: -0.7323889905 | BK92: -0.3357241738 | BL92: -122.3395386 | BM92: -4.097885124 | BN92: -3.153476722 | BO92: -0.8215218488 | BP92: -0.1228865526 | BQ92: 506.7749154 | BR92: 122.19125 | BS92: 56.0119786 | BT92: 73.98% | BU92: 17.84% | BV92: 17.84% | BW92: 8.18% | BX92: 18.07507074 | BY92: 135.6 | BZ92: 298.1805 | CA92: 4106651.852 | CB92: 2611.797067 | CC92: 680.4072279 | CD92: 101.7780583 | CE92: 76.95% | CF92: 20.05% | CG92: 20.05% | CH92: 3.00% | CI92: 20.31308805 | CJ92: 152.4 | CK92: 298.8852 | CL92: 20832806.62 | CM92: 101325 | CN92: 298.8852306 | CO92: 298.180499 | CP92: -24614.41881 | CQ92: 2614.950543 | CR92: 681.2287498 | CS92: 101.9009448 | CT92: 3398.080238 | CU92: 76.95% | CV92: 20.05% | CW92: 3.00% | CX92: 1 | CY92: 1 | CZ92: 1 | DA92: 1 | DB92: 1
C93: 84 | D93: 84 | E93: 0.05 | F93: 2.092835759 | G93: 0 | H93: 0 | I93: 12665.625 | J93: 0.05 | K93: 0 | L93: 0 | M93: 2.092835759 | N93: 7599.375 | O93: 1 | P93: 31.81588176 | Q93: 8.514109204 | R93: 0.4073736461 | S93: 252299.25 | T93: 0.5 | U93: 15.90794088 | V93: 4.257054602 | W93: 0.2036868231 | X93: 126149.625 | Y93: 1.5 | Z93: 47.06506007 | AA93: 12.26106249 | AB93: 1.834059195 | AC93: 375410.9795 | AD93: 30.73910735 | AE93: 23.65489919 | AF93: 6.162410009 | AG93: 0.9217981515 | AH93: 188681.5583 | AI93: 30.81175553 | AJ93: 22.79580004 | AK93: 5.496419058 | AL93: 2.519536436 | AM93: 184725.8252 | AN93: 689.0911673 | AO93: 509.7268503 | AP93: 122.857241 | AQ93: 56.50707608 | AR93: 73.97% | AS93: 17.83% | AT93: 8.20% | AU93: 298.1772889 | AV93: 101932.3193 | AW93: 3394.000866 | AX93: 2611.59673 | AY93: 680.2513383 | AZ93: 102.1527978 | BA93: 76.95% | BB93: 20.04% | BC93: 3.01% | BD93: 298.8837551 | BE93: 101325.0585 | BF93: -607.3192649 | BG93: -4.11 | BH93: -122.2810053 | BI93: -3.036985112 | BJ93: -0.7319912843 | BK93: -0.3366727663 | BL93: -122.3395319 | BM93: -4.09791659 | BN93: -3.153094475 | BO93: -0.8212258418 | BP93: -0.1235962734 | BQ93: 506.6898652 | BR93: 122.1252497 | BS93: 56.17040331 | BT93: 73.97% | BU93: 17.83% | BV93: 17.83% | BW93: 8.20% | BX93: 18.0651132 | BY93: 135.5 | BZ93: 298.1773 | CA93: 4106260.582 | CB93: 2611.480621 | CC93: 680.1621037 | CD93: 102.3658743 | CE93: 76.94% | CF93: 20.04% | CG93: 20.04% | CH93: 3.02% | CI93: 20.30561301 | CJ93: 152.3 | CK93: 298.8829 | CL93: 20831347.82 | CM93: 101325 | CN93: 298.8829194 | CO93: 298.1772889 | CP93: -24612.00255 | CQ93: 2614.633715 | CR93: 680.9833296 | CS93: 102.4894706 | CT93: 3398.106515 | CU93: 76.94% | CV93: 20.04% | CW93: 3.02% | CX93: 1 | CY93: 1 | CZ93: 1 | DA93: 1 | DB93: 1
C94: 85 | D94: 85 | E94: 0.05 | F94: 2.092835759 | G94: 0 | H94: 0 | I94: 12665.625 | J94: 0.05 | K94: 0 | L94: 0 | M94: 2.092835759 | N94: 7599.375 | O94: 1 | P94: 31.81588176 | Q94: 8.514109204 | R94: 0.4073736461 | S94: 252299.25 | T94: 0.5 | U94: 15.90794088 | V94: 4.257054602 | W94: 0.2036868231 | X94: 126149.625 | Y94: 1.5 | Z94: 47.05935765 | AA94: 12.25664531 | AB94: 1.844651748 | AC94: 375384.6917 | AD94: 30.73934506 | AE94: 23.65203316 | AF94: 6.160189933 | AG94: 0.9271219684 | AH94: 188668.346 | AI94: 30.81208724 | AJ94: 22.7919743 | AK94: 5.493450224 | AL94: 2.526662712 | AM94: 184708.2251 | AN94: 689.0984475 | AO94: 509.6427598 | AP94: 122.7919894 | AQ94: 56.66369832 | AR94: 73.96% | AS94: 17.82% | AT94: 8.22% | AU94: 298.1741337 | AV94: 101932.3175 | AW94: 3394.026733 | AX94: 2611.285027 | AY94: 680.0098825 | AZ94: 102.7318238 | BA94: 76.94% | BB94: 20.04% | BC94: 3.03% | BD94: 298.8814782 | BE94: 101325.0589 | BF94: -607.3175386 | BG94: -4.11 | BH94: -122.2806577 | BI94: -3.036475515 | BJ94: -0.731600444 | BK94: -0.3376049777 | BL94: -122.3395268 | BM94: -4.097947649 | BN94: -3.152717831 | BO94: -0.8209341545 | BP94: -0.1242956636 | BQ94: 506.6062843 | BR94: 122.060389 | BS94: 56.32609335 | BT94: 73.96% | BU94: 17.82% | BV94: 17.82% | BW94: 8.22% | BX94: 18.05532776 | BY94: 135.4 | BZ94: 298.1741 | CA94: 4105876.075 | CB94: 2611.168784 | CC94: 679.9205488 | CD94: 102.9451331 | CE94: 76.93% | CF94: 20.03% | CG94: 20.03% | CH94: 3.03% | CI94: 20.29824691 | CJ94: 152.2 | CK94: 298.8806 | CL94: 20829910.28 | CM94: 101325 | CN94: 298.8806415 | CO94: 298.1741337 | CP94: -24609.62795 | CQ94: 2614.321502 | CR94: 680.741483 | CS94: 103.0694288 | CT94: 3398.132414 | CU94: 76.93% | CV94: 20.03% | CW94: 3.03% | CX94: 1 | CY94: 1 | CZ94: 1 | DA94: 1 | DB94: 1
C95: 86 | D95: 86 | E95: 0.05 | F95: 2.092835759 | G95: 0 | H95: 0 | I95: 12665.625 | J95: 0.05 | K95: 0 | L95: 0 | M95: 2.092835759 | N95: 7599.375 | O95: 1 | P95: 31.81588176 | Q95: 8.514109204 | R95: 0.4073736461 | S95: 252299.25 | T95: 0.5 | U95: 15.90794088 | V95: 4.257054602 | W95: 0.2036868231 | X95: 126149.625 | Y95: 1.5 | Z95: 47.05373831 | AA95: 12.25229245 | AB95: 1.855090097 | AC95: 375358.787 | AD95: 30.73957934 | AE95: 23.64920887 | AF95: 6.158002183 | AG95: 0.9323682826 | AH95: 188655.3263 | AI95: 30.81241329 | AJ95: 22.78821466 | AK95: 5.490532652 | AL95: 2.533665977 | AM95: 184690.9292 | AN95: 689.1056041 | AO95: 509.5601142 | AP95: 122.7278585 | AQ95: 56.81763141 | AR95: 73.95% | AS95: 17.81% | AT95: 8.25% | AU95: 298.1710321 | AV95: 101932.3158 | AW95: 3394.052226 | AX95: 2610.977875 | AY95: 679.7719506 | AZ95: 103.3024012 | BA95: 76.93% | BB95: 20.03% | BC95: 3.04% | BD95: 298.8792342 | BE95: 101325.0592 | BF95: -607.3158393 | BG95: -4.11 | BH95: -122.2803156 | BI95: -3.035974665 | BJ95: -0.7312163153 | BK95: -0.3385211768 | BL95: -122.3395231 | BM95: -4.097978307 | BN95: -3.152346725 | BO95: -0.8206467346 | BP95: -0.1249848474 | BQ95: 506.5241396 | BR95: 121.9966422 | BS95: 56.47911023 | BT95: 73.95% | BU95: 17.81% | BV95: 17.81% | BW95: 8.25% | BX95: 18.04571054 | BY95: 135.4 | BZ95: 298.1710 | CA95: 4105498.178 | CB95: 2610.861503 | CC95: 679.6825202 | CD95: 103.5159375 | CE95: 76.92% | CF95: 20.03% | CG95: 20.03% | CH95: 3.05% | CI95: 20.29098842 | CJ95: 152.2 | CK95: 298.8784 | CL95: 20828493.75 | CM95: 101325 | CN95: 298.8783966 | CO95: 298.1710321 | CP95: -24607.29407 | CQ95: 2614.013849 | CR95: 680.503167 | CS95: 103.6409223 | CT95: 3398.157939 | CU95: 76.92% | CV95: 20.03% | CW95: 3.05% | CX95: 1 | CY95: 1 | CZ95: 1 | DA95: 1 | DB95: 1
C96: 87 | D96: 87 | E96: 0.05 | F96: 2.092835759 | G96: 0 | H96: 0 | I96: 12665.625 | J96: 0.05 | K96: 0 | L96: 0 | M96: 2.092835759 | N96: 7599.375 | O96: 1 | P96: 31.81588176 | Q96: 8.514109204 | R96: 0.4073736461 | S96: 252299.25 | T96: 0.5 | U96: 15.90794088 | V96: 4.257054602 | W96: 0.2036868231 | X96: 126149.625 | Y96: 1.5 | Z96: 47.04820103 | AA96: 12.24800313 | AB96: 1.865376096 | AC96: 375333.2607 | AD96: 30.73981024 | AE96: 23.64642584 | AF96: 6.155846372 | AG96: 0.937538026 | AH96: 188642.4968 | AI96: 30.8127338 | AJ96: 22.78451962 | AK96: 5.487665188 | AL96: 2.540548998 | AM96: 184673.9306 | AN96: 689.1126399 | AO96: 509.4788815 | AP96: 122.6648234 | AQ96: 56.96893502 | AR96: 73.93% | AS96: 17.80% | AT96: 8.27% | AU96: 298.1679829 | AV96: 101932.3142 | AW96: 3394.077351 | AX96: 2610.675218 | AY96: 679.5374997 | AZ96: 103.8646328 | BA96: 76.92% | BB96: 20.02% | BC96: 3.06% | BD96: 298.8770228 | BE96: 101325.0595 | BF96: -607.3141666 | BG96: -4.11 | BH96: -122.2799788 | BI96: -3.035482368 | BJ96: -0.7308387492 | BK96: -0.339421719 | BL96: -122.3395209 | BM96: -4.098008567 | BN96: -3.151981087 | BO96: -0.8203635302 | BP96: -0.1256639494 | BQ96: 506.4433992 | BR96: 121.9339846 | BS96: 56.6295133 | BT96: 73.93% | BU96: 17.80% | BV96: 17.80% | BW96: 8.27% | BX96: 18.0362578 | BY96: 135.3 | BZ96: 298.1680 | CA96: 4105126.744 | CB96: 2610.558719 | CC96: 679.4479749 | CD96: 104.0783906 | CE96: 76.91% | CF96: 20.02% | CG96: 20.02% | CH96: 3.07% | CI96: 20.28383624 | CJ96: 152.1 | CK96: 298.8762 | CL96: 20827097.96 | CM96: 101325 | CN96: 298.8761842 | CO96: 298.1679829 | CP96: -24605.00003 | CQ96: 2613.7107 | CR96: 680.2683385 | CS96: 104.2040546 | CT96: 3398.183093 | CU96: 76.91% | CV96: 20.02% | CW96: 3.07% | CX96: 1 | CY96: 1 | CZ96: 1 | DA96: 1 | DB96: 1
C97: 88 | D97: 88 | E97: 0.05 | F97: 2.092835759 | G97: 0 | H97: 0 | I97: 12665.625 | J97: 0.05 | K97: 0 | L97: 0 | M97: 2.092835759 | N97: 7599.375 | O97: 1 | P97: 31.81588176 | Q97: 8.514109204 | R97: 0.4073736461 | S97: 252299.25 | T97: 0.5 | U97: 15.90794088 | V97: 4.257054602 | W97: 0.2036868231 | X97: 126149.625 | Y97: 1.5 | Z97: 47.04274482 | AA97: 12.24377658 | AB97: 1.875511604 | AC97: 375308.1083 | AD97: 30.74003779 | AE97: 23.64368355 | AF97: 6.153722108 | AG97: 0.9426321322 | AH97: 188629.8552 | AI97: 30.81304891 | AJ97: 22.78088775 | AK97: 5.484846719 | AL97: 2.547314444 | AM97: 184657.2227 | AN97: 689.1195575 | AO97: 509.3990307 | AP97: 122.60286 | AQ97: 57.11766675 | AR97: 73.92% | AS97: 17.79% | AT97: 8.29% | AU97: 298.164985 | AV97: 101932.3125 | AW97: 3394.10211 | AX97: 2610.377001 | AY97: 679.3064868 | AZ97: 104.4186218 | BA97: 76.91% | BB97: 20.01% | BC97: 3.08% | BD97: 298.8748435 | BE97: 101325.0599 | BF97: -607.3125202 | BG97: -4.11 | BH97: -122.2796473 | BI97: -3.034998437 | BJ97: -0.730467602 | BK97: -0.3403069476 | BL97: -122.33952 | BM97: -4.098038432 | BN97: -3.151620849 | BO97: -0.8200844888 | BP97: -0.1263330941 | BQ97: 506.3640323 | BR97: 121.8723924 | BS97: 56.7773598 | BT97: 73.92% | BU97: 17.79% | BV97: 17.79% | BW97: 8.29% | BX97: 18.02696594 | BY97: 135.2 | BZ97: 298.1650 | CA97: 4104761.632 | CB97: 2610.260379 | CC97: 679.2168699 | CD97: 104.6325956 | CE97: 76.91% | CF97: 20.01% | CG97: 20.01% | CH97: 3.08% | CI97: 20.27678905 | CJ97: 152.1 | CK97: 298.8740 | CL97: 20825722.66 | CM97: 101325 | CN97: 298.874004 | CO97: 298.164985 | CP97: -24602.74494 | CQ97: 2613.412 | CR97: 680.0369544 | CS97: 104.7589287 | CT97: 3398.207883 | CU97: 76.91% | CV97: 20.01% | CW97: 3.08% | CX97: 1 | CY97: 1 | CZ97: 1 | DA97: 1 | DB97: 1
C98: 89 | D98: 89 | E98: 0.05 | F98: 2.092835759 | G98: 0 | H98: 0 | I98: 12665.625 | J98: 0.05 | K98: 0 | L98: 0 | M98: 2.092835759 | N98: 7599.375 | O98: 1 | P98: 31.81588176 | Q98: 8.514109204 | R98: 0.4073736461 | S98: 252299.25 | T98: 0.5 | U98: 15.90794088 | V98: 4.257054602 | W98: 0.2036868231 | X98: 126149.625 | Y98: 1.5 | Z98: 47.03736867 | AA98: 12.23961202 | AB98: 1.88549848 | AC98: 375283.3251 | AD98: 30.74026203 | AE98: 23.64098149 | AF98: 6.151629003 | AG98: 0.947651536 | AH98: 188617.3992 | AI98: 30.81335872 | AJ98: 22.77731766 | AK98: 5.482076172 | AL98: 2.55396489 | AM98: 184640.7992 | AN98: 689.1263593 | AO98: 509.3205319 | AP98: 122.5419452 | AQ98: 57.26388221 | AR98: 73.91% | AS98: 17.78% | AT98: 8.31% | AU98: 298.1620373 | AV98: 101932.3109 | AW98: 3394.126509 | AX98: 2610.083169 | AY98: 679.0788688 | AZ98: 104.964471 | BA98: 76.90% | BB98: 20.01% | BC98: 3.09% | BD98: 298.872696 | BE98: 101325.0602 | BF98: -607.3108995 | BG98: -4.11 | BH98: -122.2793209 | BI98: -3.034522691 | BJ98: -0.7301027352 | BK98: -0.341177194 | BL98: -122.3395205 | BM98: -4.098067908 | BN98: -3.151265944 | BO98: -0.8198095583 | BP98: -0.126992406 | BQ98: 506.2860092 | BR98: 121.8118425 | BS98: 56.92270501 | BT98: 73.91% | BU98: 17.78% | BV98: 17.78% | BW98: 8.31% | BX98: 18.01783147 | BY98: 135.1 | BZ98: 298.1620 | CA98: 4104402.704 | CB98: 2609.966426 | CC98: 678.989162 | CD98: 105.1786558 | CE98: 76.90% | CF98: 20.00% | CG98: 20.00% | CH98: 3.10% | CI98: 20.26984554 | CJ98: 152 | CK98: 298.8718 | CL98: 20824367.59 | CM98: 101325 | CN98: 298.8718555 | CO98: 298.1620373 | CP98: -24600.52799 | CQ98: 2613.117692 | CR98: 679.8089716 | CS98: 105.3056482 | CT98: 3398.232311 | CU98: 76.90% | CV98: 20.00% | CW98: 3.10% | CX98: 1 | CY98: 1 | CZ98: 1 | DA98: 1 | DB98: 1
C99: 90 | D99: 90 | E99: 0.05 | F99: 2.092835759 | G99: 0 | H99: 0 | I99: 12665.625 | J99: 0.05 | K99: 0 | L99: 0 | M99: 2.092835759 | N99: 7599.375 | O99: 1 | P99: 31.81588176 | Q99: 8.514109204 | R99: 0.4073736461 | S99: 252299.25 | T99: 0.5 | U99: 15.90794088 | V99: 4.257054602 | W99: 0.2036868231 | X99: 126149.625 | Y99: 1.5 | Z99: 47.03207158 | AA99: 12.23550869 | AB99: 1.895338583 | AC99: 375258.9065 | AD99: 30.74048302 | AE99: 23.63831918 | AF99: 6.149566666 | AG99: 0.9525971719 | AH99: 188605.1264 | AI99: 30.81366335 | AJ99: 22.77380802 | AK99: 5.47935251 | AL99: 2.560502823 | AM99: 184624.6539 | AN99: 689.1330479 | AO99: 509.2433561 | AP99: 122.4820567 | AQ99: 57.40763512 | AR99: 73.90% | AS99: 17.77% | AT99: 8.33% | AU99: 298.1591387 | AV99: 101932.3093 | AW99: 3394.150552 | AX99: 2609.793666 | AY99: 678.854603 | AZ99: 105.5022833 | BA99: 76.89% | BB99: 20.00% | BC99: 3.11% | BD99: 298.8705798 | BE99: 101325.0605 | BF99: -607.3093042 | BG99: -4.11 | BH99: -122.2789997 | BI99: -3.034054957 | BJ99: -0.7297440146 | BK99: -0.3420327782 | BL99: -122.3395224 | BM99: -4.098096999 | BN99: -3.150916303 | BO99: -0.8195386865 | BP99: -0.1276420097 | BQ99: 506.2093012 | BR99: 121.7523126 | BS99: 57.06560234 | BT99: 73.90% | BU99: 17.77% | BV99: 17.77% | BW99: 8.33% | BX99: 18.00885102 | BY99: 135.1 | BZ99: 298.1591 | CA99: 4104049.828 | CB99: 2609.676804 | CC99: 678.7648083 | CD99: 105.7166741 | CE99: 76.89% | CF99: 20.00% | CG99: 20.00% | CH99: 3.11% | CI99: 20.26300437 | CJ99: 152 | CK99: 298.8697 | CL99: 20823032.49 | CM99: 101325 | CN99: 298.8697384 | CO99: 298.1591387 | CP99: -24598.34834 | CQ99: 2612.827721 | CR99: 679.584347 | CS99: 105.8443161 | CT99: 3398.256384 | CU99: 76.89% | CV99: 20.00% | CW99: 3.11% | CX99: 1 | CY99: 1 | CZ99: 1 | DA99: 1 | DB99: 1
C100: 91 | D100: 91 | E100: 0.05 | F100: 2.092835759 | G100: 0 | H100: 0 | I100: 12665.625 | J100: 0.05 | K100: 0 | L100: 0 | M100: 2.092835759 | N100: 7599.375 | O100: 1 | P100: 31.81588176 | Q100: 8.514109204 | R100: 0.4073736461 | S100: 252299.25 | T100: 0.5 | U100: 15.90794088 | V100: 4.257054602 | W100: 0.2036868231 | X100: 126149.625 | Y100: 1.5 | Z100: 47.02685255 | AA100: 12.23146579 | AB100: 1.905033771 | AC100: 375234.8479 | AD100: 30.74070077 | AE100: 23.63569609 | AF100: 6.147534707 | AG100: 0.9574699734 | AH100: 188593.0346 | AI100: 30.8139629 | AJ100: 22.77035753 | AK100: 5.476674732 | AL100: 2.566930645 | AM100: 184608.7808 | AN100: 689.1396255 | AO100: 509.1674755 | AP100: 122.4231726 | AQ100: 57.54897743 | AR100: 73.88% | AS100: 17.76% | AT100: 8.35% | AU100: 298.1562883 | AV100: 101932.3077 | AW100: 3394.174244 | AX100: 2609.508436 | AY100: 678.6336464 | AZ100: 106.0321614 | BA100: 76.88% | BB100: 19.99% | BC100: 3.12% | BD100: 298.8684946 | BE100: 101325.0608 | BF100: -607.3077339 | BG100: -4.11 | BH100: -122.2786836 | BI100: -3.033595065 | BJ100: -0.7293913107 | BK100: -0.3428740097 | BL100: -122.3395255 | BM100: -4.098125709 | BN100: -3.150571858 | BO100: -0.8192718213 | BP100: -0.1282820292 | BQ100: 506.1338804 | BR100: 121.6937813 | BS100: 57.20610342 | BT100: 73.88% | BU100: 17.76% | BV100: 17.76% | BW100: 8.35% | BX100: 18.00002134 | BY100: 135 | BZ100: 298.1563 | CA100: 4103702.877 | CB100: 2609.391459 | CC100: 678.5437658 | CD100: 106.2467534 | CE100: 76.88% | CF100: 19.99% | CG100: 19.99% | CH100: 3.13% | CI100: 20.25626425 | CJ100: 151.9 | CK100: 298.8676 | CL100: 20821717.12 | CM100: 101325 | CN100: 298.8676523 | CO100: 298.1562883 | CP100: -24596.20523 | CQ100: 2612.542031 | CR100: 679.3630377 | CS100: 106.3750355 | CT100: 3398.280104 | CU100: 76.88% | CV100: 19.99% | CW100: 3.13% | CX100: 1 | CY100: 1 | CZ100: 1 | DA100: 1 | DB100: 1
C101: 92 | D101: 92 | E101: 0.05 | F101: 2.092835759 | G101: 0 | H101: 0 | I101: 12665.625 | J101: 0.05 | K101: 0 | L101: 0 | M101: 2.092835759 | N101: 7599.375 | O101: 1 | P101: 31.81588176 | Q101: 8.514109204 | R101: 0.4073736461 | S101: 252299.25 | T101: 0.5 | U101: 15.90794088 | V101: 4.257054602 | W101: 0.2036868231 | X101: 126149.625 | Y101: 1.5 | Z101: 47.02171058 | AA101: 12.22748257 | AB101: 1.914585898 | AC101: 375211.1446 | AD101: 30.74091535 | AE101: 23.63311174 | AF101: 6.145532737 | AG101: 0.9622708723 | AH101: 188581.1213 | AI101: 30.81425749 | AJ101: 22.76696494 | AK101: 5.474041869 | AL101: 2.573250678 | AM101: 184593.1742 | AN101: 689.1460945 | AO101: 509.092863 | AP101: 122.3652722 | AQ101: 57.68795937 | AR101: 73.87% | AS101: 17.76% | AT101: 8.37% | AU101: 298.153485 | AV101: 101932.3062 | AW101: 3394.197588 | AX101: 2609.227424 | AY101: 678.4159562 | AZ101: 106.5542078 | BA101: 76.87% | BB101: 19.99% | BC101: 3.14% | BD101: 298.86644 | BE101: 101325.0612 | BF101: -607.3061882 | BG101: -4.11 | BH101: -122.2783723 | BI101: -3.033142853 | BJ101: -0.7290444982 | BK101: -0.3437011878 | BL101: -122.3395299 | BM101: -4.098154041 | BN101: -3.150232541 | BO101: -0.8190089107 | BP101: -0.1289125885 | BQ101: 506.0597201 | BR101: 121.6362277 | BS101: 57.34425819 | BT101: 73.87% | BU101: 17.76% | BV101: 17.76% | BW101: 8.37% | BX101: 17.99133929 | BY101: 134.9 | BZ101: 298.1535 | CA101: 4103361.726 | CB101: 2609.110335 | CC101: 678.3259918 | CD101: 106.7689964 | CE101: 76.87% | CF101: 19.98% | CG101: 19.98% | CH101: 3.15% | CI101: 20.24962387 | CJ101: 151.9 | CK101: 298.8656 | CL101: 20820421.21 | CM101: 101325 | CN101: 298.8655968 | CO101: 298.153485 | CP101: -24594.09789 | CQ101: 2612.260567 | CR101: 679.1450007 | CS101: 106.897909 | CT101: 3398.303477 | CU101: 76.87% | CV101: 19.98% | CW101: 3.15% | CX101: 1 | CY101: 1 | CZ101: 1 | DA101: 1 | DB101: 1
C102: 93 | D102: 93 | E102: 0.05 | F102: 2.092835759 | G102: 0 | H102: 0 | I102: 12665.625 | J102: 0.05 | K102: 0 | L102: 0 | M102: 2.092835759 | N102: 7599.375 | O102: 1 | P102: 31.81588176 | Q102: 8.514109204 | R102: 0.4073736461 | S102: 252299.25 | T102: 0.5 | U102: 15.90794088 | V102: 4.257054602 | W102: 0.2036868231 | X102: 126149.625 | Y102: 1.5 | Z102: 47.01664466 | AA102: 12.22355824 | AB102: 1.923996812 | AC102: 375187.7921 | AD102: 30.74112678 | AE102: 23.63056561 | AF102: 6.14356037 | AG102: 0.9670007976 | AH102: 188569.3843 | AI102: 30.81454721 | AJ102: 22.76362906 | AK102: 5.471452986 | AL102: 2.57946517 | AM102: 184577.8285 | AN102: 689.1524571 | AO102: 509.0194924 | AP102: 122.3083351 | AQ102: 57.82462957 | AR102: 73.86% | AS102: 17.75% | AT102: 8.39% | AU102: 298.1507279 | AV102: 101932.3047 | AW102: 3394.22059 | AX102: 2608.950576 | AY102: 678.20149 | AZ102: 107.0685244 | BA102: 76.86% | BB102: 19.98% | BC102: 3.15% | BD102: 298.8644155 | BE102: 101325.0615 | BF102: -607.3046666 | BG102: -4.11 | BH102: -122.278066 | BI102: -3.032698164 | BJ102: -0.7287034557 | BK102: -0.3445146021 | BL102: -122.3395355 | BM102: -4.098182 | BN102: -3.149898286 | BO102: -0.8187499031 | BP102: -0.1295338109 | BQ102: 505.9867943 | BR102: 121.5796316 | BS102: 57.48011497 | BT102: 73.86% | BU102: 17.75% | BV102: 17.75% | BW102: 8.39% | BX102: 17.98280181 | BY102: 134.9 | BZ102: 298.1507 | CA102: 4103026.256 | CB102: 2608.833376 | CC102: 678.1114435 | CD102: 107.2835052 | CE102: 76.86% | CF102: 19.98% | CG102: 19.98% | CH102: 3.16% | CI102: 20.24308192 | CJ102: 151.8 | CK102: 298.8636 | CL102: 20819144.51 | CM102: 101325 | CN102: 298.8635715 | CO102: 298.1507279 | CP102: -24592.02559 | CQ102: 2611.983274 | CR102: 678.9301934 | CS102: 107.413039 | CT102: 3398.326507 | CU102: 76.86% | CV102: 19.98% | CW102: 3.16% | CX102: 1 | CY102: 1 | CZ102: 1 | DA102: 1 | DB102: 1
C103: 94 | D103: 94 | E103: 0.05 | F103: 2.092835759 | G103: 0 | H103: 0 | I103: 12665.625 | J103: 0.05 | K103: 0 | L103: 0 | M103: 2.092835759 | N103: 7599.375 | O103: 1 | P103: 31.81588176 | Q103: 8.514109204 | R103: 0.4073736461 | S103: 252299.25 | T103: 0.5 | U103: 15.90794088 | V103: 4.257054602 | W103: 0.2036868231 | X103: 126149.625 | Y103: 1.5 | Z103: 47.01165382 | AA103: 12.21969204 | AB103: 1.933268355 | AC103: 375164.7857 | AD103: 30.7413351 | AE103: 23.62805721 | AF103: 6.141617219 | AG103: 0.971660675 | AH103: 188557.8213 | AI103: 30.81483217 | AJ103: 22.7603487 | AK103: 5.468907176 | AL103: 2.585576293 | AM103: 184562.7383 | AN103: 689.1587153 | AO103: 508.9473385 | AP103: 122.2523417 | AQ103: 57.95903511 | AR103: 73.85% | AS103: 17.74% | AT103: 8.41% | AU103: 298.148016 | AV103: 101932.3032 | AW103: 3394.243254 | AX103: 2608.677836 | AY103: 677.9902053 | AZ103: 107.575213 | BA103: 76.86% | BB103: 19.97% | BC103: 3.17% | BD103: 298.8624209 | BE103: 101325.0618 | BF103: -607.3031689 | BG103: -4.11 | BH103: -122.2777644 | BI103: -3.032260843 | BJ103: -0.7283680657 | BK103: -0.3453145332 | BL103: -122.3395422 | BM103: -4.09820959 | BN103: -3.149569024 | BO103: -0.8184947467 | BP103: -0.1301458193 | BQ103: 505.9150777 | BR103: 121.5239736 | BS103: 57.61372058 | BT103: 73.85% | BU103: 17.74% | BV103: 17.74% | BW103: 8.41% | BX103: 17.97440596 | BY103: 134.8 | BZ103: 298.1480 | CA103: 4102696.352 | CB103: 2608.560528 | CC103: 677.9000786 | CD103: 107.7903817 | CE103: 76.85% | CF103: 19.97% | CG103: 19.97% | CH103: 3.18% | CI103: 20.2366371 | CJ103: 151.8 | CK103: 298.8616 | CL103: 20817886.76 | CM103: 101325 | CN103: 298.861576 | CO103: 298.148016 | CP103: -24589.98762 | CQ103: 2611.710097 | CR103: 678.7185733 | CS103: 107.9205275 | CT103: 3398.349198 | CU103: 76.85% | CV103: 19.97% | CW103: 3.18% | CX103: 1 | CY103: 1 | CZ103: 1 | DA103: 1 | DB103: 1
C104: 95 | D104: 95 | E104: 0.05 | F104: 2.092835759 | G104: 0 | H104: 0 | I104: 12665.625 | J104: 0.05 | K104: 0 | L104: 0 | M104: 2.092835759 | N104: 7599.375 | O104: 1 | P104: 31.81588176 | Q104: 8.514109204 | R104: 0.4073736461 | S104: 252299.25 | T104: 0.5 | U104: 15.90794088 | V104: 4.257054602 | W104: 0.2036868231 | X104: 126149.625 | Y104: 1.5 | Z104: 47.00673705 | AA104: 12.2158832 | AB104: 1.942402361 | AC104: 375142.1209 | AD104: 30.74154037 | AE104: 23.62558604 | AF104: 6.139702898 | AG104: 0.9762514265 | AH104: 188546.43 | AI104: 30.81511245 | AJ104: 22.75712274 | AK104: 5.466403561 | AL104: 2.591586154 | AM104: 184547.8985 | AN104: 689.1648713 | AO104: 508.8763768 | AP104: 122.1972729 | AQ104: 58.09122161 | AR104: 73.84% | AS104: 17.73% | AT104: 8.43% | AU104: 298.1453485 | AV104: 101932.3017 | AW104: 3394.265585 | AX104: 2608.40915 | AY104: 677.7820598 | AZ104: 108.0743745 | BA104: 76.85% | BB104: 19.97% | BC104: 3.18% | BD104: 298.8604556 | BE104: 101325.0621 | BF104: -607.3016947 | BG104: -4.11 | BH104: -122.2774676 | BI104: -3.031830743 | BJ104: -0.7280382146 | BK104: -0.3461012529 | BL104: -122.3395501 | BM104: -4.098236815 | BN104: -3.149244688 | BO104: -0.8182433905 | BP104: -0.130748736 | BQ104: 505.844546 | BR104: 121.4692347 | BS104: 57.74512036 | BT104: 73.84% | BU104: 17.73% | BV104: 17.73% | BW104: 8.43% | BX104: 17.96614888 | BY104: 134.8 | BZ104: 298.1453 | CA104: 4102371.9 | CB104: 2608.291736 | CC104: 677.6918547 | CD104: 108.289727 | CE104: 76.84% | CF104: 19.97% | CG104: 19.97% | CH104: 3.19% | CI104: 20.23028812 | CJ104: 151.7 | CK104: 298.8596 | CL104: 20816647.72 | CM104: 101325 | CN104: 298.85961 | CO104: 298.1453485 | CP104: -24587.98329 | CQ104: 2611.440981 | CR104: 678.5100981 | CS104: 108.4204758 | CT104: 3398.371555 | CU104: 76.84% | CV104: 19.97% | CW104: 3.19% | CX104: 1 | CY104: 1 | CZ104: 1 | DA104: 1 | DB104: 1
C105: 96 | D105: 96 | E105: 0.05 | F105: 2.092835759 | G105: 0 | H105: 0 | I105: 12665.625 | J105: 0.05 | K105: 0 | L105: 0 | M105: 2.092835759 | N105: 7599.375 | O105: 1 | P105: 31.81588176 | Q105: 8.514109204 | R105: 0.4073736461 | S105: 252299.25 | T105: 0.5 | U105: 15.90794088 | V105: 4.257054602 | W105: 0.2036868231 | X105: 126149.625 | Y105: 1.5 | Z105: 47.00189338 | AA105: 12.21213097 | AB105: 1.951400655 | AC105: 375119.7931 | AD105: 30.74174261 | AE105: 23.62315161 | AF105: 6.137817026 | AG105: 0.9807739693 | AH105: 188535.208 | AI105: 30.81538816 | AJ105: 22.75395007 | AK105: 5.463941292 | AL105: 2.597496792 | AM105: 184533.304 | AN105: 689.170927 | AO105: 508.8065833 | AP105: 122.1431104 | AQ105: 58.22123329 | AR105: 73.83% | AS105: 17.72% | AT105: 8.45% | AU105: 298.1427244 | AV105: 101932.3002 | AW105: 3394.287586 | AX105: 2608.144464 | AY105: 677.5770118 | AZ105: 108.5661097 | BA105: 76.84% | BB105: 19.96% | BC105: 3.20% | BD105: 298.8585194 | BE105: 101325.0624 | BF105: -607.3002435 | BG105: -4.11 | BH105: -122.2771754 | BI105: -3.03140772 | BJ105: -0.7277137918 | BK105: -0.3468750246 | BL105: -122.3395591 | BM105: -4.098263679 | BN105: -3.148925213 | BO105: -0.8179957833 | BP105: -0.1313426825 | BQ105: 505.7751756 | BR105: 121.4153967 | BS105: 57.87435827 | BT105: 73.83% | BU105: 17.72% | BV105: 17.72% | BW105: 8.45% | BX105: 17.9580278 | BY105: 134.7 | BZ105: 298.1427 | CA105: 4102052.792 | CB105: 2608.026947 | CC105: 677.4867298 | CD105: 108.781642 | CE105: 76.84% | CF105: 19.96% | CG105: 19.96% | CH105: 3.20% | CI105: 20.2240337 | CJ105: 151.7 | CK105: 298.8577 | CL105: 20815427.13 | CM105: 101325 | CN105: 298.8576729 | CO105: 298.1427244 | CP105: -24586.01193 | CQ105: 2611.175872 | CR105: 678.3047256 | CS105: 108.9129847 | CT105: 3398.393582 | CU105: 76.84% | CV105: 19.96% | CW105: 3.20% | CX105: 1 | CY105: 1 | CZ105: 1 | DA105: 1 | DB105: 1
C106: 97 | D106: 97 | E106: 0.05 | F106: 2.092835759 | G106: 0 | H106: 0 | I106: 12665.625 | J106: 0.05 | K106: 0 | L106: 0 | M106: 2.092835759 | N106: 7599.375 | O106: 1 | P106: 31.81588176 | Q106: 8.514109204 | R106: 0.4073736461 | S106: 252299.25 | T106: 0.5 | U106: 15.90794088 | V106: 4.257054602 | W106: 0.2036868231 | X106: 126149.625 | Y106: 1.5 | Z106: 46.99712182 | AA106: 12.20843458 | AB106: 1.960265053 | AC106: 375097.7979 | AD106: 30.74194186 | AE106: 23.62075342 | AF106: 6.135959221 | AG106: 0.9852292156 | AH106: 188524.1532 | AI106: 30.81565937 | AJ106: 22.75082965 | AK106: 5.461519543 | AL106: 2.603310185 | AM106: 184518.9499 | AN106: 689.1768845 | AO106: 508.7379351 | AP106: 122.0898363 | AQ106: 58.34911306 | AR106: 73.82% | AS106: 17.72% | AT106: 8.47% | AU106: 298.140143 | AV106: 101932.2988 | AW106: 3394.309261 | AX106: 2607.883724 | AY106: 677.3750193 | AZ106: 109.0505184 | BA106: 76.83% | BB106: 19.96% | BC106: 3.21% | BD106: 298.8566118 | BE106: 101325.0627 | BF106: -607.298815 | BG106: -4.11 | BH106: -122.2768878 | BI106: -3.030991636 | BJ106: -0.7273946903 | BK106: -0.3476361038 | BL106: -122.3395692 | BM106: -4.098290186 | BN106: -3.148610532 | BO106: -0.8177518745 | BP106: -0.1319277797 | BQ106: 505.7069435 | BR106: 121.3624416 | BS106: 58.00147695 | BT106: 73.82% | BU106: 17.72% | BV106: 17.72% | BW106: 8.47% | BX106: 17.95004003 | BY106: 134.6 | BZ106: 298.1401 | CA106: 4101738.922 | CB106: 2607.766105 | CC106: 677.2846621 | CD106: 109.2662267 | CE106: 76.83% | CF106: 19.95% | CG106: 19.95% | CH106: 3.22% | CI106: 20.21787256 | CJ106: 151.6 | CK106: 298.8557 | CL106: 20814224.75 | CM106: 101325 | CN106: 298.8557645 | CO106: 298.140143 | CP106: -24584.0729 | CQ106: 2610.914715 | CR106: 678.102414 | CS106: 109.3981545 | CT106: 3398.415284 | CU106: 76.83% | CV106: 19.95% | CW106: 3.22% | CX106: 1 | CY106: 1 | CZ106: 1 | DA106: 1 | DB106: 1
C107: 98 | D107: 98 | E107: 0.05 | F107: 2.092835759 | G107: 0 | H107: 0 | I107: 12665.625 | J107: 0.05 | K107: 0 | L107: 0 | M107: 2.092835759 | N107: 7599.375 | O107: 1 | P107: 31.81588176 | Q107: 8.514109204 | R107: 0.4073736461 | S107: 252299.25 | T107: 0.5 | U107: 15.90794088 | V107: 4.257054602 | W107: 0.2036868231 | X107: 126149.625 | Y107: 1.5 | Z107: 46.9924214 | AA107: 12.20479329 | AB107: 1.968997358 | AC107: 375076.1308 | AD107: 30.74213817 | AE107: 23.61839099 | AF107: 6.134129106 | AG107: 0.9896180721 | AH107: 188513.2633 | AI107: 30.81592619 | AJ107: 22.74776042 | AK107: 5.459137515 | AL107: 2.60902825 | AM107: 184504.8314 | AN107: 689.1827456 | AO107: 508.6704098 | AP107: 122.0374332 | AQ107: 58.47490253 | AR107: 73.81% | AS107: 17.71% | AT107: 8.48% | AU107: 298.1376034 | AV107: 101932.2974 | AW107: 3394.330616 | AX107: 2607.626875 | AY107: 677.1760411 | AZ107: 109.5277 | BA107: 76.82% | BB107: 19.95% | BC107: 3.23% | BD107: 298.8547324 | BE107: 101325.063 | BF107: -607.2974089 | BG107: -4.11 | BH107: -122.2766047 | BI107: -3.030582354 | BJ107: -0.7270808063 | BK107: -0.3483847386 | BL107: -122.3395803 | BM107: -4.09831634 | BN107: -3.148300579 | BO107: -0.8175116137 | BP107: -0.1325041476 | BQ107: 505.6398275 | BR107: 121.3103524 | BS107: 58.12651779 | BT107: 73.81% | BU107: 17.71% | BV107: 17.71% | BW107: 8.48% | BX107: 17.94218297 | BY107: 134.6 | BZ107: 298.1376 | CA107: 4101430.189 | CB107: 2607.509157 | CC107: 677.0856103 | CD107: 109.7435806 | CE107: 76.82% | CF107: 19.95% | CG107: 19.95% | CH107: 3.23% | CI107: 20.21180343 | CJ107: 151.6 | CK107: 298.8539 | CL107: 20813040.32 | CM107: 101325 | CN107: 298.8538844 | CO107: 298.1376034 | CP107: -24582.16557 | CQ107: 2610.657458 | CR107: 677.9031219 | CS107: 109.8760847 | CT107: 3398.436664 | CU107: 76.82% | CV107: 19.95% | CW107: 3.23% | CX107: 1 | CY107: 1 | CZ107: 1 | DA107: 1 | DB107: 1
C108: 99 | D108: 99 | E108: 0.05 | F108: 2.092835759 | G108: 0 | H108: 0 | I108: 12665.625 | J108: 0.05 | K108: 0 | L108: 0 | M108: 2.092835759 | N108: 7599.375 | O108: 1 | P108: 31.81588176 | Q108: 8.514109204 | R108: 0.4073736461 | S108: 252299.25 | T108: 0.5 | U108: 15.90794088 | V108: 4.257054602 | W108: 0.2036868231 | X108: 126149.625 | Y108: 1.5 | Z108: 46.98779116 | AA108: 12.20120634 | AB108: 1.977599362 | AC108: 375054.7872 | AD108: 30.74233158 | AE108: 23.61606383 | AF108: 6.132326304 | AG108: 0.9939414393 | AH108: 188502.536 | AI108: 30.81618869 | AJ108: 22.7447414 | AK108: 5.456794433 | AL108: 2.61465285 | AM108: 184490.9439 | AN108: 689.1885121 | AO108: 508.6039857 | AP108: 121.9858843 | AQ108: 58.59864214 | AR108: 73.80% | AS108: 17.70% | AT108: 8.50% | AU108: 298.1351048 | AV108: 101932.296 | AW108: 3394.351655 | AX108: 2607.373866 | AY108: 676.9800359 | AZ108: 109.9977531 | BA108: 76.82% | BB108: 19.94% | BC108: 3.24% | BD108: 298.8528809 | BE108: 101325.0633 | BF108: -607.2960247 | BG108: -4.11 | BH108: -122.276326 | BI108: -3.030179744 | BJ108: -0.7267720389 | BK108: -0.3491211698 | BL108: -122.3395924 | BM108: -4.098342146 | BN108: -3.147995289 | BO108: -0.817274951 | BP108: -0.1330719055 | BQ108: 505.5738059 | BR108: 121.2591123 | BS108: 58.24952097 | BT108: 73.80% | BU108: 17.70% | BV108: 17.70% | BW108: 8.50% | BX108: 17.93445409 | BY108: 134.5 | BZ108: 298.1351 | CA108: 4101126.492 | CB108: 2607.256051 | CC108: 676.8895329 | CD108: 110.2138024 | CE108: 76.81% | CF108: 19.94% | CG108: 19.94% | CH108: 3.25% | CI108: 20.20582505 | CJ108: 151.6 | CK108: 298.8520 | CL108: 20811873.61 | CM108: 101325 | CN108: 298.8520322 | CO108: 298.1351048 | CP108: -24580.28932 | CQ108: 2610.404046 | CR108: 677.7068079 | CS108: 110.3468743 | CT108: 3398.457728 | CU108: 76.81% | CV108: 19.94% | CW108: 3.25% | CX108: 1 | CY108: 1 | CZ108: 1 | DA108: 1 | DB108: 1
C109: 100 | D109: 100 | E109: 0.05 | F109: 2.092835759 | G109: 0 | H109: 0 | I109: 12665.625 | J109: 0.05 | K109: 0 | L109: 0 | M109: 2.092835759 | N109: 7599.375 | O109: 1 | P109: 31.81588176 | Q109: 8.514109204 | R109: 0.4073736461 | S109: 252299.25 | T109: 0.5 | U109: 15.90794088 | V109: 4.257054602 | W109: 0.2036868231 | X109: 126149.625 | Y109: 1.5 | Z109: 46.98323013 | AA109: 12.19767299 | AB109: 1.986072844 | AC109: 375033.7628 | AD109: 30.74252212 | AE109: 23.61377146 | AF109: 6.130550443 | AG109: 0.9982002116 | AH109: 188491.9692 | AI109: 30.81644695 | AJ109: 22.74177162 | AK109: 5.454489542 | AL109: 2.620185791 | AM109: 184477.2829 | AN109: 689.1941858 | AO109: 508.5386415 | AP109: 121.9351732 | AQ109: 58.72037115 | AR109: 73.79% | AS109: 17.69% | AT109: 8.52% | AU109: 298.1326464 | AV109: 101932.2947 | AW109: 3394.372382 | AX109: 2607.124643 | AY109: 676.7869629 | AZ109: 110.4607756 | BA109: 76.81% | BB109: 19.94% | BC109: 3.25% | BD109: 298.8510569 | BE109: 101325.0636 | BF109: -607.2946623 | BG109: -4.11 | BH109: -122.2760517 | BI109: -3.029783677 | BJ109: -0.72646829 | BK109: -0.3498456312 | BL109: -122.3396054 | BM109: -4.098367606 | BN109: -3.147694598 | BO109: -0.8170418367 | BP109: -0.1336311714 | BQ109: 505.5088578 | BR109: 121.2087049 | BS109: 58.37052552 | BT109: 73.79% | BU109: 17.69% | BV109: 17.69% | BW109: 8.52% | BX109: 17.92685091 | BY109: 134.5 | BZ109: 298.1326 | CA109: 4100827.734 | CB109: 2607.006732 | CC109: 676.6963893 | CD109: 110.67699 | CE109: 76.80% | CF109: 19.94% | CG109: 19.94% | CH109: 3.26% | CI109: 20.19993619 | CJ109: 151.5 | CK109: 298.8502 | CL109: 20810724.36 | CM109: 101325 | CN109: 298.8502074 | CO109: 298.1326464 | CP109: -24578.44356 | CQ109: 2610.154427 | CR109: 677.5134312 | CS109: 110.8106212 | CT109: 3398.478479 | CU109: 76.80% | CV109: 19.94% | CW109: 3.26% | CX109: 1 | CY109: 1 | CZ109: 1 | DA109: 1 | DB109: 1
C110: 101 | D110: 101 | E110: 0.05 | F110: 2.092835759 | G110: 0 | H110: 0 | I110: 12665.625 | J110: 0.05 | K110: 0 | L110: 0 | M110: 2.092835759 | N110: 7599.375 | O110: 1 | P110: 31.81588176 | Q110: 8.514109204 | R110: 0.4073736461 | S110: 252299.25 | T110: 0.5 | U110: 15.90794088 | V110: 4.257054602 | W110: 0.2036868231 | X110: 126149.625 | Y110: 1.5 | Z110: 46.97873737 | AA110: 12.1941925 | AB110: 1.994419571 | AC110: 375013.0531 | AD110: 30.74270983 | AE110: 23.6115134 | AF110: 6.128801152 | AG110: 1.002395276 | AH110: 188481.5605 | AI110: 30.81670106 | AJ110: 22.73885011 | AK110: 5.452222112 | AL110: 2.62562883 | AM110: 184463.8442 | AN110: 689.1997685 | AO110: 508.4743569 | AP110: 121.8852839 | AQ110: 58.84012773 | AR110: 73.78% | AS110: 17.69% | AT110: 8.54% | AU110: 298.1302275 | AV110: 101932.2933 | AW110: 3394.392801 | AX110: 2606.879154 | AY110: 676.5967816 | AZ110: 110.9168645 | BA110: 76.80% | BB110: 19.93% | BC110: 3.27% | BD110: 298.84926 | BE110: 101325.0638 | BF110: -607.2933211 | BG110: -4.11 | BH110: -122.2757816 | BI110: -3.02939403 | BJ110: -0.7261694645 | BK110: -0.3505583502 | BL110: -122.3396193 | BM110: -4.098392725 | BN110: -3.14739844 | BO110: -0.8168122216 | BP110: -0.1341820629 | BQ110: 505.4449629 | BR110: 121.1591144 | BS110: 58.48956938 | BT110: 73.78% | BU110: 17.69% | BV110: 17.69% | BW110: 8.54% | BX110: 17.91937107 | BY110: 134.4 | BZ110: 298.1302 | CA110: 4100533.823 | CB110: 2606.76115 | CC110: 676.5061388 | CD110: 111.1332408 | CE110: 76.80% | CF110: 19.93% | CG110: 19.93% | CH110: 3.27% | CI110: 20.19413558 | CJ110: 151.5 | CK110: 298.8484 | CL110: 20809592.34 | CM110: 101325 | CN110: 298.8484098 | CO110: 298.1302275 | CP110: -24576.62772 | CQ110: 2609.908548 | CR110: 677.322951 | CS110: 111.2674228 | CT110: 3398.498922 | CU110: 76.80% | CV110: 19.93% | CW110: 3.27% | CX110: 1 | CY110: 1 | CZ110: 1 | DA110: 1 | DB110: 1
C111: 102 | D111: 102 | E111: 0.05 | F111: 2.092835759 | G111: 0 | H111: 0 | I111: 12665.625 | J111: 0.05 | K111: 0 | L111: 0 | M111: 2.092835759 | N111: 7599.375 | O111: 1 | P111: 31.81588176 | Q111: 8.514109204 | R111: 0.4073736461 | S111: 252299.25 | T111: 0.5 | U111: 15.90794088 | V111: 4.257054602 | W111: 0.2036868231 | X111: 126149.625 | Y111: 1.5 | Z111: 46.97431193 | AA111: 12.19076415 | AB111: 2.002641292 | AC111: 374992.6538 | AD111: 30.74289475 | AE111: 23.60928918 | AF111: 6.127078064 | AG111: 1.006527514 | AH111: 188471.3078 | AI111: 30.81695109 | AJ111: 22.73597598 | AK111: 5.449991431 | AL111: 2.630983673 | AM111: 184450.6234 | AN111: 689.2052619 | AO111: 508.4111118 | AP111: 121.8362011 | AQ111: 58.95794898 | AR111: 73.77% | AS111: 17.68% | AT111: 8.55% | AU111: 298.1278474 | AV111: 101932.292 | AW111: 3394.412916 | AX111: 2606.637348 | AY111: 676.4094518 | AZ111: 111.3661161 | BA111: 76.79% | BB111: 19.93% | BC111: 3.28% | BD111: 298.8474899 | BE111: 101325.0641 | BF111: -607.2920009 | BG111: -4.11 | BH111: -122.2755158 | BI111: -3.029010683 | BJ111: -0.7258754698 | BK111: -0.3512595479 | BL111: -122.3396341 | BM111: -4.098417506 | BN111: -3.147106753 | BO111: -0.8165860569 | BP111: -0.1347246962 | BQ111: 505.3821011 | BR111: 121.1103256 | BS111: 58.60668943 | BT111: 73.77% | BU111: 17.68% | BV111: 17.68% | BW111: 8.55% | BX111: 17.91201222 | BY111: 134.4 | BZ111: 298.1278 | CA111: 4100244.666 | CB111: 2606.519251 | CC111: 676.3187413 | CD111: 111.582651 | CE111: 76.79% | CF111: 19.92% | CG111: 19.92% | CH111: 3.29% | CI111: 20.18842202 | CJ111: 151.4 | CK111: 298.8466 | CL111: 20808477.3 | CM111: 101325 | CN111: 298.846639 | CO111: 298.1278474 | CP111: -24574.84123 | CQ111: 2609.666358 | CR111: 677.1353273 | CS111: 111.7173757 | CT111: 3398.519061 | CU111: 76.79% | CV111: 19.92% | CW111: 3.29% | CX111: 1 | CY111: 1 | CZ111: 1 | DA111: 1 | DB111: 1
C112: 103 | D112: 103 | E112: 0.05 | F112: 2.092835759 | G112: 0 | H112: 0 | I112: 12665.625 | J112: 0.05 | K112: 0 | L112: 0 | M112: 2.092835759 | N112: 7599.375 | O112: 1 | P112: 31.81588176 | Q112: 8.514109204 | R112: 0.4073736461 | S112: 252299.25 | T112: 0.5 | U112: 15.90794088 | V112: 4.257054602 | W112: 0.2036868231 | X112: 126149.625 | Y112: 1.5 | Z112: 46.96995287 | AA112: 12.18738722 | AB112: 2.010739746 | AC112: 374972.5607 | AD112: 30.74307693 | AE112: 23.60709831 | AF112: 6.125380815 | AG112: 1.010597796 | AH112: 188461.209 | AI112: 30.81719712 | AJ112: 22.73314833 | AK112: 5.447796806 | AL112: 2.636251978 | AM112: 184437.6166 | AN112: 689.2106675 | AO112: 508.3488869 | AP112: 121.7879096 | AQ112: 59.073871 | AR112: 73.76% | AS112: 17.67% | AT112: 8.57% | AU112: 298.1255053 | AV112: 101932.2907 | AW112: 3394.432731 | AX112: 2606.399171 | AY112: 676.2249338 | AZ112: 111.8086259 | BA112: 76.78% | BB112: 19.92% | BC112: 3.29% | BD112: 298.8457462 | BE112: 101325.0644 | BF112: -607.2907014 | BG112: -4.11 | BH112: -122.2752542 | BI112: -3.028633517 | BJ112: -0.7255862156 | BK112: -0.3519494393 | BL112: -122.3396498 | BM112: -4.098441954 | BN112: -3.146819473 | BO112: -0.8163632943 | BP112: -0.1352591867 | BQ112: 505.3202533 | BR112: 121.0623234 | BS112: 58.72192157 | BT112: 73.76% | BU112: 17.67% | BV112: 17.67% | BW112: 8.57% | BX112: 17.90477212 | BY112: 134.3 | BZ112: 298.1255 | CA112: 4099960.175 | CB112: 2606.280985 | CC112: 676.1341568 | CD112: 112.0253161 | CE112: 76.78% | CF112: 19.92% | CG112: 19.92% | CH112: 3.30% | CI112: 20.18279427 | CJ112: 151.4 | CK112: 298.8449 | CL112: 20807379.01 | CM112: 101325 | CN112: 298.8448945 | CO112: 298.1255053 | CP112: -24573.08355 | CQ112: 2609.427805 | CR112: 676.9505201 | CS112: 112.1605753 | CT112: 3398.5389 | CU112: 76.78% | CV112: 19.92% | CW112: 3.30% | CX112: 1 | CY112: 1 | CZ112: 1 | DA112: 1 | DB112: 1
C113: 104 | D113: 104 | E113: 0.05 | F113: 2.092835759 | G113: 0 | H113: 0 | I113: 12665.625 | J113: 0.05 | K113: 0 | L113: 0 | M113: 2.092835759 | N113: 7599.375 | O113: 1 | P113: 31.81588176 | Q113: 8.514109204 | R113: 0.4073736461 | S113: 252299.25 | T113: 0.5 | U113: 15.90794088 | V113: 4.257054602 | W113: 0.2036868231 | X113: 126149.625 | Y113: 1.5 | Z113: 46.96565927 | AA113: 12.18406097 | AB113: 2.018716653 | AC113: 374952.7693 | AD113: 30.74325638 | AE113: 23.60494035 | AF113: 6.123709043 | AG113: 1.01460699 | AH113: 188451.2619 | AI113: 30.81743922 | AJ113: 22.73036629 | AK113: 5.445637566 | AL113: 2.641435362 | AM113: 184424.8196 | AN113: 689.215987 | AO113: 508.2876632 | AP113: 121.7403949 | AQ113: 59.18792895 | AR113: 73.75% | AS113: 17.66% | AT113: 8.59% | AU113: 298.1232006 | AV113: 101932.2894 | AW113: 3394.452251 | AX113: 2606.164575 | AY113: 676.0431881 | AZ113: 112.2444883 | BA113: 76.78% | BB113: 19.92% | BC113: 3.31% | BD113: 298.8440284 | BE113: 101325.0647 | BF113: -607.2894222 | BG113: -4.11 | BH113: -122.2749966 | BI113: -3.028262418 | BJ113: -0.7253016143 | BK113: -0.3526282337 | BL113: -122.3396663 | BM113: -4.098466073 | BN113: -3.146536539 | BO113: -0.8161438859 | BP113: -0.1357856485 | BQ113: 505.2594008 | BR113: 121.0150933 | BS113: 58.83530072 | BT113: 73.75% | BU113: 17.66% | BV113: 17.66% | BW113: 8.59% | BX113: 17.89764855 | BY113: 134.2 | BZ113: 298.1232 | CA113: 4099680.263 | CB113: 2606.0463 | CC113: 675.9523458 | CD113: 112.4613309 | CE113: 76.77% | CF113: 19.91% | CG113: 19.91% | CH113: 3.31% | CI113: 20.17725114 | CJ113: 151.3 | CK113: 298.8432 | CL113: 20806297.24 | CM113: 101325 | CN113: 298.8431761 | CO113: 298.1232006 | CP113: -24571.35414 | CQ113: 2609.192837 | CR113: 676.7684897 | CS113: 112.5971165 | CT113: 3398.558443 | CU113: 76.77% | CV113: 19.91% | CW113: 3.31% | CX113: 1 | CY113: 1 | CZ113: 1 | DA113: 1 | DB113: 1
C114: 105 | D114: 105 | E114: 0.05 | F114: 2.092835759 | G114: 0 | H114: 0 | I114: 12665.625 | J114: 0.05 | K114: 0 | L114: 0 | M114: 2.092835759 | N114: 7599.375 | O114: 1 | P114: 31.81588176 | Q114: 8.514109204 | R114: 0.4073736461 | S114: 252299.25 | T114: 0.5 | U114: 15.90794088 | V114: 4.257054602 | W114: 0.2036868231 | X114: 126149.625 | Y114: 1.5 | Z114: 46.96143021 | AA114: 12.1807847 | AB114: 2.026573719 | AC114: 374933.2755 | AD114: 30.74343317 | AE114: 23.60281482 | AF114: 6.122062392 | AG114: 1.018555951 | AH114: 188441.4643 | AI114: 30.81767746 | AJ114: 22.72762901 | AK114: 5.443513056 | AL114: 2.646535394 | AM114: 184412.2285 | AN114: 689.221222 | AO114: 508.2274223 | AP114: 121.6936426 | AQ114: 59.30015703 | AR114: 73.74% | AS114: 17.66% | AT114: 8.60% | AU114: 298.1209325 | AV114: 101932.2882 | AW114: 3394.47148 | AX114: 2605.933507 | AY114: 675.8641756 | AZ114: 112.6737971 | BA114: 76.77% | BB114: 19.91% | BC114: 3.32% | BD114: 298.8423364 | BE114: 101325.0649 | BF114: -607.288163 | BG114: -4.11 | BH114: -122.2747431 | BI114: -3.027897276 | BJ114: -0.7250215805 | BK114: -0.3532961349 | BL114: -122.3396835 | BM114: -4.098489866 | BN114: -3.146257887 | BO114: -0.8159277842 | BP114: -0.1363041948 | BQ114: 505.199525 | BR114: 120.968621 | BS114: 58.9468609 | BT114: 73.74% | BU114: 17.66% | BV114: 17.66% | BW114: 8.60% | BX114: 17.89063938 | BY114: 134.2 | BZ114: 298.1209 | CA114: 4099404.846 | CB114: 2605.815147 | CC114: 675.7732694 | CD114: 112.890789 | CE114: 76.77% | CF114: 19.91% | CG114: 19.91% | CH114: 3.33% | CI114: 20.17179143 | CJ114: 151.3 | CK114: 298.8415 | CL114: 20805231.74 | CM114: 101325 | CN114: 298.8414834 | CO114: 298.1209325 | CP114: -24569.65249 | CQ114: 2608.961404 | CR114: 676.5891972 | CS114: 113.0270932 | CT114: 3398.577695 | CU114: 76.77% | CV114: 19.91% | CW114: 3.33% | CX114: 1 | CY114: 1 | CZ114: 1 | DA114: 1 | DB114: 1
C115: 106 | D115: 106 | E115: 0.05 | F115: 2.092835759 | G115: 0 | H115: 0 | I115: 12665.625 | J115: 0.05 | K115: 0 | L115: 0 | M115: 2.092835759 | N115: 7599.375 | O115: 1 | P115: 31.81588176 | Q115: 8.514109204 | R115: 0.4073736461 | S115: 252299.25 | T115: 0.5 | U115: 15.90794088 | V115: 4.257054602 | W115: 0.2036868231 | X115: 126149.625 | Y115: 1.5 | Z115: 46.95726477 | AA115: 12.17755771 | AB115: 2.034312633 | AC115: 374914.0751 | AD115: 30.74360731 | AE115: 23.60072128 | AF115: 6.120440507 | AG115: 1.022445529 | AH115: 188431.8142 | AI115: 30.81791192 | AJ115: 22.72493568 | AK115: 5.441422636 | AL115: 2.651553606 | AM115: 184399.8397 | AN115: 689.2263739 | AO115: 508.1681464 | AP115: 121.6476389 | AQ115: 59.41058858 | AR115: 73.73% | AS115: 17.65% | AT115: 8.62% | AU115: 298.1187005 | AV115: 101932.2869 | AW115: 3394.490421 | AX115: 2605.705919 | AY115: 675.6878576 | AZ115: 113.0966449 | BA115: 76.76% | BB115: 19.91% | BC115: 3.33% | BD115: 298.8406696 | BE115: 101325.0652 | BF115: -607.2869235 | BG115: -4.11 | BH115: -122.2744935 | BI115: -3.027537982 | BJ115: -0.724746031 | BK115: -0.3539533415 | BL115: -122.3397015 | BM115: -4.098513337 | BN115: -3.145983457 | BO115: -0.8157149422 | BP115: -0.1368149377 | BQ115: 505.1406084 | BR115: 120.9228929 | BS115: 59.05663524 | BT115: 73.73% | BU115: 17.65% | BV115: 17.65% | BW115: 8.62% | BX115: 17.88374252 | BY115: 134.1 | BZ115: 298.1187 | CA115: 4099133.843 | CB115: 2605.587473 | CC115: 675.5968887 | CD115: 113.3137834 | CE115: 76.76% | CF115: 19.90% | CG115: 19.90% | CH115: 3.34% | CI115: 20.16641395 | CJ115: 151.3 | CK115: 298.8398 | CL115: 20804182.29 | CM115: 101325 | CN115: 298.839816 | CO115: 298.1187005 | CP115: -24567.97809 | CQ115: 2608.733457 | CR115: 676.4126037 | CS115: 113.4505983 | CT115: 3398.596659 | CU115: 76.76% | CV115: 19.90% | CW115: 3.34% | CX115: 1 | CY115: 1 | CZ115: 1 | DA115: 1 | DB115: 1
C116: 107 | D116: 107 | E116: 0.05 | F116: 2.092835759 | G116: 0 | H116: 0 | I116: 12665.625 | J116: 0.05 | K116: 0 | L116: 0 | M116: 2.092835759 | N116: 7599.375 | O116: 1 | P116: 31.81588176 | Q116: 8.514109204 | R116: 0.4073736461 | S116: 252299.25 | T116: 0.5 | U116: 15.90794088 | V116: 4.257054602 | W116: 0.2036868231 | X116: 126149.625 | Y116: 1.5 | Z116: 46.95316206 | AA116: 12.1743793 | AB116: 2.041935068 | AC116: 374895.1639 | AD116: 30.74377885 | AE116: 23.59865925 | AF116: 6.118843037 | AG116: 1.026276565 | AH116: 188422.3094 | AI116: 30.81814266 | AJ116: 22.72228548 | AK116: 5.439365688 | AL116: 2.656491486 | AM116: 184387.6494 | AN116: 689.2314442 | AO116: 508.1098179 | AP116: 121.6023702 | AQ116: 59.51925608 | AR116: 73.72% | AS116: 17.64% | AT116: 8.64% | AU116: 298.1165038 | AV116: 101932.2857 | AW116: 3394.50908 | AX116: 2605.48176 | AY116: 675.5141959 | AZ116: 113.5131237 | BA116: 76.76% | BB116: 19.90% | BC116: 3.34% | BD116: 298.8390278 | BE116: 101325.0655 | BF116: -607.2857034 | BG116: -4.11 | BH116: -122.2742478 | BI116: -3.02718443 | BJ116: -0.7244748847 | BK116: -0.3546000469 | BL116: -122.3397202 | BM116: -4.098536489 | BN116: -3.145713188 | BO116: -0.8155053135 | BP116: -0.1373179881 | BQ116: 505.0826335 | BR116: 120.8778953 | BS116: 59.16465603 | BT116: 73.72% | BU116: 17.64% | BV116: 17.64% | BW116: 8.64% | BX116: 17.87695594 | BY116: 134.1 | BZ116: 298.1165 | CA116: 4098867.172 | CB116: 2605.363231 | CC116: 675.4231654 | CD116: 113.7304057 | CE116: 76.75% | CF116: 19.90% | CG116: 19.90% | CH116: 3.35% | CI116: 20.16111754 | CJ116: 151.2 | CK116: 298.8382 | CL116: 20803148.67 | CM116: 101325 | CN116: 298.8381735 | CO116: 298.1165038 | CP116: -24566.33046 | CQ116: 2608.508945 | CR116: 676.2386708 | CS116: 113.8677237 | CT116: 3398.615339 | CU116: 76.75% | CV116: 19.90% | CW116: 3.35% | CX116: 1 | CY116: 1 | CZ116: 1 | DA116: 1 | DB116: 1
C117: 108 | D117: 108 | E117: 0.05 | F117: 2.092835759 | G117: 0 | H117: 0 | I117: 12665.625 | J117: 0.05 | K117: 0 | L117: 0 | M117: 2.092835759 | N117: 7599.375 | O117: 1 | P117: 31.81588176 | Q117: 8.514109204 | R117: 0.4073736461 | S117: 252299.25 | T117: 0.5 | U117: 15.90794088 | V117: 4.257054602 | W117: 0.2036868231 | X117: 126149.625 | Y117: 1.5 | Z117: 46.94912118 | AA117: 12.17124878 | AB117: 2.049442679 | AC117: 374876.5378 | AD117: 30.74394783 | AE117: 23.59662831 | AF117: 6.117269635 | AG117: 1.03004989 | AH117: 188412.9479 | AI117: 30.81836974 | AJ117: 22.71967765 | AK117: 5.437341604 | AL117: 2.661350488 | AM117: 184375.654 | AN117: 689.2364345 | AO117: 508.0524199 | AP117: 121.5578234 | AQ117: 59.62619119 | AR117: 73.71% | AS117: 17.64% | AT117: 8.65% | AU117: 298.1143418 | AV117: 101932.2845 | AW117: 3394.527459 | AX117: 2605.260982 | AY117: 675.3431524 | AZ117: 113.9233241 | BA117: 76.75% | BB117: 19.90% | BC117: 3.36% | BD117: 298.8374105 | BE117: 101325.0657 | BF117: -607.2845024 | BG117: -4.11 | BH117: -122.274006 | BI117: -3.026836517 | BJ117: -0.7242080625 | BK117: -0.3552364398 | BL117: -122.3397396 | BM117: -4.098559327 | BN117: -3.145447019 | BO117: -0.8152988519 | BP117: -0.1378134557 | BQ117: 505.0255834 | BR117: 120.8336153 | BS117: 59.27095475 | BT117: 73.71% | BU117: 17.64% | BV117: 17.64% | BW117: 8.65% | BX117: 17.87027765 | BY117: 134 | BZ117: 298.1143 | CA117: 4098604.757 | CB117: 2605.142372 | CC117: 675.2520617 | CD117: 114.1407471 | CE117: 76.75% | CF117: 19.89% | CG117: 19.89% | CH117: 3.36% | CI117: 20.15590103 | CJ117: 151.2 | CK117: 298.8365 | CL117: 20802130.64 | CM117: 101325 | CN117: 298.8365556 | CO117: 298.1143418 | CP117: -24564.70911 | CQ117: 2608.287819 | CR117: 676.0673605 | CS117: 114.2785606 | CT117: 3398.63374 | CU117: 76.75% | CV117: 19.89% | CW117: 3.36% | CX117: 1 | CY117: 1 | CZ117: 1 | DA117: 1 | DB117: 1
C118: 109 | D118: 109 | E118: 0.05 | F118: 2.092835759 | G118: 0 | H118: 0 | I118: 12665.625 | J118: 0.05 | K118: 0 | L118: 0 | M118: 2.092835759 | N118: 7599.375 | O118: 1 | P118: 31.81588176 | Q118: 8.514109204 | R118: 0.4073736461 | S118: 252299.25 | T118: 0.5 | U118: 15.90794088 | V118: 4.257054602 | W118: 0.2036868231 | X118: 126149.625 | Y118: 1.5 | Z118: 46.94514125 | AA118: 12.16816546 | AB118: 2.056837105 | AC118: 374858.1926 | AD118: 30.74411428 | AE118: 23.59462799 | AF118: 6.115719958 | AG118: 1.033766329 | AH118: 188403.7276 | AI118: 30.81859324 | AJ118: 22.71711142 | AK118: 5.435349795 | AL118: 2.666132028 | AM118: 184363.85 | AN118: 689.241346 | AO118: 507.9959358 | AP118: 121.5139855 | AQ118: 59.73142481 | AR118: 73.70% | AS118: 17.63% | AT118: 8.67% | AU118: 298.112214 | AV118: 101932.2833 | AW118: 3394.545562 | AX118: 2605.043536 | AY118: 675.1746898 | AZ118: 114.3273362 | BA118: 76.74% | BB118: 19.89% | BC118: 3.37% | BD118: 298.8358175 | BE118: 101325.066 | BF118: -607.2833201 | BG118: -4.11 | BH118: -122.273768 | BI118: -3.026494143 | BJ118: -0.7239454873 | BK118: -0.3558627041 | BL118: -122.3397596 | BM118: -4.098581854 | BN118: -3.145184893 | BO118: -0.815095512 | BP118: -0.1383014491 | BQ118: 504.9694416 | BR118: 120.79004 | BS118: 59.37556211 | BT118: 73.70% | BU118: 17.63% | BV118: 17.63% | BW118: 8.67% | BX118: 17.86370572 | BY118: 134 | BZ118: 298.1122 | CA118: 4098346.521 | CB118: 2604.924846 | CC118: 675.0835398 | CD118: 114.5448974 | CE118: 76.74% | CF118: 19.89% | CG118: 19.89% | CH118: 3.37% | CI118: 20.15076329 | CJ118: 151.1 | CK118: 298.8349 | CL118: 20801127.97 | CM118: 101325 | CN118: 298.834962 | CO118: 298.112214 | CP118: -24563.11357 | CQ118: 2608.070031 | CR118: 675.8986353 | CS118: 114.6831989 | CT118: 3398.651865 | CU118: 76.74% | CV118: 19.89% | CW118: 3.37% | CX118: 1 | CY118: 1 | CZ118: 1 | DA118: 1 | DB118: 1
C119: 110 | D119: 110 | E119: 0.05 | F119: 2.092835759 | G119: 0 | H119: 0 | I119: 12665.625 | J119: 0.05 | K119: 0 | L119: 0 | M119: 2.092835759 | N119: 7599.375 | O119: 1 | P119: 31.81588176 | Q119: 8.514109204 | R119: 0.4073736461 | S119: 252299.25 | T119: 0.5 | U119: 15.90794088 | V119: 4.257054602 | W119: 0.2036868231 | X119: 126149.625 | Y119: 1.5 | Z119: 46.94122139 | AA119: 12.16512866 | AB119: 2.064119968 | AC119: 374840.1245 | AD119: 30.74427823 | AE119: 23.59265787 | AF119: 6.114193665 | AG119: 1.037426696 | AH119: 188394.6466 | AI119: 30.81881321 | AJ119: 22.71458604 | AK119: 5.433389686 | AL119: 2.670837486 | AM119: 184352.234 | AN119: 689.2461802 | AO119: 507.9403492 | AP119: 121.4708439 | AQ119: 59.83498708 | AR119: 73.70% | AS119: 17.62% | AT119: 8.68% | AU119: 298.1101197 | AV119: 101932.2822 | AW119: 3394.563395 | AX119: 2604.829375 | AY119: 675.008771 | AZ119: 114.7252487 | BA119: 76.74% | BB119: 19.88% | BC119: 3.38% | BD119: 298.8342484 | BE119: 101325.0662 | BF119: -607.2821563 | BG119: -4.11 | BH119: -122.2735336 | BI119: -3.02615721 | BJ119: -0.723687084 | BK119: -0.3564790193 | BL119: -122.3397802 | BM119: -4.098604074 | BN119: -3.14492675 | BO119: -0.8148952488 | BP119: -0.1387820757 | BQ119: 504.914192 | BR119: 120.7471569 | BS119: 59.47850806 | BT119: 73.70% | BU119: 17.62% | BV119: 17.62% | BW119: 8.68% | BX119: 17.85723826 | BY119: 133.9 | BZ119: 298.1101 | CA119: 4098092.39 | CB119: 2604.710606 | CC119: 674.9175628 | CD119: 114.9429457 | CE119: 76.73% | CF119: 19.88% | CG119: 19.88% | CH119: 3.39% | CI119: 20.14570317 | CJ119: 151.1 | CK119: 298.8334 | CL119: 20800140.46 | CM119: 101325 | CN119: 298.8333923 | CO119: 298.1101197 | CP119: -24561.54338 | CQ119: 2607.855532 | CR119: 675.7324581 | CS119: 115.0817277 | CT119: 3398.669718 | CU119: 76.73% | CV119: 19.88% | CW119: 3.39% | CX119: 1 | CY119: 1 | CZ119: 1 | DA119: 1 | DB119: 1
C120: 111 | D120: 111 | E120: 0.05 | F120: 2.092835759 | G120: 0 | H120: 0 | I120: 12665.625 | J120: 0.05 | K120: 0 | L120: 0 | M120: 2.092835759 | N120: 7599.375 | O120: 1 | P120: 31.81588176 | Q120: 8.514109204 | R120: 0.4073736461 | S120: 252299.25 | T120: 0.5 | U120: 15.90794088 | V120: 4.257054602 | W120: 0.2036868231 | X120: 126149.625 | Y120: 1.5 | Z120: 46.93736075 | AA120: 12.16213772 | AB120: 2.07129287 | AC120: 374822.3293 | AD120: 30.74443973 | AE120: 23.59071751 | AF120: 6.112690421 | AG120: 1.041031796 | AH120: 188385.7027 | AI120: 30.81902972 | AJ120: 22.7121008 | AK120: 5.431460714 | AL120: 2.675468211 | AM120: 184340.8027 | AN120: 689.2509384 | AO120: 507.8856445 | AP120: 121.4283866 | AQ120: 59.9369074 | AR120: 73.69% | AS120: 17.62% | AT120: 8.70% | AU120: 298.1080584 | AV120: 101932.281 | AW120: 3394.58096 | AX120: 2604.618451 | AY120: 674.8453592 | AZ120: 115.1171497 | BA120: 76.73% | BB120: 19.88% | BC120: 3.39% | BD120: 298.8327029 | BE120: 101325.0665 | BF120: -607.2810107 | BG120: -4.11 | BH120: -122.273303 | BI120: -3.025825621 | BJ120: -0.723432779 | BK120: -0.3570855606 | BL120: -122.3398014 | BM120: -4.09862599 | BN120: -3.144672531 | BO120: -0.8146980177 | BP120: -0.1392554417 | BQ120: 504.8598188 | BR120: 120.7049538 | BS120: 59.57982184 | BT120: 73.69% | BU120: 17.62% | BV120: 17.62% | BW120: 8.70% | BX120: 17.85087344 | BY120: 133.9 | BZ120: 298.1081 | CA120: 4097842.292 | CB120: 2604.499604 | CC120: 674.754094 | CD120: 115.3349798 | CE120: 76.73% | CF120: 19.88% | CG120: 19.88% | CH120: 3.40% | CI120: 20.14071956 | CJ120: 151.1 | CK120: 298.8318 | CL120: 20799167.88 | CM120: 101325 | CN120: 298.8318462 | CO120: 298.1080584 | CP120: -24559.99811 | CQ120: 2607.644276 | CR120: 675.568792 | CS120: 115.4742352 | CT120: 3398.687304 | CU120: 76.73% | CV120: 19.88% | CW120: 3.40% | CX120: 1 | CY120: 1 | CZ120: 1 | DA120: 1 | DB120: 1
C121: 112 | D121: 112 | E121: 0.05 | F121: 2.092835759 | G121: 0 | H121: 0 | I121: 12665.625 | J121: 0.05 | K121: 0 | L121: 0 | M121: 2.092835759 | N121: 7599.375 | O121: 1 | P121: 31.81588176 | Q121: 8.514109204 | R121: 0.4073736461 | S121: 252299.25 | T121: 0.5 | U121: 15.90794088 | V121: 4.257054602 | W121: 0.2036868231 | X121: 126149.625 | Y121: 1.5 | Z121: 46.93355846 | AA121: 12.15919199 | AB121: 2.078357397 | AC121: 374804.8032 | AD121: 30.7445988 | AE121: 23.58880648 | AF121: 6.111209892 | AG121: 1.044582427 | AH121: 188376.8941 | AI121: 30.81924283 | AJ121: 22.70965498 | AK121: 5.429562331 | AL121: 2.680025518 | AM121: 184329.5527 | AN121: 689.255622 | AO121: 507.8318061 | AP121: 121.3866014 | AQ121: 60.03721451 | AR121: 73.68% | AS121: 17.61% | AT121: 8.71% | AU121: 298.1060294 | AV121: 101932.2799 | AW121: 3394.598261 | AX121: 2604.410717 | AY121: 674.6844182 | AZ121: 115.503126 | BA121: 76.72% | BB121: 19.88% | BC121: 3.40% | BD121: 298.8311806 | BE121: 101325.0667 | BF121: -607.279883 | BG121: -4.11 | BH121: -122.2730759 | BI121: -3.025499284 | BJ121: -0.7231825007 | BK121: -0.357682499 | BL121: -122.3398232 | BM121: -4.098647607 | BN121: -3.14442218 | BO121: -0.8145037747 | BP121: -0.1397216521 | BQ121: 504.8063068 | BR121: 120.6634189 | BS121: 59.67953201 | BT121: 73.68% | BU121: 17.61% | BV121: 17.61% | BW121: 8.71% | BX121: 17.84460945 | BY121: 133.8 | BZ121: 298.1060 | CA121: 4097596.156 | CB121: 2604.291794 | CC121: 674.5930969 | CD121: 115.7210868 | CE121: 76.72% | CF121: 19.87% | CG121: 19.87% | CH121: 3.41% | CI121: 20.13581134 | CJ121: 151 | CK121: 298.8303 | CL121: 20798210.01 | CM121: 101325 | CN121: 298.8303233 | CO121: 298.1060294 | CP121: -24558.47732 | CQ121: 2607.436216 | CR121: 675.4076007 | CS121: 115.8608085 | CT121: 3398.704625 | CU121: 76.72% | CV121: 19.87% | CW121: 3.41% | CX121: 1 | CY121: 1 | CZ121: 1 | DA121: 1 | DB121: 1
C122: 113 | D122: 113 | E122: 0.05 | F122: 2.092835759 | G122: 0 | H122: 0 | I122: 12665.625 | J122: 0.05 | K122: 0 | L122: 0 | M122: 2.092835759 | N122: 7599.375 | O122: 1 | P122: 31.81588176 | Q122: 8.514109204 | R122: 0.4073736461 | S122: 252299.25 | T122: 0.5 | U122: 15.90794088 | V122: 4.257054602 | W122: 0.2036868231 | X122: 126149.625 | Y122: 1.5 | Z122: 46.92981368 | AA122: 12.15629079 | AB122: 2.085315115 | AC122: 374787.5423 | AD122: 30.74475548 | AE122: 23.58692435 | AF122: 6.109751751 | AG122: 1.048079377 | AH122: 188368.2188 | AI122: 30.81945259 | AJ122: 22.70724789 | AK122: 5.427694002 | AL122: 2.684510691 | AM122: 184318.481 | AN122: 689.2602321 | AO122: 507.778819 | AP122: 121.3454766 | AQ122: 60.13593645 | AR122: 73.67% | AS122: 17.61% | AT122: 8.72% | AU122: 298.1040323 | AV122: 101932.2788 | AW122: 3394.615302 | AX122: 2604.206126 | AY122: 674.5259122 | AZ122: 115.8832635 | BA122: 76.72% | BB122: 19.87% | BC122: 3.41% | BD122: 298.8296812 | BE122: 101325.067 | BF122: -607.2787729 | BG122: -4.11 | BH122: -122.2728524 | BI122: -3.025178107 | BJ122: -0.722936179 | BK122: -0.3582700018 | BL122: -122.3398454 | BM122: -4.098668927 | BN122: -3.14417564 | BO122: -0.8143124764 | BP122: -0.1401808107 | BQ122: 504.7536409 | BR122: 120.6225404 | BS122: 59.77766645 | BT122: 73.67% | BU122: 17.61% | BV122: 17.61% | BW122: 8.72% | BX122: 17.83844453 | BY122: 133.8 | BZ122: 298.1040 | CA122: 4097353.913 | CB122: 2604.087129 | CC122: 674.4345359 | CD122: 116.1013527 | CE122: 76.71% | CF122: 19.87% | CG122: 19.87% | CH122: 3.42% | CI122: 20.13097743 | CJ122: 151 | CK122: 298.8288 | CL122: 20797266.65 | CM122: 101325 | CN122: 298.8288233 | CO122: 298.1040323 | CP122: -24556.98057 | CQ122: 2607.231304 | CR122: 675.2488484 | CS122: 116.2415335 | CT122: 3398.721686 | CU122: 76.71% | CV122: 19.87% | CW122: 3.42% | CX122: 1 | CY122: 1 | CZ122: 1 | DA122: 1 | DB122: 1
C123: 114 | D123: 114 | E123: 0.05 | F123: 2.092835759 | G123: 0 | H123: 0 | I123: 12665.625 | J123: 0.05 | K123: 0 | L123: 0 | M123: 2.092835759 | N123: 7599.375 | O123: 1 | P123: 31.81588176 | Q123: 8.514109204 | R123: 0.4073736461 | S123: 252299.25 | T123: 0.5 | U123: 15.90794088 | V123: 4.257054602 | W123: 0.2036868231 | X123: 126149.625 | Y123: 1.5 | Z123: 46.92612558 | AA123: 12.15343349 | AB123: 2.092167576 | AC123: 374770.5426 | AD123: 30.74490981 | AE123: 23.58507071 | AF123: 6.108315673 | AG123: 1.051523423 | AH123: 188359.6747 | AI123: 30.81965906 | AJ123: 22.70487887 | AK123: 5.425855204 | AL123: 2.688924984 | AM123: 184307.5844 | AN123: 689.2647701 | AO123: 507.7266685 | AP123: 121.3050009 | AQ123: 60.23310065 | AR123: 73.66% | AS123: 17.60% | AT123: 8.74% | AU123: 298.1020664 | AV123: 101932.2777 | AW123: 3394.632087 | AX123: 2604.004634 | AY123: 674.3698057 | AZ123: 116.2576471 | BA123: 76.71% | BB123: 19.87% | BC123: 3.42% | BD123: 298.8282043 | BE123: 101325.0672 | BF123: -607.2776802 | BG123: -4.11 | BH123: -122.2726324 | BI123: -3.024862001 | BJ123: -0.7226937454 | BK123: -0.358848232 | BL123: -122.3398682 | BM123: -4.098689954 | BN123: -3.143932855 | BO123: -0.8141240797 | BP123: -0.14063302 | BQ123: 504.7018065 | BR123: 120.5823071 | BS123: 59.87425242 | BT123: 73.66% | BU123: 17.60% | BV123: 17.60% | BW123: 8.74% | BX123: 17.83237697 | BY123: 133.8 | BZ123: 298.1021 | CA123: 4097115.496 | CB123: 2603.885563 | CC123: 674.2783754 | CD123: 116.4758623 | CE123: 76.71% | CF123: 19.86% | CG123: 19.86% | CH123: 3.43% | CI123: 20.12621674 | CJ123: 151 | CK123: 298.8273 | CL123: 20796337.57 | CM123: 101325 | CN123: 298.8273459 | CO123: 298.1020664 | CP123: -24555.50747 | CQ123: 2607.029496 | CR123: 675.0924995 | CS123: 116.6164953 | CT123: 3398.738491 | CU123: 76.71% | CV123: 19.86% | CW123: 3.43% | CX123: 1 | CY123: 1 | CZ123: 1 | DA123: 1 | DB123: 1
C124: 115 | D124: 115 | E124: 0.05 | F124: 2.092835759 | G124: 0 | H124: 0 | I124: 12665.625 | J124: 0.05 | K124: 0 | L124: 0 | M124: 2.092835759 | N124: 7599.375 | O124: 1 | P124: 31.81588176 | Q124: 8.514109204 | R124: 0.4073736461 | S124: 252299.25 | T124: 0.5 | U124: 15.90794088 | V124: 4.257054602 | W124: 0.2036868231 | X124: 126149.625 | Y124: 1.5 | Z124: 46.92249333 | AA124: 12.15061945 | AB124: 2.098916308 | AC124: 374753.8005 | AD124: 30.74506182 | AE124: 23.58324515 | AF124: 6.106901336 | AG124: 1.054915336 | AH124: 188351.2601 | AI124: 30.8198623 | AJ124: 22.70254725 | AK124: 5.424045427 | AL124: 2.693269624 | AM124: 184296.8599 | AN124: 689.2692371 | AO124: 507.6753402 | AP124: 121.2651631 | AQ124: 60.32873389 | AR124: 73.65% | AS124: 17.59% | AT124: 8.75% | AU124: 298.1001313 | AV124: 101932.2766 | AW124: 3394.648619 | AX124: 2603.806194 | AY124: 674.2160639 | AZ124: 116.6263608 | BA124: 76.70% | BB124: 19.86% | BC124: 3.44% | BD124: 298.8267497 | BE124: 101325.0675 | BF124: -607.2766045 | BG124: -4.11 | BH124: -122.2724158 | BI124: -3.024550879 | BJ124: -0.7224551332 | BK124: -0.3594173494 | BL124: -122.3398915 | BM124: -4.098710692 | BN124: -3.143693769 | BO124: -0.8139385422 | BP124: -0.1410783812 | BQ124: 504.6507893 | BR124: 120.5427079 | BS124: 59.96931654 | BT124: 73.65% | BU124: 17.59% | BV124: 17.59% | BW124: 8.75% | BX124: 17.8264051 | BY124: 133.7 | BZ124: 298.1001 | CA124: 4096880.839 | CB124: 2603.687052 | CC124: 674.1245805 | CD124: 116.8446997 | CE124: 76.70% | CF124: 19.86% | CG124: 19.86% | CH124: 3.44% | CI124: 20.1215282 | CJ124: 150.9 | CK124: 298.8259 | CL124: 20795422.57 | CM124: 101325 | CN124: 298.8258907 | CO124: 298.1001313 | CP124: -24554.05759 | CQ124: 2606.830745 | CR124: 674.938519 | CS124: 116.9857781 | CT124: 3398.755042 | CU124: 76.70% | CV124: 19.86% | CW124: 3.44% | CX124: 1 | CY124: 1 | CZ124: 1 | DA124: 1 | DB124: 1
C125: 116 | D125: 116 | E125: 0.05 | F125: 2.092835759 | G125: 0 | H125: 0 | I125: 12665.625 | J125: 0.05 | K125: 0 | L125: 0 | M125: 2.092835759 | N125: 7599.375 | O125: 1 | P125: 31.81588176 | Q125: 8.514109204 | R125: 0.4073736461 | S125: 252299.25 | T125: 0.5 | U125: 15.90794088 | V125: 4.257054602 | W125: 0.2036868231 | X125: 126149.625 | Y125: 1.5 | Z125: 46.91891611 | AA125: 12.14784804 | AB125: 2.105562826 | AC125: 374737.3121 | AD125: 30.74521154 | AE125: 23.58144724 | AF125: 6.105508424 | AG125: 1.058255876 | AH125: 188342.9731 | AI125: 30.82006237 | AJ125: 22.70025239 | AK125: 5.422264171 | AL125: 2.697545808 | AM125: 184286.3045 | AN125: 689.2736345 | AO125: 507.6248199 | AP125: 121.2259522 | AQ125: 60.42286237 | AR125: 73.65% | AS125: 17.59% | AT125: 8.77% | AU125: 298.0982265 | AV125: 101932.2755 | AW125: 3394.664903 | AX125: 2603.610763 | AY125: 674.064652 | AZ125: 116.9894873 | BA125: 76.70% | BB125: 19.86% | BC125: 3.45% | BD125: 298.825317 | BE125: 101325.0677 | BF125: -607.2755457 | BG125: -4.11 | BH125: -122.2722026 | BI125: -3.024244655 | BJ125: -0.7222202768 | BK125: -0.3599775098 | BL125: -122.3399152 | BM125: -4.098731145 | BN125: -3.143458328 | BO125: -0.8137558219 | BP125: -0.1415169947 | BQ125: 504.6005753 | BR125: 120.5037319 | BS125: 60.06288486 | BT125: 73.65% | BU125: 17.59% | BV125: 17.59% | BW125: 8.77% | BX125: 17.82052728 | BY125: 133.7 | BZ125: 298.0982 | CA125: 4096649.877 | CB125: 2603.49155 | CC125: 673.9731164 | CD125: 117.2079478 | CE125: 76.69% | CF125: 19.85% | CG125: 19.85% | CH125: 3.45% | CI125: 20.11691076 | CJ125: 150.9 | CK125: 298.8244 | CL125: 20794521.45 | CM125: 101325 | CN125: 298.8244574 | CO125: 298.0982265 | CP125: -24552.63054 | CQ125: 2606.635008 | CR125: 674.7868722 | CS125: 117.3494648 | CT125: 3398.771345 | CU125: 76.69% | CV125: 19.85% | CW125: 3.45% | CX125: 1 | CY125: 1 | CZ125: 1 | DA125: 1 | DB125: 1
C126: 117 | D126: 117 | E126: 0.05 | F126: 2.092835759 | G126: 0 | H126: 0 | I126: 12665.625 | J126: 0.05 | K126: 0 | L126: 0 | M126: 2.092835759 | N126: 7599.375 | O126: 1 | P126: 31.81588176 | Q126: 8.514109204 | R126: 0.4073736461 | S126: 252299.25 | T126: 0.5 | U126: 15.90794088 | V126: 4.257054602 | W126: 0.2036868231 | X126: 126149.625 | Y126: 1.5 | Z126: 46.91539313 | AA126: 12.14511863 | AB126: 2.112108623 | AC126: 374721.0737 | AD126: 30.745359 | AE126: 23.57967659 | AF126: 6.104136623 | AG126: 1.061545794 | AH126: 188334.8116 | AI126: 30.82025931 | AJ126: 22.69799366 | AK126: 5.420510947 | AL126: 2.701754707 | AM126: 184275.9154 | AN126: 689.2779632 | AO126: 507.5750939 | AP126: 121.1873576 | AQ126: 60.5155117 | AR126: 73.64% | AS126: 17.58% | AT126: 8.78% | AU126: 298.0963513 | AV126: 101932.2745 | AW126: 3394.680941 | AX126: 2603.418296 | AY126: 673.9155359 | AZ126: 117.3471086 | BA126: 76.69% | BB126: 19.85% | BC126: 3.46% | BD126: 298.8239059 | BE126: 101325.0679 | BF126: -607.2745034 | BG126: -4.11 | BH126: -122.2719927 | BI126: -3.023943247 | BJ126: -0.7219891123 | BK126: -0.3605288658 | BL126: -122.3399393 | BM126: -4.098751314 | BN126: -3.143226478 | BO126: -0.8135758774 | BP126: -0.1419489591 | BQ126: 504.5511507 | BR126: 120.4653685 | BS126: 60.15498284 | BT126: 73.64% | BU126: 17.58% | BV126: 17.58% | BW126: 8.78% | BX126: 17.81474189 | BY126: 133.6 | BZ126: 298.0964 | CA126: 4096422.547 | CB126: 2603.299013 | CC126: 673.8239492 | CD126: 117.5656885 | CE126: 76.69% | CF126: 19.85% | CG126: 19.85% | CH126: 3.46% | CI126: 20.11236336 | CJ126: 150.9 | CK126: 298.8230 | CL126: 20793634 | CM126: 101325 | CN126: 298.8230458 | CO126: 298.0963513 | CP126: -24551.22593 | CQ126: 2606.442239 | CR126: 674.637525 | CS126: 117.7076375 | CT126: 3398.787402 | CU126: 76.69% | CV126: 19.85% | CW126: 3.46% | CX126: 1 | CY126: 1 | CZ126: 1 | DA126: 1 | DB126: 1
C127: 118 | D127: 118 | E127: 0.05 | F127: 2.092835759 | G127: 0 | H127: 0 | I127: 12665.625 | J127: 0.05 | K127: 0 | L127: 0 | M127: 2.092835759 | N127: 7599.375 | O127: 1 | P127: 31.81588176 | Q127: 8.514109204 | R127: 0.4073736461 | S127: 252299.25 | T127: 0.5 | U127: 15.90794088 | V127: 4.257054602 | W127: 0.2036868231 | X127: 126149.625 | Y127: 1.5 | Z127: 46.91192359 | AA127: 12.14243061 | AB127: 2.118555175 | AC127: 374705.0817 | AD127: 30.74550425 | AE127: 23.57793279 | AF127: 6.102785623 | AG127: 1.064785831 | AH127: 188326.7741 | AI127: 30.82045318 | AJ127: 22.69577044 | AK127: 5.418785279 | AL127: 2.705897468 | AM127: 184265.6896 | AN127: 689.2822246 | AO127: 507.5261488 | AP127: 121.1493688 | AQ127: 60.60670696 | AR127: 73.63% | AS127: 17.58% | AT127: 8.79% | AU127: 298.0945054 | AV127: 101932.2735 | AW127: 3394.696737 | AX127: 2603.22875 | AY127: 673.768682 | AZ127: 117.6993054 | BA127: 76.69% | BB127: 19.85% | BC127: 3.47% | BD127: 298.822516 | BE127: 101325.0682 | BF127: -607.2734773 | BG127: -4.11 | BH127: -122.2717862 | BI127: -3.023646571 | BJ127: -0.7217615772 | BK127: -0.3610715667 | BL127: -122.3399638 | BM127: -4.098771206 | BN127: -3.142998166 | BO127: -0.8133986678 | BP127: -0.1423743721 | BQ127: 504.5025022 | BR127: 120.4276072 | BS127: 60.24563539 | BT127: 73.63% | BU127: 17.58% | BV127: 17.58% | BW127: 8.79% | BX127: 17.80904738 | BY127: 133.6 | BZ127: 298.0945 | CA127: 4096198.788 | CB127: 2603.109398 | CC127: 673.6770449 | CD127: 117.9180026 | CE127: 76.68% | CF127: 19.84% | CG127: 19.84% | CH127: 3.47% | CI127: 20.10788499 | CJ127: 150.8 | CK127: 298.8216 | CL127: 20792760.02 | CM127: 101325 | CN127: 298.8216554 | CO127: 298.0945054 | CP127: -24549.84339 | CQ127: 2606.252396 | CR127: 674.4904436 | CS127: 118.060377 | CT127: 3398.803217 | CU127: 76.68% | CV127: 19.84% | CW127: 3.47% | CX127: 1 | CY127: 1 | CZ127: 1 | DA127: 1 | DB127: 1
C128: 119 | D128: 119 | E128: 0.05 | F128: 2.092835759 | G128: 0 | H128: 0 | I128: 12665.625 | J128: 0.05 | K128: 0 | L128: 0 | M128: 2.092835759 | N128: 7599.375 | O128: 1 | P128: 31.81588176 | Q128: 8.514109204 | R128: 0.4073736461 | S128: 252299.25 | T128: 0.5 | U128: 15.90794088 | V128: 4.257054602 | W128: 0.2036868231 | X128: 126149.625 | Y128: 1.5 | Z128: 46.90850669 | AA128: 12.13978337 | AB128: 2.12490394 | AC128: 374689.3324 | AD128: 30.7456473 | AE128: 23.57621546 | AF128: 6.10145512 | AG128: 1.06797672 | AH128: 188318.8585 | AI128: 30.82064404 | AJ128: 22.69358213 | AK128: 5.4170867 | AL128: 2.70997521 | AM128: 184255.6245 | AN128: 689.2864196 | AO128: 507.4779713 | AP128: 121.1119756 | AQ128: 60.69647266 | AR128: 73.62% | AS128: 17.57% | AT128: 8.81% | AU128: 298.0926882 | AV128: 101932.2725 | AW128: 3394.712295 | AX128: 2603.042081 | AY128: 673.6240569 | AZ128: 118.0461576 | BA128: 76.68% | BB128: 19.84% | BC128: 3.48% | BD128: 298.8211472 | BE128: 101325.0684 | BF128: -607.2724673 | BG128: -4.11 | BH128: -122.2715828 | BI128: -3.02335455 | BJ128: -0.7215376101 | BK128: -0.3616057586 | BL128: -122.3399886 | BM128: -4.098790821 | BN128: -3.142773338 | BO128: -0.8132241527 | BP128: -0.1427933301 | BQ128: 504.4546168 | BR128: 120.390438 | BS128: 60.3348669 | BT128: 73.62% | BU128: 17.57% | BV128: 17.57% | BW128: 8.81% | BX128: 17.8034422 | BY128: 133.5 | BZ128: 298.0927 | CA128: 4095978.539 | CB128: 2602.922662 | CC128: 673.5323704 | CD128: 118.2649701 | CE128: 76.68% | CF128: 19.84% | CG128: 19.84% | CH128: 3.48% | CI128: 20.10347463 | CJ128: 150.8 | CK128: 298.8203 | CL128: 20791899.31 | CM128: 101325 | CN128: 298.8202861 | CO128: 298.0926882 | CP128: -24548.48254 | CQ128: 2606.065435 | CR128: 674.3455946 | CS128: 118.4077634 | CT128: 3398.818793 | CU128: 76.68% | CV128: 19.84% | CW128: 3.48% | CX128: 1 | CY128: 1 | CZ128: 1 | DA128: 1 | DB128: 1
C129: 120 | D129: 120 | E129: 0.05 | F129: 2.092835759 | G129: 0 | H129: 0 | I129: 12665.625 | J129: 0.05 | K129: 0 | L129: 0 | M129: 2.092835759 | N129: 7599.375 | O129: 1 | P129: 31.81588176 | Q129: 8.514109204 | R129: 0.4073736461 | S129: 252299.25 | T129: 0.5 | U129: 15.90794088 | V129: 4.257054602 | W129: 0.2036868231 | X129: 126149.625 | Y129: 1.5 | Z129: 46.90514167 | AA129: 12.1371763 | AB129: 2.131156356 | AC129: 374673.8223 | AD129: 30.7457882 | AE129: 23.5745242 | AF129: 6.100144811 | AG129: 1.071119185 | AH129: 188311.0631 | AI129: 30.82083192 | AJ129: 22.69142814 | AK129: 5.415414752 | AL129: 2.713989031 | AM129: 184245.7172 | AN129: 689.2905495 | AO129: 507.4305486 | AP129: 121.0751681 | AQ129: 60.78483281 | AR129: 73.62% | AS129: 17.57% | AT129: 8.82% | AU129: 298.0908993 | AV129: 101932.2715 | AW129: 3394.727619 | AX129: 2602.858247 | AY129: 673.4816278 | AZ129: 118.387744 | BA129: 76.67% | BB129: 19.84% | BC129: 3.49% | BD129: 298.819799 | BE129: 101325.0686 | BF129: -607.271473 | BG129: -4.11 | BH129: -122.2713826 | BI129: -3.023067104 | BJ129: -0.7213171512 | BK129: -0.3621315843 | BL129: -122.3400138 | BM129: -4.098810165 | BN129: -3.142551944 | BO129: -0.8130522923 | BP129: -0.1432059283 | BQ129: 504.4074815 | BR129: 120.3538509 | BS129: 60.42270123 | BT129: 73.62% | BU129: 17.57% | BV129: 17.57% | BW129: 8.82% | BX129: 17.79792486 | BY129: 133.5 | BZ129: 298.0909 | CA129: 4095761.742 | CB129: 2602.738762 | CC129: 673.3898927 | CD129: 118.6066697 | CE129: 76.67% | CF129: 19.84% | CG129: 19.84% | CH129: 3.49% | CI129: 20.09913126 | CJ129: 150.8 | CK129: 298.8189 | CL129: 20791051.68 | CM129: 101325 | CN129: 298.8189374 | CO129: 298.0908993 | CP129: -24547.14302 | CQ129: 2605.881314 | CR129: 674.202945 | CS129: 118.7498756 | CT129: 3398.834134 | CU129: 76.67% | CV129: 19.84% | CW129: 3.49% | CX129: 1 | CY129: 1 | CZ129: 1 | DA129: 1 | DB129: 1
C130: 121 | D130: 121 | E130: 0.05 | F130: 2.092835759 | G130: 0 | H130: 0 | I130: 12665.625 | J130: 0.05 | K130: 0 | L130: 0 | M130: 2.092835759 | N130: 7599.375 | O130: 1 | P130: 31.81588176 | Q130: 8.514109204 | R130: 0.4073736461 | S130: 252299.25 | T130: 0.5 | U130: 15.90794088 | V130: 4.257054602 | W130: 0.2036868231 | X130: 126149.625 | Y130: 1.5 | Z130: 46.90182776 | AA130: 12.13460883 | AB130: 2.137313846 | AC130: 374658.5477 | AD130: 30.74592697 | AE130: 23.57285863 | AF130: 6.098854398 | AG130: 1.074213939 | AH130: 188303.3861 | AI130: 30.82101689 | AJ130: 22.68930789 | AK130: 5.413768987 | AL130: 2.717940003 | AM130: 184235.9652 | AN130: 689.2946153 | AO130: 507.383868 | AP130: 121.0389364 | AQ130: 60.87181092 | AR130: 73.61% | AS130: 17.56% | AT130: 8.83% | AU130: 298.0891381 | AV130: 101932.2705 | AW130: 3394.742711 | AX130: 2602.677206 | AY130: 673.3413623 | AZ130: 118.7241424 | BA130: 76.67% | BB130: 19.83% | BC130: 3.50% | BD130: 298.8184712 | BE130: 101325.0689 | BF130: -607.2704943 | BG130: -4.11 | BH130: -122.2711855 | BI130: -3.022784157 | BJ130: -0.7211001418 | BK130: -0.3626491839 | BL130: -122.3400393 | BM130: -4.09882924 | BN130: -3.142333932 | BO130: -0.8128830471 | BP130: -0.1436122606 | BQ130: 504.3610839 | BR130: 120.3178362 | BS130: 60.50916174 | BT130: 73.61% | BU130: 17.56% | BV130: 17.56% | BW130: 8.83% | BX130: 17.79249388 | BY130: 133.5 | BZ130: 298.0891 | CA130: 4095548.339 | CB130: 2602.557656 | CC130: 673.2495794 | CD130: 118.9431793 | CE130: 76.66% | CF130: 19.83% | CG130: 19.83% | CH130: 3.50% | CI130: 20.0948539 | CJ130: 150.7 | CK130: 298.8176 | CL130: 20790216.92 | CM130: 101325 | CN130: 298.8176091 | CO130: 298.0891381 | CP130: -24545.82447 | CQ130: 2605.69999 | CR130: 674.0624624 | CS130: 119.0867916 | CT130: 3398.849244 | CU130: 76.66% | CV130: 19.83% | CW130: 3.50% | CX130: 1 | CY130: 1 | CZ130: 1 | DA130: 1 | DB130: 1
C131: 122 | D131: 122 | E131: 0.05 | F131: 2.092835759 | G131: 0 | H131: 0 | I131: 12665.625 | J131: 0.05 | K131: 0 | L131: 0 | M131: 2.092835759 | N131: 7599.375 | O131: 1 | P131: 31.81588176 | Q131: 8.514109204 | R131: 0.4073736461 | S131: 252299.25 | T131: 0.5 | U131: 15.90794088 | V131: 4.257054602 | W131: 0.2036868231 | X131: 126149.625 | Y131: 1.5 | Z131: 46.8985642 | AA131: 12.13208036 | AB131: 2.143377811 | AC131: 374643.5054 | AD131: 30.74606365 | AE131: 23.57121837 | AF131: 6.097583588 | AG131: 1.077261688 | AH131: 188295.8258 | AI131: 30.82119898 | AJ131: 22.68722083 | AK131: 5.412148969 | AL131: 2.721829179 | AM131: 184226.3659 | AN131: 689.298618 | AO131: 507.3379171 | AP131: 121.0032708 | AQ131: 60.95743001 | AR131: 73.60% | AS131: 17.55% | AT131: 8.84% | AU131: 298.0874043 | AV131: 101932.2695 | AW131: 3394.757575 | AX131: 2602.498917 | AY131: 673.2032282 | AZ131: 119.0554295 | BA131: 76.66% | BB131: 19.83% | BC131: 3.51% | BD131: 298.8171635 | BE131: 101325.0691 | BF131: -607.2695308 | BG131: -4.11 | BH131: -122.2709916 | BI131: -3.022505634 | BJ131: -0.7208865244 | BK131: -0.3631586944 | BL131: -122.3400651 | BM131: -4.098848049 | BN131: -3.142119251 | BO131: -0.8127163784 | BP131: -0.1440124197 | BQ131: 504.3154115 | BR131: 120.2823843 | BS131: 60.59427131 | BT131: 73.60% | BU131: 17.55% | BV131: 17.55% | BW131: 8.84% | BX131: 17.78714783 | BY131: 133.4 | BZ131: 298.0874 | CA131: 4095338.272 | CB131: 2602.379304 | CC131: 673.1113983 | CD131: 119.2745757 | CE131: 76.66% | CF131: 19.83% | CG131: 19.83% | CH131: 3.51% | CI131: 20.09064158 | CJ131: 150.7 | CK131: 298.8163 | CL131: 20789394.86 | CM131: 101325 | CN131: 298.8163008 | CO131: 298.0874043 | CP131: -24544.52653 | CQ131: 2605.521423 | CR131: 673.9241147 | CS131: 119.4185881 | CT131: 3398.864126 | CU131: 76.66% | CV131: 19.83% | CW131: 3.51% | CX131: 1 | CY131: 1 | CZ131: 1 | DA131: 1 | DB131: 1
C132: 123 | D132: 123 | E132: 0.05 | F132: 2.092835759 | G132: 0 | H132: 0 | I132: 12665.625 | J132: 0.05 | K132: 0 | L132: 0 | M132: 2.092835759 | N132: 7599.375 | O132: 1 | P132: 31.81588176 | Q132: 8.514109204 | R132: 0.4073736461 | S132: 252299.25 | T132: 0.5 | U132: 15.90794088 | V132: 4.257054602 | W132: 0.2036868231 | X132: 126149.625 | Y132: 1.5 | Z132: 46.89535026 | AA132: 12.12959031 | AB132: 2.149349635 | AC132: 374628.6917 | AD132: 30.74619826 | AE132: 23.56960304 | AF132: 6.09633209 | AG132: 1.080263126 | AH132: 188288.3804 | AI132: 30.82137825 | AJ132: 22.68516639 | AK132: 5.410554268 | AL132: 2.725657586 | AM132: 184216.9167 | AN132: 689.3025587 | AO132: 507.2926839 | AP132: 120.9681621 | AQ132: 61.04171261 | AR132: 73.60% | AS132: 17.55% | AT132: 8.86% | AU132: 298.0856974 | AV132: 101932.2686 | AW132: 3394.772214 | AX132: 2602.323339 | AY132: 673.067194 | AZ132: 119.381681 | BA132: 76.66% | BB132: 19.83% | BC132: 3.52% | BD132: 298.8158755 | BE132: 101325.0693 | BF132: -607.2685824 | BG132: -4.11 | BH132: -122.2708006 | BI132: -3.022231461 | BJ132: -0.7206762427 | BK132: -0.3636602501 | BL132: -122.3400912 | BM132: -4.098866597 | BN132: -3.141907852 | BO132: -0.8125522478 | BP132: -0.1444064972 | BQ132: 504.2704525 | BR132: 120.2474859 | BS132: 60.67805236 | BT132: 73.60% | BU132: 17.55% | BV132: 17.55% | BW132: 8.86% | BX132: 17.78188529 | BY132: 133.4 | BZ132: 298.0857 | CA132: 4095131.487 | CB132: 2602.203663 | CC132: 672.975318 | CD132: 119.6009348 | CE132: 76.65% | CF132: 19.82% | CG132: 19.82% | CH132: 3.52% | CI132: 20.08649332 | CJ132: 150.7 | CK132: 298.8150 | CL132: 20788585.31 | CM132: 101325 | CN132: 298.8150124 | CO132: 298.0856974 | CP132: -24543.24888 | CQ132: 2605.345571 | CR132: 673.7878702 | CS132: 119.7453413 | CT132: 3398.878782 | CU132: 76.65% | CV132: 19.82% | CW132: 3.52% | CX132: 1 | CY132: 1 | CZ132: 1 | DA132: 1 | DB132: 1
C133: 124 | D133: 124 | E133: 0.05 | F133: 2.092835759 | G133: 0 | H133: 0 | I133: 12665.625 | J133: 0.05 | K133: 0 | L133: 0 | M133: 2.092835759 | N133: 7599.375 | O133: 1 | P133: 31.81588176 | Q133: 8.514109204 | R133: 0.4073736461 | S133: 252299.25 | T133: 0.5 | U133: 15.90794088 | V133: 4.257054602 | W133: 0.2036868231 | X133: 126149.625 | Y133: 1.5 | Z133: 46.89218518 | AA133: 12.12713812 | AB133: 2.155230684 | AC133: 374614.1033 | AD133: 30.74633083 | AE133: 23.56801227 | AF133: 6.095099618 | AG133: 1.083218942 | AH133: 188281.0483 | AI133: 30.82155474 | AJ133: 22.68314404 | AK133: 5.408984464 | AL133: 2.729426234 | AM133: 184207.615 | AN133: 689.3064383 | AO133: 507.2481564 | AP133: 120.933601 | AQ133: 61.12468083 | AR133: 73.59% | AS133: 17.54% | AT133: 8.87% | AU133: 298.084017 | AV133: 101932.2676 | AW133: 3394.786633 | AX133: 2602.150432 | AY133: 672.9332285 | AZ133: 119.7029718 | BA133: 76.65% | BB133: 19.82% | BC133: 3.53% | BD133: 298.814607 | BE133: 101325.0695 | BF133: -607.2676488 | BG133: -4.11 | BH133: -122.2706126 | BI133: -3.021961568 | BJ133: -0.7204692416 | BK133: -0.3641539825 | BL133: -122.3401175 | BM133: -4.098884885 | BN133: -3.141699685 | BO133: -0.8123906176 | BP133: -0.1447945834 | BQ133: 504.2261949 | BR133: 120.2131318 | BS133: 60.76052685 | BT133: 73.59% | BU133: 17.54% | BV133: 17.54% | BW133: 8.87% | BX133: 17.77670488 | BY133: 133.3 | BZ133: 298.0840 | CA133: 4094927.929 | CB133: 2602.030694 | CC133: 672.8413072 | CD133: 119.9223312 | CE133: 76.65% | CF133: 19.82% | CG133: 19.82% | CH133: 3.53% | CI133: 20.08240817 | CJ133: 150.6 | CK133: 298.8137 | CL133: 20787788.07 | CM133: 101325 | CN133: 298.8137434 | CO133: 298.084017 | CP133: -24541.99117 | CQ133: 2605.172394 | CR133: 673.6536978 | CS133: 120.0671258 | CT133: 3398.893217 | CU133: 76.65% | CV133: 19.82% | CW133: 3.53% | CX133: 1 | CY133: 1 | CZ133: 1 | DA133: 1 | DB133: 1
C134: 125 | D134: 125 | E134: 0.05 | F134: 2.092835759 | G134: 0 | H134: 0 | I134: 12665.625 | J134: 0.05 | K134: 0 | L134: 0 | M134: 2.092835759 | N134: 7599.375 | O134: 1 | P134: 31.81588176 | Q134: 8.514109204 | R134: 0.4073736461 | S134: 252299.25 | T134: 0.5 | U134: 15.90794088 | V134: 4.257054602 | W134: 0.2036868231 | X134: 126149.625 | Y134: 1.5 | Z134: 46.88906825 | AA134: 12.12472322 | AB134: 2.161022307 | AC134: 374599.7369 | AD134: 30.7464614 | AE134: 23.5664457 | AF134: 6.09388589 | AG134: 1.086129812 | AH134: 188273.8278 | AI134: 30.8217285 | AJ134: 22.68115324 | AK134: 5.407439145 | AL134: 2.733136109 | AM134: 184198.4586 | AN134: 689.310258 | AO134: 507.2043231 | AP134: 120.8995785 | AQ134: 61.20635631 | AR134: 73.58% | AS134: 17.54% | AT134: 8.88% | AU134: 298.0823625 | AV134: 101932.2667 | AW134: 3394.800833 | AX134: 2601.980156 | AY134: 672.801301 | AZ134: 120.0193757 | BA134: 76.65% | BB134: 19.82% | BC134: 3.54% | BD134: 298.8133577 | BE134: 101325.0697 | BF134: -607.2667297 | BG134: -4.11 | BH134: -122.2704276 | BI134: -3.021695882 | BJ134: -0.7202654669 | BK134: -0.3646400205 | BL134: -122.3401441 | BM134: -4.098902919 | BN134: -3.141494701 | BO134: -0.8122314503 | BP134: -0.1451767672 | BQ134: 504.1826272 | BR134: 120.1793131 | BS134: 60.84171629 | BT134: 73.58% | BU134: 17.54% | BV134: 17.54% | BW134: 8.88% | BX134: 17.77160525 | BY134: 133.3 | BZ134: 298.0824 | CA134: 4094727.545 | CB134: 2601.860357 | CC134: 672.709335 | CD134: 120.238839 | CE134: 76.64% | CF134: 19.82% | CG134: 19.82% | CH134: 3.54% | CI134: 20.0783852 | CJ134: 150.6 | CK134: 298.8125 | CL134: 20787002.96 | CM134: 101325 | CN134: 298.8124936 | CO134: 298.0823625 | CP134: -24540.75308 | CQ134: 2605.001852 | CR134: 673.5215665 | CS134: 120.3840157 | CT134: 3398.907434 | CU134: 76.64% | CV134: 19.82% | CW134: 3.54% | CX134: 1 | CY134: 1 | CZ134: 1 | DA134: 1 | DB134: 1
C135: 126 | D135: 126 | E135: 0.05 | F135: 2.092835759 | G135: 0 | H135: 0 | I135: 12665.625 | J135: 0.05 | K135: 0 | L135: 0 | M135: 2.092835759 | N135: 7599.375 | O135: 1 | P135: 31.81588176 | Q135: 8.514109204 | R135: 0.4073736461 | S135: 252299.25 | T135: 0.5 | U135: 15.90794088 | V135: 4.257054602 | W135: 0.2036868231 | X135: 126149.625 | Y135: 1.5 | Z135: 46.88599875 | AA135: 12.12234506 | AB135: 2.166725834 | AC135: 374585.5891 | AD135: 30.74659 | AE135: 23.56490297 | AF135: 6.092690626 | AG135: 1.088996404 | AH135: 188266.7171 | AI135: 30.82189956 | AJ135: 22.67919348 | AK135: 5.405917908 | AL135: 2.736788181 | AM135: 184189.4449 | AN135: 689.3140185 | AO135: 507.1611725 | AP135: 120.8660858 | AQ135: 61.28676027 | AR135: 73.57% | AS135: 17.53% | AT135: 8.89% | AU135: 298.0807337 | AV135: 101932.2658 | AW135: 3394.814818 | AX135: 2601.812472 | AY135: 672.671381 | AZ135: 120.3309654 | BA135: 76.64% | BB135: 19.81% | BC135: 3.54% | BD135: 298.8121273 | BE135: 101325.0699 | BF135: -607.265825 | BG135: -4.11 | BH135: -122.2702454 | BI135: -3.021434335 | BJ135: -0.7200648658 | BK135: -0.3651184906 | BL135: -122.3401709 | BM135: -4.098920699 | BN135: -3.141292853 | BO135: -0.8120747092 | BP135: -0.1455531367 | BQ135: 504.1397381 | BR135: 120.1460209 | BS135: 60.92164178 | BT135: 73.57% | BU135: 17.53% | BV135: 17.53% | BW135: 8.89% | BX135: 17.76658506 | BY135: 133.3 | BZ135: 298.0807 | CA135: 4094530.283 | CB135: 2601.692613 | CC135: 672.5793712 | CD135: 120.5505307 | CE135: 76.64% | CF135: 19.81% | CG135: 19.81% | CH135: 3.55% | CI135: 20.07442347 | CJ135: 150.6 | CK135: 298.8112 | CL135: 20786229.8 | CM135: 101325 | CN135: 298.8112628 | CO135: 298.0807337 | CP135: -24539.53427 | CQ135: 2604.833906 | CR135: 673.3914459 | CS135: 120.6960839 | CT135: 3398.921436 | CU135: 76.64% | CV135: 19.81% | CW135: 3.55% | CX135: 1 | CY135: 1 | CZ135: 1 | DA135: 1 | DB135: 1
C136: 127 | D136: 127 | E136: 0.05 | F136: 2.092835759 | G136: 0 | H136: 0 | I136: 12665.625 | J136: 0.05 | K136: 0 | L136: 0 | M136: 2.092835759 | N136: 7599.375 | O136: 1 | P136: 31.81588176 | Q136: 8.514109204 | R136: 0.4073736461 | S136: 252299.25 | T136: 0.5 | U136: 15.90794088 | V136: 4.257054602 | W136: 0.2036868231 | X136: 126149.625 | Y136: 1.5 | Z136: 46.88297597 | AA136: 12.12000309 | AB136: 2.172342577 | AC136: 374571.6567 | AD136: 30.74671665 | AE136: 23.56338372 | AF136: 6.091513551 | AG136: 1.091819379 | AH136: 188259.7147 | AI136: 30.82206799 | AJ136: 22.67726424 | AK136: 5.404420357 | AL136: 2.740383397 | AM136: 184180.5716 | AN136: 689.317721 | AO136: 507.1186934 | AP136: 120.8331141 | AQ136: 61.36591352 | AR136: 73.57% | AS136: 17.53% | AT136: 8.90% | AU136: 298.07913 | AV136: 101932.2649 | AW136: 3394.828592 | AX136: 2601.64734 | AY136: 672.5434387 | AZ136: 120.6378126 | BA136: 76.64% | BB136: 19.81% | BC136: 3.55% | BD136: 298.8109156 | BE136: 101325.0701 | BF136: -607.2649344 | BG136: -4.11 | BH136: -122.2700661 | BI136: -3.02117686 | BJ136: -0.7198673861 | BK136: -0.3655895164 | BL136: -122.3401978 | BM136: -4.098938231 | BN136: -3.141094094 | BO136: -0.8119203579 | BP136: -0.1459237786 | BQ136: 504.0975165 | BR136: 120.1132467 | BS136: 61.000324 | BT136: 73.57% | BU136: 17.53% | BV136: 17.53% | BW136: 8.90% | BX136: 17.76164302 | BY136: 133.2 | BZ136: 298.0791 | CA136: 4094336.092 | CB136: 2601.527423 | CC136: 672.4513858 | CD136: 120.8574784 | CE136: 76.63% | CF136: 19.81% | CG136: 19.81% | CH136: 3.56% | CI136: 20.07052208 | CJ136: 150.5 | CK136: 298.8100 | CL136: 20785468.42 | CM136: 101325 | CN136: 298.8100506 | CO136: 298.07913 | CP136: -24538.33445 | CQ136: 2604.668517 | CR136: 673.2633061 | CS136: 121.0034022 | CT136: 3398.935225 | CU136: 76.63% | CV136: 19.81% | CW136: 3.56% | CX136: 1 | CY136: 1 | CZ136: 1 | DA136: 1 | DB136: 1
C137: 128 | D137: 128 | E137: 0.05 | F137: 2.092835759 | G137: 0 | H137: 0 | I137: 12665.625 | J137: 0.05 | K137: 0 | L137: 0 | M137: 2.092835759 | N137: 7599.375 | O137: 1 | P137: 31.81588176 | Q137: 8.514109204 | R137: 0.4073736461 | S137: 252299.25 | T137: 0.5 | U137: 15.90794088 | V137: 4.257054602 | W137: 0.2036868231 | X137: 126149.625 | Y137: 1.5 | Z137: 46.87999921 | AA137: 12.11769676 | AB137: 2.177873829 | AC137: 374557.9365 | AD137: 30.74684138 | AE137: 23.5618876 | AF137: 6.090354394 | AG137: 1.094599387 | AH137: 188252.8189 | AI137: 30.82223381 | AJ137: 22.67536502 | AK137: 5.402946105 | AL137: 2.743922689 | AM137: 184171.8365 | AN137: 689.3213664 | AO137: 507.0768749 | AP137: 120.800655 | AQ137: 61.44383646 | AR137: 73.56% | AS137: 17.52% | AT137: 8.91% | AU137: 298.0775511 | AV137: 101932.2641 | AW137: 3394.842157 | AX137: 2601.484724 | AY137: 672.4174445 | AZ137: 120.9399883 | BA137: 76.63% | BB137: 19.81% | BC137: 3.56% | BD137: 298.8097222 | BE137: 101325.0703 | BF137: -607.2640577 | BG137: -4.11 | BH137: -122.2698896 | BI137: -3.020923389 | BJ137: -0.7196729771 | BK137: -0.3660532197 | BL137: -122.3402249 | BM137: -4.098955516 | BN137: -3.140898377 | BO137: -0.8117683608 | BP137: -0.1462887782 | BQ137: 504.0559515 | BR137: 120.0809821 | BS137: 61.07778324 | BT137: =nN2_NF/(nN2_NF+nO2_NF+nAr_NF) -> 73.56% | BU137: =nO2_NF/(nN2_NF+nO2_NF+nAr_NF) -> 17.52% | BV137: =IF(Tot_Valid="L",-10,IF(CB_O2_perc=TRUE,BU137,-1)) -> 17.52% | BW137: =nAr_NF/(nN2_NF+nO2_NF+nAr_NF) -> 8.91% | BX137: 17.75677785 | BY137: =IF(Tot_Valid="L",-10,IF(CB_pO2=TRUE,Sign_Digit((CO2_NF*p_t)*(Conv_Fact/10)),-1)) -> 133.2 | BZ137: 298.0776 | CA137: =(nN2_NF*cv_N2+nO2_NF*cv_O2+nAr_NF*cv_Ar)*TNF_t_K -> 4094144.921 | CB137: 2601.364749 | CC137: 672.3253491 | CD137: 121.1597528 | CE137: =nN2_FF/(nN2_FF+nO2_FF+nAr_FF) -> 76.63% | CF137: =nO2_FF/(nN2_FF+nO2_FF+nAr_FF) -> 19.80% | CG137: =IF(Tot_Valid="L",-10,IF(CB_O2_perc=TRUE,CF137,-1)) -> 19.80% | CH137: =nAr_FF/(nN2_FF+nO2_FF+nAr_FF) -> 3.57% | CI137: 20.06668012 | CJ137: =IF(Tot_Valid="L",-10,IF(CB_pO2=TRUE,Sign_Digit((CO2_FF*p_t)*(Conv_Fact/10)),-1)) -> 150.5 | CK137: 298.8088 | CL137: =(nN2_FF*cv_N2+nO2_FF*cv_O2+nAr_FF*cv_Ar)*TFF_t_K -> 20784718.64 | CM137: =p_t -> 101325 | CN137: 298.8088568 | CO137: 298.0775511 | CP137: -24537.15329 | CQ137: 2604.505647 | CR137: 673.1371175 | CS137: 121.3060415 | CT137: 3398.948806 | CU137: 76.63% | CV137: 19.80% | CW137: 3.57% | CX137: 1 | CY137: 1 | CZ137: 1 | DA137: 1 | DB137: 1
